Workbook

Sheet Content
D1: Product Price List
D3: September 2016
B4: Product Category | D4: Product Name
B6: Business
D7: Bitdefender GravityZone Business Security
D8: Bitdefender GravityZone Advanced Business Security
D9: Bitdefender GravityZone Enterprise Security
D10: GravityZone Security for Virtualized Environments VDI
D11: GravityZone Security for Virtualized Environments VS
D12: GravityZone Security for Virtualized Environments CPU
D14: GravityZone Security for Endpoints Physical Workstations
D15: GravityZone Security for Endpoints Physical Servers
D17: GravityZone Security for Exchange
D18: GravityZone Security for Mobile
D19: Bitdefender Security for Mail Servers - Linux
B21: Consumer | D21: Bitdefender Antivirus Plus 2016
D22: Bitdefender Internet Security 2016
D23: Bitdefender Total Security 2016
D24: Bitdefender Total Security Multi-Device 2016
D25: Bitdefender Family pack 2016*
D26: Bitdefender Mobile Security for Android
D27: Bitdefender Antivirus for Mac
D28: * Bitdefender Family pack 2016 offers one license per household

Sheet Products
B2: Bitdefender Solutions | AB2: Consumer with VAT | AC2: Business Standard | AE2: Business Standard
AB3: Consumer without VAT | AC3: Education & Non Profit | AE3: =IF(OR($Y$7=2,$Y$7=1),"",AC3) -> Education & Non Profit
B4: Note : The prices below are without VAT | AB4: Business | AC4: Government | AE4: =IF(OR($Y$7=2,$Y$7=1),"",AC4) -> Government
B5: Enter the desired number of units in the appropriate yellow cell to calculate the price. Unless otherwise specified, all the units are users. | AB5: Previous & Legacy Business | AC5: Renew | AE5: Renew
AC6: Competitive Upgrade | AE6: Competitive Upgrade
Y7: 3 | Z7: =IF(Y7=1,AB2,IF(Y7=2,AB3,IF(Y7=3,AB4,AB5))) -> Business | AC7: Education & Non Profit Renew | AE7: Education & Non Profit Renew
B8: Select Portfolio Type | C8: Select Offer Type | F8: Discount from MSRP | H8: ='Base Prod'!G10 -> 0 | Y8: 1 | Z8: =IF(OR(Y7=1,Y7=2),AC2,IF(Y8=1,AC2,IF(Y8=2,AC3,IF(Y8=3,AC4,IF(Y8=4,AC5,IF(Y8=5,AC6,IF(Y8=6,AC7,AC8))))))) -> Business Standard | AC8: Government Renew | AE8: Government Renew
B12: Total price per choosen configuration | G12: =SUM(G14:G172) -> 0
B13: Product | C13: Period | D13: Users | E13: Price/Unit | F13: # Units | G13: Total Price | H13: Part #
B14: ='Base Prod'!A14 -> Bitdefender GravityZone Business Security | C14: ='Base Prod'!B14 -> 1 year | D14: ='Base Prod'!C14 -> 3 - 14 | E14: ='Base Prod'!D14 -> 33.32 | G14: ='Base Prod'!F14 -> 0 | H14: ='Base Prod'!G14 -> AL1286100A-EN
B15: ='Base Prod'!A15 -> Bitdefender GravityZone Business Security | C15: ='Base Prod'!B15 -> 1 year | D15: ='Base Prod'!C15 -> 15 - 24 | E15: ='Base Prod'!D15 -> 29.37 | G15: ='Base Prod'!F15 -> 0 | H15: ='Base Prod'!G15 -> AL1286100B-EN
B16: ='Base Prod'!A16 -> Bitdefender GravityZone Business Security | C16: ='Base Prod'!B16 -> 1 year | D16: ='Base Prod'!C16 -> 25 - 49 | E16: ='Base Prod'!D16 -> 27.69 | G16: ='Base Prod'!F16 -> 0 | H16: ='Base Prod'!G16 -> AL1286100C-EN
B17: ='Base Prod'!A17 -> Bitdefender GravityZone Business Security | C17: ='Base Prod'!B17 -> 1 year | D17: ='Base Prod'!C17 -> 50 - 99 | E17: ='Base Prod'!D17 -> 24.33 | G17: ='Base Prod'!F17 -> 0 | H17: ='Base Prod'!G17 -> AL1286100D-EN
B18: ='Base Prod'!A18 -> Bitdefender GravityZone Business Security | C18: ='Base Prod'!B18 -> 1 year | D18: ='Base Prod'!C18 -> 100 - 149 | E18: ='Base Prod'!D18 -> 22.38 | G18: ='Base Prod'!F18 -> 0 | H18: ='Base Prod'!G18 -> AL1286100E-EN
B19: ='Base Prod'!A19 -> Bitdefender GravityZone Business Security | C19: ='Base Prod'!B19 -> 1 year | D19: ='Base Prod'!C19 -> 150 - 249 | E19: ='Base Prod'!D19 -> 21.49 | G19: ='Base Prod'!F19 -> 0 | H19: ='Base Prod'!G19 -> AL1286100F-EN
B20: ='Base Prod'!A20 -> Bitdefender GravityZone Business Security | C20: ='Base Prod'!B20 -> 1 year | D20: ='Base Prod'!C20 -> 250 - 499 | E20: ='Base Prod'!D20 -> 20.41 | G20: ='Base Prod'!F20 -> 0 | H20: ='Base Prod'!G20 -> AL1286100G-EN
B21: ='Base Prod'!A21 -> Bitdefender GravityZone Business Security | C21: ='Base Prod'!B21 -> 1 year | D21: ='Base Prod'!C21 -> 500 - 999 | E21: ='Base Prod'!D21 -> 20.11 | G21: ='Base Prod'!F21 -> 0 | H21: ='Base Prod'!G21 -> AL1286100H-EN
B22: ='Base Prod'!A22 -> Bitdefender GravityZone Business Security | C22: ='Base Prod'!B22 -> 1 year | D22: ='Base Prod'!C22 -> 1000 - 2999 | E22: ='Base Prod'!D22 -> 19.81 | G22: ='Base Prod'!F22 -> 0 | H22: ='Base Prod'!G22 -> AL1286100I-EN
B23: ='Base Prod'!A23 -> Bitdefender GravityZone Business Security | C23: ='Base Prod'!B23 -> 1 year | D23: ='Base Prod'!C23 -> 3000+ | E23: ='Base Prod'!D23 -> 19.51 | G23: ='Base Prod'!F23 -> 0 | H23: ='Base Prod'!G23 -> AL1286100J-EN
B24: ='Base Prod'!A24 -> Bitdefender GravityZone Business Security | C24: ='Base Prod'!B24 -> 2 years | D24: ='Base Prod'!C24 -> 3 - 14 | E24: ='Base Prod'!D24 -> 53.31 | G24: ='Base Prod'!F24 -> 0 | H24: ='Base Prod'!G24 -> AL1286200A-EN
B25: ='Base Prod'!A25 -> Bitdefender GravityZone Business Security | C25: ='Base Prod'!B25 -> 2 years | D25: ='Base Prod'!C25 -> 15 - 24 | E25: ='Base Prod'!D25 -> 46.99 | G25: ='Base Prod'!F25 -> 0 | H25: ='Base Prod'!G25 -> AL1286200B-EN
B26: ='Base Prod'!A26 -> Bitdefender GravityZone Business Security | C26: ='Base Prod'!B26 -> 2 years | D26: ='Base Prod'!C26 -> 25 - 49 | E26: ='Base Prod'!D26 -> 44.3 | G26: ='Base Prod'!F26 -> 0 | H26: ='Base Prod'!G26 -> AL1286200C-EN
B27: ='Base Prod'!A27 -> Bitdefender GravityZone Business Security | C27: ='Base Prod'!B27 -> 2 years | D27: ='Base Prod'!C27 -> 50 - 99 | E27: ='Base Prod'!D27 -> 38.93 | G27: ='Base Prod'!F27 -> 0 | H27: ='Base Prod'!G27 -> AL1286200D-EN
B28: ='Base Prod'!A28 -> Bitdefender GravityZone Business Security | C28: ='Base Prod'!B28 -> 2 years | D28: ='Base Prod'!C28 -> 100 - 149 | E28: ='Base Prod'!D28 -> 35.81 | G28: ='Base Prod'!F28 -> 0 | H28: ='Base Prod'!G28 -> AL1286200E-EN
B29: ='Base Prod'!A29 -> Bitdefender GravityZone Business Security | C29: ='Base Prod'!B29 -> 2 years | D29: ='Base Prod'!C29 -> 150 - 249 | E29: ='Base Prod'!D29 -> 34.38 | G29: ='Base Prod'!F29 -> 0 | H29: ='Base Prod'!G29 -> AL1286200F-EN
B30: ='Base Prod'!A30 -> Bitdefender GravityZone Business Security | C30: ='Base Prod'!B30 -> 2 years | D30: ='Base Prod'!C30 -> 250 - 499 | E30: ='Base Prod'!D30 -> 32.66 | G30: ='Base Prod'!F30 -> 0 | H30: ='Base Prod'!G30 -> AL1286200G-EN
B31: ='Base Prod'!A31 -> Bitdefender GravityZone Business Security | C31: ='Base Prod'!B31 -> 2 years | D31: ='Base Prod'!C31 -> 500 - 999 | E31: ='Base Prod'!D31 -> 32.18 | G31: ='Base Prod'!F31 -> 0 | H31: ='Base Prod'!G31 -> AL1286200H-EN
B32: ='Base Prod'!A32 -> Bitdefender GravityZone Business Security | C32: ='Base Prod'!B32 -> 2 years | D32: ='Base Prod'!C32 -> 1000 - 2999 | E32: ='Base Prod'!D32 -> 31.7 | G32: ='Base Prod'!F32 -> 0 | H32: ='Base Prod'!G32 -> AL1286200I-EN
B33: ='Base Prod'!A33 -> Bitdefender GravityZone Business Security | C33: ='Base Prod'!B33 -> 2 years | D33: ='Base Prod'!C33 -> 3000+ | E33: ='Base Prod'!D33 -> 31.22 | G33: ='Base Prod'!F33 -> 0 | H33: ='Base Prod'!G33 -> AL1286200J-EN
B34: ='Base Prod'!A34 -> Bitdefender GravityZone Business Security | C34: ='Base Prod'!B34 -> 3 years | D34: ='Base Prod'!C34 -> 3 - 14 | E34: ='Base Prod'!D34 -> 68.25 | G34: ='Base Prod'!F34 -> 0 | H34: ='Base Prod'!G34 -> AL1286300A-EN
B35: ='Base Prod'!A35 -> Bitdefender GravityZone Business Security | C35: ='Base Prod'!B35 -> 3 years | D35: ='Base Prod'!C35 -> 15 - 24 | E35: ='Base Prod'!D35 -> 60.21 | G35: ='Base Prod'!F35 -> 0 | H35: ='Base Prod'!G35 -> AL1286300B-EN
B36: ='Base Prod'!A36 -> Bitdefender GravityZone Business Security | C36: ='Base Prod'!B36 -> 3 years | D36: ='Base Prod'!C36 -> 25 - 49 | E36: ='Base Prod'!D36 -> 56.76 | G36: ='Base Prod'!F36 -> 0 | H36: ='Base Prod'!G36 -> AL1286300C-EN
B37: ='Base Prod'!A37 -> Bitdefender GravityZone Business Security | C37: ='Base Prod'!B37 -> 3 years | D37: ='Base Prod'!C37 -> 50 - 99 | E37: ='Base Prod'!D37 -> 49.88 | G37: ='Base Prod'!F37 -> 0 | H37: ='Base Prod'!G37 -> AL1286300D-EN
B38: ='Base Prod'!A38 -> Bitdefender GravityZone Business Security | C38: ='Base Prod'!B38 -> 3 years | D38: ='Base Prod'!C38 -> 100 - 149 | E38: ='Base Prod'!D38 -> 45.88 | G38: ='Base Prod'!F38 -> 0 | H38: ='Base Prod'!G38 -> AL1286300E-EN
B39: ='Base Prod'!A39 -> Bitdefender GravityZone Business Security | C39: ='Base Prod'!B39 -> 3 years | D39: ='Base Prod'!C39 -> 150 - 249 | E39: ='Base Prod'!D39 -> 44.05 | G39: ='Base Prod'!F39 -> 0 | H39: ='Base Prod'!G39 -> AL1286300F-EN
B40: ='Base Prod'!A40 -> Bitdefender GravityZone Business Security | C40: ='Base Prod'!B40 -> 3 years | D40: ='Base Prod'!C40 -> 250 - 499 | E40: ='Base Prod'!D40 -> 41.84 | G40: ='Base Prod'!F40 -> 0 | H40: ='Base Prod'!G40 -> AL1286300G-EN
B41: ='Base Prod'!A41 -> Bitdefender GravityZone Business Security | C41: ='Base Prod'!B41 -> 3 years | D41: ='Base Prod'!C41 -> 500 - 999 | E41: ='Base Prod'!D41 -> 41.23 | G41: ='Base Prod'!F41 -> 0 | H41: ='Base Prod'!G41 -> AL1286300H-EN
B42: ='Base Prod'!A42 -> Bitdefender GravityZone Business Security | C42: ='Base Prod'!B42 -> 3 years | D42: ='Base Prod'!C42 -> 1000 - 2999 | E42: ='Base Prod'!D42 -> 40.61 | G42: ='Base Prod'!F42 -> 0 | H42: ='Base Prod'!G42 -> AL1286300I-EN
B43: ='Base Prod'!A43 -> Bitdefender GravityZone Business Security | C43: ='Base Prod'!B43 -> 3 years | D43: ='Base Prod'!C43 -> 3000+ | E43: ='Base Prod'!D43 -> 40 | G43: ='Base Prod'!F43 -> 0 | H43: ='Base Prod'!G43 -> AL1286300J-EN
B44: ='Base Prod'!A44 -> Bitdefender GravityZone Advanced Business Security | C44: ='Base Prod'!B44 -> 1 year | D44: ='Base Prod'!C44 -> 5 - 14 | E44: ='Base Prod'!D44 -> 48.32 | G44: ='Base Prod'!F44 -> 0 | H44: ='Base Prod'!G44 -> AL1287100A-EN
B45: ='Base Prod'!A45 -> Bitdefender GravityZone Advanced Business Security | C45: ='Base Prod'!B45 -> 1 year | D45: ='Base Prod'!C45 -> 15 - 24 | E45: ='Base Prod'!D45 -> 44.66 | G45: ='Base Prod'!F45 -> 0 | H45: ='Base Prod'!G45 -> AL1287100B-EN
B46: ='Base Prod'!A46 -> Bitdefender GravityZone Advanced Business Security | C46: ='Base Prod'!B46 -> 1 year | D46: ='Base Prod'!C46 -> 25 - 49 | E46: ='Base Prod'!D46 -> 39.99 | G46: ='Base Prod'!F46 -> 0 | H46: ='Base Prod'!G46 -> AL1287100C-EN
B47: ='Base Prod'!A47 -> Bitdefender GravityZone Advanced Business Security | C47: ='Base Prod'!B47 -> 1 year | D47: ='Base Prod'!C47 -> 50 - 99 | E47: ='Base Prod'!D47 -> 35.99 | G47: ='Base Prod'!F47 -> 0 | H47: ='Base Prod'!G47 -> AL1287100D-EN
B48: ='Base Prod'!A48 -> Bitdefender GravityZone Advanced Business Security | C48: ='Base Prod'!B48 -> 1 year | D48: ='Base Prod'!C48 -> 100 - 149 | E48: ='Base Prod'!D48 -> 32.66 | G48: ='Base Prod'!F48 -> 0 | H48: ='Base Prod'!G48 -> AL1287100E-EN
B49: ='Base Prod'!A49 -> Bitdefender GravityZone Advanced Business Security | C49: ='Base Prod'!B49 -> 1 year | D49: ='Base Prod'!C49 -> 150 - 249 | E49: ='Base Prod'!D49 -> 28.09 | G49: ='Base Prod'!F49 -> 0 | H49: ='Base Prod'!G49 -> AL1287100F-EN
B50: ='Base Prod'!A50 -> Bitdefender GravityZone Advanced Business Security | C50: ='Base Prod'!B50 -> 1 year | D50: ='Base Prod'!C50 -> 250 - 499 | E50: ='Base Prod'!D50 -> 25.84 | G50: ='Base Prod'!F50 -> 0 | H50: ='Base Prod'!G50 -> AL1287100G-EN
B51: ='Base Prod'!A51 -> Bitdefender GravityZone Advanced Business Security | C51: ='Base Prod'!B51 -> 1 year | D51: ='Base Prod'!C51 -> 500 - 999 | E51: ='Base Prod'!D51 -> 24.03 | G51: ='Base Prod'!F51 -> 0 | H51: ='Base Prod'!G51 -> AL1287100H-EN
B52: ='Base Prod'!A52 -> Bitdefender GravityZone Advanced Business Security | C52: ='Base Prod'!B52 -> 1 year | D52: ='Base Prod'!C52 -> 1000 - 2999 | E52: ='Base Prod'!D52 -> 22.83 | G52: ='Base Prod'!F52 -> 0 | H52: ='Base Prod'!G52 -> AL1287100I-EN
B53: ='Base Prod'!A53 -> Bitdefender GravityZone Advanced Business Security | C53: ='Base Prod'!B53 -> 1 year | D53: ='Base Prod'!C53 -> 3000+ | E53: ='Base Prod'!D53 -> 22.14 | G53: ='Base Prod'!F53 -> 0 | H53: ='Base Prod'!G53 -> AL1287100J-EN
B54: ='Base Prod'!A54 -> Bitdefender GravityZone Advanced Business Security | C54: ='Base Prod'!B54 -> 2 years | D54: ='Base Prod'!C54 -> 5 - 14 | E54: ='Base Prod'!D54 -> 77.31 | G54: ='Base Prod'!F54 -> 0 | H54: ='Base Prod'!G54 -> AL1287200A-EN
B55: ='Base Prod'!A55 -> Bitdefender GravityZone Advanced Business Security | C55: ='Base Prod'!B55 -> 2 years | D55: ='Base Prod'!C55 -> 15 - 24 | E55: ='Base Prod'!D55 -> 71.46 | G55: ='Base Prod'!F55 -> 0 | H55: ='Base Prod'!G55 -> AL1287200B-EN
B56: ='Base Prod'!A56 -> Bitdefender GravityZone Advanced Business Security | C56: ='Base Prod'!B56 -> 2 years | D56: ='Base Prod'!C56 -> 25 - 49 | E56: ='Base Prod'!D56 -> 63.98 | G56: ='Base Prod'!F56 -> 0 | H56: ='Base Prod'!G56 -> AL1287200C-EN
B57: ='Base Prod'!A57 -> Bitdefender GravityZone Advanced Business Security | C57: ='Base Prod'!B57 -> 2 years | D57: ='Base Prod'!C57 -> 50 - 99 | E57: ='Base Prod'!D57 -> 57.58 | G57: ='Base Prod'!F57 -> 0 | H57: ='Base Prod'!G57 -> AL1287200D-EN
B58: ='Base Prod'!A58 -> Bitdefender GravityZone Advanced Business Security | C58: ='Base Prod'!B58 -> 2 years | D58: ='Base Prod'!C58 -> 100 - 149 | E58: ='Base Prod'!D58 -> 52.26 | G58: ='Base Prod'!F58 -> 0 | H58: ='Base Prod'!G58 -> AL1287200E-EN
B59: ='Base Prod'!A59 -> Bitdefender GravityZone Advanced Business Security | C59: ='Base Prod'!B59 -> 2 years | D59: ='Base Prod'!C59 -> 150 - 249 | E59: ='Base Prod'!D59 -> 44.94 | G59: ='Base Prod'!F59 -> 0 | H59: ='Base Prod'!G59 -> AL1287200F-EN
B60: ='Base Prod'!A60 -> Bitdefender GravityZone Advanced Business Security | C60: ='Base Prod'!B60 -> 2 years | D60: ='Base Prod'!C60 -> 250 - 499 | E60: ='Base Prod'!D60 -> 41.34 | G60: ='Base Prod'!F60 -> 0 | H60: ='Base Prod'!G60 -> AL1287200G-EN
B61: ='Base Prod'!A61 -> Bitdefender GravityZone Advanced Business Security | C61: ='Base Prod'!B61 -> 2 years | D61: ='Base Prod'!C61 -> 500 - 999 | E61: ='Base Prod'!D61 -> 38.45 | G61: ='Base Prod'!F61 -> 0 | H61: ='Base Prod'!G61 -> AL1287200H-EN
B62: ='Base Prod'!A62 -> Bitdefender GravityZone Advanced Business Security | C62: ='Base Prod'!B62 -> 2 years | D62: ='Base Prod'!C62 -> 1000 - 2999 | E62: ='Base Prod'!D62 -> 36.53 | G62: ='Base Prod'!F62 -> 0 | H62: ='Base Prod'!G62 -> AL1287200I-EN
B63: ='Base Prod'!A63 -> Bitdefender GravityZone Advanced Business Security | C63: ='Base Prod'!B63 -> 2 years | D63: ='Base Prod'!C63 -> 3000+ | E63: ='Base Prod'!D63 -> 35.42 | G63: ='Base Prod'!F63 -> 0 | H63: ='Base Prod'!G63 -> AL1287200J-EN
B64: ='Base Prod'!A64 -> Bitdefender GravityZone Advanced Business Security | C64: ='Base Prod'!B64 -> 3 years | D64: ='Base Prod'!C64 -> 5 - 14 | E64: ='Base Prod'!D64 -> 99.06 | G64: ='Base Prod'!F64 -> 0 | H64: ='Base Prod'!G64 -> AL1287300A-EN
B65: ='Base Prod'!A65 -> Bitdefender GravityZone Advanced Business Security | C65: ='Base Prod'!B65 -> 3 years | D65: ='Base Prod'!C65 -> 15 - 24 | E65: ='Base Prod'!D65 -> 91.55 | G65: ='Base Prod'!F65 -> 0 | H65: ='Base Prod'!G65 -> AL1287300B-EN
B66: ='Base Prod'!A66 -> Bitdefender GravityZone Advanced Business Security | C66: ='Base Prod'!B66 -> 3 years | D66: ='Base Prod'!C66 -> 25 - 49 | E66: ='Base Prod'!D66 -> 81.98 | G66: ='Base Prod'!F66 -> 0 | H66: ='Base Prod'!G66 -> AL1287300C-EN
B67: ='Base Prod'!A67 -> Bitdefender GravityZone Advanced Business Security | C67: ='Base Prod'!B67 -> 3 years | D67: ='Base Prod'!C67 -> 50 - 99 | E67: ='Base Prod'!D67 -> 73.78 | G67: ='Base Prod'!F67 -> 0 | H67: ='Base Prod'!G67 -> AL1287300D-EN
B68: ='Base Prod'!A68 -> Bitdefender GravityZone Advanced Business Security | C68: ='Base Prod'!B68 -> 3 years | D68: ='Base Prod'!C68 -> 100 - 149 | E68: ='Base Prod'!D68 -> 66.95 | G68: ='Base Prod'!F68 -> 0 | H68: ='Base Prod'!G68 -> AL1287300E-EN
B69: ='Base Prod'!A69 -> Bitdefender GravityZone Advanced Business Security | C69: ='Base Prod'!B69 -> 3 years | D69: ='Base Prod'!C69 -> 150 - 249 | E69: ='Base Prod'!D69 -> 57.58 | G69: ='Base Prod'!F69 -> 0 | H69: ='Base Prod'!G69 -> AL1287300F-EN
B70: ='Base Prod'!A70 -> Bitdefender GravityZone Advanced Business Security | C70: ='Base Prod'!B70 -> 3 years | D70: ='Base Prod'!C70 -> 250 - 499 | E70: ='Base Prod'!D70 -> 52.97 | G70: ='Base Prod'!F70 -> 0 | H70: ='Base Prod'!G70 -> AL1287300G-EN
B71: ='Base Prod'!A71 -> Bitdefender GravityZone Advanced Business Security | C71: ='Base Prod'!B71 -> 3 years | D71: ='Base Prod'!C71 -> 500 - 999 | E71: ='Base Prod'!D71 -> 49.26 | G71: ='Base Prod'!F71 -> 0 | H71: ='Base Prod'!G71 -> AL1287300H-EN
B72: ='Base Prod'!A72 -> Bitdefender GravityZone Advanced Business Security | C72: ='Base Prod'!B72 -> 3 years | D72: ='Base Prod'!C72 -> 1000 - 2999 | E72: ='Base Prod'!D72 -> 46.8 | G72: ='Base Prod'!F72 -> 0 | H72: ='Base Prod'!G72 -> AL1287300I-EN
B73: ='Base Prod'!A73 -> Bitdefender GravityZone Advanced Business Security | C73: ='Base Prod'!B73 -> 3 years | D73: ='Base Prod'!C73 -> 3000+ | E73: ='Base Prod'!D73 -> 45.39 | G73: ='Base Prod'!F73 -> 0 | H73: ='Base Prod'!G73 -> AL1287300J-EN
B74: ='Base Prod'!A74 -> GravityZone Security for Virtualized Environments VDI | C74: ='Base Prod'!B74 -> 1 year | D74: ='Base Prod'!C74 -> 5 - 14 | E74: ='Base Prod'!D74 -> 31 | G74: ='Base Prod'!F74 -> 0 | H74: ='Base Prod'!G74 -> BL1211100A-EN
B75: ='Base Prod'!A75 -> GravityZone Security for Virtualized Environments VDI | C75: ='Base Prod'!B75 -> 1 year | D75: ='Base Prod'!C75 -> 15 - 24 | E75: ='Base Prod'!D75 -> 29.75 | G75: ='Base Prod'!F75 -> 0 | H75: ='Base Prod'!G75 -> BL1211100B-EN
B76: ='Base Prod'!A76 -> GravityZone Security for Virtualized Environments VDI | C76: ='Base Prod'!B76 -> 1 year | D76: ='Base Prod'!C76 -> 25 - 49 | E76: ='Base Prod'!D76 -> 28.25 | G76: ='Base Prod'!F76 -> 0 | H76: ='Base Prod'!G76 -> BL1211100C-EN
B77: ='Base Prod'!A77 -> GravityZone Security for Virtualized Environments VDI | C77: ='Base Prod'!B77 -> 1 year | D77: ='Base Prod'!C77 -> 50 - 99 | E77: ='Base Prod'!D77 -> 26.3 | G77: ='Base Prod'!F77 -> 0 | H77: ='Base Prod'!G77 -> BL1211100D-EN
B78: ='Base Prod'!A78 -> GravityZone Security for Virtualized Environments VDI | C78: ='Base Prod'!B78 -> 1 year | D78: ='Base Prod'!C78 -> 100 - 149 | E78: ='Base Prod'!D78 -> 23.9 | G78: ='Base Prod'!F78 -> 0 | H78: ='Base Prod'!G78 -> BL1211100E-EN
B79: ='Base Prod'!A79 -> GravityZone Security for Virtualized Environments VDI | C79: ='Base Prod'!B79 -> 1 year | D79: ='Base Prod'!C79 -> 150 - 249 | E79: ='Base Prod'!D79 -> 22.65 | G79: ='Base Prod'!F79 -> 0 | H79: ='Base Prod'!G79 -> BL1211100F-EN
B80: ='Base Prod'!A80 -> GravityZone Security for Virtualized Environments VDI | C80: ='Base Prod'!B80 -> 1 year | D80: ='Base Prod'!C80 -> 250 - 499 | E80: ='Base Prod'!D80 -> 20.4 | G80: ='Base Prod'!F80 -> 0 | H80: ='Base Prod'!G80 -> BL1211100G-EN
B81: ='Base Prod'!A81 -> GravityZone Security for Virtualized Environments VDI | C81: ='Base Prod'!B81 -> 1 year | D81: ='Base Prod'!C81 -> 500 - 999 | E81: ='Base Prod'!D81 -> 18.35 | G81: ='Base Prod'!F81 -> 0 | H81: ='Base Prod'!G81 -> BL1211100H-EN
B82: ='Base Prod'!A82 -> GravityZone Security for Virtualized Environments VDI | C82: ='Base Prod'!B82 -> 1 year | D82: ='Base Prod'!C82 -> 1000 - 2999 | E82: ='Base Prod'!D82 -> 16.5 | G82: ='Base Prod'!F82 -> 0 | H82: ='Base Prod'!G82 -> BL1211100I-EN
B83: ='Base Prod'!A83 -> GravityZone Security for Virtualized Environments VDI | C83: ='Base Prod'!B83 -> 1 year | D83: ='Base Prod'!C83 -> 3000+ | E83: ='Base Prod'!D83 -> 14.85 | G83: ='Base Prod'!F83 -> 0 | H83: ='Base Prod'!G83 -> BL1211100J-EN
B84: ='Base Prod'!A84 -> GravityZone Security for Virtualized Environments VDI | C84: ='Base Prod'!B84 -> 2 years | D84: ='Base Prod'!C84 -> 5 - 14 | E84: ='Base Prod'!D84 -> 49.6 | G84: ='Base Prod'!F84 -> 0 | H84: ='Base Prod'!G84 -> BL1211200A-EN
B85: ='Base Prod'!A85 -> GravityZone Security for Virtualized Environments VDI | C85: ='Base Prod'!B85 -> 2 years | D85: ='Base Prod'!C85 -> 15 - 24 | E85: ='Base Prod'!D85 -> 47.6 | G85: ='Base Prod'!F85 -> 0 | H85: ='Base Prod'!G85 -> BL1211200B-EN
B86: ='Base Prod'!A86 -> GravityZone Security for Virtualized Environments VDI | C86: ='Base Prod'!B86 -> 2 years | D86: ='Base Prod'!C86 -> 25 - 49 | E86: ='Base Prod'!D86 -> 45.2 | G86: ='Base Prod'!F86 -> 0 | H86: ='Base Prod'!G86 -> BL1211200C-EN
B87: ='Base Prod'!A87 -> GravityZone Security for Virtualized Environments VDI | C87: ='Base Prod'!B87 -> 2 years | D87: ='Base Prod'!C87 -> 50 - 99 | E87: ='Base Prod'!D87 -> 42.08 | G87: ='Base Prod'!F87 -> 0 | H87: ='Base Prod'!G87 -> BL1211200D-EN
B88: ='Base Prod'!A88 -> GravityZone Security for Virtualized Environments VDI | C88: ='Base Prod'!B88 -> 2 years | D88: ='Base Prod'!C88 -> 100 - 149 | E88: ='Base Prod'!D88 -> 38.24 | G88: ='Base Prod'!F88 -> 0 | H88: ='Base Prod'!G88 -> BL1211200E-EN
B89: ='Base Prod'!A89 -> GravityZone Security for Virtualized Environments VDI | C89: ='Base Prod'!B89 -> 2 years | D89: ='Base Prod'!C89 -> 150 - 249 | E89: ='Base Prod'!D89 -> 36.24 | G89: ='Base Prod'!F89 -> 0 | H89: ='Base Prod'!G89 -> BL1211200F-EN
B90: ='Base Prod'!A90 -> GravityZone Security for Virtualized Environments VDI | C90: ='Base Prod'!B90 -> 2 years | D90: ='Base Prod'!C90 -> 250 - 499 | E90: ='Base Prod'!D90 -> 32.64 | G90: ='Base Prod'!F90 -> 0 | H90: ='Base Prod'!G90 -> BL1211200G-EN
B91: ='Base Prod'!A91 -> GravityZone Security for Virtualized Environments VDI | C91: ='Base Prod'!B91 -> 2 years | D91: ='Base Prod'!C91 -> 500 - 999 | E91: ='Base Prod'!D91 -> 29.36 | G91: ='Base Prod'!F91 -> 0 | H91: ='Base Prod'!G91 -> BL1211200H-EN
B92: ='Base Prod'!A92 -> GravityZone Security for Virtualized Environments VDI | C92: ='Base Prod'!B92 -> 2 years | D92: ='Base Prod'!C92 -> 1000 - 2999 | E92: ='Base Prod'!D92 -> 26.4 | G92: ='Base Prod'!F92 -> 0 | H92: ='Base Prod'!G92 -> BL1211200I-EN
B93: ='Base Prod'!A93 -> GravityZone Security for Virtualized Environments VDI | C93: ='Base Prod'!B93 -> 2 years | D93: ='Base Prod'!C93 -> 3000+ | E93: ='Base Prod'!D93 -> 23.76 | G93: ='Base Prod'!F93 -> 0 | H93: ='Base Prod'!G93 -> BL1211200J-EN
B94: ='Base Prod'!A94 -> GravityZone Security for Virtualized Environments VDI | C94: ='Base Prod'!B94 -> 3 years | D94: ='Base Prod'!C94 -> 5 - 14 | E94: ='Base Prod'!D94 -> 63.55 | G94: ='Base Prod'!F94 -> 0 | H94: ='Base Prod'!G94 -> BL1211300A-EN
B95: ='Base Prod'!A95 -> GravityZone Security for Virtualized Environments VDI | C95: ='Base Prod'!B95 -> 3 years | D95: ='Base Prod'!C95 -> 15 - 24 | E95: ='Base Prod'!D95 -> 60.99 | G95: ='Base Prod'!F95 -> 0 | H95: ='Base Prod'!G95 -> BL1211300B-EN
B96: ='Base Prod'!A96 -> GravityZone Security for Virtualized Environments VDI | C96: ='Base Prod'!B96 -> 3 years | D96: ='Base Prod'!C96 -> 25 - 49 | E96: ='Base Prod'!D96 -> 57.91 | G96: ='Base Prod'!F96 -> 0 | H96: ='Base Prod'!G96 -> BL1211300C-EN
B97: ='Base Prod'!A97 -> GravityZone Security for Virtualized Environments VDI | C97: ='Base Prod'!B97 -> 3 years | D97: ='Base Prod'!C97 -> 50 - 99 | E97: ='Base Prod'!D97 -> 53.92 | G97: ='Base Prod'!F97 -> 0 | H97: ='Base Prod'!G97 -> BL1211300D-EN
B98: ='Base Prod'!A98 -> GravityZone Security for Virtualized Environments VDI | C98: ='Base Prod'!B98 -> 3 years | D98: ='Base Prod'!C98 -> 100 - 149 | E98: ='Base Prod'!D98 -> 49 | G98: ='Base Prod'!F98 -> 0 | H98: ='Base Prod'!G98 -> BL1211300E-EN
B99: ='Base Prod'!A99 -> GravityZone Security for Virtualized Environments VDI | C99: ='Base Prod'!B99 -> 3 years | D99: ='Base Prod'!C99 -> 150 - 249 | E99: ='Base Prod'!D99 -> 46.43 | G99: ='Base Prod'!F99 -> 0 | H99: ='Base Prod'!G99 -> BL1211300F-EN
B100: ='Base Prod'!A100 -> GravityZone Security for Virtualized Environments VDI | C100: ='Base Prod'!B100 -> 3 years | D100: ='Base Prod'!C100 -> 250 - 499 | E100: ='Base Prod'!D100 -> 41.82 | G100: ='Base Prod'!F100 -> 0 | H100: ='Base Prod'!G100 -> BL1211300G-EN
B101: ='Base Prod'!A101 -> GravityZone Security for Virtualized Environments VDI | C101: ='Base Prod'!B101 -> 3 years | D101: ='Base Prod'!C101 -> 500 - 999 | E101: ='Base Prod'!D101 -> 37.62 | G101: ='Base Prod'!F101 -> 0 | H101: ='Base Prod'!G101 -> BL1211300H-EN
B102: ='Base Prod'!A102 -> GravityZone Security for Virtualized Environments VDI | C102: ='Base Prod'!B102 -> 3 years | D102: ='Base Prod'!C102 -> 1000 - 2999 | E102: ='Base Prod'!D102 -> 33.83 | G102: ='Base Prod'!F102 -> 0 | H102: ='Base Prod'!G102 -> BL1211300I-EN
B103: ='Base Prod'!A103 -> GravityZone Security for Virtualized Environments VDI | C103: ='Base Prod'!B103 -> 3 years | D103: ='Base Prod'!C103 -> 3000+ | E103: ='Base Prod'!D103 -> 30.44 | G103: ='Base Prod'!F103 -> 0 | H103: ='Base Prod'!G103 -> BL1211300J-EN
B104: ='Base Prod'!A104 -> GravityZone Security for Virtualized Environments VS | C104: ='Base Prod'!B104 -> 1 year | D104: ='Base Prod'!C104 -> 1 - 14 | E104: ='Base Prod'!D104 -> 92 | G104: ='Base Prod'!F104 -> 0 | H104: ='Base Prod'!G104 -> BL1225100A-EN
B105: ='Base Prod'!A105 -> GravityZone Security for Virtualized Environments VS | C105: ='Base Prod'!B105 -> 1 year | D105: ='Base Prod'!C105 -> 15 - 24 | E105: ='Base Prod'!D105 -> 82.8 | G105: ='Base Prod'!F105 -> 0 | H105: ='Base Prod'!G105 -> BL1225100B-EN
B106: ='Base Prod'!A106 -> GravityZone Security for Virtualized Environments VS | C106: ='Base Prod'!B106 -> 1 year | D106: ='Base Prod'!C106 -> 25 - 49 | E106: ='Base Prod'!D106 -> 76.2 | G106: ='Base Prod'!F106 -> 0 | H106: ='Base Prod'!G106 -> BL1225100C-EN
B107: ='Base Prod'!A107 -> GravityZone Security for Virtualized Environments VS | C107: ='Base Prod'!B107 -> 1 year | D107: ='Base Prod'!C107 -> 50 - 99 | E107: ='Base Prod'!D107 -> 68.5 | G107: ='Base Prod'!F107 -> 0 | H107: ='Base Prod'!G107 -> BL1225100D-EN
B108: ='Base Prod'!A108 -> GravityZone Security for Virtualized Environments VS | C108: ='Base Prod'!B108 -> 1 year | D108: ='Base Prod'!C108 -> 100 - 149 | E108: ='Base Prod'!D108 -> 61.7 | G108: ='Base Prod'!F108 -> 0 | H108: ='Base Prod'!G108 -> BL1225100E-EN
B109: ='Base Prod'!A109 -> GravityZone Security for Virtualized Environments VS | C109: ='Base Prod'!B109 -> 1 year | D109: ='Base Prod'!C109 -> 150 - 249 | E109: ='Base Prod'!D109 -> 58.6 | G109: ='Base Prod'!F109 -> 0 | H109: ='Base Prod'!G109 -> BL1225100F-EN
B110: ='Base Prod'!A110 -> GravityZone Security for Virtualized Environments VS | C110: ='Base Prod'!B110 -> 1 year | D110: ='Base Prod'!C110 -> 250 - 499 | E110: ='Base Prod'!D110 -> 53.35 | G110: ='Base Prod'!F110 -> 0 | H110: ='Base Prod'!G110 -> BL1225100G-EN
B111: ='Base Prod'!A111 -> GravityZone Security for Virtualized Environments VS | C111: ='Base Prod'!B111 -> 1 year | D111: ='Base Prod'!C111 -> 500 - 999 | E111: ='Base Prod'!D111 -> 48 | G111: ='Base Prod'!F111 -> 0 | H111: ='Base Prod'!G111 -> BL1225100H-EN
B112: ='Base Prod'!A112 -> GravityZone Security for Virtualized Environments VS | C112: ='Base Prod'!B112 -> 1 year | D112: ='Base Prod'!C112 -> 1000 - 2999 | E112: ='Base Prod'!D112 -> 43.7 | G112: ='Base Prod'!F112 -> 0 | H112: ='Base Prod'!G112 -> BL1225100I-EN
B113: ='Base Prod'!A113 -> GravityZone Security for Virtualized Environments VS | C113: ='Base Prod'!B113 -> 1 year | D113: ='Base Prod'!C113 -> 3000+ | E113: ='Base Prod'!D113 -> 39.75 | G113: ='Base Prod'!F113 -> 0 | H113: ='Base Prod'!G113 -> BL1225100J-EN
B114: ='Base Prod'!A114 -> GravityZone Security for Virtualized Environments VS | C114: ='Base Prod'!B114 -> 2 years | D114: ='Base Prod'!C114 -> 1 - 14 | E114: ='Base Prod'!D114 -> 147.2 | G114: ='Base Prod'!F114 -> 0 | H114: ='Base Prod'!G114 -> BL1225200A-EN
B115: ='Base Prod'!A115 -> GravityZone Security for Virtualized Environments VS | C115: ='Base Prod'!B115 -> 2 years | D115: ='Base Prod'!C115 -> 15 - 24 | E115: ='Base Prod'!D115 -> 132.48 | G115: ='Base Prod'!F115 -> 0 | H115: ='Base Prod'!G115 -> BL1225200B-EN
B116: ='Base Prod'!A116 -> GravityZone Security for Virtualized Environments VS | C116: ='Base Prod'!B116 -> 2 years | D116: ='Base Prod'!C116 -> 25 - 49 | E116: ='Base Prod'!D116 -> 121.92 | G116: ='Base Prod'!F116 -> 0 | H116: ='Base Prod'!G116 -> BL1225200C-EN
B117: ='Base Prod'!A117 -> GravityZone Security for Virtualized Environments VS | C117: ='Base Prod'!B117 -> 2 years | D117: ='Base Prod'!C117 -> 50 - 99 | E117: ='Base Prod'!D117 -> 109.6 | G117: ='Base Prod'!F117 -> 0 | H117: ='Base Prod'!G117 -> BL1225200D-EN
B118: ='Base Prod'!A118 -> GravityZone Security for Virtualized Environments VS | C118: ='Base Prod'!B118 -> 2 years | D118: ='Base Prod'!C118 -> 100 - 149 | E118: ='Base Prod'!D118 -> 98.72 | G118: ='Base Prod'!F118 -> 0 | H118: ='Base Prod'!G118 -> BL1225200E-EN
B119: ='Base Prod'!A119 -> GravityZone Security for Virtualized Environments VS | C119: ='Base Prod'!B119 -> 2 years | D119: ='Base Prod'!C119 -> 150 - 249 | E119: ='Base Prod'!D119 -> 93.76 | G119: ='Base Prod'!F119 -> 0 | H119: ='Base Prod'!G119 -> BL1225200F-EN
B120: ='Base Prod'!A120 -> GravityZone Security for Virtualized Environments VS | C120: ='Base Prod'!B120 -> 2 years | D120: ='Base Prod'!C120 -> 250 - 499 | E120: ='Base Prod'!D120 -> 85.36 | G120: ='Base Prod'!F120 -> 0 | H120: ='Base Prod'!G120 -> BL1225200G-EN
B121: ='Base Prod'!A121 -> GravityZone Security for Virtualized Environments VS | C121: ='Base Prod'!B121 -> 2 years | D121: ='Base Prod'!C121 -> 500 - 999 | E121: ='Base Prod'!D121 -> 76.8 | G121: ='Base Prod'!F121 -> 0 | H121: ='Base Prod'!G121 -> BL1225200H-EN
B122: ='Base Prod'!A122 -> GravityZone Security for Virtualized Environments VS | C122: ='Base Prod'!B122 -> 2 years | D122: ='Base Prod'!C122 -> 1000 - 2999 | E122: ='Base Prod'!D122 -> 69.92 | G122: ='Base Prod'!F122 -> 0 | H122: ='Base Prod'!G122 -> BL1225200I-EN
B123: ='Base Prod'!A123 -> GravityZone Security for Virtualized Environments VS | C123: ='Base Prod'!B123 -> 2 years | D123: ='Base Prod'!C123 -> 3000+ | E123: ='Base Prod'!D123 -> 63.6 | G123: ='Base Prod'!F123 -> 0 | H123: ='Base Prod'!G123 -> BL1225200J-EN
B124: ='Base Prod'!A124 -> GravityZone Security for Virtualized Environments VS | C124: ='Base Prod'!B124 -> 3 years | D124: ='Base Prod'!C124 -> 1 - 14 | E124: ='Base Prod'!D124 -> 188.6 | G124: ='Base Prod'!F124 -> 0 | H124: ='Base Prod'!G124 -> BL1225300A-EN
B125: ='Base Prod'!A125 -> GravityZone Security for Virtualized Environments VS | C125: ='Base Prod'!B125 -> 3 years | D125: ='Base Prod'!C125 -> 15 - 24 | E125: ='Base Prod'!D125 -> 169.74 | G125: ='Base Prod'!F125 -> 0 | H125: ='Base Prod'!G125 -> BL1225300B-EN
B126: ='Base Prod'!A126 -> GravityZone Security for Virtualized Environments VS | C126: ='Base Prod'!B126 -> 3 years | D126: ='Base Prod'!C126 -> 25 - 49 | E126: ='Base Prod'!D126 -> 156.21 | G126: ='Base Prod'!F126 -> 0 | H126: ='Base Prod'!G126 -> BL1225300C-EN
B127: ='Base Prod'!A127 -> GravityZone Security for Virtualized Environments VS | C127: ='Base Prod'!B127 -> 3 years | D127: ='Base Prod'!C127 -> 50 - 99 | E127: ='Base Prod'!D127 -> 140.43 | G127: ='Base Prod'!F127 -> 0 | H127: ='Base Prod'!G127 -> BL1225300D-EN
B128: ='Base Prod'!A128 -> GravityZone Security for Virtualized Environments VS | C128: ='Base Prod'!B128 -> 3 years | D128: ='Base Prod'!C128 -> 100 - 149 | E128: ='Base Prod'!D128 -> 126.49 | G128: ='Base Prod'!F128 -> 0 | H128: ='Base Prod'!G128 -> BL1225300E-EN
B129: ='Base Prod'!A129 -> GravityZone Security for Virtualized Environments VS | C129: ='Base Prod'!B129 -> 3 years | D129: ='Base Prod'!C129 -> 150 - 249 | E129: ='Base Prod'!D129 -> 120.13 | G129: ='Base Prod'!F129 -> 0 | H129: ='Base Prod'!G129 -> BL1225300F-EN
B130: ='Base Prod'!A130 -> GravityZone Security for Virtualized Environments VS | C130: ='Base Prod'!B130 -> 3 years | D130: ='Base Prod'!C130 -> 250 - 499 | E130: ='Base Prod'!D130 -> 109.37 | G130: ='Base Prod'!F130 -> 0 | H130: ='Base Prod'!G130 -> BL1225300G-EN
B131: ='Base Prod'!A131 -> GravityZone Security for Virtualized Environments VS | C131: ='Base Prod'!B131 -> 3 years | D131: ='Base Prod'!C131 -> 500 - 999 | E131: ='Base Prod'!D131 -> 98.4 | G131: ='Base Prod'!F131 -> 0 | H131: ='Base Prod'!G131 -> BL1225300H-EN
B132: ='Base Prod'!A132 -> GravityZone Security for Virtualized Environments VS | C132: ='Base Prod'!B132 -> 3 years | D132: ='Base Prod'!C132 -> 1000 - 2999 | E132: ='Base Prod'!D132 -> 89.59 | G132: ='Base Prod'!F132 -> 0 | H132: ='Base Prod'!G132 -> BL1225300I-EN
B133: ='Base Prod'!A133 -> GravityZone Security for Virtualized Environments VS | C133: ='Base Prod'!B133 -> 3 years | D133: ='Base Prod'!C133 -> 3000+ | E133: ='Base Prod'!D133 -> 81.49 | G133: ='Base Prod'!F133 -> 0 | H133: ='Base Prod'!G133 -> BL1225300J-EN
B134: ='Base Prod'!A134 -> GravityZone Security for Virtualized Environments CPU | C134: ='Base Prod'!B134 -> 1 year | D134: ='Base Prod'!C134 -> 1 - 14 | E134: ='Base Prod'!D134 -> 800 | G134: ='Base Prod'!F134 -> 0 | H134: ='Base Prod'!G134 -> BL1226100A-EN
B135: ='Base Prod'!A135 -> GravityZone Security for Virtualized Environments CPU | C135: ='Base Prod'!B135 -> 1 year | D135: ='Base Prod'!C135 -> 15 - 24 | E135: ='Base Prod'!D135 -> 760 | G135: ='Base Prod'!F135 -> 0 | H135: ='Base Prod'!G135 -> BL1226100B-EN
B136: ='Base Prod'!A136 -> GravityZone Security for Virtualized Environments CPU | C136: ='Base Prod'!B136 -> 1 year | D136: ='Base Prod'!C136 -> 25 - 49 | E136: ='Base Prod'!D136 -> 725 | G136: ='Base Prod'!F136 -> 0 | H136: ='Base Prod'!G136 -> BL1226100C-EN
B137: ='Base Prod'!A137 -> GravityZone Security for Virtualized Environments CPU | C137: ='Base Prod'!B137 -> 1 year | D137: ='Base Prod'!C137 -> 50 - 99 | E137: ='Base Prod'!D137 -> 690 | G137: ='Base Prod'!F137 -> 0 | H137: ='Base Prod'!G137 -> BL1226100D-EN
B138: ='Base Prod'!A138 -> GravityZone Security for Virtualized Environments CPU | C138: ='Base Prod'!B138 -> 1 year | D138: ='Base Prod'!C138 -> 100 - 149 | E138: ='Base Prod'!D138 -> 630 | G138: ='Base Prod'!F138 -> 0 | H138: ='Base Prod'!G138 -> BL1226100E-EN
B139: ='Base Prod'!A139 -> GravityZone Security for Virtualized Environments CPU | C139: ='Base Prod'!B139 -> 1 year | D139: ='Base Prod'!C139 -> 150 - 249 | E139: ='Base Prod'!D139 -> 600 | G139: ='Base Prod'!F139 -> 0 | H139: ='Base Prod'!G139 -> BL1226100F-EN
B140: ='Base Prod'!A140 -> GravityZone Security for Virtualized Environments CPU | C140: ='Base Prod'!B140 -> 1 year | D140: ='Base Prod'!C140 -> 250 - 499 | E140: ='Base Prod'!D140 -> 570 | G140: ='Base Prod'!F140 -> 0 | H140: ='Base Prod'!G140 -> BL1226100G-EN
B141: ='Base Prod'!A141 -> GravityZone Security for Virtualized Environments CPU | C141: ='Base Prod'!B141 -> 1 year | D141: ='Base Prod'!C141 -> 500+ | E141: ='Base Prod'!D141 -> 545 | G141: ='Base Prod'!F141 -> 0 | H141: ='Base Prod'!G141 -> BL1226100H-EN
B142: ='Base Prod'!A142 -> GravityZone Security for Virtualized Environments CPU | C142: ='Base Prod'!B142 -> 2 years | D142: ='Base Prod'!C142 -> 1 - 14 | E142: ='Base Prod'!D142 -> 1280 | G142: ='Base Prod'!F142 -> 0 | H142: ='Base Prod'!G142 -> BL1226200A-EN
B143: ='Base Prod'!A143 -> GravityZone Security for Virtualized Environments CPU | C143: ='Base Prod'!B143 -> 2 years | D143: ='Base Prod'!C143 -> 15 - 24 | E143: ='Base Prod'!D143 -> 1216 | G143: ='Base Prod'!F143 -> 0 | H143: ='Base Prod'!G143 -> BL1226200B-EN
B144: ='Base Prod'!A144 -> GravityZone Security for Virtualized Environments CPU | C144: ='Base Prod'!B144 -> 2 years | D144: ='Base Prod'!C144 -> 25 - 49 | E144: ='Base Prod'!D144 -> 1160 | G144: ='Base Prod'!F144 -> 0 | H144: ='Base Prod'!G144 -> BL1226200C-EN
B145: ='Base Prod'!A145 -> GravityZone Security for Virtualized Environments CPU | C145: ='Base Prod'!B145 -> 2 years | D145: ='Base Prod'!C145 -> 50 - 99 | E145: ='Base Prod'!D145 -> 1104 | G145: ='Base Prod'!F145 -> 0 | H145: ='Base Prod'!G145 -> BL1226200D-EN
B146: ='Base Prod'!A146 -> GravityZone Security for Virtualized Environments CPU | C146: ='Base Prod'!B146 -> 2 years | D146: ='Base Prod'!C146 -> 100 - 149 | E146: ='Base Prod'!D146 -> 1008 | G146: ='Base Prod'!F146 -> 0 | H146: ='Base Prod'!G146 -> BL1226200E-EN
B147: ='Base Prod'!A147 -> GravityZone Security for Virtualized Environments CPU | C147: ='Base Prod'!B147 -> 2 years | D147: ='Base Prod'!C147 -> 150 - 249 | E147: ='Base Prod'!D147 -> 960 | G147: ='Base Prod'!F147 -> 0 | H147: ='Base Prod'!G147 -> BL1226200F-EN
B148: ='Base Prod'!A148 -> GravityZone Security for Virtualized Environments CPU | C148: ='Base Prod'!B148 -> 2 years | D148: ='Base Prod'!C148 -> 250 - 499 | E148: ='Base Prod'!D148 -> 912 | G148: ='Base Prod'!F148 -> 0 | H148: ='Base Prod'!G148 -> BL1226200G-EN
B149: ='Base Prod'!A149 -> GravityZone Security for Virtualized Environments CPU | C149: ='Base Prod'!B149 -> 2 years | D149: ='Base Prod'!C149 -> 500+ | E149: ='Base Prod'!D149 -> 872 | G149: ='Base Prod'!F149 -> 0 | H149: ='Base Prod'!G149 -> BL1226200H-EN
B150: ='Base Prod'!A150 -> GravityZone Security for Virtualized Environments CPU | C150: ='Base Prod'!B150 -> 3 years | D150: ='Base Prod'!C150 -> 1 - 14 | E150: ='Base Prod'!D150 -> 1640 | G150: ='Base Prod'!F150 -> 0 | H150: ='Base Prod'!G150 -> BL1226300A-EN
B151: ='Base Prod'!A151 -> GravityZone Security for Virtualized Environments CPU | C151: ='Base Prod'!B151 -> 3 years | D151: ='Base Prod'!C151 -> 15 - 24 | E151: ='Base Prod'!D151 -> 1558 | G151: ='Base Prod'!F151 -> 0 | H151: ='Base Prod'!G151 -> BL1226300B-EN
B152: ='Base Prod'!A152 -> GravityZone Security for Virtualized Environments CPU | C152: ='Base Prod'!B152 -> 3 years | D152: ='Base Prod'!C152 -> 25 - 49 | E152: ='Base Prod'!D152 -> 1486.25 | G152: ='Base Prod'!F152 -> 0 | H152: ='Base Prod'!G152 -> BL1226300C-EN
B153: ='Base Prod'!A153 -> GravityZone Security for Virtualized Environments CPU | C153: ='Base Prod'!B153 -> 3 years | D153: ='Base Prod'!C153 -> 50 - 99 | E153: ='Base Prod'!D153 -> 1414.5 | G153: ='Base Prod'!F153 -> 0 | H153: ='Base Prod'!G153 -> BL1226300D-EN
B154: ='Base Prod'!A154 -> GravityZone Security for Virtualized Environments CPU | C154: ='Base Prod'!B154 -> 3 years | D154: ='Base Prod'!C154 -> 100 - 149 | E154: ='Base Prod'!D154 -> 1291.5 | G154: ='Base Prod'!F154 -> 0 | H154: ='Base Prod'!G154 -> BL1226300E-EN
B155: ='Base Prod'!A155 -> GravityZone Security for Virtualized Environments CPU | C155: ='Base Prod'!B155 -> 3 years | D155: ='Base Prod'!C155 -> 150 - 249 | E155: ='Base Prod'!D155 -> 1230 | G155: ='Base Prod'!F155 -> 0 | H155: ='Base Prod'!G155 -> BL1226300F-EN
B156: ='Base Prod'!A156 -> GravityZone Security for Virtualized Environments CPU | C156: ='Base Prod'!B156 -> 3 years | D156: ='Base Prod'!C156 -> 250 - 499 | E156: ='Base Prod'!D156 -> 1168.5 | G156: ='Base Prod'!F156 -> 0 | H156: ='Base Prod'!G156 -> BL1226300G-EN
B157: ='Base Prod'!A157 -> GravityZone Security for Virtualized Environments CPU | C157: ='Base Prod'!B157 -> 3 years | D157: ='Base Prod'!C157 -> 500+ | E157: ='Base Prod'!D157 -> 1117.25 | G157: ='Base Prod'!F157 -> 0 | H157: ='Base Prod'!G157 -> BL1226300H-EN
B158: ='Base Prod'!A158 -> GravityZone Security for Endpoints Physical Workstations | C158: ='Base Prod'!B158 -> 1 year | D158: ='Base Prod'!C158 -> 5 - 14 | E158: ='Base Prod'!D158 -> 31 | G158: ='Base Prod'!F158 -> 0 | H158: ='Base Prod'!G158 -> AL1216100A-EN
B159: ='Base Prod'!A159 -> GravityZone Security for Endpoints Physical Workstations | C159: ='Base Prod'!B159 -> 1 year | D159: ='Base Prod'!C159 -> 15 - 24 | E159: ='Base Prod'!D159 -> 27.2 | G159: ='Base Prod'!F159 -> 0 | H159: ='Base Prod'!G159 -> AL1216100B-EN
B160: ='Base Prod'!A160 -> GravityZone Security for Endpoints Physical Workstations | C160: ='Base Prod'!B160 -> 1 year | D160: ='Base Prod'!C160 -> 25 - 49 | E160: ='Base Prod'!D160 -> 25 | G160: ='Base Prod'!F160 -> 0 | H160: ='Base Prod'!G160 -> AL1216100C-EN
B161: ='Base Prod'!A161 -> GravityZone Security for Endpoints Physical Workstations | C161: ='Base Prod'!B161 -> 1 year | D161: ='Base Prod'!C161 -> 50 - 99 | E161: ='Base Prod'!D161 -> 22.5 | G161: ='Base Prod'!F161 -> 0 | H161: ='Base Prod'!G161 -> AL1216100D-EN
B162: ='Base Prod'!A162 -> GravityZone Security for Endpoints Physical Workstations | C162: ='Base Prod'!B162 -> 1 year | D162: ='Base Prod'!C162 -> 100 - 149 | E162: ='Base Prod'!D162 -> 20.25 | G162: ='Base Prod'!F162 -> 0 | H162: ='Base Prod'!G162 -> AL1216100E-EN
B163: ='Base Prod'!A163 -> GravityZone Security for Endpoints Physical Workstations | C163: ='Base Prod'!B163 -> 1 year | D163: ='Base Prod'!C163 -> 150 - 249 | E163: ='Base Prod'!D163 -> 18.25 | G163: ='Base Prod'!F163 -> 0 | H163: ='Base Prod'!G163 -> AL1216100F-EN
B164: ='Base Prod'!A164 -> GravityZone Security for Endpoints Physical Workstations | C164: ='Base Prod'!B164 -> 1 year | D164: ='Base Prod'!C164 -> 250 - 499 | E164: ='Base Prod'!D164 -> 16.5 | G164: ='Base Prod'!F164 -> 0 | H164: ='Base Prod'!G164 -> AL1216100G-EN
B165: ='Base Prod'!A165 -> GravityZone Security for Endpoints Physical Workstations | C165: ='Base Prod'!B165 -> 1 year | D165: ='Base Prod'!C165 -> 500 - 999 | E165: ='Base Prod'!D165 -> 14.85 | G165: ='Base Prod'!F165 -> 0 | H165: ='Base Prod'!G165 -> AL1216100H-EN
B166: ='Base Prod'!A166 -> GravityZone Security for Endpoints Physical Workstations | C166: ='Base Prod'!B166 -> 1 year | D166: ='Base Prod'!C166 -> 1000 - 2999 | E166: ='Base Prod'!D166 -> 13.35 | G166: ='Base Prod'!F166 -> 0 | H166: ='Base Prod'!G166 -> AL1216100I-EN
B167: ='Base Prod'!A167 -> GravityZone Security for Endpoints Physical Workstations | C167: ='Base Prod'!B167 -> 1 year | D167: ='Base Prod'!C167 -> 3000+ | E167: ='Base Prod'!D167 -> 12 | G167: ='Base Prod'!F167 -> 0 | H167: ='Base Prod'!G167 -> AL1216100J-EN
B168: ='Base Prod'!A168 -> GravityZone Security for Endpoints Physical Workstations | C168: ='Base Prod'!B168 -> 2 years | D168: ='Base Prod'!C168 -> 5 - 14 | E168: ='Base Prod'!D168 -> 49.6 | G168: ='Base Prod'!F168 -> 0 | H168: ='Base Prod'!G168 -> AL1216200A-EN
B169: ='Base Prod'!A169 -> GravityZone Security for Endpoints Physical Workstations | C169: ='Base Prod'!B169 -> 2 years | D169: ='Base Prod'!C169 -> 15 - 24 | E169: ='Base Prod'!D169 -> 43.52 | G169: ='Base Prod'!F169 -> 0 | H169: ='Base Prod'!G169 -> AL1216200B-EN
B170: ='Base Prod'!A170 -> GravityZone Security for Endpoints Physical Workstations | C170: ='Base Prod'!B170 -> 2 years | D170: ='Base Prod'!C170 -> 25 - 49 | E170: ='Base Prod'!D170 -> 40 | G170: ='Base Prod'!F170 -> 0 | H170: ='Base Prod'!G170 -> AL1216200C-EN
B171: ='Base Prod'!A171 -> GravityZone Security for Endpoints Physical Workstations | C171: ='Base Prod'!B171 -> 2 years | D171: ='Base Prod'!C171 -> 50 - 99 | E171: ='Base Prod'!D171 -> 36 | G171: ='Base Prod'!F171 -> 0 | H171: ='Base Prod'!G171 -> AL1216200D-EN
B172: ='Base Prod'!A172 -> GravityZone Security for Endpoints Physical Workstations | C172: ='Base Prod'!B172 -> 2 years | D172: ='Base Prod'!C172 -> 100 - 149 | E172: ='Base Prod'!D172 -> 32.4 | G172: ='Base Prod'!F172 -> 0 | H172: ='Base Prod'!G172 -> AL1216200E-EN
B173: ='Base Prod'!A173 -> GravityZone Security for Endpoints Physical Workstations | C173: ='Base Prod'!B173 -> 2 years | D173: ='Base Prod'!C173 -> 150 - 249 | E173: ='Base Prod'!D173 -> 29.2 | G173: ='Base Prod'!F173 -> 0 | H173: ='Base Prod'!G173 -> AL1216200F-EN
B174: ='Base Prod'!A174 -> GravityZone Security for Endpoints Physical Workstations | C174: ='Base Prod'!B174 -> 2 years | D174: ='Base Prod'!C174 -> 250 - 499 | E174: ='Base Prod'!D174 -> 26.4 | G174: ='Base Prod'!F174 -> 0 | H174: ='Base Prod'!G174 -> AL1216200G-EN
B175: ='Base Prod'!A175 -> GravityZone Security for Endpoints Physical Workstations | C175: ='Base Prod'!B175 -> 2 years | D175: ='Base Prod'!C175 -> 500 - 999 | E175: ='Base Prod'!D175 -> 23.76 | G175: ='Base Prod'!F175 -> 0 | H175: ='Base Prod'!G175 -> AL1216200H-EN
B176: ='Base Prod'!A176 -> GravityZone Security for Endpoints Physical Workstations | C176: ='Base Prod'!B176 -> 2 years | D176: ='Base Prod'!C176 -> 1000 - 2999 | E176: ='Base Prod'!D176 -> 21.36 | G176: ='Base Prod'!F176 -> 0 | H176: ='Base Prod'!G176 -> AL1216200I-EN
B177: ='Base Prod'!A177 -> GravityZone Security for Endpoints Physical Workstations | C177: ='Base Prod'!B177 -> 2 years | D177: ='Base Prod'!C177 -> 3000+ | E177: ='Base Prod'!D177 -> 19.2 | G177: ='Base Prod'!F177 -> 0 | H177: ='Base Prod'!G177 -> AL1216200J-EN
B178: ='Base Prod'!A178 -> GravityZone Security for Endpoints Physical Workstations | C178: ='Base Prod'!B178 -> 3 years | D178: ='Base Prod'!C178 -> 5 - 14 | E178: ='Base Prod'!D178 -> 63.55 | G178: ='Base Prod'!F178 -> 0 | H178: ='Base Prod'!G178 -> AL1216300A-EN
B179: ='Base Prod'!A179 -> GravityZone Security for Endpoints Physical Workstations | C179: ='Base Prod'!B179 -> 3 years | D179: ='Base Prod'!C179 -> 15 - 24 | E179: ='Base Prod'!D179 -> 55.76 | G179: ='Base Prod'!F179 -> 0 | H179: ='Base Prod'!G179 -> AL1216300B-EN
B180: ='Base Prod'!A180 -> GravityZone Security for Endpoints Physical Workstations | C180: ='Base Prod'!B180 -> 3 years | D180: ='Base Prod'!C180 -> 25 - 49 | E180: ='Base Prod'!D180 -> 51.25 | G180: ='Base Prod'!F180 -> 0 | H180: ='Base Prod'!G180 -> AL1216300C-EN
B181: ='Base Prod'!A181 -> GravityZone Security for Endpoints Physical Workstations | C181: ='Base Prod'!B181 -> 3 years | D181: ='Base Prod'!C181 -> 50 - 99 | E181: ='Base Prod'!D181 -> 46.13 | G181: ='Base Prod'!F181 -> 0 | H181: ='Base Prod'!G181 -> AL1216300D-EN
B182: ='Base Prod'!A182 -> GravityZone Security for Endpoints Physical Workstations | C182: ='Base Prod'!B182 -> 3 years | D182: ='Base Prod'!C182 -> 100 - 149 | E182: ='Base Prod'!D182 -> 41.51 | G182: ='Base Prod'!F182 -> 0 | H182: ='Base Prod'!G182 -> AL1216300E-EN
B183: ='Base Prod'!A183 -> GravityZone Security for Endpoints Physical Workstations | C183: ='Base Prod'!B183 -> 3 years | D183: ='Base Prod'!C183 -> 150 - 249 | E183: ='Base Prod'!D183 -> 37.41 | G183: ='Base Prod'!F183 -> 0 | H183: ='Base Prod'!G183 -> AL1216300F-EN
B184: ='Base Prod'!A184 -> GravityZone Security for Endpoints Physical Workstations | C184: ='Base Prod'!B184 -> 3 years | D184: ='Base Prod'!C184 -> 250 - 499 | E184: ='Base Prod'!D184 -> 33.83 | G184: ='Base Prod'!F184 -> 0 | H184: ='Base Prod'!G184 -> AL1216300G-EN
B185: ='Base Prod'!A185 -> GravityZone Security for Endpoints Physical Workstations | C185: ='Base Prod'!B185 -> 3 years | D185: ='Base Prod'!C185 -> 500 - 999 | E185: ='Base Prod'!D185 -> 30.44 | G185: ='Base Prod'!F185 -> 0 | H185: ='Base Prod'!G185 -> AL1216300H-EN
B186: ='Base Prod'!A186 -> GravityZone Security for Endpoints Physical Workstations | C186: ='Base Prod'!B186 -> 3 years | D186: ='Base Prod'!C186 -> 1000 - 2999 | E186: ='Base Prod'!D186 -> 27.37 | G186: ='Base Prod'!F186 -> 0 | H186: ='Base Prod'!G186 -> AL1216300I-EN
B187: ='Base Prod'!A187 -> GravityZone Security for Endpoints Physical Workstations | C187: ='Base Prod'!B187 -> 3 years | D187: ='Base Prod'!C187 -> 3000+ | E187: ='Base Prod'!D187 -> 24.6 | G187: ='Base Prod'!F187 -> 0 | H187: ='Base Prod'!G187 -> AL1216300J-EN
B188: ='Base Prod'!A188 -> GravityZone Security for Endpoints Physical Servers | C188: ='Base Prod'!B188 -> 1 year | D188: ='Base Prod'!C188 -> 1 - 14 | E188: ='Base Prod'!D188 -> 70 | G188: ='Base Prod'!F188 -> 0 | H188: ='Base Prod'!G188 -> AL1227100A-EN
B189: ='Base Prod'!A189 -> GravityZone Security for Endpoints Physical Servers | C189: ='Base Prod'!B189 -> 1 year | D189: ='Base Prod'!C189 -> 15 - 24 | E189: ='Base Prod'!D189 -> 63 | G189: ='Base Prod'!F189 -> 0 | H189: ='Base Prod'!G189 -> AL1227100B-EN
B190: ='Base Prod'!A190 -> GravityZone Security for Endpoints Physical Servers | C190: ='Base Prod'!B190 -> 1 year | D190: ='Base Prod'!C190 -> 25 - 49 | E190: ='Base Prod'!D190 -> 56.7 | G190: ='Base Prod'!F190 -> 0 | H190: ='Base Prod'!G190 -> AL1227100C-EN
B191: ='Base Prod'!A191 -> GravityZone Security for Endpoints Physical Servers | C191: ='Base Prod'!B191 -> 1 year | D191: ='Base Prod'!C191 -> 50 - 99 | E191: ='Base Prod'!D191 -> 51.03 | G191: ='Base Prod'!F191 -> 0 | H191: ='Base Prod'!G191 -> AL1227100D-EN
B192: ='Base Prod'!A192 -> GravityZone Security for Endpoints Physical Servers | C192: ='Base Prod'!B192 -> 1 year | D192: ='Base Prod'!C192 -> 100 - 149 | E192: ='Base Prod'!D192 -> 48.49 | G192: ='Base Prod'!F192 -> 0 | H192: ='Base Prod'!G192 -> AL1227100E-EN
B193: ='Base Prod'!A193 -> GravityZone Security for Endpoints Physical Servers | C193: ='Base Prod'!B193 -> 1 year | D193: ='Base Prod'!C193 -> 150 - 249 | E193: ='Base Prod'!D193 -> 46.06 | G193: ='Base Prod'!F193 -> 0 | H193: ='Base Prod'!G193 -> AL1227100F-EN
B194: ='Base Prod'!A194 -> GravityZone Security for Endpoints Physical Servers | C194: ='Base Prod'!B194 -> 1 year | D194: ='Base Prod'!C194 -> 250 - 499 | E194: ='Base Prod'!D194 -> 43.75 | G194: ='Base Prod'!F194 -> 0 | H194: ='Base Prod'!G194 -> AL1227100G-EN
B195: ='Base Prod'!A195 -> GravityZone Security for Endpoints Physical Servers | C195: ='Base Prod'!B195 -> 1 year | D195: ='Base Prod'!C195 -> 500 - 999 | E195: ='Base Prod'!D195 -> 41.57 | G195: ='Base Prod'!F195 -> 0 | H195: ='Base Prod'!G195 -> AL1227100H-EN
B196: ='Base Prod'!A196 -> GravityZone Security for Endpoints Physical Servers | C196: ='Base Prod'!B196 -> 1 year | D196: ='Base Prod'!C196 -> 1000 - 2999 | E196: ='Base Prod'!D196 -> 39.49 | G196: ='Base Prod'!F196 -> 0 | H196: ='Base Prod'!G196 -> AL1227100I-EN
B197: ='Base Prod'!A197 -> GravityZone Security for Endpoints Physical Servers | C197: ='Base Prod'!B197 -> 1 year | D197: ='Base Prod'!C197 -> 3000+ | E197: ='Base Prod'!D197 -> 37.51 | G197: ='Base Prod'!F197 -> 0 | H197: ='Base Prod'!G197 -> AL1227100J-EN
B198: ='Base Prod'!A198 -> GravityZone Security for Endpoints Physical Servers | C198: ='Base Prod'!B198 -> 2 years | D198: ='Base Prod'!C198 -> 1 - 14 | E198: ='Base Prod'!D198 -> 112 | G198: ='Base Prod'!F198 -> 0 | H198: ='Base Prod'!G198 -> AL1227200A-EN
B199: ='Base Prod'!A199 -> GravityZone Security for Endpoints Physical Servers | C199: ='Base Prod'!B199 -> 2 years | D199: ='Base Prod'!C199 -> 15 - 24 | E199: ='Base Prod'!D199 -> 100.8 | G199: ='Base Prod'!F199 -> 0 | H199: ='Base Prod'!G199 -> AL1227200B-EN
B200: ='Base Prod'!A200 -> GravityZone Security for Endpoints Physical Servers | C200: ='Base Prod'!B200 -> 2 years | D200: ='Base Prod'!C200 -> 25 - 49 | E200: ='Base Prod'!D200 -> 90.72 | G200: ='Base Prod'!F200 -> 0 | H200: ='Base Prod'!G200 -> AL1227200C-EN
B201: ='Base Prod'!A201 -> GravityZone Security for Endpoints Physical Servers | C201: ='Base Prod'!B201 -> 2 years | D201: ='Base Prod'!C201 -> 50 - 99 | E201: ='Base Prod'!D201 -> 81.66 | G201: ='Base Prod'!F201 -> 0 | H201: ='Base Prod'!G201 -> AL1227200D-EN
B202: ='Base Prod'!A202 -> GravityZone Security for Endpoints Physical Servers | C202: ='Base Prod'!B202 -> 2 years | D202: ='Base Prod'!C202 -> 100 - 149 | E202: ='Base Prod'!D202 -> 77.58 | G202: ='Base Prod'!F202 -> 0 | H202: ='Base Prod'!G202 -> AL1227200E-EN
B203: ='Base Prod'!A203 -> GravityZone Security for Endpoints Physical Servers | C203: ='Base Prod'!B203 -> 2 years | D203: ='Base Prod'!C203 -> 150 - 249 | E203: ='Base Prod'!D203 -> 73.7 | G203: ='Base Prod'!F203 -> 0 | H203: ='Base Prod'!G203 -> AL1227200F-EN
B204: ='Base Prod'!A204 -> GravityZone Security for Endpoints Physical Servers | C204: ='Base Prod'!B204 -> 2 years | D204: ='Base Prod'!C204 -> 250 - 499 | E204: ='Base Prod'!D204 -> 70.01 | G204: ='Base Prod'!F204 -> 0 | H204: ='Base Prod'!G204 -> AL1227200G-EN
... 108 more rows

Sheet Pricing Policies
B2: Pricing Policies
B5: For Business and Enterprise products several discounts apply according to customer status or vertical. These discounts are for: education, government, renewal, renewal for education, renewal for Government and Competitive Upgrade
B7: Eligibility for discounts
B9: Eligibility for Education & Non Profit Organizations discount: any customer that represent a Education & Non Profit Organization
B10: Eligibility for Government discount: any customer that represent a Government agency or organization, public authority or local government
B11: Eligibilty for Renewal discount: Renewal discount applies for any Bitdefender customer that wants to extend any time his licensing period for existing product purchased
B12: Eligibilty for Competitive Upgrade discount: any customer that has bought an equivalent product from our competitors.
B14: Requirements for discounts
B16: In order to receive the Education, Non Profit and Government discount the following documents must be provided : 1. Link to agency’s web-site, from where is clearly stated the Education/ Non Profit/ Government status 2. Scanned contract stamped with institution’s official stamp
B18: Renewal discount applies for any Bitdefender customer that wants to extend any time his licensing period for existing product purchased
B20: In order to receive Competitive Upgrade discount one of the following documents must be provided : 1. A scanned version of the License Agreement 2. Document, bill that confirms the purchase of competing software Expiration date of the competitor license should be maximum 1 year from order date.
B22: Discounts in percentages
C24: Offer type | D24: Percentage | F24: Note: the percentages apply to Business standard prices
C25: Business standard | D25: 0
C26: Education & Non Profit Organizations | D26: -0.5
C27: Government | D27: -0.4
C28: Renewal | D28: -0.35
C29: Competitive Upgrade | D29: -0.3
C30: Education & Non Profit Renew | D30: -0.55
C31: Government Renew | D31: -0.5

Sheet Change Log
B1: Log Book
B3: September 2016
B4: Summary | F4: Effective date
B6: Business
B7: Ø Business portofolio updated: ü Price changes were made for a majority of products ü On Bitdefender GravityZone Security for CPU the tiers and SKUs were reduced to only 500+ ü Discount modified for EDU and EDU Renewal | F7: 1st September 2016
A15: Changes | B15: Consumer
B16: Ø Bitdefender New Classic Line
B19: Business
B20: Ø Business portofolio updated: ü New products: Bitdefender GravityZone Business Security Bitdefender GravityZone Advanced Business Security ü New product versions:Bitdefender GravityZone Enterprise Security GravityZone Security for Virtualized Environments VDI GravityZone Security for Virtualized Environments VS GravityZone Security for Virtualized Environments CPU GravityZone Security for Endpoints Physical Workstations GravityZone Security for Endpoints Physical Servers GravityZone Security for Exchange GravityZone Security for Mobile ü Product name change: Legacy - Bitdefender Security for Mail Servers becomes Bitdefender Security for Linux Mail Servers Ø All the products above have SKU / part numbers updated according to new releases. Ø The GravityZone Security for Endpoints from the Previous portfolio was split in the new portfolio in GravityZone Security for Endpoints Physical Workstations and GravityZone Security for Endpoints Physical Servers. | F20: 20th May 2015
B37: Ø Previous Business portofolio will become EOS (*) ü Previous portfolio products: Bitdefender Small Office Security both cloud and on premise versions Bitdefender Security for Endpoints both cloud and on premise versions ü Legacy Business Solutions 3.6: Legacy - Bitdefender Client Security 3.6 Legacy - Bitdefender Small Office Security 3.6 Legacy - Bitdefender Business Security 3.6 Legacy - Bitdefender SBS Security 3.6 Legacy - Bitdefender Corporate Security 3.6 Legacy - Bitdefender Antivirus for Mac - Business Edition Legacy - Bitdefender Antivirus Scanner for Unices Legacy - Bitdefender Security for File Servers Legacy - Bitdefender Security for Samba Legacy - Bitdefender Security for SharePoint Legacy - Bitdefender Security for Exchange Legacy - Bitdefender Security for Mail Servers Ø Previous portfollio and Legacy Business Solution 3.6 will be available only for one year sales Ø Legacy Business Solutions 3.6 - will be End of Sale for Renewal from December 2015 Ø Legacy Business Solutions 3.6 - will be EOT(*) from December 2015 and EOSU(*) from December 2016 | F37: December 2015
F41: 31th May 2015
A59: *End of Sale Date (EOS) represents the last day to order a Bitdefender product through Bitdefender points-of-sale. The product will no longer be for sale.
A60: **End of Technology Support (EOT) represents the last day after which the product is no longer supported by the engineering team. Product update releases will no longer be created for major software releases (“X.X”) that have reached the EOT stage. After EOT date, but before EOL/EOSU date, existing maintenance releases and patches will remain posted for download, but support will be generally limited to investigation and troubleshooting in an attempt to provide solutions and workarounds. During this period you may be advised to upgrade to the most current product version.
A61: ***End of Support (EOSU) represents the last day for standard support queries and it also represents the first day for end of product life. After this date, all the support queries in regards to the disused product will be redirected to the migration product included in the Bitdefender EOL Matrix.

Sheet Base (hidden)
C1: Business Standard | D1: 0
C2: Education & Non Profit | D2: -0.5
A3: tier 1 | B3: 1 | C3: Government | D3: -0.4 | Y3: Bitdefender US Price List
A4: tier 2 | B4: 1 | C4: Renew | D4: -0.35 | Y4: HOME & SMALL OFFICE/HOME OFFICE | Z4: 2013-06-01
A5: Discount from MSRP | B5: =IF(LEFT(Products!Z7,8)="Consumer",0,IF(Products!$Z$8=$C$1,$D$1,IF(Products!$Z$8=$C$2,$D$2,IF(Products!$Z$8=$C$3,$D$3,IF(Products!$Z$8=$C$4,$D$4,IF(Products!$Z$8=$C$5,$D$5,IF(Products!$Z$8=$C$6,$D$6,IF(Products!$Z$8=$C$7,$D$7)))))))) -> 0 | C5: Competitive Upgrade | D5: -0.3 | Y5: $, Taxes included
C6: Education & Non Profit Renew | D6: -0.55 | Y6: Product | Z6: Period | AA6: Users | AC6: Price | AD6: BD Part # | AE6: Alt. Part#
C7: Government Renew | D7: -0.5
Y8: Note: Only the license key is provided.
A9: Product | B9: Period | C9: Users | D9: Concatenate | F9: Price/Unit | H9: Part # | I9: Part # STD | J9: Part # EDU | K9: Part # GOV | L9: Part # RNW | M9: Part # EDU RNW | N9: Part # GOV RNW | O9: Part # CUPG | P9: Product Code | Q9: Part # STD | R9: Part # EDU | S9: Part # GOV | T9: Part # RNW | U9: Part # EDU RNW | V9: Part # GOV RNW | W9: Part # CUPG | Y9: For boxes replace the second character of the part number (L) with "B"
A10: =IF(Products!$Z$8=$C$1,Q10,IF(Products!$Z$8=$C$2,R10,IF(Products!$Z$8=$C$3,S10,IF(Products!$Z$8=$C$4,T10,IF(Products!$Z$8=$C$5,W10,IF(Products!$Z$8=$C$6,U10,IF(Products!$Z$8=$C$7,V10))))))) -> Bitdefender GravityZone Business Security | B10: 1 year | C10: 3 - 14 | D10: =CONCATENATE(A10,B10,C10) -> Bitdefender GravityZone Business Security1 year3 - 14 | F10: 33.32 | G10: =IF(Products!$Z$8=$C$1,ROUND(F10*$B$3,2),IF(Products!$Z$8=$C$2,ROUND(F10*$B$3*(1+$D$2),2),IF(Products!$Z$8=$C$3,ROUND(F10*$B$3*(1+$D$3),2),IF(Products!$Z$8=$C$4,ROUND(F10*$B$3*(1+$D$4),2),IF(Products!$Z$8=$C$5,ROUND(F10*$B$3*(1+$D$5),2),IF(Products!$Z$8=$C$6,ROUND(F10*$B$3*(1+$D$6),2),IF(Products!$Z$8=$C$7,ROUND(F10*$B$3*(1+$D$7),2)))))))) -> 33.32 | H10: =IF(Products!$Z$8=$C$1,I10,IF(Products!$Z$8=$C$2,J10,IF(Products!$Z$8=$C$3,K10,IF(Products!$Z$8=$C$4,L10,IF(Products!$Z$8=$C$5,O10,IF(Products!$Z$8=$C$6,M10,IF(Products!$Z$8=$C$7,N10))))))) -> AL1286100A-EN | I10: AL1286100A-EN | J10: AL1586100A-EN | K10: AL1686100A-EN | L10: AL3286100A-EN | M10: AL3586100A-EN | N10: AL3686100A-EN | O10: AL5286100A-EN | Q10: Bitdefender GravityZone Business Security | R10: =CONCATENATE(Q10," - EDU") -> Bitdefender GravityZone Business Security - EDU | S10: =CONCATENATE(Q10," - GOV") -> Bitdefender GravityZone Business Security - GOV | T10: =CONCATENATE(Q10," - R") -> Bitdefender GravityZone Business Security - R | U10: =CONCATENATE(Q10," - EDU R") -> Bitdefender GravityZone Business Security - EDU R | V10: =CONCATENATE(Q10," - GOV R") -> Bitdefender GravityZone Business Security - GOV R | W10: =CONCATENATE(Q10," - CUPG") -> Bitdefender GravityZone Business Security - CUPG
A11: =IF(Products!$Z$8=$C$1,Q11,IF(Products!$Z$8=$C$2,R11,IF(Products!$Z$8=$C$3,S11,IF(Products!$Z$8=$C$4,T11,IF(Products!$Z$8=$C$5,W11,IF(Products!$Z$8=$C$6,U11,IF(Products!$Z$8=$C$7,V11))))))) -> Bitdefender GravityZone Business Security | B11: 1 year | C11: 15 - 24 | D11: Bitdefender GravityZone Business Security1 year15 - 24 | F11: 29.37 | G11: =IF(Products!$Z$8=$C$1,ROUND(F11*$B$3,2),IF(Products!$Z$8=$C$2,ROUND(F11*$B$3*(1+$D$2),2),IF(Products!$Z$8=$C$3,ROUND(F11*$B$3*(1+$D$3),2),IF(Products!$Z$8=$C$4,ROUND(F11*$B$3*(1+$D$4),2),IF(Products!$Z$8=$C$5,ROUND(F11*$B$3*(1+$D$5),2),IF(Products!$Z$8=$C$6,ROUND(F11*$B$3*(1+$D$6),2),IF(Products!$Z$8=$C$7,ROUND(F11*$B$3*(1+$D$7),2)))))))) -> 29.37 | H11: =IF(Products!$Z$8=$C$1,I11,IF(Products!$Z$8=$C$2,J11,IF(Products!$Z$8=$C$3,K11,IF(Products!$Z$8=$C$4,L11,IF(Products!$Z$8=$C$5,O11,IF(Products!$Z$8=$C$6,M11,IF(Products!$Z$8=$C$7,N11))))))) -> AL1286100B-EN | I11: AL1286100B-EN | J11: AL1586100B-EN | K11: AL1686100B-EN | L11: AL3286100B-EN | M11: AL3586100B-EN | N11: AL3686100B-EN | O11: AL5286100B-EN | Q11: Bitdefender GravityZone Business Security | R11: Bitdefender GravityZone Business Security - EDU | S11: Bitdefender GravityZone Business Security - GOV | T11: Bitdefender GravityZone Business Security - R | U11: Bitdefender GravityZone Business Security - EDU R | V11: Bitdefender GravityZone Business Security - GOV R | W11: Bitdefender GravityZone Business Security - CUPG | Y11: STANDARD PRICES
A12: =IF(Products!$Z$8=$C$1,Q12,IF(Products!$Z$8=$C$2,R12,IF(Products!$Z$8=$C$3,S12,IF(Products!$Z$8=$C$4,T12,IF(Products!$Z$8=$C$5,W12,IF(Products!$Z$8=$C$6,U12,IF(Products!$Z$8=$C$7,V12))))))) -> Bitdefender GravityZone Business Security | B12: 1 year | C12: 25 - 49 | D12: Bitdefender GravityZone Business Security1 year25 - 49 | F12: 27.69 | G12: =IF(Products!$Z$8=$C$1,ROUND(F12*$B$3,2),IF(Products!$Z$8=$C$2,ROUND(F12*$B$3*(1+$D$2),2),IF(Products!$Z$8=$C$3,ROUND(F12*$B$3*(1+$D$3),2),IF(Products!$Z$8=$C$4,ROUND(F12*$B$3*(1+$D$4),2),IF(Products!$Z$8=$C$5,ROUND(F12*$B$3*(1+$D$5),2),IF(Products!$Z$8=$C$6,ROUND(F12*$B$3*(1+$D$6),2),IF(Products!$Z$8=$C$7,ROUND(F12*$B$3*(1+$D$7),2)))))))) -> 27.69 | H12: =IF(Products!$Z$8=$C$1,I12,IF(Products!$Z$8=$C$2,J12,IF(Products!$Z$8=$C$3,K12,IF(Products!$Z$8=$C$4,L12,IF(Products!$Z$8=$C$5,O12,IF(Products!$Z$8=$C$6,M12,IF(Products!$Z$8=$C$7,N12))))))) -> AL1286100C-EN | I12: AL1286100C-EN | J12: AL1586100C-EN | K12: AL1686100C-EN | L12: AL3286100C-EN | M12: AL3586100C-EN | N12: AL3686100C-EN | O12: AL5286100C-EN | Q12: Bitdefender GravityZone Business Security | R12: Bitdefender GravityZone Business Security - EDU | S12: Bitdefender GravityZone Business Security - GOV | T12: Bitdefender GravityZone Business Security - R | U12: Bitdefender GravityZone Business Security - EDU R | V12: Bitdefender GravityZone Business Security - GOV R | W12: Bitdefender GravityZone Business Security - CUPG | Y12: NEW Bitdefender | AC12: without VAT | AE12: with VAT | AF12: VAT
A13: =IF(Products!$Z$8=$C$1,Q13,IF(Products!$Z$8=$C$2,R13,IF(Products!$Z$8=$C$3,S13,IF(Products!$Z$8=$C$4,T13,IF(Products!$Z$8=$C$5,W13,IF(Products!$Z$8=$C$6,U13,IF(Products!$Z$8=$C$7,V13))))))) -> Bitdefender GravityZone Business Security | B13: 1 year | C13: 50 - 99 | D13: Bitdefender GravityZone Business Security1 year50 - 99 | F13: 24.33 | G13: =IF(Products!$Z$8=$C$1,ROUND(F13*$B$3,2),IF(Products!$Z$8=$C$2,ROUND(F13*$B$3*(1+$D$2),2),IF(Products!$Z$8=$C$3,ROUND(F13*$B$3*(1+$D$3),2),IF(Products!$Z$8=$C$4,ROUND(F13*$B$3*(1+$D$4),2),IF(Products!$Z$8=$C$5,ROUND(F13*$B$3*(1+$D$5),2),IF(Products!$Z$8=$C$6,ROUND(F13*$B$3*(1+$D$6),2),IF(Products!$Z$8=$C$7,ROUND(F13*$B$3*(1+$D$7),2)))))))) -> 24.33 | H13: =IF(Products!$Z$8=$C$1,I13,IF(Products!$Z$8=$C$2,J13,IF(Products!$Z$8=$C$3,K13,IF(Products!$Z$8=$C$4,L13,IF(Products!$Z$8=$C$5,O13,IF(Products!$Z$8=$C$6,M13,IF(Products!$Z$8=$C$7,N13))))))) -> AL1286100D-EN | I13: AL1286100D-EN | J13: AL1586100D-EN | K13: AL1686100D-EN | L13: AL3286100D-EN | M13: AL3586100D-EN | N13: AL3686100D-EN | O13: AL5286100D-EN | Q13: Bitdefender GravityZone Business Security | R13: Bitdefender GravityZone Business Security - EDU | S13: Bitdefender GravityZone Business Security - GOV | T13: Bitdefender GravityZone Business Security - R | U13: Bitdefender GravityZone Business Security - EDU R | V13: Bitdefender GravityZone Business Security - GOV R | W13: Bitdefender GravityZone Business Security - CUPG | Y13: Bitdefender Antivirus Plus 2016 | Z13: 1 year | AA13: 1 PC | AB13: =CONCATENATE(Y13,Z13,AA13) -> Bitdefender Antivirus Plus 20161 year1 PC | AC13: 24.55 | AD13: UL11011001-EN | AE13: 29.95 | AF13: 0.22
A14: =IF(Products!$Z$8=$C$1,Q14,IF(Products!$Z$8=$C$2,R14,IF(Products!$Z$8=$C$3,S14,IF(Products!$Z$8=$C$4,T14,IF(Products!$Z$8=$C$5,W14,IF(Products!$Z$8=$C$6,U14,IF(Products!$Z$8=$C$7,V14))))))) -> Bitdefender GravityZone Business Security | B14: 1 year | C14: 100 - 149 | D14: Bitdefender GravityZone Business Security1 year100 - 149 | F14: 22.38 | G14: =IF(Products!$Z$8=$C$1,ROUND(F14*$B$3,2),IF(Products!$Z$8=$C$2,ROUND(F14*$B$3*(1+$D$2),2),IF(Products!$Z$8=$C$3,ROUND(F14*$B$3*(1+$D$3),2),IF(Products!$Z$8=$C$4,ROUND(F14*$B$3*(1+$D$4),2),IF(Products!$Z$8=$C$5,ROUND(F14*$B$3*(1+$D$5),2),IF(Products!$Z$8=$C$6,ROUND(F14*$B$3*(1+$D$6),2),IF(Products!$Z$8=$C$7,ROUND(F14*$B$3*(1+$D$7),2)))))))) -> 22.38 | H14: =IF(Products!$Z$8=$C$1,I14,IF(Products!$Z$8=$C$2,J14,IF(Products!$Z$8=$C$3,K14,IF(Products!$Z$8=$C$4,L14,IF(Products!$Z$8=$C$5,O14,IF(Products!$Z$8=$C$6,M14,IF(Products!$Z$8=$C$7,N14))))))) -> AL1286100E-EN | I14: AL1286100E-EN | J14: AL1586100E-EN | K14: AL1686100E-EN | L14: AL3286100E-EN | M14: AL3586100E-EN | N14: AL3686100E-EN | O14: AL5286100E-EN | Q14: Bitdefender GravityZone Business Security | R14: Bitdefender GravityZone Business Security - EDU | S14: Bitdefender GravityZone Business Security - GOV | T14: Bitdefender GravityZone Business Security - R | U14: Bitdefender GravityZone Business Security - EDU R | V14: Bitdefender GravityZone Business Security - GOV R | W14: Bitdefender GravityZone Business Security - CUPG | Y14: Bitdefender Antivirus Plus 2016 | Z14: 1 year | AA14: 3 PCs | AB14: =CONCATENATE(Y14,Z14,AA14) -> Bitdefender Antivirus Plus 20161 year3 PCs | AC14: 32.75 | AD14: UL11011003-EN | AE14: 39.95
A15: =IF(Products!$Z$8=$C$1,Q15,IF(Products!$Z$8=$C$2,R15,IF(Products!$Z$8=$C$3,S15,IF(Products!$Z$8=$C$4,T15,IF(Products!$Z$8=$C$5,W15,IF(Products!$Z$8=$C$6,U15,IF(Products!$Z$8=$C$7,V15))))))) -> Bitdefender GravityZone Business Security | B15: 1 year | C15: 150 - 249 | D15: Bitdefender GravityZone Business Security1 year150 - 249 | F15: 21.49 | G15: =IF(Products!$Z$8=$C$1,ROUND(F15*$B$3,2),IF(Products!$Z$8=$C$2,ROUND(F15*$B$3*(1+$D$2),2),IF(Products!$Z$8=$C$3,ROUND(F15*$B$3*(1+$D$3),2),IF(Products!$Z$8=$C$4,ROUND(F15*$B$3*(1+$D$4),2),IF(Products!$Z$8=$C$5,ROUND(F15*$B$3*(1+$D$5),2),IF(Products!$Z$8=$C$6,ROUND(F15*$B$3*(1+$D$6),2),IF(Products!$Z$8=$C$7,ROUND(F15*$B$3*(1+$D$7),2)))))))) -> 21.49 | H15: =IF(Products!$Z$8=$C$1,I15,IF(Products!$Z$8=$C$2,J15,IF(Products!$Z$8=$C$3,K15,IF(Products!$Z$8=$C$4,L15,IF(Products!$Z$8=$C$5,O15,IF(Products!$Z$8=$C$6,M15,IF(Products!$Z$8=$C$7,N15))))))) -> AL1286100F-EN | I15: AL1286100F-EN | J15: AL1586100F-EN | K15: AL1686100F-EN | L15: AL3286100F-EN | M15: AL3586100F-EN | N15: AL3686100F-EN | O15: AL5286100F-EN | Q15: Bitdefender GravityZone Business Security | R15: Bitdefender GravityZone Business Security - EDU | S15: Bitdefender GravityZone Business Security - GOV | T15: Bitdefender GravityZone Business Security - R | U15: Bitdefender GravityZone Business Security - EDU R | V15: Bitdefender GravityZone Business Security - GOV R | W15: Bitdefender GravityZone Business Security - CUPG | Y15: Bitdefender Antivirus Plus 2016 | Z15: 1 year | AA15: 5 PCs | AB15: Bitdefender Antivirus Plus 20161 year5 PCs | AC15: 53.24 | AD15: UL11011005-EN | AE15: 64.95
A16: =IF(Products!$Z$8=$C$1,Q16,IF(Products!$Z$8=$C$2,R16,IF(Products!$Z$8=$C$3,S16,IF(Products!$Z$8=$C$4,T16,IF(Products!$Z$8=$C$5,W16,IF(Products!$Z$8=$C$6,U16,IF(Products!$Z$8=$C$7,V16))))))) -> Bitdefender GravityZone Business Security | B16: 1 year | C16: 250 - 499 | D16: Bitdefender GravityZone Business Security1 year250 - 499 | F16: 20.41 | G16: =IF(Products!$Z$8=$C$1,ROUND(F16*$B$3,2),IF(Products!$Z$8=$C$2,ROUND(F16*$B$3*(1+$D$2),2),IF(Products!$Z$8=$C$3,ROUND(F16*$B$3*(1+$D$3),2),IF(Products!$Z$8=$C$4,ROUND(F16*$B$3*(1+$D$4),2),IF(Products!$Z$8=$C$5,ROUND(F16*$B$3*(1+$D$5),2),IF(Products!$Z$8=$C$6,ROUND(F16*$B$3*(1+$D$6),2),IF(Products!$Z$8=$C$7,ROUND(F16*$B$3*(1+$D$7),2)))))))) -> 20.41 | H16: =IF(Products!$Z$8=$C$1,I16,IF(Products!$Z$8=$C$2,J16,IF(Products!$Z$8=$C$3,K16,IF(Products!$Z$8=$C$4,L16,IF(Products!$Z$8=$C$5,O16,IF(Products!$Z$8=$C$6,M16,IF(Products!$Z$8=$C$7,N16))))))) -> AL1286100G-EN | I16: AL1286100G-EN | J16: AL1586100G-EN | K16: AL1686100G-EN | L16: AL3286100G-EN | M16: AL3586100G-EN | N16: AL3686100G-EN | O16: AL5286100G-EN | Q16: Bitdefender GravityZone Business Security | R16: Bitdefender GravityZone Business Security - EDU | S16: Bitdefender GravityZone Business Security - GOV | T16: Bitdefender GravityZone Business Security - R | U16: Bitdefender GravityZone Business Security - EDU R | V16: Bitdefender GravityZone Business Security - GOV R | W16: Bitdefender GravityZone Business Security - CUPG | Y16: Bitdefender Antivirus Plus 2016 | Z16: 1 year | AA16: 10 PCs | AB16: Bitdefender Antivirus Plus 20161 year10 PCs | AC16: 90.12 | AD16: UL11011010-EN | AE16: 109.95
A17: =IF(Products!$Z$8=$C$1,Q17,IF(Products!$Z$8=$C$2,R17,IF(Products!$Z$8=$C$3,S17,IF(Products!$Z$8=$C$4,T17,IF(Products!$Z$8=$C$5,W17,IF(Products!$Z$8=$C$6,U17,IF(Products!$Z$8=$C$7,V17))))))) -> Bitdefender GravityZone Business Security | B17: 1 year | C17: 500 - 999 | D17: Bitdefender GravityZone Business Security1 year500 - 999 | F17: 20.11 | G17: =IF(Products!$Z$8=$C$1,ROUND(F17*$B$3,2),IF(Products!$Z$8=$C$2,ROUND(F17*$B$3*(1+$D$2),2),IF(Products!$Z$8=$C$3,ROUND(F17*$B$3*(1+$D$3),2),IF(Products!$Z$8=$C$4,ROUND(F17*$B$3*(1+$D$4),2),IF(Products!$Z$8=$C$5,ROUND(F17*$B$3*(1+$D$5),2),IF(Products!$Z$8=$C$6,ROUND(F17*$B$3*(1+$D$6),2),IF(Products!$Z$8=$C$7,ROUND(F17*$B$3*(1+$D$7),2)))))))) -> 20.11 | H17: =IF(Products!$Z$8=$C$1,I17,IF(Products!$Z$8=$C$2,J17,IF(Products!$Z$8=$C$3,K17,IF(Products!$Z$8=$C$4,L17,IF(Products!$Z$8=$C$5,O17,IF(Products!$Z$8=$C$6,M17,IF(Products!$Z$8=$C$7,N17))))))) -> AL1286100H-EN | I17: AL1286100H-EN | J17: AL1586100H-EN | K17: AL1686100H-EN | L17: AL3286100H-EN | M17: AL3586100H-EN | N17: AL3686100H-EN | O17: AL5286100H-EN | Q17: Bitdefender GravityZone Business Security | R17: Bitdefender GravityZone Business Security - EDU | S17: Bitdefender GravityZone Business Security - GOV | T17: Bitdefender GravityZone Business Security - R | U17: Bitdefender GravityZone Business Security - EDU R | V17: Bitdefender GravityZone Business Security - GOV R | W17: Bitdefender GravityZone Business Security - CUPG | Y17: Bitdefender Antivirus Plus 2016 | Z17: 2 years | AA17: 1 PC | AB17: Bitdefender Antivirus Plus 20162 years1 PC | AC17: 40.94 | AD17: UL11012001-EN | AE17: 49.95
A18: =IF(Products!$Z$8=$C$1,Q18,IF(Products!$Z$8=$C$2,R18,IF(Products!$Z$8=$C$3,S18,IF(Products!$Z$8=$C$4,T18,IF(Products!$Z$8=$C$5,W18,IF(Products!$Z$8=$C$6,U18,IF(Products!$Z$8=$C$7,V18))))))) -> Bitdefender GravityZone Business Security | B18: 1 year | C18: 1000 - 2999 | D18: Bitdefender GravityZone Business Security1 year1000 - 2999 | F18: 19.81 | G18: =IF(Products!$Z$8=$C$1,ROUND(F18*$B$3,2),IF(Products!$Z$8=$C$2,ROUND(F18*$B$3*(1+$D$2),2),IF(Products!$Z$8=$C$3,ROUND(F18*$B$3*(1+$D$3),2),IF(Products!$Z$8=$C$4,ROUND(F18*$B$3*(1+$D$4),2),IF(Products!$Z$8=$C$5,ROUND(F18*$B$3*(1+$D$5),2),IF(Products!$Z$8=$C$6,ROUND(F18*$B$3*(1+$D$6),2),IF(Products!$Z$8=$C$7,ROUND(F18*$B$3*(1+$D$7),2)))))))) -> 19.81 | H18: =IF(Products!$Z$8=$C$1,I18,IF(Products!$Z$8=$C$2,J18,IF(Products!$Z$8=$C$3,K18,IF(Products!$Z$8=$C$4,L18,IF(Products!$Z$8=$C$5,O18,IF(Products!$Z$8=$C$6,M18,IF(Products!$Z$8=$C$7,N18))))))) -> AL1286100I-EN | I18: AL1286100I-EN | J18: AL1586100I-EN | K18: AL1686100I-EN | L18: AL3286100I-EN | M18: AL3586100I-EN | N18: AL3686100I-EN | O18: AL5286100I-EN | Q18: Bitdefender GravityZone Business Security | R18: Bitdefender GravityZone Business Security - EDU | S18: Bitdefender GravityZone Business Security - GOV | T18: Bitdefender GravityZone Business Security - R | U18: Bitdefender GravityZone Business Security - EDU R | V18: Bitdefender GravityZone Business Security - GOV R | W18: Bitdefender GravityZone Business Security - CUPG | Y18: Bitdefender Antivirus Plus 2016 | Z18: 2 years | AA18: 3 PCs | AB18: Bitdefender Antivirus Plus 20162 years3 PCs | AC18: 57.34 | AD18: UL11012003-EN | AE18: 69.95
A19: =IF(Products!$Z$8=$C$1,Q19,IF(Products!$Z$8=$C$2,R19,IF(Products!$Z$8=$C$3,S19,IF(Products!$Z$8=$C$4,T19,IF(Products!$Z$8=$C$5,W19,IF(Products!$Z$8=$C$6,U19,IF(Products!$Z$8=$C$7,V19))))))) -> Bitdefender GravityZone Business Security | B19: 1 year | C19: 3000+ | D19: Bitdefender GravityZone Business Security1 year3000+ | F19: 19.51 | G19: =IF(Products!$Z$8=$C$1,ROUND(F19*$B$3,2),IF(Products!$Z$8=$C$2,ROUND(F19*$B$3*(1+$D$2),2),IF(Products!$Z$8=$C$3,ROUND(F19*$B$3*(1+$D$3),2),IF(Products!$Z$8=$C$4,ROUND(F19*$B$3*(1+$D$4),2),IF(Products!$Z$8=$C$5,ROUND(F19*$B$3*(1+$D$5),2),IF(Products!$Z$8=$C$6,ROUND(F19*$B$3*(1+$D$6),2),IF(Products!$Z$8=$C$7,ROUND(F19*$B$3*(1+$D$7),2)))))))) -> 19.51 | H19: =IF(Products!$Z$8=$C$1,I19,IF(Products!$Z$8=$C$2,J19,IF(Products!$Z$8=$C$3,K19,IF(Products!$Z$8=$C$4,L19,IF(Products!$Z$8=$C$5,O19,IF(Products!$Z$8=$C$6,M19,IF(Products!$Z$8=$C$7,N19))))))) -> AL1286100J-EN | I19: AL1286100J-EN | J19: AL1586100J-EN | K19: AL1686100J-EN | L19: AL3286100J-EN | M19: AL3586100J-EN | N19: AL3686100J-EN | O19: AL5286100J-EN | Q19: Bitdefender GravityZone Business Security | R19: Bitdefender GravityZone Business Security - EDU | S19: Bitdefender GravityZone Business Security - GOV | T19: Bitdefender GravityZone Business Security - R | U19: Bitdefender GravityZone Business Security - EDU R | V19: Bitdefender GravityZone Business Security - GOV R | W19: Bitdefender GravityZone Business Security - CUPG | Y19: Bitdefender Antivirus Plus 2016 | Z19: 2 years | AA19: 5 PCs | AB19: Bitdefender Antivirus Plus 20162 years5 PCs | AC19: 81.93 | AD19: UL11012005-EN | AE19: 99.95
A20: =IF(Products!$Z$8=$C$1,Q20,IF(Products!$Z$8=$C$2,R20,IF(Products!$Z$8=$C$3,S20,IF(Products!$Z$8=$C$4,T20,IF(Products!$Z$8=$C$5,W20,IF(Products!$Z$8=$C$6,U20,IF(Products!$Z$8=$C$7,V20))))))) -> Bitdefender GravityZone Business Security | B20: 2 years | C20: 3 - 14 | D20: Bitdefender GravityZone Business Security2 years3 - 14 | F20: 53.31 | G20: =IF(Products!$Z$8=$C$1,ROUND(F20*$B$3,2),IF(Products!$Z$8=$C$2,ROUND(F20*$B$3*(1+$D$2),2),IF(Products!$Z$8=$C$3,ROUND(F20*$B$3*(1+$D$3),2),IF(Products!$Z$8=$C$4,ROUND(F20*$B$3*(1+$D$4),2),IF(Products!$Z$8=$C$5,ROUND(F20*$B$3*(1+$D$5),2),IF(Products!$Z$8=$C$6,ROUND(F20*$B$3*(1+$D$6),2),IF(Products!$Z$8=$C$7,ROUND(F20*$B$3*(1+$D$7),2)))))))) -> 53.31 | H20: =IF(Products!$Z$8=$C$1,I20,IF(Products!$Z$8=$C$2,J20,IF(Products!$Z$8=$C$3,K20,IF(Products!$Z$8=$C$4,L20,IF(Products!$Z$8=$C$5,O20,IF(Products!$Z$8=$C$6,M20,IF(Products!$Z$8=$C$7,N20))))))) -> AL1286200A-EN | I20: AL1286200A-EN | J20: AL1586200A-EN | K20: AL1686200A-EN | L20: AL3286200A-EN | M20: AL3586200A-EN | N20: AL3686200A-EN | O20: AL5286200A-EN | Q20: Bitdefender GravityZone Business Security | R20: Bitdefender GravityZone Business Security - EDU | S20: Bitdefender GravityZone Business Security - GOV | T20: Bitdefender GravityZone Business Security - R | U20: Bitdefender GravityZone Business Security - EDU R | V20: Bitdefender GravityZone Business Security - GOV R | W20: Bitdefender GravityZone Business Security - CUPG | Y20: Bitdefender Antivirus Plus 2016 | Z20: 2 years | AA20: 10 PCs | AB20: Bitdefender Antivirus Plus 20162 years10 PCs | AC20: 139.3 | AD20: UL11012010-EN | AE20: 169.95
A21: =IF(Products!$Z$8=$C$1,Q21,IF(Products!$Z$8=$C$2,R21,IF(Products!$Z$8=$C$3,S21,IF(Products!$Z$8=$C$4,T21,IF(Products!$Z$8=$C$5,W21,IF(Products!$Z$8=$C$6,U21,IF(Products!$Z$8=$C$7,V21))))))) -> Bitdefender GravityZone Business Security | B21: 2 years | C21: 15 - 24 | D21: Bitdefender GravityZone Business Security2 years15 - 24 | F21: 46.99 | G21: =IF(Products!$Z$8=$C$1,ROUND(F21*$B$3,2),IF(Products!$Z$8=$C$2,ROUND(F21*$B$3*(1+$D$2),2),IF(Products!$Z$8=$C$3,ROUND(F21*$B$3*(1+$D$3),2),IF(Products!$Z$8=$C$4,ROUND(F21*$B$3*(1+$D$4),2),IF(Products!$Z$8=$C$5,ROUND(F21*$B$3*(1+$D$5),2),IF(Products!$Z$8=$C$6,ROUND(F21*$B$3*(1+$D$6),2),IF(Products!$Z$8=$C$7,ROUND(F21*$B$3*(1+$D$7),2)))))))) -> 46.99 | H21: =IF(Products!$Z$8=$C$1,I21,IF(Products!$Z$8=$C$2,J21,IF(Products!$Z$8=$C$3,K21,IF(Products!$Z$8=$C$4,L21,IF(Products!$Z$8=$C$5,O21,IF(Products!$Z$8=$C$6,M21,IF(Products!$Z$8=$C$7,N21))))))) -> AL1286200B-EN | I21: AL1286200B-EN | J21: AL1586200B-EN | K21: AL1686200B-EN | L21: AL3286200B-EN | M21: AL3586200B-EN | N21: AL3686200B-EN | O21: AL5286200B-EN | Q21: Bitdefender GravityZone Business Security | R21: Bitdefender GravityZone Business Security - EDU | S21: Bitdefender GravityZone Business Security - GOV | T21: Bitdefender GravityZone Business Security - R | U21: Bitdefender GravityZone Business Security - EDU R | V21: Bitdefender GravityZone Business Security - GOV R | W21: Bitdefender GravityZone Business Security - CUPG | Y21: Bitdefender Antivirus Plus 2016 | Z21: 3 years | AA21: 1 PC | AB21: Bitdefender Antivirus Plus 20163 years1 PC | AC21: 57.34 | AD21: UL11013001-EN | AE21: 69.95
A22: =IF(Products!$Z$8=$C$1,Q22,IF(Products!$Z$8=$C$2,R22,IF(Products!$Z$8=$C$3,S22,IF(Products!$Z$8=$C$4,T22,IF(Products!$Z$8=$C$5,W22,IF(Products!$Z$8=$C$6,U22,IF(Products!$Z$8=$C$7,V22))))))) -> Bitdefender GravityZone Business Security | B22: 2 years | C22: 25 - 49 | D22: Bitdefender GravityZone Business Security2 years25 - 49 | F22: 44.3 | G22: =IF(Products!$Z$8=$C$1,ROUND(F22*$B$3,2),IF(Products!$Z$8=$C$2,ROUND(F22*$B$3*(1+$D$2),2),IF(Products!$Z$8=$C$3,ROUND(F22*$B$3*(1+$D$3),2),IF(Products!$Z$8=$C$4,ROUND(F22*$B$3*(1+$D$4),2),IF(Products!$Z$8=$C$5,ROUND(F22*$B$3*(1+$D$5),2),IF(Products!$Z$8=$C$6,ROUND(F22*$B$3*(1+$D$6),2),IF(Products!$Z$8=$C$7,ROUND(F22*$B$3*(1+$D$7),2)))))))) -> 44.3 | H22: =IF(Products!$Z$8=$C$1,I22,IF(Products!$Z$8=$C$2,J22,IF(Products!$Z$8=$C$3,K22,IF(Products!$Z$8=$C$4,L22,IF(Products!$Z$8=$C$5,O22,IF(Products!$Z$8=$C$6,M22,IF(Products!$Z$8=$C$7,N22))))))) -> AL1286200C-EN | I22: AL1286200C-EN | J22: AL1586200C-EN | K22: AL1686200C-EN | L22: AL3286200C-EN | M22: AL3586200C-EN | N22: AL3686200C-EN | O22: AL5286200C-EN | Q22: Bitdefender GravityZone Business Security | R22: Bitdefender GravityZone Business Security - EDU | S22: Bitdefender GravityZone Business Security - GOV | T22: Bitdefender GravityZone Business Security - R | U22: Bitdefender GravityZone Business Security - EDU R | V22: Bitdefender GravityZone Business Security - GOV R | W22: Bitdefender GravityZone Business Security - CUPG | Y22: Bitdefender Antivirus Plus 2016 | Z22: 3 years | AA22: 3 PCs | AB22: Bitdefender Antivirus Plus 20163 years3 PCs | AC22: 73.73 | AD22: UL11013003-EN | AE22: 89.95
A23: =IF(Products!$Z$8=$C$1,Q23,IF(Products!$Z$8=$C$2,R23,IF(Products!$Z$8=$C$3,S23,IF(Products!$Z$8=$C$4,T23,IF(Products!$Z$8=$C$5,W23,IF(Products!$Z$8=$C$6,U23,IF(Products!$Z$8=$C$7,V23))))))) -> Bitdefender GravityZone Business Security | B23: 2 years | C23: 50 - 99 | D23: Bitdefender GravityZone Business Security2 years50 - 99 | F23: 38.93 | G23: =IF(Products!$Z$8=$C$1,ROUND(F23*$B$3,2),IF(Products!$Z$8=$C$2,ROUND(F23*$B$3*(1+$D$2),2),IF(Products!$Z$8=$C$3,ROUND(F23*$B$3*(1+$D$3),2),IF(Products!$Z$8=$C$4,ROUND(F23*$B$3*(1+$D$4),2),IF(Products!$Z$8=$C$5,ROUND(F23*$B$3*(1+$D$5),2),IF(Products!$Z$8=$C$6,ROUND(F23*$B$3*(1+$D$6),2),IF(Products!$Z$8=$C$7,ROUND(F23*$B$3*(1+$D$7),2)))))))) -> 38.93 | H23: =IF(Products!$Z$8=$C$1,I23,IF(Products!$Z$8=$C$2,J23,IF(Products!$Z$8=$C$3,K23,IF(Products!$Z$8=$C$4,L23,IF(Products!$Z$8=$C$5,O23,IF(Products!$Z$8=$C$6,M23,IF(Products!$Z$8=$C$7,N23))))))) -> AL1286200D-EN | I23: AL1286200D-EN | J23: AL1586200D-EN | K23: AL1686200D-EN | L23: AL3286200D-EN | M23: AL3586200D-EN | N23: AL3686200D-EN | O23: AL5286200D-EN | Q23: Bitdefender GravityZone Business Security | R23: Bitdefender GravityZone Business Security - EDU | S23: Bitdefender GravityZone Business Security - GOV | T23: Bitdefender GravityZone Business Security - R | U23: Bitdefender GravityZone Business Security - EDU R | V23: Bitdefender GravityZone Business Security - GOV R | W23: Bitdefender GravityZone Business Security - CUPG | Y23: Bitdefender Antivirus Plus 2016 | Z23: 3 years | AA23: 5 PCs | AB23: Bitdefender Antivirus Plus 20163 years5 PCs | AC23: 106.52 | AD23: UL11013005-EN | AE23: 129.95
A24: =IF(Products!$Z$8=$C$1,Q24,IF(Products!$Z$8=$C$2,R24,IF(Products!$Z$8=$C$3,S24,IF(Products!$Z$8=$C$4,T24,IF(Products!$Z$8=$C$5,W24,IF(Products!$Z$8=$C$6,U24,IF(Products!$Z$8=$C$7,V24))))))) -> Bitdefender GravityZone Business Security | B24: 2 years | C24: 100 - 149 | D24: Bitdefender GravityZone Business Security2 years100 - 149 | F24: 35.81 | G24: =IF(Products!$Z$8=$C$1,ROUND(F24*$B$3,2),IF(Products!$Z$8=$C$2,ROUND(F24*$B$3*(1+$D$2),2),IF(Products!$Z$8=$C$3,ROUND(F24*$B$3*(1+$D$3),2),IF(Products!$Z$8=$C$4,ROUND(F24*$B$3*(1+$D$4),2),IF(Products!$Z$8=$C$5,ROUND(F24*$B$3*(1+$D$5),2),IF(Products!$Z$8=$C$6,ROUND(F24*$B$3*(1+$D$6),2),IF(Products!$Z$8=$C$7,ROUND(F24*$B$3*(1+$D$7),2)))))))) -> 35.81 | H24: =IF(Products!$Z$8=$C$1,I24,IF(Products!$Z$8=$C$2,J24,IF(Products!$Z$8=$C$3,K24,IF(Products!$Z$8=$C$4,L24,IF(Products!$Z$8=$C$5,O24,IF(Products!$Z$8=$C$6,M24,IF(Products!$Z$8=$C$7,N24))))))) -> AL1286200E-EN | I24: AL1286200E-EN | J24: AL1586200E-EN | K24: AL1686200E-EN | L24: AL3286200E-EN | M24: AL3586200E-EN | N24: AL3686200E-EN | O24: AL5286200E-EN | Q24: Bitdefender GravityZone Business Security | R24: Bitdefender GravityZone Business Security - EDU | S24: Bitdefender GravityZone Business Security - GOV | T24: Bitdefender GravityZone Business Security - R | U24: Bitdefender GravityZone Business Security - EDU R | V24: Bitdefender GravityZone Business Security - GOV R | W24: Bitdefender GravityZone Business Security - CUPG | Y24: Bitdefender Antivirus Plus 2016 | Z24: 3 years | AA24: 10 PCs | AB24: Bitdefender Antivirus Plus 20163 years10 PCs | AC24: 196.68 | AD24: UL11013010-EN | AE24: 239.95
A25: =IF(Products!$Z$8=$C$1,Q25,IF(Products!$Z$8=$C$2,R25,IF(Products!$Z$8=$C$3,S25,IF(Products!$Z$8=$C$4,T25,IF(Products!$Z$8=$C$5,W25,IF(Products!$Z$8=$C$6,U25,IF(Products!$Z$8=$C$7,V25))))))) -> Bitdefender GravityZone Business Security | B25: 2 years | C25: 150 - 249 | D25: Bitdefender GravityZone Business Security2 years150 - 249 | F25: 34.38 | G25: =IF(Products!$Z$8=$C$1,ROUND(F25*$B$3,2),IF(Products!$Z$8=$C$2,ROUND(F25*$B$3*(1+$D$2),2),IF(Products!$Z$8=$C$3,ROUND(F25*$B$3*(1+$D$3),2),IF(Products!$Z$8=$C$4,ROUND(F25*$B$3*(1+$D$4),2),IF(Products!$Z$8=$C$5,ROUND(F25*$B$3*(1+$D$5),2),IF(Products!$Z$8=$C$6,ROUND(F25*$B$3*(1+$D$6),2),IF(Products!$Z$8=$C$7,ROUND(F25*$B$3*(1+$D$7),2)))))))) -> 34.38 | H25: =IF(Products!$Z$8=$C$1,I25,IF(Products!$Z$8=$C$2,J25,IF(Products!$Z$8=$C$3,K25,IF(Products!$Z$8=$C$4,L25,IF(Products!$Z$8=$C$5,O25,IF(Products!$Z$8=$C$6,M25,IF(Products!$Z$8=$C$7,N25))))))) -> AL1286200F-EN | I25: AL1286200F-EN | J25: AL1586200F-EN | K25: AL1686200F-EN | L25: AL3286200F-EN | M25: AL3586200F-EN | N25: AL3686200F-EN | O25: AL5286200F-EN | Q25: Bitdefender GravityZone Business Security | R25: Bitdefender GravityZone Business Security - EDU | S25: Bitdefender GravityZone Business Security - GOV | T25: Bitdefender GravityZone Business Security - R | U25: Bitdefender GravityZone Business Security - EDU R | V25: Bitdefender GravityZone Business Security - GOV R | W25: Bitdefender GravityZone Business Security - CUPG | Y25: Bitdefender Internet Security 2016 | Z25: 1 year | AA25: 1 PC | AB25: Bitdefender Internet Security 20161 year1 PC | AC25: 40.94 | AD25: UL11031001-EN | AE25: 49.95
A26: =IF(Products!$Z$8=$C$1,Q26,IF(Products!$Z$8=$C$2,R26,IF(Products!$Z$8=$C$3,S26,IF(Products!$Z$8=$C$4,T26,IF(Products!$Z$8=$C$5,W26,IF(Products!$Z$8=$C$6,U26,IF(Products!$Z$8=$C$7,V26))))))) -> Bitdefender GravityZone Business Security | B26: 2 years | C26: 250 - 499 | D26: Bitdefender GravityZone Business Security2 years250 - 499 | F26: 32.66 | G26: =IF(Products!$Z$8=$C$1,ROUND(F26*$B$3,2),IF(Products!$Z$8=$C$2,ROUND(F26*$B$3*(1+$D$2),2),IF(Products!$Z$8=$C$3,ROUND(F26*$B$3*(1+$D$3),2),IF(Products!$Z$8=$C$4,ROUND(F26*$B$3*(1+$D$4),2),IF(Products!$Z$8=$C$5,ROUND(F26*$B$3*(1+$D$5),2),IF(Products!$Z$8=$C$6,ROUND(F26*$B$3*(1+$D$6),2),IF(Products!$Z$8=$C$7,ROUND(F26*$B$3*(1+$D$7),2)))))))) -> 32.66 | H26: =IF(Products!$Z$8=$C$1,I26,IF(Products!$Z$8=$C$2,J26,IF(Products!$Z$8=$C$3,K26,IF(Products!$Z$8=$C$4,L26,IF(Products!$Z$8=$C$5,O26,IF(Products!$Z$8=$C$6,M26,IF(Products!$Z$8=$C$7,N26))))))) -> AL1286200G-EN | I26: AL1286200G-EN | J26: AL1586200G-EN | K26: AL1686200G-EN | L26: AL3286200G-EN | M26: AL3586200G-EN | N26: AL3686200G-EN | O26: AL5286200G-EN | Q26: Bitdefender GravityZone Business Security | R26: Bitdefender GravityZone Business Security - EDU | S26: Bitdefender GravityZone Business Security - GOV | T26: Bitdefender GravityZone Business Security - R | U26: Bitdefender GravityZone Business Security - EDU R | V26: Bitdefender GravityZone Business Security - GOV R | W26: Bitdefender GravityZone Business Security - CUPG | Y26: Bitdefender Internet Security 2016 | Z26: 1 year | AA26: 3 PCs | AB26: Bitdefender Internet Security 20161 year3 PCs | AC26: 49.14 | AD26: UL11031003-EN | AE26: 59.95
A27: =IF(Products!$Z$8=$C$1,Q27,IF(Products!$Z$8=$C$2,R27,IF(Products!$Z$8=$C$3,S27,IF(Products!$Z$8=$C$4,T27,IF(Products!$Z$8=$C$5,W27,IF(Products!$Z$8=$C$6,U27,IF(Products!$Z$8=$C$7,V27))))))) -> Bitdefender GravityZone Business Security | B27: 2 years | C27: 500 - 999 | D27: Bitdefender GravityZone Business Security2 years500 - 999 | F27: 32.18 | G27: =IF(Products!$Z$8=$C$1,ROUND(F27*$B$3,2),IF(Products!$Z$8=$C$2,ROUND(F27*$B$3*(1+$D$2),2),IF(Products!$Z$8=$C$3,ROUND(F27*$B$3*(1+$D$3),2),IF(Products!$Z$8=$C$4,ROUND(F27*$B$3*(1+$D$4),2),IF(Products!$Z$8=$C$5,ROUND(F27*$B$3*(1+$D$5),2),IF(Products!$Z$8=$C$6,ROUND(F27*$B$3*(1+$D$6),2),IF(Products!$Z$8=$C$7,ROUND(F27*$B$3*(1+$D$7),2)))))))) -> 32.18 | H27: =IF(Products!$Z$8=$C$1,I27,IF(Products!$Z$8=$C$2,J27,IF(Products!$Z$8=$C$3,K27,IF(Products!$Z$8=$C$4,L27,IF(Products!$Z$8=$C$5,O27,IF(Products!$Z$8=$C$6,M27,IF(Products!$Z$8=$C$7,N27))))))) -> AL1286200H-EN | I27: AL1286200H-EN | J27: AL1586200H-EN | K27: AL1686200H-EN | L27: AL3286200H-EN | M27: AL3586200H-EN | N27: AL3686200H-EN | O27: AL5286200H-EN | Q27: Bitdefender GravityZone Business Security | R27: Bitdefender GravityZone Business Security - EDU | S27: Bitdefender GravityZone Business Security - GOV | T27: Bitdefender GravityZone Business Security - R | U27: Bitdefender GravityZone Business Security - EDU R | V27: Bitdefender GravityZone Business Security - GOV R | W27: Bitdefender GravityZone Business Security - CUPG | Y27: Bitdefender Internet Security 2016 | Z27: 1 year | AA27: 5 PCs | AB27: Bitdefender Internet Security 20161 year5 PCs | AC27: 77.83 | AD27: UL11031005-EN | AE27: 94.95
A28: =IF(Products!$Z$8=$C$1,Q28,IF(Products!$Z$8=$C$2,R28,IF(Products!$Z$8=$C$3,S28,IF(Products!$Z$8=$C$4,T28,IF(Products!$Z$8=$C$5,W28,IF(Products!$Z$8=$C$6,U28,IF(Products!$Z$8=$C$7,V28))))))) -> Bitdefender GravityZone Business Security | B28: 2 years | C28: 1000 - 2999 | D28: Bitdefender GravityZone Business Security2 years1000 - 2999 | F28: 31.7 | G28: =IF(Products!$Z$8=$C$1,ROUND(F28*$B$3,2),IF(Products!$Z$8=$C$2,ROUND(F28*$B$3*(1+$D$2),2),IF(Products!$Z$8=$C$3,ROUND(F28*$B$3*(1+$D$3),2),IF(Products!$Z$8=$C$4,ROUND(F28*$B$3*(1+$D$4),2),IF(Products!$Z$8=$C$5,ROUND(F28*$B$3*(1+$D$5),2),IF(Products!$Z$8=$C$6,ROUND(F28*$B$3*(1+$D$6),2),IF(Products!$Z$8=$C$7,ROUND(F28*$B$3*(1+$D$7),2)))))))) -> 31.7 | H28: =IF(Products!$Z$8=$C$1,I28,IF(Products!$Z$8=$C$2,J28,IF(Products!$Z$8=$C$3,K28,IF(Products!$Z$8=$C$4,L28,IF(Products!$Z$8=$C$5,O28,IF(Products!$Z$8=$C$6,M28,IF(Products!$Z$8=$C$7,N28))))))) -> AL1286200I-EN | I28: AL1286200I-EN | J28: AL1586200I-EN | K28: AL1686200I-EN | L28: AL3286200I-EN | M28: AL3586200I-EN | N28: AL3686200I-EN | O28: AL5286200I-EN | Q28: Bitdefender GravityZone Business Security | R28: Bitdefender GravityZone Business Security - EDU | S28: Bitdefender GravityZone Business Security - GOV | T28: Bitdefender GravityZone Business Security - R | U28: Bitdefender GravityZone Business Security - EDU R | V28: Bitdefender GravityZone Business Security - GOV R | W28: Bitdefender GravityZone Business Security - CUPG | Y28: Bitdefender Internet Security 2016 | Z28: 1 year | AA28: 10 PCs | AB28: Bitdefender Internet Security 20161 year10 PCs | AC28: 147.5 | AD28: UL11031010-EN | AE28: 179.95
A29: =IF(Products!$Z$8=$C$1,Q29,IF(Products!$Z$8=$C$2,R29,IF(Products!$Z$8=$C$3,S29,IF(Products!$Z$8=$C$4,T29,IF(Products!$Z$8=$C$5,W29,IF(Products!$Z$8=$C$6,U29,IF(Products!$Z$8=$C$7,V29))))))) -> Bitdefender GravityZone Business Security | B29: 2 years | C29: 3000+ | D29: Bitdefender GravityZone Business Security2 years3000+ | F29: 31.22 | G29: =IF(Products!$Z$8=$C$1,ROUND(F29*$B$3,2),IF(Products!$Z$8=$C$2,ROUND(F29*$B$3*(1+$D$2),2),IF(Products!$Z$8=$C$3,ROUND(F29*$B$3*(1+$D$3),2),IF(Products!$Z$8=$C$4,ROUND(F29*$B$3*(1+$D$4),2),IF(Products!$Z$8=$C$5,ROUND(F29*$B$3*(1+$D$5),2),IF(Products!$Z$8=$C$6,ROUND(F29*$B$3*(1+$D$6),2),IF(Products!$Z$8=$C$7,ROUND(F29*$B$3*(1+$D$7),2)))))))) -> 31.22 | H29: =IF(Products!$Z$8=$C$1,I29,IF(Products!$Z$8=$C$2,J29,IF(Products!$Z$8=$C$3,K29,IF(Products!$Z$8=$C$4,L29,IF(Products!$Z$8=$C$5,O29,IF(Products!$Z$8=$C$6,M29,IF(Products!$Z$8=$C$7,N29))))))) -> AL1286200J-EN | I29: AL1286200J-EN | J29: AL1586200J-EN | K29: AL1686200J-EN | L29: AL3286200J-EN | M29: AL3586200J-EN | N29: AL3686200J-EN | O29: AL5286200J-EN | Q29: Bitdefender GravityZone Business Security | R29: Bitdefender GravityZone Business Security - EDU | S29: Bitdefender GravityZone Business Security - GOV | T29: Bitdefender GravityZone Business Security - R | U29: Bitdefender GravityZone Business Security - EDU R | V29: Bitdefender GravityZone Business Security - GOV R | W29: Bitdefender GravityZone Business Security - CUPG | Y29: Bitdefender Internet Security 2016 | Z29: 2 years | AA29: 1 PC | AB29: Bitdefender Internet Security 20162 years1 PC | AC29: 65.53 | AD29: UL11032001-EN | AE29: 79.95
A30: =IF(Products!$Z$8=$C$1,Q30,IF(Products!$Z$8=$C$2,R30,IF(Products!$Z$8=$C$3,S30,IF(Products!$Z$8=$C$4,T30,IF(Products!$Z$8=$C$5,W30,IF(Products!$Z$8=$C$6,U30,IF(Products!$Z$8=$C$7,V30))))))) -> Bitdefender GravityZone Business Security | B30: 3 years | C30: 3 - 14 | D30: Bitdefender GravityZone Business Security3 years3 - 14 | F30: 68.25475 | G30: =IF(Products!$Z$8=$C$1,ROUND(F30*$B$3,2),IF(Products!$Z$8=$C$2,ROUND(F30*$B$3*(1+$D$2),2),IF(Products!$Z$8=$C$3,ROUND(F30*$B$3*(1+$D$3),2),IF(Products!$Z$8=$C$4,ROUND(F30*$B$3*(1+$D$4),2),IF(Products!$Z$8=$C$5,ROUND(F30*$B$3*(1+$D$5),2),IF(Products!$Z$8=$C$6,ROUND(F30*$B$3*(1+$D$6),2),IF(Products!$Z$8=$C$7,ROUND(F30*$B$3*(1+$D$7),2)))))))) -> 68.25 | H30: =IF(Products!$Z$8=$C$1,I30,IF(Products!$Z$8=$C$2,J30,IF(Products!$Z$8=$C$3,K30,IF(Products!$Z$8=$C$4,L30,IF(Products!$Z$8=$C$5,O30,IF(Products!$Z$8=$C$6,M30,IF(Products!$Z$8=$C$7,N30))))))) -> AL1286300A-EN | I30: AL1286300A-EN | J30: AL1586300A-EN | K30: AL1686300A-EN | L30: AL3286300A-EN | M30: AL3586300A-EN | N30: AL3686300A-EN | O30: AL5286300A-EN | Q30: Bitdefender GravityZone Business Security | R30: Bitdefender GravityZone Business Security - EDU | S30: Bitdefender GravityZone Business Security - GOV | T30: Bitdefender GravityZone Business Security - R | U30: Bitdefender GravityZone Business Security - EDU R | V30: Bitdefender GravityZone Business Security - GOV R | W30: Bitdefender GravityZone Business Security - CUPG | Y30: Bitdefender Internet Security 2016 | Z30: 2 years | AA30: 3 PCs | AB30: Bitdefender Internet Security 20162 years3 PCs | AC30: 81.93 | AD30: UL11032003-EN | AE30: 99.95
A31: =IF(Products!$Z$8=$C$1,Q31,IF(Products!$Z$8=$C$2,R31,IF(Products!$Z$8=$C$3,S31,IF(Products!$Z$8=$C$4,T31,IF(Products!$Z$8=$C$5,W31,IF(Products!$Z$8=$C$6,U31,IF(Products!$Z$8=$C$7,V31))))))) -> Bitdefender GravityZone Business Security | B31: 3 years | C31: 15 - 24 | D31: Bitdefender GravityZone Business Security3 years15 - 24 | F31: 60.2085 | G31: =IF(Products!$Z$8=$C$1,ROUND(F31*$B$3,2),IF(Products!$Z$8=$C$2,ROUND(F31*$B$3*(1+$D$2),2),IF(Products!$Z$8=$C$3,ROUND(F31*$B$3*(1+$D$3),2),IF(Products!$Z$8=$C$4,ROUND(F31*$B$3*(1+$D$4),2),IF(Products!$Z$8=$C$5,ROUND(F31*$B$3*(1+$D$5),2),IF(Products!$Z$8=$C$6,ROUND(F31*$B$3*(1+$D$6),2),IF(Products!$Z$8=$C$7,ROUND(F31*$B$3*(1+$D$7),2)))))))) -> 60.21 | H31: =IF(Products!$Z$8=$C$1,I31,IF(Products!$Z$8=$C$2,J31,IF(Products!$Z$8=$C$3,K31,IF(Products!$Z$8=$C$4,L31,IF(Products!$Z$8=$C$5,O31,IF(Products!$Z$8=$C$6,M31,IF(Products!$Z$8=$C$7,N31))))))) -> AL1286300B-EN | I31: AL1286300B-EN | J31: AL1586300B-EN | K31: AL1686300B-EN | L31: AL3286300B-EN | M31: AL3586300B-EN | N31: AL3686300B-EN | O31: AL5286300B-EN | Q31: Bitdefender GravityZone Business Security | R31: Bitdefender GravityZone Business Security - EDU | S31: Bitdefender GravityZone Business Security - GOV | T31: Bitdefender GravityZone Business Security - R | U31: Bitdefender GravityZone Business Security - EDU R | V31: Bitdefender GravityZone Business Security - GOV R | W31: Bitdefender GravityZone Business Security - CUPG | Y31: Bitdefender Internet Security 2016 | Z31: 2 years | AA31: 5 PCs | AB31: Bitdefender Internet Security 20162 years5 PCs | AC31: 139.3 | AD31: UL11032005-EN | AE31: 169.95
A32: =IF(Products!$Z$8=$C$1,Q32,IF(Products!$Z$8=$C$2,R32,IF(Products!$Z$8=$C$3,S32,IF(Products!$Z$8=$C$4,T32,IF(Products!$Z$8=$C$5,W32,IF(Products!$Z$8=$C$6,U32,IF(Products!$Z$8=$C$7,V32))))))) -> Bitdefender GravityZone Business Security | B32: 3 years | C32: 25 - 49 | D32: Bitdefender GravityZone Business Security3 years25 - 49 | F32: 56.7645 | G32: =IF(Products!$Z$8=$C$1,ROUND(F32*$B$3,2),IF(Products!$Z$8=$C$2,ROUND(F32*$B$3*(1+$D$2),2),IF(Products!$Z$8=$C$3,ROUND(F32*$B$3*(1+$D$3),2),IF(Products!$Z$8=$C$4,ROUND(F32*$B$3*(1+$D$4),2),IF(Products!$Z$8=$C$5,ROUND(F32*$B$3*(1+$D$5),2),IF(Products!$Z$8=$C$6,ROUND(F32*$B$3*(1+$D$6),2),IF(Products!$Z$8=$C$7,ROUND(F32*$B$3*(1+$D$7),2)))))))) -> 56.76 | H32: =IF(Products!$Z$8=$C$1,I32,IF(Products!$Z$8=$C$2,J32,IF(Products!$Z$8=$C$3,K32,IF(Products!$Z$8=$C$4,L32,IF(Products!$Z$8=$C$5,O32,IF(Products!$Z$8=$C$6,M32,IF(Products!$Z$8=$C$7,N32))))))) -> AL1286300C-EN | I32: AL1286300C-EN | J32: AL1586300C-EN | K32: AL1686300C-EN | L32: AL3286300C-EN | M32: AL3586300C-EN | N32: AL3686300C-EN | O32: AL5286300C-EN | Q32: Bitdefender GravityZone Business Security | R32: Bitdefender GravityZone Business Security - EDU | S32: Bitdefender GravityZone Business Security - GOV | T32: Bitdefender GravityZone Business Security - R | U32: Bitdefender GravityZone Business Security - EDU R | V32: Bitdefender GravityZone Business Security - GOV R | W32: Bitdefender GravityZone Business Security - CUPG | Y32: Bitdefender Internet Security 2016 | Z32: 2 years | AA32: 10 PCs | AB32: Bitdefender Internet Security 20162 years10 PCs | AC32: 245.86 | AD32: UL11032010-EN | AE32: 299.95
A33: =IF(Products!$Z$8=$C$1,Q33,IF(Products!$Z$8=$C$2,R33,IF(Products!$Z$8=$C$3,S33,IF(Products!$Z$8=$C$4,T33,IF(Products!$Z$8=$C$5,W33,IF(Products!$Z$8=$C$6,U33,IF(Products!$Z$8=$C$7,V33))))))) -> Bitdefender GravityZone Business Security | B33: 3 years | C33: 50 - 99 | D33: Bitdefender GravityZone Business Security3 years50 - 99 | F33: 49.8765 | G33: =IF(Products!$Z$8=$C$1,ROUND(F33*$B$3,2),IF(Products!$Z$8=$C$2,ROUND(F33*$B$3*(1+$D$2),2),IF(Products!$Z$8=$C$3,ROUND(F33*$B$3*(1+$D$3),2),IF(Products!$Z$8=$C$4,ROUND(F33*$B$3*(1+$D$4),2),IF(Products!$Z$8=$C$5,ROUND(F33*$B$3*(1+$D$5),2),IF(Products!$Z$8=$C$6,ROUND(F33*$B$3*(1+$D$6),2),IF(Products!$Z$8=$C$7,ROUND(F33*$B$3*(1+$D$7),2)))))))) -> 49.88 | H33: =IF(Products!$Z$8=$C$1,I33,IF(Products!$Z$8=$C$2,J33,IF(Products!$Z$8=$C$3,K33,IF(Products!$Z$8=$C$4,L33,IF(Products!$Z$8=$C$5,O33,IF(Products!$Z$8=$C$6,M33,IF(Products!$Z$8=$C$7,N33))))))) -> AL1286300D-EN | I33: AL1286300D-EN | J33: AL1586300D-EN | K33: AL1686300D-EN | L33: AL3286300D-EN | M33: AL3586300D-EN | N33: AL3686300D-EN | O33: AL5286300D-EN | Q33: Bitdefender GravityZone Business Security | R33: Bitdefender GravityZone Business Security - EDU | S33: Bitdefender GravityZone Business Security - GOV | T33: Bitdefender GravityZone Business Security - R | U33: Bitdefender GravityZone Business Security - EDU R | V33: Bitdefender GravityZone Business Security - GOV R | W33: Bitdefender GravityZone Business Security - CUPG | Y33: Bitdefender Internet Security 2016 | Z33: 3 years | AA33: 1 PC | AB33: Bitdefender Internet Security 20163 years1 PC | AC33: 98.32 | AD33: UL11033001-EN | AE33: 119.95
A34: =IF(Products!$Z$8=$C$1,Q34,IF(Products!$Z$8=$C$2,R34,IF(Products!$Z$8=$C$3,S34,IF(Products!$Z$8=$C$4,T34,IF(Products!$Z$8=$C$5,W34,IF(Products!$Z$8=$C$6,U34,IF(Products!$Z$8=$C$7,V34))))))) -> Bitdefender GravityZone Business Security | B34: 3 years | C34: 100 - 149 | D34: Bitdefender GravityZone Business Security3 years100 - 149 | F34: 45.879 | G34: =IF(Products!$Z$8=$C$1,ROUND(F34*$B$3,2),IF(Products!$Z$8=$C$2,ROUND(F34*$B$3*(1+$D$2),2),IF(Products!$Z$8=$C$3,ROUND(F34*$B$3*(1+$D$3),2),IF(Products!$Z$8=$C$4,ROUND(F34*$B$3*(1+$D$4),2),IF(Products!$Z$8=$C$5,ROUND(F34*$B$3*(1+$D$5),2),IF(Products!$Z$8=$C$6,ROUND(F34*$B$3*(1+$D$6),2),IF(Products!$Z$8=$C$7,ROUND(F34*$B$3*(1+$D$7),2)))))))) -> 45.88 | H34: =IF(Products!$Z$8=$C$1,I34,IF(Products!$Z$8=$C$2,J34,IF(Products!$Z$8=$C$3,K34,IF(Products!$Z$8=$C$4,L34,IF(Products!$Z$8=$C$5,O34,IF(Products!$Z$8=$C$6,M34,IF(Products!$Z$8=$C$7,N34))))))) -> AL1286300E-EN | I34: AL1286300E-EN | J34: AL1586300E-EN | K34: AL1686300E-EN | L34: AL3286300E-EN | M34: AL3586300E-EN | N34: AL3686300E-EN | O34: AL5286300E-EN | Q34: Bitdefender GravityZone Business Security | R34: Bitdefender GravityZone Business Security - EDU | S34: Bitdefender GravityZone Business Security - GOV | T34: Bitdefender GravityZone Business Security - R | U34: Bitdefender GravityZone Business Security - EDU R | V34: Bitdefender GravityZone Business Security - GOV R | W34: Bitdefender GravityZone Business Security - CUPG | Y34: Bitdefender Internet Security 2016 | Z34: 3 years | AA34: 3 PCs | AB34: Bitdefender Internet Security 20163 years3 PCs | AC34: 114.71 | AD34: UL11033003-EN | AE34: 139.95
A35: =IF(Products!$Z$8=$C$1,Q35,IF(Products!$Z$8=$C$2,R35,IF(Products!$Z$8=$C$3,S35,IF(Products!$Z$8=$C$4,T35,IF(Products!$Z$8=$C$5,W35,IF(Products!$Z$8=$C$6,U35,IF(Products!$Z$8=$C$7,V35))))))) -> Bitdefender GravityZone Business Security | B35: 3 years | C35: 150 - 249 | D35: Bitdefender GravityZone Business Security3 years150 - 249 | F35: 44.0545 | G35: =IF(Products!$Z$8=$C$1,ROUND(F35*$B$3,2),IF(Products!$Z$8=$C$2,ROUND(F35*$B$3*(1+$D$2),2),IF(Products!$Z$8=$C$3,ROUND(F35*$B$3*(1+$D$3),2),IF(Products!$Z$8=$C$4,ROUND(F35*$B$3*(1+$D$4),2),IF(Products!$Z$8=$C$5,ROUND(F35*$B$3*(1+$D$5),2),IF(Products!$Z$8=$C$6,ROUND(F35*$B$3*(1+$D$6),2),IF(Products!$Z$8=$C$7,ROUND(F35*$B$3*(1+$D$7),2)))))))) -> 44.05 | H35: =IF(Products!$Z$8=$C$1,I35,IF(Products!$Z$8=$C$2,J35,IF(Products!$Z$8=$C$3,K35,IF(Products!$Z$8=$C$4,L35,IF(Products!$Z$8=$C$5,O35,IF(Products!$Z$8=$C$6,M35,IF(Products!$Z$8=$C$7,N35))))))) -> AL1286300F-EN | I35: AL1286300F-EN | J35: AL1586300F-EN | K35: AL1686300F-EN | L35: AL3286300F-EN | M35: AL3586300F-EN | N35: AL3686300F-EN | O35: AL5286300F-EN | Q35: Bitdefender GravityZone Business Security | R35: Bitdefender GravityZone Business Security - EDU | S35: Bitdefender GravityZone Business Security - GOV | T35: Bitdefender GravityZone Business Security - R | U35: Bitdefender GravityZone Business Security - EDU R | V35: Bitdefender GravityZone Business Security - GOV R | W35: Bitdefender GravityZone Business Security - CUPG | Y35: Bitdefender Internet Security 2016 | Z35: 3 years | AA35: 5 PCs | AB35: Bitdefender Internet Security 20163 years5 PCs | AC35: 188.48 | AD35: UL11033005-EN | AE35: 229.95
A36: =IF(Products!$Z$8=$C$1,Q36,IF(Products!$Z$8=$C$2,R36,IF(Products!$Z$8=$C$3,S36,IF(Products!$Z$8=$C$4,T36,IF(Products!$Z$8=$C$5,W36,IF(Products!$Z$8=$C$6,U36,IF(Products!$Z$8=$C$7,V36))))))) -> Bitdefender GravityZone Business Security | B36: 3 years | C36: 250 - 499 | D36: Bitdefender GravityZone Business Security3 years250 - 499 | F36: 41.8405 | G36: =IF(Products!$Z$8=$C$1,ROUND(F36*$B$3,2),IF(Products!$Z$8=$C$2,ROUND(F36*$B$3*(1+$D$2),2),IF(Products!$Z$8=$C$3,ROUND(F36*$B$3*(1+$D$3),2),IF(Products!$Z$8=$C$4,ROUND(F36*$B$3*(1+$D$4),2),IF(Products!$Z$8=$C$5,ROUND(F36*$B$3*(1+$D$5),2),IF(Products!$Z$8=$C$6,ROUND(F36*$B$3*(1+$D$6),2),IF(Products!$Z$8=$C$7,ROUND(F36*$B$3*(1+$D$7),2)))))))) -> 41.84 | H36: =IF(Products!$Z$8=$C$1,I36,IF(Products!$Z$8=$C$2,J36,IF(Products!$Z$8=$C$3,K36,IF(Products!$Z$8=$C$4,L36,IF(Products!$Z$8=$C$5,O36,IF(Products!$Z$8=$C$6,M36,IF(Products!$Z$8=$C$7,N36))))))) -> AL1286300G-EN | I36: AL1286300G-EN | J36: AL1586300G-EN | K36: AL1686300G-EN | L36: AL3286300G-EN | M36: AL3586300G-EN | N36: AL3686300G-EN | O36: AL5286300G-EN | Q36: Bitdefender GravityZone Business Security | R36: Bitdefender GravityZone Business Security - EDU | S36: Bitdefender GravityZone Business Security - GOV | T36: Bitdefender GravityZone Business Security - R | U36: Bitdefender GravityZone Business Security - EDU R | V36: Bitdefender GravityZone Business Security - GOV R | W36: Bitdefender GravityZone Business Security - CUPG | Y36: Bitdefender Internet Security 2016 | Z36: 3 years | AA36: 10 PCs | AB36: Bitdefender Internet Security 20163 years10 PCs | AC36: 336.02 | AD36: UL11033010-EN | AE36: 409.95
A37: =IF(Products!$Z$8=$C$1,Q37,IF(Products!$Z$8=$C$2,R37,IF(Products!$Z$8=$C$3,S37,IF(Products!$Z$8=$C$4,T37,IF(Products!$Z$8=$C$5,W37,IF(Products!$Z$8=$C$6,U37,IF(Products!$Z$8=$C$7,V37))))))) -> Bitdefender GravityZone Business Security | B37: 3 years | C37: 500 - 999 | D37: Bitdefender GravityZone Business Security3 years500 - 999 | F37: 41.2255 | G37: =IF(Products!$Z$8=$C$1,ROUND(F37*$B$3,2),IF(Products!$Z$8=$C$2,ROUND(F37*$B$3*(1+$D$2),2),IF(Products!$Z$8=$C$3,ROUND(F37*$B$3*(1+$D$3),2),IF(Products!$Z$8=$C$4,ROUND(F37*$B$3*(1+$D$4),2),IF(Products!$Z$8=$C$5,ROUND(F37*$B$3*(1+$D$5),2),IF(Products!$Z$8=$C$6,ROUND(F37*$B$3*(1+$D$6),2),IF(Products!$Z$8=$C$7,ROUND(F37*$B$3*(1+$D$7),2)))))))) -> 41.23 | H37: =IF(Products!$Z$8=$C$1,I37,IF(Products!$Z$8=$C$2,J37,IF(Products!$Z$8=$C$3,K37,IF(Products!$Z$8=$C$4,L37,IF(Products!$Z$8=$C$5,O37,IF(Products!$Z$8=$C$6,M37,IF(Products!$Z$8=$C$7,N37))))))) -> AL1286300H-EN | I37: AL1286300H-EN | J37: AL1586300H-EN | K37: AL1686300H-EN | L37: AL3286300H-EN | M37: AL3586300H-EN | N37: AL3686300H-EN | O37: AL5286300H-EN | Q37: Bitdefender GravityZone Business Security | R37: Bitdefender GravityZone Business Security - EDU | S37: Bitdefender GravityZone Business Security - GOV | T37: Bitdefender GravityZone Business Security - R | U37: Bitdefender GravityZone Business Security - EDU R | V37: Bitdefender GravityZone Business Security - GOV R | W37: Bitdefender GravityZone Business Security - CUPG | Y37: Bitdefender Total Security 2016 | Z37: 1 year | AA37: 1 PC | AB37: Bitdefender Total Security 20161 year1 PC | AC37: 49.14 | AD37: UL11051001-EN | AE37: 59.95
A38: =IF(Products!$Z$8=$C$1,Q38,IF(Products!$Z$8=$C$2,R38,IF(Products!$Z$8=$C$3,S38,IF(Products!$Z$8=$C$4,T38,IF(Products!$Z$8=$C$5,W38,IF(Products!$Z$8=$C$6,U38,IF(Products!$Z$8=$C$7,V38))))))) -> Bitdefender GravityZone Business Security | B38: 3 years | C38: 1000 - 2999 | D38: Bitdefender GravityZone Business Security3 years1000 - 2999 | F38: 40.6105 | G38: =IF(Products!$Z$8=$C$1,ROUND(F38*$B$3,2),IF(Products!$Z$8=$C$2,ROUND(F38*$B$3*(1+$D$2),2),IF(Products!$Z$8=$C$3,ROUND(F38*$B$3*(1+$D$3),2),IF(Products!$Z$8=$C$4,ROUND(F38*$B$3*(1+$D$4),2),IF(Products!$Z$8=$C$5,ROUND(F38*$B$3*(1+$D$5),2),IF(Products!$Z$8=$C$6,ROUND(F38*$B$3*(1+$D$6),2),IF(Products!$Z$8=$C$7,ROUND(F38*$B$3*(1+$D$7),2)))))))) -> 40.61 | H38: =IF(Products!$Z$8=$C$1,I38,IF(Products!$Z$8=$C$2,J38,IF(Products!$Z$8=$C$3,K38,IF(Products!$Z$8=$C$4,L38,IF(Products!$Z$8=$C$5,O38,IF(Products!$Z$8=$C$6,M38,IF(Products!$Z$8=$C$7,N38))))))) -> AL1286300I-EN | I38: AL1286300I-EN | J38: AL1586300I-EN | K38: AL1686300I-EN | L38: AL3286300I-EN | M38: AL3586300I-EN | N38: AL3686300I-EN | O38: AL5286300I-EN | Q38: Bitdefender GravityZone Business Security | R38: Bitdefender GravityZone Business Security - EDU | S38: Bitdefender GravityZone Business Security - GOV | T38: Bitdefender GravityZone Business Security - R | U38: Bitdefender GravityZone Business Security - EDU R | V38: Bitdefender GravityZone Business Security - GOV R | W38: Bitdefender GravityZone Business Security - CUPG | Y38: Bitdefender Total Security 2016 | Z38: 1 year | AA38: 3 PCs | AB38: Bitdefender Total Security 20161 year3 PCs | AC38: 57.34 | AD38: UL11051003-EN | AE38: 69.95
A39: =IF(Products!$Z$8=$C$1,Q39,IF(Products!$Z$8=$C$2,R39,IF(Products!$Z$8=$C$3,S39,IF(Products!$Z$8=$C$4,T39,IF(Products!$Z$8=$C$5,W39,IF(Products!$Z$8=$C$6,U39,IF(Products!$Z$8=$C$7,V39))))))) -> Bitdefender GravityZone Business Security | B39: 3 years | C39: 3000+ | D39: Bitdefender GravityZone Business Security3 years3000+ | F39: 39.9955 | G39: =IF(Products!$Z$8=$C$1,ROUND(F39*$B$3,2),IF(Products!$Z$8=$C$2,ROUND(F39*$B$3*(1+$D$2),2),IF(Products!$Z$8=$C$3,ROUND(F39*$B$3*(1+$D$3),2),IF(Products!$Z$8=$C$4,ROUND(F39*$B$3*(1+$D$4),2),IF(Products!$Z$8=$C$5,ROUND(F39*$B$3*(1+$D$5),2),IF(Products!$Z$8=$C$6,ROUND(F39*$B$3*(1+$D$6),2),IF(Products!$Z$8=$C$7,ROUND(F39*$B$3*(1+$D$7),2)))))))) -> 40 | H39: =IF(Products!$Z$8=$C$1,I39,IF(Products!$Z$8=$C$2,J39,IF(Products!$Z$8=$C$3,K39,IF(Products!$Z$8=$C$4,L39,IF(Products!$Z$8=$C$5,O39,IF(Products!$Z$8=$C$6,M39,IF(Products!$Z$8=$C$7,N39))))))) -> AL1286300J-EN | I39: AL1286300J-EN | J39: AL1586300J-EN | K39: AL1686300J-EN | L39: AL3286300J-EN | M39: AL3586300J-EN | N39: AL3686300J-EN | O39: AL5286300J-EN | Q39: Bitdefender GravityZone Business Security | R39: Bitdefender GravityZone Business Security - EDU | S39: Bitdefender GravityZone Business Security - GOV | T39: Bitdefender GravityZone Business Security - R | U39: Bitdefender GravityZone Business Security - EDU R | V39: Bitdefender GravityZone Business Security - GOV R | W39: Bitdefender GravityZone Business Security - CUPG | Y39: Bitdefender Total Security 2016 | Z39: 1 year | AA39: 5 PCs | AB39: Bitdefender Total Security 20161 year5 PCs | AC39: 90.12 | AD39: UL11051005-EN | AE39: 109.95
A40: =IF(Products!$Z$8=$C$1,Q40,IF(Products!$Z$8=$C$2,R40,IF(Products!$Z$8=$C$3,S40,IF(Products!$Z$8=$C$4,T40,IF(Products!$Z$8=$C$5,W40,IF(Products!$Z$8=$C$6,U40,IF(Products!$Z$8=$C$7,V40))))))) -> Bitdefender GravityZone Advanced Business Security | B40: 1 year | C40: 5 - 14 | D40: Bitdefender GravityZone Advanced Business Security1 year5 - 14 | F40: 48.32 | G40: =IF(Products!$Z$8=$C$1,ROUND(F40*$B$3,2),IF(Products!$Z$8=$C$2,ROUND(F40*$B$3*(1+$D$2),2),IF(Products!$Z$8=$C$3,ROUND(F40*$B$3*(1+$D$3),2),IF(Products!$Z$8=$C$4,ROUND(F40*$B$3*(1+$D$4),2),IF(Products!$Z$8=$C$5,ROUND(F40*$B$3*(1+$D$5),2),IF(Products!$Z$8=$C$6,ROUND(F40*$B$3*(1+$D$6),2),IF(Products!$Z$8=$C$7,ROUND(F40*$B$3*(1+$D$7),2)))))))) -> 48.32 | H40: =IF(Products!$Z$8=$C$1,I40,IF(Products!$Z$8=$C$2,J40,IF(Products!$Z$8=$C$3,K40,IF(Products!$Z$8=$C$4,L40,IF(Products!$Z$8=$C$5,O40,IF(Products!$Z$8=$C$6,M40,IF(Products!$Z$8=$C$7,N40))))))) -> AL1287100A-EN | I40: AL1287100A-EN | J40: AL1587100A-EN | K40: AL1687100A-EN | L40: AL3287100A-EN | M40: AL3587100A-EN | N40: AL3687100A-EN | O40: AL5287100A-EN | Q40: Bitdefender GravityZone Advanced Business Security | R40: Bitdefender GravityZone Advanced Business Security - EDU | S40: Bitdefender GravityZone Advanced Business Security - GOV | T40: Bitdefender GravityZone Advanced Business Security - R | U40: Bitdefender GravityZone Advanced Business Security - EDU R | V40: Bitdefender GravityZone Advanced Business Security - GOV R | W40: Bitdefender GravityZone Advanced Business Security - CUPG | Y40: Bitdefender Total Security 2016 | Z40: 1 year | AA40: 10 PCs | AB40: Bitdefender Total Security 20161 year10 PCs | AC40: 163.89 | AD40: UL11051010-EN | AE40: 199.95
A41: =IF(Products!$Z$8=$C$1,Q41,IF(Products!$Z$8=$C$2,R41,IF(Products!$Z$8=$C$3,S41,IF(Products!$Z$8=$C$4,T41,IF(Products!$Z$8=$C$5,W41,IF(Products!$Z$8=$C$6,U41,IF(Products!$Z$8=$C$7,V41))))))) -> Bitdefender GravityZone Advanced Business Security | B41: 1 year | C41: 15 - 24 | D41: Bitdefender GravityZone Advanced Business Security1 year15 - 24 | F41: 44.66 | G41: =IF(Products!$Z$8=$C$1,ROUND(F41*$B$3,2),IF(Products!$Z$8=$C$2,ROUND(F41*$B$3*(1+$D$2),2),IF(Products!$Z$8=$C$3,ROUND(F41*$B$3*(1+$D$3),2),IF(Products!$Z$8=$C$4,ROUND(F41*$B$3*(1+$D$4),2),IF(Products!$Z$8=$C$5,ROUND(F41*$B$3*(1+$D$5),2),IF(Products!$Z$8=$C$6,ROUND(F41*$B$3*(1+$D$6),2),IF(Products!$Z$8=$C$7,ROUND(F41*$B$3*(1+$D$7),2)))))))) -> 44.66 | H41: =IF(Products!$Z$8=$C$1,I41,IF(Products!$Z$8=$C$2,J41,IF(Products!$Z$8=$C$3,K41,IF(Products!$Z$8=$C$4,L41,IF(Products!$Z$8=$C$5,O41,IF(Products!$Z$8=$C$6,M41,IF(Products!$Z$8=$C$7,N41))))))) -> AL1287100B-EN | I41: AL1287100B-EN | J41: AL1587100B-EN | K41: AL1687100B-EN | L41: AL3287100B-EN | M41: AL3587100B-EN | N41: AL3687100B-EN | O41: AL5287100B-EN | Q41: Bitdefender GravityZone Advanced Business Security | R41: Bitdefender GravityZone Advanced Business Security - EDU | S41: Bitdefender GravityZone Advanced Business Security - GOV | T41: Bitdefender GravityZone Advanced Business Security - R | U41: Bitdefender GravityZone Advanced Business Security - EDU R | V41: Bitdefender GravityZone Advanced Business Security - GOV R | W41: Bitdefender GravityZone Advanced Business Security - CUPG | Y41: Bitdefender Total Security 2016 | Z41: 2 years | AA41: 1 PC | AB41: Bitdefender Total Security 20162 years1 PC | AC41: 81.93 | AD41: UL11052001-EN | AE41: 99.95
A42: =IF(Products!$Z$8=$C$1,Q42,IF(Products!$Z$8=$C$2,R42,IF(Products!$Z$8=$C$3,S42,IF(Products!$Z$8=$C$4,T42,IF(Products!$Z$8=$C$5,W42,IF(Products!$Z$8=$C$6,U42,IF(Products!$Z$8=$C$7,V42))))))) -> Bitdefender GravityZone Advanced Business Security | B42: 1 year | C42: 25 - 49 | D42: Bitdefender GravityZone Advanced Business Security1 year25 - 49 | F42: 39.99 | G42: =IF(Products!$Z$8=$C$1,ROUND(F42*$B$3,2),IF(Products!$Z$8=$C$2,ROUND(F42*$B$3*(1+$D$2),2),IF(Products!$Z$8=$C$3,ROUND(F42*$B$3*(1+$D$3),2),IF(Products!$Z$8=$C$4,ROUND(F42*$B$3*(1+$D$4),2),IF(Products!$Z$8=$C$5,ROUND(F42*$B$3*(1+$D$5),2),IF(Products!$Z$8=$C$6,ROUND(F42*$B$3*(1+$D$6),2),IF(Products!$Z$8=$C$7,ROUND(F42*$B$3*(1+$D$7),2)))))))) -> 39.99 | H42: =IF(Products!$Z$8=$C$1,I42,IF(Products!$Z$8=$C$2,J42,IF(Products!$Z$8=$C$3,K42,IF(Products!$Z$8=$C$4,L42,IF(Products!$Z$8=$C$5,O42,IF(Products!$Z$8=$C$6,M42,IF(Products!$Z$8=$C$7,N42))))))) -> AL1287100C-EN | I42: AL1287100C-EN | J42: AL1587100C-EN | K42: AL1687100C-EN | L42: AL3287100C-EN | M42: AL3587100C-EN | N42: AL3687100C-EN | O42: AL5287100C-EN | Q42: Bitdefender GravityZone Advanced Business Security | R42: Bitdefender GravityZone Advanced Business Security - EDU | S42: Bitdefender GravityZone Advanced Business Security - GOV | T42: Bitdefender GravityZone Advanced Business Security - R | U42: Bitdefender GravityZone Advanced Business Security - EDU R | V42: Bitdefender GravityZone Advanced Business Security - GOV R | W42: Bitdefender GravityZone Advanced Business Security - CUPG | Y42: Bitdefender Total Security 2016 | Z42: 2 years | AA42: 3 PCs | AB42: Bitdefender Total Security 20162 years3 PCs | AC42: 98.32 | AD42: UL11052003-EN | AE42: 119.95
A43: =IF(Products!$Z$8=$C$1,Q43,IF(Products!$Z$8=$C$2,R43,IF(Products!$Z$8=$C$3,S43,IF(Products!$Z$8=$C$4,T43,IF(Products!$Z$8=$C$5,W43,IF(Products!$Z$8=$C$6,U43,IF(Products!$Z$8=$C$7,V43))))))) -> Bitdefender GravityZone Advanced Business Security | B43: 1 year | C43: 50 - 99 | D43: Bitdefender GravityZone Advanced Business Security1 year50 - 99 | F43: 35.99 | G43: =IF(Products!$Z$8=$C$1,ROUND(F43*$B$3,2),IF(Products!$Z$8=$C$2,ROUND(F43*$B$3*(1+$D$2),2),IF(Products!$Z$8=$C$3,ROUND(F43*$B$3*(1+$D$3),2),IF(Products!$Z$8=$C$4,ROUND(F43*$B$3*(1+$D$4),2),IF(Products!$Z$8=$C$5,ROUND(F43*$B$3*(1+$D$5),2),IF(Products!$Z$8=$C$6,ROUND(F43*$B$3*(1+$D$6),2),IF(Products!$Z$8=$C$7,ROUND(F43*$B$3*(1+$D$7),2)))))))) -> 35.99 | H43: =IF(Products!$Z$8=$C$1,I43,IF(Products!$Z$8=$C$2,J43,IF(Products!$Z$8=$C$3,K43,IF(Products!$Z$8=$C$4,L43,IF(Products!$Z$8=$C$5,O43,IF(Products!$Z$8=$C$6,M43,IF(Products!$Z$8=$C$7,N43))))))) -> AL1287100D-EN | I43: AL1287100D-EN | J43: AL1587100D-EN | K43: AL1687100D-EN | L43: AL3287100D-EN | M43: AL3587100D-EN | N43: AL3687100D-EN | O43: AL5287100D-EN | Q43: Bitdefender GravityZone Advanced Business Security | R43: Bitdefender GravityZone Advanced Business Security - EDU | S43: Bitdefender GravityZone Advanced Business Security - GOV | T43: Bitdefender GravityZone Advanced Business Security - R | U43: Bitdefender GravityZone Advanced Business Security - EDU R | V43: Bitdefender GravityZone Advanced Business Security - GOV R | W43: Bitdefender GravityZone Advanced Business Security - CUPG | Y43: Bitdefender Total Security 2016 | Z43: 2 years | AA43: 5 PCs | AB43: Bitdefender Total Security 20162 years5 PCs | AC43: 163.89 | AD43: UL11052005-EN | AE43: 199.95
A44: =IF(Products!$Z$8=$C$1,Q44,IF(Products!$Z$8=$C$2,R44,IF(Products!$Z$8=$C$3,S44,IF(Products!$Z$8=$C$4,T44,IF(Products!$Z$8=$C$5,W44,IF(Products!$Z$8=$C$6,U44,IF(Products!$Z$8=$C$7,V44))))))) -> Bitdefender GravityZone Advanced Business Security | B44: 1 year | C44: 100 - 149 | D44: Bitdefender GravityZone Advanced Business Security1 year100 - 149 | F44: 32.66 | G44: =IF(Products!$Z$8=$C$1,ROUND(F44*$B$3,2),IF(Products!$Z$8=$C$2,ROUND(F44*$B$3*(1+$D$2),2),IF(Products!$Z$8=$C$3,ROUND(F44*$B$3*(1+$D$3),2),IF(Products!$Z$8=$C$4,ROUND(F44*$B$3*(1+$D$4),2),IF(Products!$Z$8=$C$5,ROUND(F44*$B$3*(1+$D$5),2),IF(Products!$Z$8=$C$6,ROUND(F44*$B$3*(1+$D$6),2),IF(Products!$Z$8=$C$7,ROUND(F44*$B$3*(1+$D$7),2)))))))) -> 32.66 | H44: =IF(Products!$Z$8=$C$1,I44,IF(Products!$Z$8=$C$2,J44,IF(Products!$Z$8=$C$3,K44,IF(Products!$Z$8=$C$4,L44,IF(Products!$Z$8=$C$5,O44,IF(Products!$Z$8=$C$6,M44,IF(Products!$Z$8=$C$7,N44))))))) -> AL1287100E-EN | I44: AL1287100E-EN | J44: AL1587100E-EN | K44: AL1687100E-EN | L44: AL3287100E-EN | M44: AL3587100E-EN | N44: AL3687100E-EN | O44: AL5287100E-EN | Q44: Bitdefender GravityZone Advanced Business Security | R44: Bitdefender GravityZone Advanced Business Security - EDU | S44: Bitdefender GravityZone Advanced Business Security - GOV | T44: Bitdefender GravityZone Advanced Business Security - R | U44: Bitdefender GravityZone Advanced Business Security - EDU R | V44: Bitdefender GravityZone Advanced Business Security - GOV R | W44: Bitdefender GravityZone Advanced Business Security - CUPG | Y44: Bitdefender Total Security 2016 | Z44: 2 years | AA44: 10 PCs | AB44: Bitdefender Total Security 20162 years10 PCs | AC44: 270.45 | AD44: UL11052010-EN | AE44: 329.95
A45: =IF(Products!$Z$8=$C$1,Q45,IF(Products!$Z$8=$C$2,R45,IF(Products!$Z$8=$C$3,S45,IF(Products!$Z$8=$C$4,T45,IF(Products!$Z$8=$C$5,W45,IF(Products!$Z$8=$C$6,U45,IF(Products!$Z$8=$C$7,V45))))))) -> Bitdefender GravityZone Advanced Business Security | B45: 1 year | C45: 150 - 249 | D45: Bitdefender GravityZone Advanced Business Security1 year150 - 249 | F45: 28.09 | G45: =IF(Products!$Z$8=$C$1,ROUND(F45*$B$3,2),IF(Products!$Z$8=$C$2,ROUND(F45*$B$3*(1+$D$2),2),IF(Products!$Z$8=$C$3,ROUND(F45*$B$3*(1+$D$3),2),IF(Products!$Z$8=$C$4,ROUND(F45*$B$3*(1+$D$4),2),IF(Products!$Z$8=$C$5,ROUND(F45*$B$3*(1+$D$5),2),IF(Products!$Z$8=$C$6,ROUND(F45*$B$3*(1+$D$6),2),IF(Products!$Z$8=$C$7,ROUND(F45*$B$3*(1+$D$7),2)))))))) -> 28.09 | H45: =IF(Products!$Z$8=$C$1,I45,IF(Products!$Z$8=$C$2,J45,IF(Products!$Z$8=$C$3,K45,IF(Products!$Z$8=$C$4,L45,IF(Products!$Z$8=$C$5,O45,IF(Products!$Z$8=$C$6,M45,IF(Products!$Z$8=$C$7,N45))))))) -> AL1287100F-EN | I45: AL1287100F-EN | J45: AL1587100F-EN | K45: AL1687100F-EN | L45: AL3287100F-EN | M45: AL3587100F-EN | N45: AL3687100F-EN | O45: AL5287100F-EN | Q45: Bitdefender GravityZone Advanced Business Security | R45: Bitdefender GravityZone Advanced Business Security - EDU | S45: Bitdefender GravityZone Advanced Business Security - GOV | T45: Bitdefender GravityZone Advanced Business Security - R | U45: Bitdefender GravityZone Advanced Business Security - EDU R | V45: Bitdefender GravityZone Advanced Business Security - GOV R | W45: Bitdefender GravityZone Advanced Business Security - CUPG | Y45: Bitdefender Total Security 2016 | Z45: 3 years | AA45: 1 PC | AB45: Bitdefender Total Security 20163 years1 PC | AC45: 106.52 | AD45: UL11053001-EN | AE45: 129.95
A46: =IF(Products!$Z$8=$C$1,Q46,IF(Products!$Z$8=$C$2,R46,IF(Products!$Z$8=$C$3,S46,IF(Products!$Z$8=$C$4,T46,IF(Products!$Z$8=$C$5,W46,IF(Products!$Z$8=$C$6,U46,IF(Products!$Z$8=$C$7,V46))))))) -> Bitdefender GravityZone Advanced Business Security | B46: 1 year | C46: 250 - 499 | D46: Bitdefender GravityZone Advanced Business Security1 year250 - 499 | F46: 25.84 | G46: =IF(Products!$Z$8=$C$1,ROUND(F46*$B$3,2),IF(Products!$Z$8=$C$2,ROUND(F46*$B$3*(1+$D$2),2),IF(Products!$Z$8=$C$3,ROUND(F46*$B$3*(1+$D$3),2),IF(Products!$Z$8=$C$4,ROUND(F46*$B$3*(1+$D$4),2),IF(Products!$Z$8=$C$5,ROUND(F46*$B$3*(1+$D$5),2),IF(Products!$Z$8=$C$6,ROUND(F46*$B$3*(1+$D$6),2),IF(Products!$Z$8=$C$7,ROUND(F46*$B$3*(1+$D$7),2)))))))) -> 25.84 | H46: =IF(Products!$Z$8=$C$1,I46,IF(Products!$Z$8=$C$2,J46,IF(Products!$Z$8=$C$3,K46,IF(Products!$Z$8=$C$4,L46,IF(Products!$Z$8=$C$5,O46,IF(Products!$Z$8=$C$6,M46,IF(Products!$Z$8=$C$7,N46))))))) -> AL1287100G-EN | I46: AL1287100G-EN | J46: AL1587100G-EN | K46: AL1687100G-EN | L46: AL3287100G-EN | M46: AL3587100G-EN | N46: AL3687100G-EN | O46: AL5287100G-EN | Q46: Bitdefender GravityZone Advanced Business Security | R46: Bitdefender GravityZone Advanced Business Security - EDU | S46: Bitdefender GravityZone Advanced Business Security - GOV | T46: Bitdefender GravityZone Advanced Business Security - R | U46: Bitdefender GravityZone Advanced Business Security - EDU R | V46: Bitdefender GravityZone Advanced Business Security - GOV R | W46: Bitdefender GravityZone Advanced Business Security - CUPG | Y46: Bitdefender Total Security 2016 | Z46: 3 years | AA46: 3 PCs | AB46: Bitdefender Total Security 20163 years3 PCs | AC46: 131.11 | AD46: UL11053003-EN | AE46: 159.95
A47: =IF(Products!$Z$8=$C$1,Q47,IF(Products!$Z$8=$C$2,R47,IF(Products!$Z$8=$C$3,S47,IF(Products!$Z$8=$C$4,T47,IF(Products!$Z$8=$C$5,W47,IF(Products!$Z$8=$C$6,U47,IF(Products!$Z$8=$C$7,V47))))))) -> Bitdefender GravityZone Advanced Business Security | B47: 1 year | C47: 500 - 999 | D47: Bitdefender GravityZone Advanced Business Security1 year500 - 999 | F47: 24.03 | G47: =IF(Products!$Z$8=$C$1,ROUND(F47*$B$3,2),IF(Products!$Z$8=$C$2,ROUND(F47*$B$3*(1+$D$2),2),IF(Products!$Z$8=$C$3,ROUND(F47*$B$3*(1+$D$3),2),IF(Products!$Z$8=$C$4,ROUND(F47*$B$3*(1+$D$4),2),IF(Products!$Z$8=$C$5,ROUND(F47*$B$3*(1+$D$5),2),IF(Products!$Z$8=$C$6,ROUND(F47*$B$3*(1+$D$6),2),IF(Products!$Z$8=$C$7,ROUND(F47*$B$3*(1+$D$7),2)))))))) -> 24.03 | H47: =IF(Products!$Z$8=$C$1,I47,IF(Products!$Z$8=$C$2,J47,IF(Products!$Z$8=$C$3,K47,IF(Products!$Z$8=$C$4,L47,IF(Products!$Z$8=$C$5,O47,IF(Products!$Z$8=$C$6,M47,IF(Products!$Z$8=$C$7,N47))))))) -> AL1287100H-EN | I47: AL1287100H-EN | J47: AL1587100H-EN | K47: AL1687100H-EN | L47: AL3287100H-EN | M47: AL3587100H-EN | N47: AL3687100H-EN | O47: AL5287100H-EN | Q47: Bitdefender GravityZone Advanced Business Security | R47: Bitdefender GravityZone Advanced Business Security - EDU | S47: Bitdefender GravityZone Advanced Business Security - GOV | T47: Bitdefender GravityZone Advanced Business Security - R | U47: Bitdefender GravityZone Advanced Business Security - EDU R | V47: Bitdefender GravityZone Advanced Business Security - GOV R | W47: Bitdefender GravityZone Advanced Business Security - CUPG | Y47: Bitdefender Total Security 2016 | Z47: 3 years | AA47: 5 PCs | AB47: Bitdefender Total Security 20163 years5 PCs | AC47: 221.27 | AD47: UL11053005-EN | AE47: 269.95
A48: =IF(Products!$Z$8=$C$1,Q48,IF(Products!$Z$8=$C$2,R48,IF(Products!$Z$8=$C$3,S48,IF(Products!$Z$8=$C$4,T48,IF(Products!$Z$8=$C$5,W48,IF(Products!$Z$8=$C$6,U48,IF(Products!$Z$8=$C$7,V48))))))) -> Bitdefender GravityZone Advanced Business Security | B48: 1 year | C48: 1000 - 2999 | D48: Bitdefender GravityZone Advanced Business Security1 year1000 - 2999 | F48: 22.83 | G48: =IF(Products!$Z$8=$C$1,ROUND(F48*$B$3,2),IF(Products!$Z$8=$C$2,ROUND(F48*$B$3*(1+$D$2),2),IF(Products!$Z$8=$C$3,ROUND(F48*$B$3*(1+$D$3),2),IF(Products!$Z$8=$C$4,ROUND(F48*$B$3*(1+$D$4),2),IF(Products!$Z$8=$C$5,ROUND(F48*$B$3*(1+$D$5),2),IF(Products!$Z$8=$C$6,ROUND(F48*$B$3*(1+$D$6),2),IF(Products!$Z$8=$C$7,ROUND(F48*$B$3*(1+$D$7),2)))))))) -> 22.83 | H48: =IF(Products!$Z$8=$C$1,I48,IF(Products!$Z$8=$C$2,J48,IF(Products!$Z$8=$C$3,K48,IF(Products!$Z$8=$C$4,L48,IF(Products!$Z$8=$C$5,O48,IF(Products!$Z$8=$C$6,M48,IF(Products!$Z$8=$C$7,N48))))))) -> AL1287100I-EN | I48: AL1287100I-EN | J48: AL1587100I-EN | K48: AL1687100I-EN | L48: AL3287100I-EN | M48: AL3587100I-EN | N48: AL3687100I-EN | O48: AL5287100I-EN | Q48: Bitdefender GravityZone Advanced Business Security | R48: Bitdefender GravityZone Advanced Business Security - EDU | S48: Bitdefender GravityZone Advanced Business Security - GOV | T48: Bitdefender GravityZone Advanced Business Security - R | U48: Bitdefender GravityZone Advanced Business Security - EDU R | V48: Bitdefender GravityZone Advanced Business Security - GOV R | W48: Bitdefender GravityZone Advanced Business Security - CUPG | Y48: Bitdefender Total Security 2016 | Z48: 3 years | AA48: 10 PCs | AB48: Bitdefender Total Security 20163 years10 PCs | AC48: 368.81 | AD48: UL11053010-EN | AE48: 449.95
A49: =IF(Products!$Z$8=$C$1,Q49,IF(Products!$Z$8=$C$2,R49,IF(Products!$Z$8=$C$3,S49,IF(Products!$Z$8=$C$4,T49,IF(Products!$Z$8=$C$5,W49,IF(Products!$Z$8=$C$6,U49,IF(Products!$Z$8=$C$7,V49))))))) -> Bitdefender GravityZone Advanced Business Security | B49: 1 year | C49: 3000+ | D49: Bitdefender GravityZone Advanced Business Security1 year3000+ | F49: 22.14 | G49: =IF(Products!$Z$8=$C$1,ROUND(F49*$B$3,2),IF(Products!$Z$8=$C$2,ROUND(F49*$B$3*(1+$D$2),2),IF(Products!$Z$8=$C$3,ROUND(F49*$B$3*(1+$D$3),2),IF(Products!$Z$8=$C$4,ROUND(F49*$B$3*(1+$D$4),2),IF(Products!$Z$8=$C$5,ROUND(F49*$B$3*(1+$D$5),2),IF(Products!$Z$8=$C$6,ROUND(F49*$B$3*(1+$D$6),2),IF(Products!$Z$8=$C$7,ROUND(F49*$B$3*(1+$D$7),2)))))))) -> 22.14 | H49: =IF(Products!$Z$8=$C$1,I49,IF(Products!$Z$8=$C$2,J49,IF(Products!$Z$8=$C$3,K49,IF(Products!$Z$8=$C$4,L49,IF(Products!$Z$8=$C$5,O49,IF(Products!$Z$8=$C$6,M49,IF(Products!$Z$8=$C$7,N49))))))) -> AL1287100J-EN | I49: AL1287100J-EN | J49: AL1587100J-EN | K49: AL1687100J-EN | L49: AL3287100J-EN | M49: AL3587100J-EN | N49: AL3687100J-EN | O49: AL5287100J-EN | Q49: Bitdefender GravityZone Advanced Business Security | R49: Bitdefender GravityZone Advanced Business Security - EDU | S49: Bitdefender GravityZone Advanced Business Security - GOV | T49: Bitdefender GravityZone Advanced Business Security - R | U49: Bitdefender GravityZone Advanced Business Security - EDU R | V49: Bitdefender GravityZone Advanced Business Security - GOV R | W49: Bitdefender GravityZone Advanced Business Security - CUPG | Y49: Bitdefender Total Security Multi-Device 2016 | Z49: 1 year | AA49: 5 devices | AB49: Bitdefender Total Security Multi-Device 20161 year5 devices | AC49: 57.34 | AD49: BL11911005-EN | AE49: 69.95
A50: =IF(Products!$Z$8=$C$1,Q50,IF(Products!$Z$8=$C$2,R50,IF(Products!$Z$8=$C$3,S50,IF(Products!$Z$8=$C$4,T50,IF(Products!$Z$8=$C$5,W50,IF(Products!$Z$8=$C$6,U50,IF(Products!$Z$8=$C$7,V50))))))) -> Bitdefender GravityZone Advanced Business Security | B50: 2 years | C50: 5 - 14 | D50: Bitdefender GravityZone Advanced Business Security2 years5 - 14 | F50: 77.31 | G50: =IF(Products!$Z$8=$C$1,ROUND(F50*$B$3,2),IF(Products!$Z$8=$C$2,ROUND(F50*$B$3*(1+$D$2),2),IF(Products!$Z$8=$C$3,ROUND(F50*$B$3*(1+$D$3),2),IF(Products!$Z$8=$C$4,ROUND(F50*$B$3*(1+$D$4),2),IF(Products!$Z$8=$C$5,ROUND(F50*$B$3*(1+$D$5),2),IF(Products!$Z$8=$C$6,ROUND(F50*$B$3*(1+$D$6),2),IF(Products!$Z$8=$C$7,ROUND(F50*$B$3*(1+$D$7),2)))))))) -> 77.31 | H50: =IF(Products!$Z$8=$C$1,I50,IF(Products!$Z$8=$C$2,J50,IF(Products!$Z$8=$C$3,K50,IF(Products!$Z$8=$C$4,L50,IF(Products!$Z$8=$C$5,O50,IF(Products!$Z$8=$C$6,M50,IF(Products!$Z$8=$C$7,N50))))))) -> AL1287200A-EN | I50: AL1287200A-EN | J50: AL1587200A-EN | K50: AL1687200A-EN | L50: AL3287200A-EN | M50: AL3587200A-EN | N50: AL3687200A-EN | O50: AL5287200A-EN | Q50: Bitdefender GravityZone Advanced Business Security | R50: Bitdefender GravityZone Advanced Business Security - EDU | S50: Bitdefender GravityZone Advanced Business Security - GOV | T50: Bitdefender GravityZone Advanced Business Security - R | U50: Bitdefender GravityZone Advanced Business Security - EDU R | V50: Bitdefender GravityZone Advanced Business Security - GOV R | W50: Bitdefender GravityZone Advanced Business Security - CUPG | Y50: Bitdefender Total Security Multi-Device 2016 | Z50: 1 year | AA50: 10 devices | AB50: Bitdefender Total Security Multi-Device 20161 year10 devices | AC50: 65.53 | AD50: BL11911010-EN | AE50: 79.95
A51: =IF(Products!$Z$8=$C$1,Q51,IF(Products!$Z$8=$C$2,R51,IF(Products!$Z$8=$C$3,S51,IF(Products!$Z$8=$C$4,T51,IF(Products!$Z$8=$C$5,W51,IF(Products!$Z$8=$C$6,U51,IF(Products!$Z$8=$C$7,V51))))))) -> Bitdefender GravityZone Advanced Business Security | B51: 2 years | C51: 15 - 24 | D51: Bitdefender GravityZone Advanced Business Security2 years15 - 24 | F51: 71.46 | G51: =IF(Products!$Z$8=$C$1,ROUND(F51*$B$3,2),IF(Products!$Z$8=$C$2,ROUND(F51*$B$3*(1+$D$2),2),IF(Products!$Z$8=$C$3,ROUND(F51*$B$3*(1+$D$3),2),IF(Products!$Z$8=$C$4,ROUND(F51*$B$3*(1+$D$4),2),IF(Products!$Z$8=$C$5,ROUND(F51*$B$3*(1+$D$5),2),IF(Products!$Z$8=$C$6,ROUND(F51*$B$3*(1+$D$6),2),IF(Products!$Z$8=$C$7,ROUND(F51*$B$3*(1+$D$7),2)))))))) -> 71.46 | H51: =IF(Products!$Z$8=$C$1,I51,IF(Products!$Z$8=$C$2,J51,IF(Products!$Z$8=$C$3,K51,IF(Products!$Z$8=$C$4,L51,IF(Products!$Z$8=$C$5,O51,IF(Products!$Z$8=$C$6,M51,IF(Products!$Z$8=$C$7,N51))))))) -> AL1287200B-EN | I51: AL1287200B-EN | J51: AL1587200B-EN | K51: AL1687200B-EN | L51: AL3287200B-EN | M51: AL3587200B-EN | N51: AL3687200B-EN | O51: AL5287200B-EN | Q51: Bitdefender GravityZone Advanced Business Security | R51: Bitdefender GravityZone Advanced Business Security - EDU | S51: Bitdefender GravityZone Advanced Business Security - GOV | T51: Bitdefender GravityZone Advanced Business Security - R | U51: Bitdefender GravityZone Advanced Business Security - EDU R | V51: Bitdefender GravityZone Advanced Business Security - GOV R | W51: Bitdefender GravityZone Advanced Business Security - CUPG | Y51: Bitdefender Total Security Multi-Device 2016 | Z51: 2 years | AA51: 5 devices | AB51: Bitdefender Total Security Multi-Device 20162 years5 devices | AC51: 98.32 | AD51: BL11912005-EN | AE51: 119.95
A52: =IF(Products!$Z$8=$C$1,Q52,IF(Products!$Z$8=$C$2,R52,IF(Products!$Z$8=$C$3,S52,IF(Products!$Z$8=$C$4,T52,IF(Products!$Z$8=$C$5,W52,IF(Products!$Z$8=$C$6,U52,IF(Products!$Z$8=$C$7,V52))))))) -> Bitdefender GravityZone Advanced Business Security | B52: 2 years | C52: 25 - 49 | D52: Bitdefender GravityZone Advanced Business Security2 years25 - 49 | F52: 63.98 | G52: =IF(Products!$Z$8=$C$1,ROUND(F52*$B$3,2),IF(Products!$Z$8=$C$2,ROUND(F52*$B$3*(1+$D$2),2),IF(Products!$Z$8=$C$3,ROUND(F52*$B$3*(1+$D$3),2),IF(Products!$Z$8=$C$4,ROUND(F52*$B$3*(1+$D$4),2),IF(Products!$Z$8=$C$5,ROUND(F52*$B$3*(1+$D$5),2),IF(Products!$Z$8=$C$6,ROUND(F52*$B$3*(1+$D$6),2),IF(Products!$Z$8=$C$7,ROUND(F52*$B$3*(1+$D$7),2)))))))) -> 63.98 | H52: =IF(Products!$Z$8=$C$1,I52,IF(Products!$Z$8=$C$2,J52,IF(Products!$Z$8=$C$3,K52,IF(Products!$Z$8=$C$4,L52,IF(Products!$Z$8=$C$5,O52,IF(Products!$Z$8=$C$6,M52,IF(Products!$Z$8=$C$7,N52))))))) -> AL1287200C-EN | I52: AL1287200C-EN | J52: AL1587200C-EN | K52: AL1687200C-EN | L52: AL3287200C-EN | M52: AL3587200C-EN | N52: AL3687200C-EN | O52: AL5287200C-EN | Q52: Bitdefender GravityZone Advanced Business Security | R52: Bitdefender GravityZone Advanced Business Security - EDU | S52: Bitdefender GravityZone Advanced Business Security - GOV | T52: Bitdefender GravityZone Advanced Business Security - R | U52: Bitdefender GravityZone Advanced Business Security - EDU R | V52: Bitdefender GravityZone Advanced Business Security - GOV R | W52: Bitdefender GravityZone Advanced Business Security - CUPG | Y52: Bitdefender Total Security Multi-Device 2016 | Z52: 2 years | AA52: 10 devices | AB52: Bitdefender Total Security Multi-Device 20162 years10 devices | AC52: 106.52 | AD52: BL11912010-EN | AE52: 129.95
A53: =IF(Products!$Z$8=$C$1,Q53,IF(Products!$Z$8=$C$2,R53,IF(Products!$Z$8=$C$3,S53,IF(Products!$Z$8=$C$4,T53,IF(Products!$Z$8=$C$5,W53,IF(Products!$Z$8=$C$6,U53,IF(Products!$Z$8=$C$7,V53))))))) -> Bitdefender GravityZone Advanced Business Security | B53: 2 years | C53: 50 - 99 | D53: Bitdefender GravityZone Advanced Business Security2 years50 - 99 | F53: 57.58 | G53: =IF(Products!$Z$8=$C$1,ROUND(F53*$B$3,2),IF(Products!$Z$8=$C$2,ROUND(F53*$B$3*(1+$D$2),2),IF(Products!$Z$8=$C$3,ROUND(F53*$B$3*(1+$D$3),2),IF(Products!$Z$8=$C$4,ROUND(F53*$B$3*(1+$D$4),2),IF(Products!$Z$8=$C$5,ROUND(F53*$B$3*(1+$D$5),2),IF(Products!$Z$8=$C$6,ROUND(F53*$B$3*(1+$D$6),2),IF(Products!$Z$8=$C$7,ROUND(F53*$B$3*(1+$D$7),2)))))))) -> 57.58 | H53: =IF(Products!$Z$8=$C$1,I53,IF(Products!$Z$8=$C$2,J53,IF(Products!$Z$8=$C$3,K53,IF(Products!$Z$8=$C$4,L53,IF(Products!$Z$8=$C$5,O53,IF(Products!$Z$8=$C$6,M53,IF(Products!$Z$8=$C$7,N53))))))) -> AL1287200D-EN | I53: AL1287200D-EN | J53: AL1587200D-EN | K53: AL1687200D-EN | L53: AL3287200D-EN | M53: AL3587200D-EN | N53: AL3687200D-EN | O53: AL5287200D-EN | Q53: Bitdefender GravityZone Advanced Business Security | R53: Bitdefender GravityZone Advanced Business Security - EDU | S53: Bitdefender GravityZone Advanced Business Security - GOV | T53: Bitdefender GravityZone Advanced Business Security - R | U53: Bitdefender GravityZone Advanced Business Security - EDU R | V53: Bitdefender GravityZone Advanced Business Security - GOV R | W53: Bitdefender GravityZone Advanced Business Security - CUPG | Y53: Bitdefender Total Security Multi-Device 2016 | Z53: 3 years | AA53: 5 devices | AB53: Bitdefender Total Security Multi-Device 20163 years5 devices | AC53: 131.11 | AD53: BL11913005-EN | AE53: 159.95
A54: =IF(Products!$Z$8=$C$1,Q54,IF(Products!$Z$8=$C$2,R54,IF(Products!$Z$8=$C$3,S54,IF(Products!$Z$8=$C$4,T54,IF(Products!$Z$8=$C$5,W54,IF(Products!$Z$8=$C$6,U54,IF(Products!$Z$8=$C$7,V54))))))) -> Bitdefender GravityZone Advanced Business Security | B54: 2 years | C54: 100 - 149 | D54: Bitdefender GravityZone Advanced Business Security2 years100 - 149 | F54: 52.26 | G54: =IF(Products!$Z$8=$C$1,ROUND(F54*$B$3,2),IF(Products!$Z$8=$C$2,ROUND(F54*$B$3*(1+$D$2),2),IF(Products!$Z$8=$C$3,ROUND(F54*$B$3*(1+$D$3),2),IF(Products!$Z$8=$C$4,ROUND(F54*$B$3*(1+$D$4),2),IF(Products!$Z$8=$C$5,ROUND(F54*$B$3*(1+$D$5),2),IF(Products!$Z$8=$C$6,ROUND(F54*$B$3*(1+$D$6),2),IF(Products!$Z$8=$C$7,ROUND(F54*$B$3*(1+$D$7),2)))))))) -> 52.26 | H54: =IF(Products!$Z$8=$C$1,I54,IF(Products!$Z$8=$C$2,J54,IF(Products!$Z$8=$C$3,K54,IF(Products!$Z$8=$C$4,L54,IF(Products!$Z$8=$C$5,O54,IF(Products!$Z$8=$C$6,M54,IF(Products!$Z$8=$C$7,N54))))))) -> AL1287200E-EN | I54: AL1287200E-EN | J54: AL1587200E-EN | K54: AL1687200E-EN | L54: AL3287200E-EN | M54: AL3587200E-EN | N54: AL3687200E-EN | O54: AL5287200E-EN | Q54: Bitdefender GravityZone Advanced Business Security | R54: Bitdefender GravityZone Advanced Business Security - EDU | S54: Bitdefender GravityZone Advanced Business Security - GOV | T54: Bitdefender GravityZone Advanced Business Security - R | U54: Bitdefender GravityZone Advanced Business Security - EDU R | V54: Bitdefender GravityZone Advanced Business Security - GOV R | W54: Bitdefender GravityZone Advanced Business Security - CUPG | Y54: Bitdefender Total Security Multi-Device 2016 | Z54: 3 years | AA54: 10 devices | AB54: Bitdefender Total Security Multi-Device 20163 years10 devices | AC54: 139.3 | AD54: BL11913010-EN | AE54: 169.95
A55: =IF(Products!$Z$8=$C$1,Q55,IF(Products!$Z$8=$C$2,R55,IF(Products!$Z$8=$C$3,S55,IF(Products!$Z$8=$C$4,T55,IF(Products!$Z$8=$C$5,W55,IF(Products!$Z$8=$C$6,U55,IF(Products!$Z$8=$C$7,V55))))))) -> Bitdefender GravityZone Advanced Business Security | B55: 2 years | C55: 150 - 249 | D55: Bitdefender GravityZone Advanced Business Security2 years150 - 249 | F55: 44.94 | G55: =IF(Products!$Z$8=$C$1,ROUND(F55*$B$3,2),IF(Products!$Z$8=$C$2,ROUND(F55*$B$3*(1+$D$2),2),IF(Products!$Z$8=$C$3,ROUND(F55*$B$3*(1+$D$3),2),IF(Products!$Z$8=$C$4,ROUND(F55*$B$3*(1+$D$4),2),IF(Products!$Z$8=$C$5,ROUND(F55*$B$3*(1+$D$5),2),IF(Products!$Z$8=$C$6,ROUND(F55*$B$3*(1+$D$6),2),IF(Products!$Z$8=$C$7,ROUND(F55*$B$3*(1+$D$7),2)))))))) -> 44.94 | H55: =IF(Products!$Z$8=$C$1,I55,IF(Products!$Z$8=$C$2,J55,IF(Products!$Z$8=$C$3,K55,IF(Products!$Z$8=$C$4,L55,IF(Products!$Z$8=$C$5,O55,IF(Products!$Z$8=$C$6,M55,IF(Products!$Z$8=$C$7,N55))))))) -> AL1287200F-EN | I55: AL1287200F-EN | J55: AL1587200F-EN | K55: AL1687200F-EN | L55: AL3287200F-EN | M55: AL3587200F-EN | N55: AL3687200F-EN | O55: AL5287200F-EN | Q55: Bitdefender GravityZone Advanced Business Security | R55: Bitdefender GravityZone Advanced Business Security - EDU | S55: Bitdefender GravityZone Advanced Business Security - GOV | T55: Bitdefender GravityZone Advanced Business Security - R | U55: Bitdefender GravityZone Advanced Business Security - EDU R | V55: Bitdefender GravityZone Advanced Business Security - GOV R | W55: Bitdefender GravityZone Advanced Business Security - CUPG | Y55: Bitdefender Family pack 2016 | Z55: 1 year | AA55: Unlimited | AB55: Bitdefender Family pack 20161 yearUnlimited | AC55: 81.93 | AD55: UL11151000-EN | AE55: 99.95
A56: =IF(Products!$Z$8=$C$1,Q56,IF(Products!$Z$8=$C$2,R56,IF(Products!$Z$8=$C$3,S56,IF(Products!$Z$8=$C$4,T56,IF(Products!$Z$8=$C$5,W56,IF(Products!$Z$8=$C$6,U56,IF(Products!$Z$8=$C$7,V56))))))) -> Bitdefender GravityZone Advanced Business Security | B56: 2 years | C56: 250 - 499 | D56: Bitdefender GravityZone Advanced Business Security2 years250 - 499 | F56: 41.34 | G56: =IF(Products!$Z$8=$C$1,ROUND(F56*$B$3,2),IF(Products!$Z$8=$C$2,ROUND(F56*$B$3*(1+$D$2),2),IF(Products!$Z$8=$C$3,ROUND(F56*$B$3*(1+$D$3),2),IF(Products!$Z$8=$C$4,ROUND(F56*$B$3*(1+$D$4),2),IF(Products!$Z$8=$C$5,ROUND(F56*$B$3*(1+$D$5),2),IF(Products!$Z$8=$C$6,ROUND(F56*$B$3*(1+$D$6),2),IF(Products!$Z$8=$C$7,ROUND(F56*$B$3*(1+$D$7),2)))))))) -> 41.34 | H56: =IF(Products!$Z$8=$C$1,I56,IF(Products!$Z$8=$C$2,J56,IF(Products!$Z$8=$C$3,K56,IF(Products!$Z$8=$C$4,L56,IF(Products!$Z$8=$C$5,O56,IF(Products!$Z$8=$C$6,M56,IF(Products!$Z$8=$C$7,N56))))))) -> AL1287200G-EN | I56: AL1287200G-EN | J56: AL1587200G-EN | K56: AL1687200G-EN | L56: AL3287200G-EN | M56: AL3587200G-EN | N56: AL3687200G-EN | O56: AL5287200G-EN | Q56: Bitdefender GravityZone Advanced Business Security | R56: Bitdefender GravityZone Advanced Business Security - EDU | S56: Bitdefender GravityZone Advanced Business Security - GOV | T56: Bitdefender GravityZone Advanced Business Security - R | U56: Bitdefender GravityZone Advanced Business Security - EDU R | V56: Bitdefender GravityZone Advanced Business Security - GOV R | W56: Bitdefender GravityZone Advanced Business Security - CUPG | Y56: Bitdefender Family pack 2016 | Z56: 2 years | AA56: Unlimited | AB56: Bitdefender Family pack 20162 yearsUnlimited | AC56: 131.11 | AD56: UL11152000-EN | AE56: 159.95
A57: =IF(Products!$Z$8=$C$1,Q57,IF(Products!$Z$8=$C$2,R57,IF(Products!$Z$8=$C$3,S57,IF(Products!$Z$8=$C$4,T57,IF(Products!$Z$8=$C$5,W57,IF(Products!$Z$8=$C$6,U57,IF(Products!$Z$8=$C$7,V57))))))) -> Bitdefender GravityZone Advanced Business Security | B57: 2 years | C57: 500 - 999 | D57: Bitdefender GravityZone Advanced Business Security2 years500 - 999 | F57: 38.45 | G57: =IF(Products!$Z$8=$C$1,ROUND(F57*$B$3,2),IF(Products!$Z$8=$C$2,ROUND(F57*$B$3*(1+$D$2),2),IF(Products!$Z$8=$C$3,ROUND(F57*$B$3*(1+$D$3),2),IF(Products!$Z$8=$C$4,ROUND(F57*$B$3*(1+$D$4),2),IF(Products!$Z$8=$C$5,ROUND(F57*$B$3*(1+$D$5),2),IF(Products!$Z$8=$C$6,ROUND(F57*$B$3*(1+$D$6),2),IF(Products!$Z$8=$C$7,ROUND(F57*$B$3*(1+$D$7),2)))))))) -> 38.45 | H57: =IF(Products!$Z$8=$C$1,I57,IF(Products!$Z$8=$C$2,J57,IF(Products!$Z$8=$C$3,K57,IF(Products!$Z$8=$C$4,L57,IF(Products!$Z$8=$C$5,O57,IF(Products!$Z$8=$C$6,M57,IF(Products!$Z$8=$C$7,N57))))))) -> AL1287200H-EN | I57: AL1287200H-EN | J57: AL1587200H-EN | K57: AL1687200H-EN | L57: AL3287200H-EN | M57: AL3587200H-EN | N57: AL3687200H-EN | O57: AL5287200H-EN | Q57: Bitdefender GravityZone Advanced Business Security | R57: Bitdefender GravityZone Advanced Business Security - EDU | S57: Bitdefender GravityZone Advanced Business Security - GOV | T57: Bitdefender GravityZone Advanced Business Security - R | U57: Bitdefender GravityZone Advanced Business Security - EDU R | V57: Bitdefender GravityZone Advanced Business Security - GOV R | W57: Bitdefender GravityZone Advanced Business Security - CUPG | Y57: Bitdefender Family pack 2016 | Z57: 3 years | AA57: Unlimited | AB57: Bitdefender Family pack 20163 yearsUnlimited | AC57: 163.89 | AD57: UL11153000-EN | AE57: 199.95
A58: =IF(Products!$Z$8=$C$1,Q58,IF(Products!$Z$8=$C$2,R58,IF(Products!$Z$8=$C$3,S58,IF(Products!$Z$8=$C$4,T58,IF(Products!$Z$8=$C$5,W58,IF(Products!$Z$8=$C$6,U58,IF(Products!$Z$8=$C$7,V58))))))) -> Bitdefender GravityZone Advanced Business Security | B58: 2 years | C58: 1000 - 2999 | D58: Bitdefender GravityZone Advanced Business Security2 years1000 - 2999 | F58: 36.53 | G58: =IF(Products!$Z$8=$C$1,ROUND(F58*$B$3,2),IF(Products!$Z$8=$C$2,ROUND(F58*$B$3*(1+$D$2),2),IF(Products!$Z$8=$C$3,ROUND(F58*$B$3*(1+$D$3),2),IF(Products!$Z$8=$C$4,ROUND(F58*$B$3*(1+$D$4),2),IF(Products!$Z$8=$C$5,ROUND(F58*$B$3*(1+$D$5),2),IF(Products!$Z$8=$C$6,ROUND(F58*$B$3*(1+$D$6),2),IF(Products!$Z$8=$C$7,ROUND(F58*$B$3*(1+$D$7),2)))))))) -> 36.53 | H58: =IF(Products!$Z$8=$C$1,I58,IF(Products!$Z$8=$C$2,J58,IF(Products!$Z$8=$C$3,K58,IF(Products!$Z$8=$C$4,L58,IF(Products!$Z$8=$C$5,O58,IF(Products!$Z$8=$C$6,M58,IF(Products!$Z$8=$C$7,N58))))))) -> AL1287200I-EN | I58: AL1287200I-EN | J58: AL1587200I-EN | K58: AL1687200I-EN | L58: AL3287200I-EN | M58: AL3587200I-EN | N58: AL3687200I-EN | O58: AL5287200I-EN | Q58: Bitdefender GravityZone Advanced Business Security | R58: Bitdefender GravityZone Advanced Business Security - EDU | S58: Bitdefender GravityZone Advanced Business Security - GOV | T58: Bitdefender GravityZone Advanced Business Security - R | U58: Bitdefender GravityZone Advanced Business Security - EDU R | V58: Bitdefender GravityZone Advanced Business Security - GOV R | W58: Bitdefender GravityZone Advanced Business Security - CUPG | Y58: Bitdefender Mobile Security for Android | Z58: 1 year | AA58: 1 device | AB58: Bitdefender Mobile Security for Android1 year1 device | AC58: 8.16 | AD58: EL11311001-EN | AE58: 9.95
A59: =IF(Products!$Z$8=$C$1,Q59,IF(Products!$Z$8=$C$2,R59,IF(Products!$Z$8=$C$3,S59,IF(Products!$Z$8=$C$4,T59,IF(Products!$Z$8=$C$5,W59,IF(Products!$Z$8=$C$6,U59,IF(Products!$Z$8=$C$7,V59))))))) -> Bitdefender GravityZone Advanced Business Security | B59: 2 years | C59: 3000+ | D59: Bitdefender GravityZone Advanced Business Security2 years3000+ | F59: 35.42 | G59: =IF(Products!$Z$8=$C$1,ROUND(F59*$B$3,2),IF(Products!$Z$8=$C$2,ROUND(F59*$B$3*(1+$D$2),2),IF(Products!$Z$8=$C$3,ROUND(F59*$B$3*(1+$D$3),2),IF(Products!$Z$8=$C$4,ROUND(F59*$B$3*(1+$D$4),2),IF(Products!$Z$8=$C$5,ROUND(F59*$B$3*(1+$D$5),2),IF(Products!$Z$8=$C$6,ROUND(F59*$B$3*(1+$D$6),2),IF(Products!$Z$8=$C$7,ROUND(F59*$B$3*(1+$D$7),2)))))))) -> 35.42 | H59: =IF(Products!$Z$8=$C$1,I59,IF(Products!$Z$8=$C$2,J59,IF(Products!$Z$8=$C$3,K59,IF(Products!$Z$8=$C$4,L59,IF(Products!$Z$8=$C$5,O59,IF(Products!$Z$8=$C$6,M59,IF(Products!$Z$8=$C$7,N59))))))) -> AL1287200J-EN | I59: AL1287200J-EN | J59: AL1587200J-EN | K59: AL1687200J-EN | L59: AL3287200J-EN | M59: AL3587200J-EN | N59: AL3687200J-EN | O59: AL5287200J-EN | Q59: Bitdefender GravityZone Advanced Business Security | R59: Bitdefender GravityZone Advanced Business Security - EDU | S59: Bitdefender GravityZone Advanced Business Security - GOV | T59: Bitdefender GravityZone Advanced Business Security - R | U59: Bitdefender GravityZone Advanced Business Security - EDU R | V59: Bitdefender GravityZone Advanced Business Security - GOV R | W59: Bitdefender GravityZone Advanced Business Security - CUPG | Y59: Bitdefender Antivirus for Mac | Z59: 1 year | AA59: 1 Mac | AB59: Bitdefender Antivirus for Mac1 year1 Mac | AC59: 32.75 | AD59: TL11401001-EN | AE59: 39.95
A60: =IF(Products!$Z$8=$C$1,Q60,IF(Products!$Z$8=$C$2,R60,IF(Products!$Z$8=$C$3,S60,IF(Products!$Z$8=$C$4,T60,IF(Products!$Z$8=$C$5,W60,IF(Products!$Z$8=$C$6,U60,IF(Products!$Z$8=$C$7,V60))))))) -> Bitdefender GravityZone Advanced Business Security | B60: 3 years | C60: 5 - 14 | D60: Bitdefender GravityZone Advanced Business Security3 years5 - 14 | F60: 99.056 | G60: =IF(Products!$Z$8=$C$1,ROUND(F60*$B$3,2),IF(Products!$Z$8=$C$2,ROUND(F60*$B$3*(1+$D$2),2),IF(Products!$Z$8=$C$3,ROUND(F60*$B$3*(1+$D$3),2),IF(Products!$Z$8=$C$4,ROUND(F60*$B$3*(1+$D$4),2),IF(Products!$Z$8=$C$5,ROUND(F60*$B$3*(1+$D$5),2),IF(Products!$Z$8=$C$6,ROUND(F60*$B$3*(1+$D$6),2),IF(Products!$Z$8=$C$7,ROUND(F60*$B$3*(1+$D$7),2)))))))) -> 99.06 | H60: =IF(Products!$Z$8=$C$1,I60,IF(Products!$Z$8=$C$2,J60,IF(Products!$Z$8=$C$3,K60,IF(Products!$Z$8=$C$4,L60,IF(Products!$Z$8=$C$5,O60,IF(Products!$Z$8=$C$6,M60,IF(Products!$Z$8=$C$7,N60))))))) -> AL1287300A-EN | I60: AL1287300A-EN | J60: AL1587300A-EN | K60: AL1687300A-EN | L60: AL3287300A-EN | M60: AL3587300A-EN | N60: AL3687300A-EN | O60: AL5287300A-EN | Q60: Bitdefender GravityZone Advanced Business Security | R60: Bitdefender GravityZone Advanced Business Security - EDU | S60: Bitdefender GravityZone Advanced Business Security - GOV | T60: Bitdefender GravityZone Advanced Business Security - R | U60: Bitdefender GravityZone Advanced Business Security - EDU R | V60: Bitdefender GravityZone Advanced Business Security - GOV R | W60: Bitdefender GravityZone Advanced Business Security - CUPG | Y60: Bitdefender Antivirus for Mac | Z60: 1 year | AA60: 3 Mac | AB60: Bitdefender Antivirus for Mac1 year3 Mac | AC60: 49.14 | AD60: TL11401003-EN | AE60: 59.95
A61: =IF(Products!$Z$8=$C$1,Q61,IF(Products!$Z$8=$C$2,R61,IF(Products!$Z$8=$C$3,S61,IF(Products!$Z$8=$C$4,T61,IF(Products!$Z$8=$C$5,W61,IF(Products!$Z$8=$C$6,U61,IF(Products!$Z$8=$C$7,V61))))))) -> Bitdefender GravityZone Advanced Business Security | B61: 3 years | C61: 15 - 24 | D61: Bitdefender GravityZone Advanced Business Security3 years15 - 24 | F61: 91.553 | G61: =IF(Products!$Z$8=$C$1,ROUND(F61*$B$3,2),IF(Products!$Z$8=$C$2,ROUND(F61*$B$3*(1+$D$2),2),IF(Products!$Z$8=$C$3,ROUND(F61*$B$3*(1+$D$3),2),IF(Products!$Z$8=$C$4,ROUND(F61*$B$3*(1+$D$4),2),IF(Products!$Z$8=$C$5,ROUND(F61*$B$3*(1+$D$5),2),IF(Products!$Z$8=$C$6,ROUND(F61*$B$3*(1+$D$6),2),IF(Products!$Z$8=$C$7,ROUND(F61*$B$3*(1+$D$7),2)))))))) -> 91.55 | H61: =IF(Products!$Z$8=$C$1,I61,IF(Products!$Z$8=$C$2,J61,IF(Products!$Z$8=$C$3,K61,IF(Products!$Z$8=$C$4,L61,IF(Products!$Z$8=$C$5,O61,IF(Products!$Z$8=$C$6,M61,IF(Products!$Z$8=$C$7,N61))))))) -> AL1287300B-EN | I61: AL1287300B-EN | J61: AL1587300B-EN | K61: AL1687300B-EN | L61: AL3287300B-EN | M61: AL3587300B-EN | N61: AL3687300B-EN | O61: AL5287300B-EN | Q61: Bitdefender GravityZone Advanced Business Security | R61: Bitdefender GravityZone Advanced Business Security - EDU | S61: Bitdefender GravityZone Advanced Business Security - GOV | T61: Bitdefender GravityZone Advanced Business Security - R | U61: Bitdefender GravityZone Advanced Business Security - EDU R | V61: Bitdefender GravityZone Advanced Business Security - GOV R | W61: Bitdefender GravityZone Advanced Business Security - CUPG | Y61: Bitdefender Antivirus for Mac | Z61: 2 years | AA61: 1 Mac | AB61: Bitdefender Antivirus for Mac2 years1 Mac | AC61: 49.14 | AD61: TL11402001-EN | AE61: 59.95
A62: =IF(Products!$Z$8=$C$1,Q62,IF(Products!$Z$8=$C$2,R62,IF(Products!$Z$8=$C$3,S62,IF(Products!$Z$8=$C$4,T62,IF(Products!$Z$8=$C$5,W62,IF(Products!$Z$8=$C$6,U62,IF(Products!$Z$8=$C$7,V62))))))) -> Bitdefender GravityZone Advanced Business Security | B62: 3 years | C62: 25 - 49 | D62: Bitdefender GravityZone Advanced Business Security3 years25 - 49 | F62: 81.9795 | G62: =IF(Products!$Z$8=$C$1,ROUND(F62*$B$3,2),IF(Products!$Z$8=$C$2,ROUND(F62*$B$3*(1+$D$2),2),IF(Products!$Z$8=$C$3,ROUND(F62*$B$3*(1+$D$3),2),IF(Products!$Z$8=$C$4,ROUND(F62*$B$3*(1+$D$4),2),IF(Products!$Z$8=$C$5,ROUND(F62*$B$3*(1+$D$5),2),IF(Products!$Z$8=$C$6,ROUND(F62*$B$3*(1+$D$6),2),IF(Products!$Z$8=$C$7,ROUND(F62*$B$3*(1+$D$7),2)))))))) -> 81.98 | H62: =IF(Products!$Z$8=$C$1,I62,IF(Products!$Z$8=$C$2,J62,IF(Products!$Z$8=$C$3,K62,IF(Products!$Z$8=$C$4,L62,IF(Products!$Z$8=$C$5,O62,IF(Products!$Z$8=$C$6,M62,IF(Products!$Z$8=$C$7,N62))))))) -> AL1287300C-EN | I62: AL1287300C-EN | J62: AL1587300C-EN | K62: AL1687300C-EN | L62: AL3287300C-EN | M62: AL3587300C-EN | N62: AL3687300C-EN | O62: AL5287300C-EN | Q62: Bitdefender GravityZone Advanced Business Security | R62: Bitdefender GravityZone Advanced Business Security - EDU | S62: Bitdefender GravityZone Advanced Business Security - GOV | T62: Bitdefender GravityZone Advanced Business Security - R | U62: Bitdefender GravityZone Advanced Business Security - EDU R | V62: Bitdefender GravityZone Advanced Business Security - GOV R | W62: Bitdefender GravityZone Advanced Business Security - CUPG | Y62: Bitdefender Antivirus for Mac | Z62: 2 years | AA62: 3 Mac | AB62: Bitdefender Antivirus for Mac2 years3 Mac | AC62: 73.73 | AD62: TL11402003-EN | AE62: 89.95
A63: =IF(Products!$Z$8=$C$1,Q63,IF(Products!$Z$8=$C$2,R63,IF(Products!$Z$8=$C$3,S63,IF(Products!$Z$8=$C$4,T63,IF(Products!$Z$8=$C$5,W63,IF(Products!$Z$8=$C$6,U63,IF(Products!$Z$8=$C$7,V63))))))) -> Bitdefender GravityZone Advanced Business Security | B63: 3 years | C63: 50 - 99 | D63: Bitdefender GravityZone Advanced Business Security3 years50 - 99 | F63: 73.7795 | G63: =IF(Products!$Z$8=$C$1,ROUND(F63*$B$3,2),IF(Products!$Z$8=$C$2,ROUND(F63*$B$3*(1+$D$2),2),IF(Products!$Z$8=$C$3,ROUND(F63*$B$3*(1+$D$3),2),IF(Products!$Z$8=$C$4,ROUND(F63*$B$3*(1+$D$4),2),IF(Products!$Z$8=$C$5,ROUND(F63*$B$3*(1+$D$5),2),IF(Products!$Z$8=$C$6,ROUND(F63*$B$3*(1+$D$6),2),IF(Products!$Z$8=$C$7,ROUND(F63*$B$3*(1+$D$7),2)))))))) -> 73.78 | H63: =IF(Products!$Z$8=$C$1,I63,IF(Products!$Z$8=$C$2,J63,IF(Products!$Z$8=$C$3,K63,IF(Products!$Z$8=$C$4,L63,IF(Products!$Z$8=$C$5,O63,IF(Products!$Z$8=$C$6,M63,IF(Products!$Z$8=$C$7,N63))))))) -> AL1287300D-EN | I63: AL1287300D-EN | J63: AL1587300D-EN | K63: AL1687300D-EN | L63: AL3287300D-EN | M63: AL3587300D-EN | N63: AL3687300D-EN | O63: AL5287300D-EN | Q63: Bitdefender GravityZone Advanced Business Security | R63: Bitdefender GravityZone Advanced Business Security - EDU | S63: Bitdefender GravityZone Advanced Business Security - GOV | T63: Bitdefender GravityZone Advanced Business Security - R | U63: Bitdefender GravityZone Advanced Business Security - EDU R | V63: Bitdefender GravityZone Advanced Business Security - GOV R | W63: Bitdefender GravityZone Advanced Business Security - CUPG | Y63: Bitdefender Antivirus for Mac | Z63: 3 years | AA63: 1 Mac | AB63: Bitdefender Antivirus for Mac3 years1 Mac | AC63: 73.73 | AD63: TL11403001-EN | AE63: 89.95
A64: =IF(Products!$Z$8=$C$1,Q64,IF(Products!$Z$8=$C$2,R64,IF(Products!$Z$8=$C$3,S64,IF(Products!$Z$8=$C$4,T64,IF(Products!$Z$8=$C$5,W64,IF(Products!$Z$8=$C$6,U64,IF(Products!$Z$8=$C$7,V64))))))) -> Bitdefender GravityZone Advanced Business Security | B64: 3 years | C64: 100 - 149 | D64: Bitdefender GravityZone Advanced Business Security3 years100 - 149 | F64: 66.953 | G64: =IF(Products!$Z$8=$C$1,ROUND(F64*$B$3,2),IF(Products!$Z$8=$C$2,ROUND(F64*$B$3*(1+$D$2),2),IF(Products!$Z$8=$C$3,ROUND(F64*$B$3*(1+$D$3),2),IF(Products!$Z$8=$C$4,ROUND(F64*$B$3*(1+$D$4),2),IF(Products!$Z$8=$C$5,ROUND(F64*$B$3*(1+$D$5),2),IF(Products!$Z$8=$C$6,ROUND(F64*$B$3*(1+$D$6),2),IF(Products!$Z$8=$C$7,ROUND(F64*$B$3*(1+$D$7),2)))))))) -> 66.95 | H64: =IF(Products!$Z$8=$C$1,I64,IF(Products!$Z$8=$C$2,J64,IF(Products!$Z$8=$C$3,K64,IF(Products!$Z$8=$C$4,L64,IF(Products!$Z$8=$C$5,O64,IF(Products!$Z$8=$C$6,M64,IF(Products!$Z$8=$C$7,N64))))))) -> AL1287300E-EN | I64: AL1287300E-EN | J64: AL1587300E-EN | K64: AL1687300E-EN | L64: AL3287300E-EN | M64: AL3587300E-EN | N64: AL3687300E-EN | O64: AL5287300E-EN | Q64: Bitdefender GravityZone Advanced Business Security | R64: Bitdefender GravityZone Advanced Business Security - EDU | S64: Bitdefender GravityZone Advanced Business Security - GOV | T64: Bitdefender GravityZone Advanced Business Security - R | U64: Bitdefender GravityZone Advanced Business Security - EDU R | V64: Bitdefender GravityZone Advanced Business Security - GOV R | W64: Bitdefender GravityZone Advanced Business Security - CUPG | Y64: Bitdefender Antivirus for Mac | Z64: 3 years | AA64: 3 Mac | AB64: Bitdefender Antivirus for Mac3 years3 Mac | AC64: 106.52 | AD64: TL11403003-EN | AE64: 129.95
A65: =IF(Products!$Z$8=$C$1,Q65,IF(Products!$Z$8=$C$2,R65,IF(Products!$Z$8=$C$3,S65,IF(Products!$Z$8=$C$4,T65,IF(Products!$Z$8=$C$5,W65,IF(Products!$Z$8=$C$6,U65,IF(Products!$Z$8=$C$7,V65))))))) -> Bitdefender GravityZone Advanced Business Security | B65: 3 years | C65: 150 - 249 | D65: Bitdefender GravityZone Advanced Business Security3 years150 - 249 | F65: 57.5845 | G65: =IF(Products!$Z$8=$C$1,ROUND(F65*$B$3,2),IF(Products!$Z$8=$C$2,ROUND(F65*$B$3*(1+$D$2),2),IF(Products!$Z$8=$C$3,ROUND(F65*$B$3*(1+$D$3),2),IF(Products!$Z$8=$C$4,ROUND(F65*$B$3*(1+$D$4),2),IF(Products!$Z$8=$C$5,ROUND(F65*$B$3*(1+$D$5),2),IF(Products!$Z$8=$C$6,ROUND(F65*$B$3*(1+$D$6),2),IF(Products!$Z$8=$C$7,ROUND(F65*$B$3*(1+$D$7),2)))))))) -> 57.58 | H65: =IF(Products!$Z$8=$C$1,I65,IF(Products!$Z$8=$C$2,J65,IF(Products!$Z$8=$C$3,K65,IF(Products!$Z$8=$C$4,L65,IF(Products!$Z$8=$C$5,O65,IF(Products!$Z$8=$C$6,M65,IF(Products!$Z$8=$C$7,N65))))))) -> AL1287300F-EN | I65: AL1287300F-EN | J65: AL1587300F-EN | K65: AL1687300F-EN | L65: AL3287300F-EN | M65: AL3587300F-EN | N65: AL3687300F-EN | O65: AL5287300F-EN | Q65: Bitdefender GravityZone Advanced Business Security | R65: Bitdefender GravityZone Advanced Business Security - EDU | S65: Bitdefender GravityZone Advanced Business Security - GOV | T65: Bitdefender GravityZone Advanced Business Security - R | U65: Bitdefender GravityZone Advanced Business Security - EDU R | V65: Bitdefender GravityZone Advanced Business Security - GOV R | W65: Bitdefender GravityZone Advanced Business Security - CUPG
A66: =IF(Products!$Z$8=$C$1,Q66,IF(Products!$Z$8=$C$2,R66,IF(Products!$Z$8=$C$3,S66,IF(Products!$Z$8=$C$4,T66,IF(Products!$Z$8=$C$5,W66,IF(Products!$Z$8=$C$6,U66,IF(Products!$Z$8=$C$7,V66))))))) -> Bitdefender GravityZone Advanced Business Security | B66: 3 years | C66: 250 - 499 | D66: Bitdefender GravityZone Advanced Business Security3 years250 - 499 | F66: 52.972 | G66: =IF(Products!$Z$8=$C$1,ROUND(F66*$B$3,2),IF(Products!$Z$8=$C$2,ROUND(F66*$B$3*(1+$D$2),2),IF(Products!$Z$8=$C$3,ROUND(F66*$B$3*(1+$D$3),2),IF(Products!$Z$8=$C$4,ROUND(F66*$B$3*(1+$D$4),2),IF(Products!$Z$8=$C$5,ROUND(F66*$B$3*(1+$D$5),2),IF(Products!$Z$8=$C$6,ROUND(F66*$B$3*(1+$D$6),2),IF(Products!$Z$8=$C$7,ROUND(F66*$B$3*(1+$D$7),2)))))))) -> 52.97 | H66: =IF(Products!$Z$8=$C$1,I66,IF(Products!$Z$8=$C$2,J66,IF(Products!$Z$8=$C$3,K66,IF(Products!$Z$8=$C$4,L66,IF(Products!$Z$8=$C$5,O66,IF(Products!$Z$8=$C$6,M66,IF(Products!$Z$8=$C$7,N66))))))) -> AL1287300G-EN | I66: AL1287300G-EN | J66: AL1587300G-EN | K66: AL1687300G-EN | L66: AL3287300G-EN | M66: AL3587300G-EN | N66: AL3687300G-EN | O66: AL5287300G-EN | Q66: Bitdefender GravityZone Advanced Business Security | R66: Bitdefender GravityZone Advanced Business Security - EDU | S66: Bitdefender GravityZone Advanced Business Security - GOV | T66: Bitdefender GravityZone Advanced Business Security - R | U66: Bitdefender GravityZone Advanced Business Security - EDU R | V66: Bitdefender GravityZone Advanced Business Security - GOV R | W66: Bitdefender GravityZone Advanced Business Security - CUPG
A67: =IF(Products!$Z$8=$C$1,Q67,IF(Products!$Z$8=$C$2,R67,IF(Products!$Z$8=$C$3,S67,IF(Products!$Z$8=$C$4,T67,IF(Products!$Z$8=$C$5,W67,IF(Products!$Z$8=$C$6,U67,IF(Products!$Z$8=$C$7,V67))))))) -> Bitdefender GravityZone Advanced Business Security | B67: 3 years | C67: 500 - 999 | D67: Bitdefender GravityZone Advanced Business Security3 years500 - 999 | F67: 49.2615 | G67: =IF(Products!$Z$8=$C$1,ROUND(F67*$B$3,2),IF(Products!$Z$8=$C$2,ROUND(F67*$B$3*(1+$D$2),2),IF(Products!$Z$8=$C$3,ROUND(F67*$B$3*(1+$D$3),2),IF(Products!$Z$8=$C$4,ROUND(F67*$B$3*(1+$D$4),2),IF(Products!$Z$8=$C$5,ROUND(F67*$B$3*(1+$D$5),2),IF(Products!$Z$8=$C$6,ROUND(F67*$B$3*(1+$D$6),2),IF(Products!$Z$8=$C$7,ROUND(F67*$B$3*(1+$D$7),2)))))))) -> 49.26 | H67: =IF(Products!$Z$8=$C$1,I67,IF(Products!$Z$8=$C$2,J67,IF(Products!$Z$8=$C$3,K67,IF(Products!$Z$8=$C$4,L67,IF(Products!$Z$8=$C$5,O67,IF(Products!$Z$8=$C$6,M67,IF(Products!$Z$8=$C$7,N67))))))) -> AL1287300H-EN | I67: AL1287300H-EN | J67: AL1587300H-EN | K67: AL1687300H-EN | L67: AL3287300H-EN | M67: AL3587300H-EN | N67: AL3687300H-EN | O67: AL5287300H-EN | Q67: Bitdefender GravityZone Advanced Business Security | R67: Bitdefender GravityZone Advanced Business Security - EDU | S67: Bitdefender GravityZone Advanced Business Security - GOV | T67: Bitdefender GravityZone Advanced Business Security - R | U67: Bitdefender GravityZone Advanced Business Security - EDU R | V67: Bitdefender GravityZone Advanced Business Security - GOV R | W67: Bitdefender GravityZone Advanced Business Security - CUPG
A68: =IF(Products!$Z$8=$C$1,Q68,IF(Products!$Z$8=$C$2,R68,IF(Products!$Z$8=$C$3,S68,IF(Products!$Z$8=$C$4,T68,IF(Products!$Z$8=$C$5,W68,IF(Products!$Z$8=$C$6,U68,IF(Products!$Z$8=$C$7,V68))))))) -> Bitdefender GravityZone Advanced Business Security | B68: 3 years | C68: 1000 - 2999 | D68: Bitdefender GravityZone Advanced Business Security3 years1000 - 2999 | F68: 46.8015 | G68: =IF(Products!$Z$8=$C$1,ROUND(F68*$B$3,2),IF(Products!$Z$8=$C$2,ROUND(F68*$B$3*(1+$D$2),2),IF(Products!$Z$8=$C$3,ROUND(F68*$B$3*(1+$D$3),2),IF(Products!$Z$8=$C$4,ROUND(F68*$B$3*(1+$D$4),2),IF(Products!$Z$8=$C$5,ROUND(F68*$B$3*(1+$D$5),2),IF(Products!$Z$8=$C$6,ROUND(F68*$B$3*(1+$D$6),2),IF(Products!$Z$8=$C$7,ROUND(F68*$B$3*(1+$D$7),2)))))))) -> 46.8 | H68: =IF(Products!$Z$8=$C$1,I68,IF(Products!$Z$8=$C$2,J68,IF(Products!$Z$8=$C$3,K68,IF(Products!$Z$8=$C$4,L68,IF(Products!$Z$8=$C$5,O68,IF(Products!$Z$8=$C$6,M68,IF(Products!$Z$8=$C$7,N68))))))) -> AL1287300I-EN | I68: AL1287300I-EN | J68: AL1587300I-EN | K68: AL1687300I-EN | L68: AL3287300I-EN | M68: AL3587300I-EN | N68: AL3687300I-EN | O68: AL5287300I-EN | Q68: Bitdefender GravityZone Advanced Business Security | R68: Bitdefender GravityZone Advanced Business Security - EDU | S68: Bitdefender GravityZone Advanced Business Security - GOV | T68: Bitdefender GravityZone Advanced Business Security - R | U68: Bitdefender GravityZone Advanced Business Security - EDU R | V68: Bitdefender GravityZone Advanced Business Security - GOV R | W68: Bitdefender GravityZone Advanced Business Security - CUPG
A69: =IF(Products!$Z$8=$C$1,Q69,IF(Products!$Z$8=$C$2,R69,IF(Products!$Z$8=$C$3,S69,IF(Products!$Z$8=$C$4,T69,IF(Products!$Z$8=$C$5,W69,IF(Products!$Z$8=$C$6,U69,IF(Products!$Z$8=$C$7,V69))))))) -> Bitdefender GravityZone Advanced Business Security | B69: 3 years | C69: 3000+ | D69: Bitdefender GravityZone Advanced Business Security3 years3000+ | F69: 45.387 | G69: =IF(Products!$Z$8=$C$1,ROUND(F69*$B$3,2),IF(Products!$Z$8=$C$2,ROUND(F69*$B$3*(1+$D$2),2),IF(Products!$Z$8=$C$3,ROUND(F69*$B$3*(1+$D$3),2),IF(Products!$Z$8=$C$4,ROUND(F69*$B$3*(1+$D$4),2),IF(Products!$Z$8=$C$5,ROUND(F69*$B$3*(1+$D$5),2),IF(Products!$Z$8=$C$6,ROUND(F69*$B$3*(1+$D$6),2),IF(Products!$Z$8=$C$7,ROUND(F69*$B$3*(1+$D$7),2)))))))) -> 45.39 | H69: =IF(Products!$Z$8=$C$1,I69,IF(Products!$Z$8=$C$2,J69,IF(Products!$Z$8=$C$3,K69,IF(Products!$Z$8=$C$4,L69,IF(Products!$Z$8=$C$5,O69,IF(Products!$Z$8=$C$6,M69,IF(Products!$Z$8=$C$7,N69))))))) -> AL1287300J-EN | I69: AL1287300J-EN | J69: AL1587300J-EN | K69: AL1687300J-EN | L69: AL3287300J-EN | M69: AL3587300J-EN | N69: AL3687300J-EN | O69: AL5287300J-EN | Q69: Bitdefender GravityZone Advanced Business Security | R69: Bitdefender GravityZone Advanced Business Security - EDU | S69: Bitdefender GravityZone Advanced Business Security - GOV | T69: Bitdefender GravityZone Advanced Business Security - R | U69: Bitdefender GravityZone Advanced Business Security - EDU R | V69: Bitdefender GravityZone Advanced Business Security - GOV R | W69: Bitdefender GravityZone Advanced Business Security - CUPG
A70: =IF(Products!$Z$8=$C$1,Q70,IF(Products!$Z$8=$C$2,R70,IF(Products!$Z$8=$C$3,S70,IF(Products!$Z$8=$C$4,T70,IF(Products!$Z$8=$C$5,W70,IF(Products!$Z$8=$C$6,U70,IF(Products!$Z$8=$C$7,V70))))))) -> GravityZone Security for Virtualized Environments VDI | B70: 1 year | C70: 5 - 14 | D70: GravityZone Security for Virtualized Environments VDI1 year5 - 14 | F70: 31 | G70: =IF(Products!$Z$8=$C$1,ROUND(F70*$B$3,2),IF(Products!$Z$8=$C$2,ROUND(F70*$B$3*(1+$D$2),2),IF(Products!$Z$8=$C$3,ROUND(F70*$B$3*(1+$D$3),2),IF(Products!$Z$8=$C$4,ROUND(F70*$B$3*(1+$D$4),2),IF(Products!$Z$8=$C$5,ROUND(F70*$B$3*(1+$D$5),2),IF(Products!$Z$8=$C$6,ROUND(F70*$B$3*(1+$D$6),2),IF(Products!$Z$8=$C$7,ROUND(F70*$B$3*(1+$D$7),2)))))))) -> 31 | H70: =IF(Products!$Z$8=$C$1,I70,IF(Products!$Z$8=$C$2,J70,IF(Products!$Z$8=$C$3,K70,IF(Products!$Z$8=$C$4,L70,IF(Products!$Z$8=$C$5,O70,IF(Products!$Z$8=$C$6,M70,IF(Products!$Z$8=$C$7,N70))))))) -> BL1211100A-EN | I70: BL1211100A-EN | J70: BL1511100A-EN | K70: BL1611100A-EN | L70: BL3211100A-EN | M70: BL3511100A-EN | N70: BL3611100A-EN | O70: BL5211100A-EN | Q70: GravityZone Security for Virtualized Environments VDI | R70: =CONCATENATE(Q70," - EDU") -> GravityZone Security for Virtualized Environments VDI - EDU | S70: =CONCATENATE(Q70," - GOV") -> GravityZone Security for Virtualized Environments VDI - GOV | T70: =CONCATENATE(Q70," - R") -> GravityZone Security for Virtualized Environments VDI - R | U70: =CONCATENATE(Q70," - EDU R") -> GravityZone Security for Virtualized Environments VDI - EDU R | V70: =CONCATENATE(Q70," - GOV R") -> GravityZone Security for Virtualized Environments VDI - GOV R | W70: =CONCATENATE(Q70," - CUPG") -> GravityZone Security for Virtualized Environments VDI - CUPG
A71: =IF(Products!$Z$8=$C$1,Q71,IF(Products!$Z$8=$C$2,R71,IF(Products!$Z$8=$C$3,S71,IF(Products!$Z$8=$C$4,T71,IF(Products!$Z$8=$C$5,W71,IF(Products!$Z$8=$C$6,U71,IF(Products!$Z$8=$C$7,V71))))))) -> GravityZone Security for Virtualized Environments VDI | B71: 1 year | C71: 15 - 24 | D71: GravityZone Security for Virtualized Environments VDI1 year15 - 24 | F71: 29.75 | G71: =IF(Products!$Z$8=$C$1,ROUND(F71*$B$3,2),IF(Products!$Z$8=$C$2,ROUND(F71*$B$3*(1+$D$2),2),IF(Products!$Z$8=$C$3,ROUND(F71*$B$3*(1+$D$3),2),IF(Products!$Z$8=$C$4,ROUND(F71*$B$3*(1+$D$4),2),IF(Products!$Z$8=$C$5,ROUND(F71*$B$3*(1+$D$5),2),IF(Products!$Z$8=$C$6,ROUND(F71*$B$3*(1+$D$6),2),IF(Products!$Z$8=$C$7,ROUND(F71*$B$3*(1+$D$7),2)))))))) -> 29.75 | H71: =IF(Products!$Z$8=$C$1,I71,IF(Products!$Z$8=$C$2,J71,IF(Products!$Z$8=$C$3,K71,IF(Products!$Z$8=$C$4,L71,IF(Products!$Z$8=$C$5,O71,IF(Products!$Z$8=$C$6,M71,IF(Products!$Z$8=$C$7,N71))))))) -> BL1211100B-EN | I71: BL1211100B-EN | J71: BL1511100B-EN | K71: BL1611100B-EN | L71: BL3211100B-EN | M71: BL3511100B-EN | N71: BL3611100B-EN | O71: BL5211100B-EN | Q71: GravityZone Security for Virtualized Environments VDI | R71: GravityZone Security for Virtualized Environments VDI - EDU | S71: GravityZone Security for Virtualized Environments VDI - GOV | T71: GravityZone Security for Virtualized Environments VDI - R | U71: GravityZone Security for Virtualized Environments VDI - EDU R | V71: GravityZone Security for Virtualized Environments VDI - GOV R | W71: GravityZone Security for Virtualized Environments VDI - CUPG
A72: =IF(Products!$Z$8=$C$1,Q72,IF(Products!$Z$8=$C$2,R72,IF(Products!$Z$8=$C$3,S72,IF(Products!$Z$8=$C$4,T72,IF(Products!$Z$8=$C$5,W72,IF(Products!$Z$8=$C$6,U72,IF(Products!$Z$8=$C$7,V72))))))) -> GravityZone Security for Virtualized Environments VDI | B72: 1 year | C72: 25 - 49 | D72: GravityZone Security for Virtualized Environments VDI1 year25 - 49 | F72: 28.25 | G72: =IF(Products!$Z$8=$C$1,ROUND(F72*$B$3,2),IF(Products!$Z$8=$C$2,ROUND(F72*$B$3*(1+$D$2),2),IF(Products!$Z$8=$C$3,ROUND(F72*$B$3*(1+$D$3),2),IF(Products!$Z$8=$C$4,ROUND(F72*$B$3*(1+$D$4),2),IF(Products!$Z$8=$C$5,ROUND(F72*$B$3*(1+$D$5),2),IF(Products!$Z$8=$C$6,ROUND(F72*$B$3*(1+$D$6),2),IF(Products!$Z$8=$C$7,ROUND(F72*$B$3*(1+$D$7),2)))))))) -> 28.25 | H72: =IF(Products!$Z$8=$C$1,I72,IF(Products!$Z$8=$C$2,J72,IF(Products!$Z$8=$C$3,K72,IF(Products!$Z$8=$C$4,L72,IF(Products!$Z$8=$C$5,O72,IF(Products!$Z$8=$C$6,M72,IF(Products!$Z$8=$C$7,N72))))))) -> BL1211100C-EN | I72: BL1211100C-EN | J72: BL1511100C-EN | K72: BL1611100C-EN | L72: BL3211100C-EN | M72: BL3511100C-EN | N72: BL3611100C-EN | O72: BL5211100C-EN | Q72: GravityZone Security for Virtualized Environments VDI | R72: GravityZone Security for Virtualized Environments VDI - EDU | S72: GravityZone Security for Virtualized Environments VDI - GOV | T72: GravityZone Security for Virtualized Environments VDI - R | U72: GravityZone Security for Virtualized Environments VDI - EDU R | V72: GravityZone Security for Virtualized Environments VDI - GOV R | W72: GravityZone Security for Virtualized Environments VDI - CUPG
A73: =IF(Products!$Z$8=$C$1,Q73,IF(Products!$Z$8=$C$2,R73,IF(Products!$Z$8=$C$3,S73,IF(Products!$Z$8=$C$4,T73,IF(Products!$Z$8=$C$5,W73,IF(Products!$Z$8=$C$6,U73,IF(Products!$Z$8=$C$7,V73))))))) -> GravityZone Security for Virtualized Environments VDI | B73: 1 year | C73: 50 - 99 | D73: GravityZone Security for Virtualized Environments VDI1 year50 - 99 | F73: 26.3 | G73: =IF(Products!$Z$8=$C$1,ROUND(F73*$B$3,2),IF(Products!$Z$8=$C$2,ROUND(F73*$B$3*(1+$D$2),2),IF(Products!$Z$8=$C$3,ROUND(F73*$B$3*(1+$D$3),2),IF(Products!$Z$8=$C$4,ROUND(F73*$B$3*(1+$D$4),2),IF(Products!$Z$8=$C$5,ROUND(F73*$B$3*(1+$D$5),2),IF(Products!$Z$8=$C$6,ROUND(F73*$B$3*(1+$D$6),2),IF(Products!$Z$8=$C$7,ROUND(F73*$B$3*(1+$D$7),2)))))))) -> 26.3 | H73: =IF(Products!$Z$8=$C$1,I73,IF(Products!$Z$8=$C$2,J73,IF(Products!$Z$8=$C$3,K73,IF(Products!$Z$8=$C$4,L73,IF(Products!$Z$8=$C$5,O73,IF(Products!$Z$8=$C$6,M73,IF(Products!$Z$8=$C$7,N73))))))) -> BL1211100D-EN | I73: BL1211100D-EN | J73: BL1511100D-EN | K73: BL1611100D-EN | L73: BL3211100D-EN | M73: BL3511100D-EN | N73: BL3611100D-EN | O73: BL5211100D-EN | Q73: GravityZone Security for Virtualized Environments VDI | R73: GravityZone Security for Virtualized Environments VDI - EDU | S73: GravityZone Security for Virtualized Environments VDI - GOV | T73: GravityZone Security for Virtualized Environments VDI - R | U73: GravityZone Security for Virtualized Environments VDI - EDU R | V73: GravityZone Security for Virtualized Environments VDI - GOV R | W73: GravityZone Security for Virtualized Environments VDI - CUPG
A74: =IF(Products!$Z$8=$C$1,Q74,IF(Products!$Z$8=$C$2,R74,IF(Products!$Z$8=$C$3,S74,IF(Products!$Z$8=$C$4,T74,IF(Products!$Z$8=$C$5,W74,IF(Products!$Z$8=$C$6,U74,IF(Products!$Z$8=$C$7,V74))))))) -> GravityZone Security for Virtualized Environments VDI | B74: 1 year | C74: 100 - 149 | D74: GravityZone Security for Virtualized Environments VDI1 year100 - 149 | F74: 23.9 | G74: =IF(Products!$Z$8=$C$1,ROUND(F74*$B$3,2),IF(Products!$Z$8=$C$2,ROUND(F74*$B$3*(1+$D$2),2),IF(Products!$Z$8=$C$3,ROUND(F74*$B$3*(1+$D$3),2),IF(Products!$Z$8=$C$4,ROUND(F74*$B$3*(1+$D$4),2),IF(Products!$Z$8=$C$5,ROUND(F74*$B$3*(1+$D$5),2),IF(Products!$Z$8=$C$6,ROUND(F74*$B$3*(1+$D$6),2),IF(Products!$Z$8=$C$7,ROUND(F74*$B$3*(1+$D$7),2)))))))) -> 23.9 | H74: =IF(Products!$Z$8=$C$1,I74,IF(Products!$Z$8=$C$2,J74,IF(Products!$Z$8=$C$3,K74,IF(Products!$Z$8=$C$4,L74,IF(Products!$Z$8=$C$5,O74,IF(Products!$Z$8=$C$6,M74,IF(Products!$Z$8=$C$7,N74))))))) -> BL1211100E-EN | I74: BL1211100E-EN | J74: BL1511100E-EN | K74: BL1611100E-EN | L74: BL3211100E-EN | M74: BL3511100E-EN | N74: BL3611100E-EN | O74: BL5211100E-EN | Q74: GravityZone Security for Virtualized Environments VDI | R74: GravityZone Security for Virtualized Environments VDI - EDU | S74: GravityZone Security for Virtualized Environments VDI - GOV | T74: GravityZone Security for Virtualized Environments VDI - R | U74: GravityZone Security for Virtualized Environments VDI - EDU R | V74: GravityZone Security for Virtualized Environments VDI - GOV R | W74: GravityZone Security for Virtualized Environments VDI - CUPG
A75: =IF(Products!$Z$8=$C$1,Q75,IF(Products!$Z$8=$C$2,R75,IF(Products!$Z$8=$C$3,S75,IF(Products!$Z$8=$C$4,T75,IF(Products!$Z$8=$C$5,W75,IF(Products!$Z$8=$C$6,U75,IF(Products!$Z$8=$C$7,V75))))))) -> GravityZone Security for Virtualized Environments VDI | B75: 1 year | C75: 150 - 249 | D75: GravityZone Security for Virtualized Environments VDI1 year150 - 249 | F75: 22.65 | G75: =IF(Products!$Z$8=$C$1,ROUND(F75*$B$3,2),IF(Products!$Z$8=$C$2,ROUND(F75*$B$3*(1+$D$2),2),IF(Products!$Z$8=$C$3,ROUND(F75*$B$3*(1+$D$3),2),IF(Products!$Z$8=$C$4,ROUND(F75*$B$3*(1+$D$4),2),IF(Products!$Z$8=$C$5,ROUND(F75*$B$3*(1+$D$5),2),IF(Products!$Z$8=$C$6,ROUND(F75*$B$3*(1+$D$6),2),IF(Products!$Z$8=$C$7,ROUND(F75*$B$3*(1+$D$7),2)))))))) -> 22.65 | H75: =IF(Products!$Z$8=$C$1,I75,IF(Products!$Z$8=$C$2,J75,IF(Products!$Z$8=$C$3,K75,IF(Products!$Z$8=$C$4,L75,IF(Products!$Z$8=$C$5,O75,IF(Products!$Z$8=$C$6,M75,IF(Products!$Z$8=$C$7,N75))))))) -> BL1211100F-EN | I75: BL1211100F-EN | J75: BL1511100F-EN | K75: BL1611100F-EN | L75: BL3211100F-EN | M75: BL3511100F-EN | N75: BL3611100F-EN | O75: BL5211100F-EN | Q75: GravityZone Security for Virtualized Environments VDI | R75: GravityZone Security for Virtualized Environments VDI - EDU | S75: GravityZone Security for Virtualized Environments VDI - GOV | T75: GravityZone Security for Virtualized Environments VDI - R | U75: GravityZone Security for Virtualized Environments VDI - EDU R | V75: GravityZone Security for Virtualized Environments VDI - GOV R | W75: GravityZone Security for Virtualized Environments VDI - CUPG
A76: =IF(Products!$Z$8=$C$1,Q76,IF(Products!$Z$8=$C$2,R76,IF(Products!$Z$8=$C$3,S76,IF(Products!$Z$8=$C$4,T76,IF(Products!$Z$8=$C$5,W76,IF(Products!$Z$8=$C$6,U76,IF(Products!$Z$8=$C$7,V76))))))) -> GravityZone Security for Virtualized Environments VDI | B76: 1 year | C76: 250 - 499 | D76: GravityZone Security for Virtualized Environments VDI1 year250 - 499 | F76: 20.4 | G76: =IF(Products!$Z$8=$C$1,ROUND(F76*$B$3,2),IF(Products!$Z$8=$C$2,ROUND(F76*$B$3*(1+$D$2),2),IF(Products!$Z$8=$C$3,ROUND(F76*$B$3*(1+$D$3),2),IF(Products!$Z$8=$C$4,ROUND(F76*$B$3*(1+$D$4),2),IF(Products!$Z$8=$C$5,ROUND(F76*$B$3*(1+$D$5),2),IF(Products!$Z$8=$C$6,ROUND(F76*$B$3*(1+$D$6),2),IF(Products!$Z$8=$C$7,ROUND(F76*$B$3*(1+$D$7),2)))))))) -> 20.4 | H76: =IF(Products!$Z$8=$C$1,I76,IF(Products!$Z$8=$C$2,J76,IF(Products!$Z$8=$C$3,K76,IF(Products!$Z$8=$C$4,L76,IF(Products!$Z$8=$C$5,O76,IF(Products!$Z$8=$C$6,M76,IF(Products!$Z$8=$C$7,N76))))))) -> BL1211100G-EN | I76: BL1211100G-EN | J76: BL1511100G-EN | K76: BL1611100G-EN | L76: BL3211100G-EN | M76: BL3511100G-EN | N76: BL3611100G-EN | O76: BL5211100G-EN | Q76: GravityZone Security for Virtualized Environments VDI | R76: GravityZone Security for Virtualized Environments VDI - EDU | S76: GravityZone Security for Virtualized Environments VDI - GOV | T76: GravityZone Security for Virtualized Environments VDI - R | U76: GravityZone Security for Virtualized Environments VDI - EDU R | V76: GravityZone Security for Virtualized Environments VDI - GOV R | W76: GravityZone Security for Virtualized Environments VDI - CUPG
A77: =IF(Products!$Z$8=$C$1,Q77,IF(Products!$Z$8=$C$2,R77,IF(Products!$Z$8=$C$3,S77,IF(Products!$Z$8=$C$4,T77,IF(Products!$Z$8=$C$5,W77,IF(Products!$Z$8=$C$6,U77,IF(Products!$Z$8=$C$7,V77))))))) -> GravityZone Security for Virtualized Environments VDI | B77: 1 year | C77: 500 - 999 | D77: GravityZone Security for Virtualized Environments VDI1 year500 - 999 | F77: 18.35 | G77: =IF(Products!$Z$8=$C$1,ROUND(F77*$B$3,2),IF(Products!$Z$8=$C$2,ROUND(F77*$B$3*(1+$D$2),2),IF(Products!$Z$8=$C$3,ROUND(F77*$B$3*(1+$D$3),2),IF(Products!$Z$8=$C$4,ROUND(F77*$B$3*(1+$D$4),2),IF(Products!$Z$8=$C$5,ROUND(F77*$B$3*(1+$D$5),2),IF(Products!$Z$8=$C$6,ROUND(F77*$B$3*(1+$D$6),2),IF(Products!$Z$8=$C$7,ROUND(F77*$B$3*(1+$D$7),2)))))))) -> 18.35 | H77: =IF(Products!$Z$8=$C$1,I77,IF(Products!$Z$8=$C$2,J77,IF(Products!$Z$8=$C$3,K77,IF(Products!$Z$8=$C$4,L77,IF(Products!$Z$8=$C$5,O77,IF(Products!$Z$8=$C$6,M77,IF(Products!$Z$8=$C$7,N77))))))) -> BL1211100H-EN | I77: BL1211100H-EN | J77: BL1511100H-EN | K77: BL1611100H-EN | L77: BL3211100H-EN | M77: BL3511100H-EN | N77: BL3611100H-EN | O77: BL5211100H-EN | Q77: GravityZone Security for Virtualized Environments VDI | R77: GravityZone Security for Virtualized Environments VDI - EDU | S77: GravityZone Security for Virtualized Environments VDI - GOV | T77: GravityZone Security for Virtualized Environments VDI - R | U77: GravityZone Security for Virtualized Environments VDI - EDU R | V77: GravityZone Security for Virtualized Environments VDI - GOV R | W77: GravityZone Security for Virtualized Environments VDI - CUPG
A78: =IF(Products!$Z$8=$C$1,Q78,IF(Products!$Z$8=$C$2,R78,IF(Products!$Z$8=$C$3,S78,IF(Products!$Z$8=$C$4,T78,IF(Products!$Z$8=$C$5,W78,IF(Products!$Z$8=$C$6,U78,IF(Products!$Z$8=$C$7,V78))))))) -> GravityZone Security for Virtualized Environments VDI | B78: 1 year | C78: 1000 - 2999 | D78: GravityZone Security for Virtualized Environments VDI1 year1000 - 2999 | F78: 16.5 | G78: =IF(Products!$Z$8=$C$1,ROUND(F78*$B$3,2),IF(Products!$Z$8=$C$2,ROUND(F78*$B$3*(1+$D$2),2),IF(Products!$Z$8=$C$3,ROUND(F78*$B$3*(1+$D$3),2),IF(Products!$Z$8=$C$4,ROUND(F78*$B$3*(1+$D$4),2),IF(Products!$Z$8=$C$5,ROUND(F78*$B$3*(1+$D$5),2),IF(Products!$Z$8=$C$6,ROUND(F78*$B$3*(1+$D$6),2),IF(Products!$Z$8=$C$7,ROUND(F78*$B$3*(1+$D$7),2)))))))) -> 16.5 | H78: =IF(Products!$Z$8=$C$1,I78,IF(Products!$Z$8=$C$2,J78,IF(Products!$Z$8=$C$3,K78,IF(Products!$Z$8=$C$4,L78,IF(Products!$Z$8=$C$5,O78,IF(Products!$Z$8=$C$6,M78,IF(Products!$Z$8=$C$7,N78))))))) -> BL1211100I-EN | I78: BL1211100I-EN | J78: BL1511100I-EN | K78: BL1611100I-EN | L78: BL3211100I-EN | M78: BL3511100I-EN | N78: BL3611100I-EN | O78: BL5211100I-EN | Q78: GravityZone Security for Virtualized Environments VDI | R78: GravityZone Security for Virtualized Environments VDI - EDU | S78: GravityZone Security for Virtualized Environments VDI - GOV | T78: GravityZone Security for Virtualized Environments VDI - R | U78: GravityZone Security for Virtualized Environments VDI - EDU R | V78: GravityZone Security for Virtualized Environments VDI - GOV R | W78: GravityZone Security for Virtualized Environments VDI - CUPG
A79: =IF(Products!$Z$8=$C$1,Q79,IF(Products!$Z$8=$C$2,R79,IF(Products!$Z$8=$C$3,S79,IF(Products!$Z$8=$C$4,T79,IF(Products!$Z$8=$C$5,W79,IF(Products!$Z$8=$C$6,U79,IF(Products!$Z$8=$C$7,V79))))))) -> GravityZone Security for Virtualized Environments VDI | B79: 1 year | C79: 3000+ | D79: GravityZone Security for Virtualized Environments VDI1 year3000+ | F79: 14.85 | G79: =IF(Products!$Z$8=$C$1,ROUND(F79*$B$3,2),IF(Products!$Z$8=$C$2,ROUND(F79*$B$3*(1+$D$2),2),IF(Products!$Z$8=$C$3,ROUND(F79*$B$3*(1+$D$3),2),IF(Products!$Z$8=$C$4,ROUND(F79*$B$3*(1+$D$4),2),IF(Products!$Z$8=$C$5,ROUND(F79*$B$3*(1+$D$5),2),IF(Products!$Z$8=$C$6,ROUND(F79*$B$3*(1+$D$6),2),IF(Products!$Z$8=$C$7,ROUND(F79*$B$3*(1+$D$7),2)))))))) -> 14.85 | H79: =IF(Products!$Z$8=$C$1,I79,IF(Products!$Z$8=$C$2,J79,IF(Products!$Z$8=$C$3,K79,IF(Products!$Z$8=$C$4,L79,IF(Products!$Z$8=$C$5,O79,IF(Products!$Z$8=$C$6,M79,IF(Products!$Z$8=$C$7,N79))))))) -> BL1211100J-EN | I79: BL1211100J-EN | J79: BL1511100J-EN | K79: BL1611100J-EN | L79: BL3211100J-EN | M79: BL3511100J-EN | N79: BL3611100J-EN | O79: BL5211100J-EN | Q79: GravityZone Security for Virtualized Environments VDI | R79: GravityZone Security for Virtualized Environments VDI - EDU | S79: GravityZone Security for Virtualized Environments VDI - GOV | T79: GravityZone Security for Virtualized Environments VDI - R | U79: GravityZone Security for Virtualized Environments VDI - EDU R | V79: GravityZone Security for Virtualized Environments VDI - GOV R | W79: GravityZone Security for Virtualized Environments VDI - CUPG
A80: =IF(Products!$Z$8=$C$1,Q80,IF(Products!$Z$8=$C$2,R80,IF(Products!$Z$8=$C$3,S80,IF(Products!$Z$8=$C$4,T80,IF(Products!$Z$8=$C$5,W80,IF(Products!$Z$8=$C$6,U80,IF(Products!$Z$8=$C$7,V80))))))) -> GravityZone Security for Virtualized Environments VDI | B80: 2 years | C80: 5 - 14 | D80: GravityZone Security for Virtualized Environments VDI2 years5 - 14 | F80: 49.6 | G80: =IF(Products!$Z$8=$C$1,ROUND(F80*$B$3,2),IF(Products!$Z$8=$C$2,ROUND(F80*$B$3*(1+$D$2),2),IF(Products!$Z$8=$C$3,ROUND(F80*$B$3*(1+$D$3),2),IF(Products!$Z$8=$C$4,ROUND(F80*$B$3*(1+$D$4),2),IF(Products!$Z$8=$C$5,ROUND(F80*$B$3*(1+$D$5),2),IF(Products!$Z$8=$C$6,ROUND(F80*$B$3*(1+$D$6),2),IF(Products!$Z$8=$C$7,ROUND(F80*$B$3*(1+$D$7),2)))))))) -> 49.6 | H80: =IF(Products!$Z$8=$C$1,I80,IF(Products!$Z$8=$C$2,J80,IF(Products!$Z$8=$C$3,K80,IF(Products!$Z$8=$C$4,L80,IF(Products!$Z$8=$C$5,O80,IF(Products!$Z$8=$C$6,M80,IF(Products!$Z$8=$C$7,N80))))))) -> BL1211200A-EN | I80: BL1211200A-EN | J80: BL1511200A-EN | K80: BL1611200A-EN | L80: BL3211200A-EN | M80: BL3511200A-EN | N80: BL3611200A-EN | O80: BL5211200A-EN | Q80: GravityZone Security for Virtualized Environments VDI | R80: GravityZone Security for Virtualized Environments VDI - EDU | S80: GravityZone Security for Virtualized Environments VDI - GOV | T80: GravityZone Security for Virtualized Environments VDI - R | U80: GravityZone Security for Virtualized Environments VDI - EDU R | V80: GravityZone Security for Virtualized Environments VDI - GOV R | W80: GravityZone Security for Virtualized Environments VDI - CUPG
A81: =IF(Products!$Z$8=$C$1,Q81,IF(Products!$Z$8=$C$2,R81,IF(Products!$Z$8=$C$3,S81,IF(Products!$Z$8=$C$4,T81,IF(Products!$Z$8=$C$5,W81,IF(Products!$Z$8=$C$6,U81,IF(Products!$Z$8=$C$7,V81))))))) -> GravityZone Security for Virtualized Environments VDI | B81: 2 years | C81: 15 - 24 | D81: GravityZone Security for Virtualized Environments VDI2 years15 - 24 | F81: 47.6 | G81: =IF(Products!$Z$8=$C$1,ROUND(F81*$B$3,2),IF(Products!$Z$8=$C$2,ROUND(F81*$B$3*(1+$D$2),2),IF(Products!$Z$8=$C$3,ROUND(F81*$B$3*(1+$D$3),2),IF(Products!$Z$8=$C$4,ROUND(F81*$B$3*(1+$D$4),2),IF(Products!$Z$8=$C$5,ROUND(F81*$B$3*(1+$D$5),2),IF(Products!$Z$8=$C$6,ROUND(F81*$B$3*(1+$D$6),2),IF(Products!$Z$8=$C$7,ROUND(F81*$B$3*(1+$D$7),2)))))))) -> 47.6 | H81: =IF(Products!$Z$8=$C$1,I81,IF(Products!$Z$8=$C$2,J81,IF(Products!$Z$8=$C$3,K81,IF(Products!$Z$8=$C$4,L81,IF(Products!$Z$8=$C$5,O81,IF(Products!$Z$8=$C$6,M81,IF(Products!$Z$8=$C$7,N81))))))) -> BL1211200B-EN | I81: BL1211200B-EN | J81: BL1511200B-EN | K81: BL1611200B-EN | L81: BL3211200B-EN | M81: BL3511200B-EN | N81: BL3611200B-EN | O81: BL5211200B-EN | Q81: GravityZone Security for Virtualized Environments VDI | R81: GravityZone Security for Virtualized Environments VDI - EDU | S81: GravityZone Security for Virtualized Environments VDI - GOV | T81: GravityZone Security for Virtualized Environments VDI - R | U81: GravityZone Security for Virtualized Environments VDI - EDU R | V81: GravityZone Security for Virtualized Environments VDI - GOV R | W81: GravityZone Security for Virtualized Environments VDI - CUPG
A82: =IF(Products!$Z$8=$C$1,Q82,IF(Products!$Z$8=$C$2,R82,IF(Products!$Z$8=$C$3,S82,IF(Products!$Z$8=$C$4,T82,IF(Products!$Z$8=$C$5,W82,IF(Products!$Z$8=$C$6,U82,IF(Products!$Z$8=$C$7,V82))))))) -> GravityZone Security for Virtualized Environments VDI | B82: 2 years | C82: 25 - 49 | D82: GravityZone Security for Virtualized Environments VDI2 years25 - 49 | F82: 45.2 | G82: =IF(Products!$Z$8=$C$1,ROUND(F82*$B$3,2),IF(Products!$Z$8=$C$2,ROUND(F82*$B$3*(1+$D$2),2),IF(Products!$Z$8=$C$3,ROUND(F82*$B$3*(1+$D$3),2),IF(Products!$Z$8=$C$4,ROUND(F82*$B$3*(1+$D$4),2),IF(Products!$Z$8=$C$5,ROUND(F82*$B$3*(1+$D$5),2),IF(Products!$Z$8=$C$6,ROUND(F82*$B$3*(1+$D$6),2),IF(Products!$Z$8=$C$7,ROUND(F82*$B$3*(1+$D$7),2)))))))) -> 45.2 | H82: =IF(Products!$Z$8=$C$1,I82,IF(Products!$Z$8=$C$2,J82,IF(Products!$Z$8=$C$3,K82,IF(Products!$Z$8=$C$4,L82,IF(Products!$Z$8=$C$5,O82,IF(Products!$Z$8=$C$6,M82,IF(Products!$Z$8=$C$7,N82))))))) -> BL1211200C-EN | I82: BL1211200C-EN | J82: BL1511200C-EN | K82: BL1611200C-EN | L82: BL3211200C-EN | M82: BL3511200C-EN | N82: BL3611200C-EN | O82: BL5211200C-EN | Q82: GravityZone Security for Virtualized Environments VDI | R82: GravityZone Security for Virtualized Environments VDI - EDU | S82: GravityZone Security for Virtualized Environments VDI - GOV | T82: GravityZone Security for Virtualized Environments VDI - R | U82: GravityZone Security for Virtualized Environments VDI - EDU R | V82: GravityZone Security for Virtualized Environments VDI - GOV R | W82: GravityZone Security for Virtualized Environments VDI - CUPG
A83: =IF(Products!$Z$8=$C$1,Q83,IF(Products!$Z$8=$C$2,R83,IF(Products!$Z$8=$C$3,S83,IF(Products!$Z$8=$C$4,T83,IF(Products!$Z$8=$C$5,W83,IF(Products!$Z$8=$C$6,U83,IF(Products!$Z$8=$C$7,V83))))))) -> GravityZone Security for Virtualized Environments VDI | B83: 2 years | C83: 50 - 99 | D83: GravityZone Security for Virtualized Environments VDI2 years50 - 99 | F83: 42.08 | G83: =IF(Products!$Z$8=$C$1,ROUND(F83*$B$3,2),IF(Products!$Z$8=$C$2,ROUND(F83*$B$3*(1+$D$2),2),IF(Products!$Z$8=$C$3,ROUND(F83*$B$3*(1+$D$3),2),IF(Products!$Z$8=$C$4,ROUND(F83*$B$3*(1+$D$4),2),IF(Products!$Z$8=$C$5,ROUND(F83*$B$3*(1+$D$5),2),IF(Products!$Z$8=$C$6,ROUND(F83*$B$3*(1+$D$6),2),IF(Products!$Z$8=$C$7,ROUND(F83*$B$3*(1+$D$7),2)))))))) -> 42.08 | H83: =IF(Products!$Z$8=$C$1,I83,IF(Products!$Z$8=$C$2,J83,IF(Products!$Z$8=$C$3,K83,IF(Products!$Z$8=$C$4,L83,IF(Products!$Z$8=$C$5,O83,IF(Products!$Z$8=$C$6,M83,IF(Products!$Z$8=$C$7,N83))))))) -> BL1211200D-EN | I83: BL1211200D-EN | J83: BL1511200D-EN | K83: BL1611200D-EN | L83: BL3211200D-EN | M83: BL3511200D-EN | N83: BL3611200D-EN | O83: BL5211200D-EN | Q83: GravityZone Security for Virtualized Environments VDI | R83: GravityZone Security for Virtualized Environments VDI - EDU | S83: GravityZone Security for Virtualized Environments VDI - GOV | T83: GravityZone Security for Virtualized Environments VDI - R | U83: GravityZone Security for Virtualized Environments VDI - EDU R | V83: GravityZone Security for Virtualized Environments VDI - GOV R | W83: GravityZone Security for Virtualized Environments VDI - CUPG
A84: =IF(Products!$Z$8=$C$1,Q84,IF(Products!$Z$8=$C$2,R84,IF(Products!$Z$8=$C$3,S84,IF(Products!$Z$8=$C$4,T84,IF(Products!$Z$8=$C$5,W84,IF(Products!$Z$8=$C$6,U84,IF(Products!$Z$8=$C$7,V84))))))) -> GravityZone Security for Virtualized Environments VDI | B84: 2 years | C84: 100 - 149 | D84: GravityZone Security for Virtualized Environments VDI2 years100 - 149 | F84: 38.24 | G84: =IF(Products!$Z$8=$C$1,ROUND(F84*$B$3,2),IF(Products!$Z$8=$C$2,ROUND(F84*$B$3*(1+$D$2),2),IF(Products!$Z$8=$C$3,ROUND(F84*$B$3*(1+$D$3),2),IF(Products!$Z$8=$C$4,ROUND(F84*$B$3*(1+$D$4),2),IF(Products!$Z$8=$C$5,ROUND(F84*$B$3*(1+$D$5),2),IF(Products!$Z$8=$C$6,ROUND(F84*$B$3*(1+$D$6),2),IF(Products!$Z$8=$C$7,ROUND(F84*$B$3*(1+$D$7),2)))))))) -> 38.24 | H84: =IF(Products!$Z$8=$C$1,I84,IF(Products!$Z$8=$C$2,J84,IF(Products!$Z$8=$C$3,K84,IF(Products!$Z$8=$C$4,L84,IF(Products!$Z$8=$C$5,O84,IF(Products!$Z$8=$C$6,M84,IF(Products!$Z$8=$C$7,N84))))))) -> BL1211200E-EN | I84: BL1211200E-EN | J84: BL1511200E-EN | K84: BL1611200E-EN | L84: BL3211200E-EN | M84: BL3511200E-EN | N84: BL3611200E-EN | O84: BL5211200E-EN | Q84: GravityZone Security for Virtualized Environments VDI | R84: GravityZone Security for Virtualized Environments VDI - EDU | S84: GravityZone Security for Virtualized Environments VDI - GOV | T84: GravityZone Security for Virtualized Environments VDI - R | U84: GravityZone Security for Virtualized Environments VDI - EDU R | V84: GravityZone Security for Virtualized Environments VDI - GOV R | W84: GravityZone Security for Virtualized Environments VDI - CUPG
A85: =IF(Products!$Z$8=$C$1,Q85,IF(Products!$Z$8=$C$2,R85,IF(Products!$Z$8=$C$3,S85,IF(Products!$Z$8=$C$4,T85,IF(Products!$Z$8=$C$5,W85,IF(Products!$Z$8=$C$6,U85,IF(Products!$Z$8=$C$7,V85))))))) -> GravityZone Security for Virtualized Environments VDI | B85: 2 years | C85: 150 - 249 | D85: GravityZone Security for Virtualized Environments VDI2 years150 - 249 | F85: 36.24 | G85: =IF(Products!$Z$8=$C$1,ROUND(F85*$B$3,2),IF(Products!$Z$8=$C$2,ROUND(F85*$B$3*(1+$D$2),2),IF(Products!$Z$8=$C$3,ROUND(F85*$B$3*(1+$D$3),2),IF(Products!$Z$8=$C$4,ROUND(F85*$B$3*(1+$D$4),2),IF(Products!$Z$8=$C$5,ROUND(F85*$B$3*(1+$D$5),2),IF(Products!$Z$8=$C$6,ROUND(F85*$B$3*(1+$D$6),2),IF(Products!$Z$8=$C$7,ROUND(F85*$B$3*(1+$D$7),2)))))))) -> 36.24 | H85: =IF(Products!$Z$8=$C$1,I85,IF(Products!$Z$8=$C$2,J85,IF(Products!$Z$8=$C$3,K85,IF(Products!$Z$8=$C$4,L85,IF(Products!$Z$8=$C$5,O85,IF(Products!$Z$8=$C$6,M85,IF(Products!$Z$8=$C$7,N85))))))) -> BL1211200F-EN | I85: BL1211200F-EN | J85: BL1511200F-EN | K85: BL1611200F-EN | L85: BL3211200F-EN | M85: BL3511200F-EN | N85: BL3611200F-EN | O85: BL5211200F-EN | Q85: GravityZone Security for Virtualized Environments VDI | R85: GravityZone Security for Virtualized Environments VDI - EDU | S85: GravityZone Security for Virtualized Environments VDI - GOV | T85: GravityZone Security for Virtualized Environments VDI - R | U85: GravityZone Security for Virtualized Environments VDI - EDU R | V85: GravityZone Security for Virtualized Environments VDI - GOV R | W85: GravityZone Security for Virtualized Environments VDI - CUPG
A86: =IF(Products!$Z$8=$C$1,Q86,IF(Products!$Z$8=$C$2,R86,IF(Products!$Z$8=$C$3,S86,IF(Products!$Z$8=$C$4,T86,IF(Products!$Z$8=$C$5,W86,IF(Products!$Z$8=$C$6,U86,IF(Products!$Z$8=$C$7,V86))))))) -> GravityZone Security for Virtualized Environments VDI | B86: 2 years | C86: 250 - 499 | D86: GravityZone Security for Virtualized Environments VDI2 years250 - 499 | F86: 32.64 | G86: =IF(Products!$Z$8=$C$1,ROUND(F86*$B$3,2),IF(Products!$Z$8=$C$2,ROUND(F86*$B$3*(1+$D$2),2),IF(Products!$Z$8=$C$3,ROUND(F86*$B$3*(1+$D$3),2),IF(Products!$Z$8=$C$4,ROUND(F86*$B$3*(1+$D$4),2),IF(Products!$Z$8=$C$5,ROUND(F86*$B$3*(1+$D$5),2),IF(Products!$Z$8=$C$6,ROUND(F86*$B$3*(1+$D$6),2),IF(Products!$Z$8=$C$7,ROUND(F86*$B$3*(1+$D$7),2)))))))) -> 32.64 | H86: =IF(Products!$Z$8=$C$1,I86,IF(Products!$Z$8=$C$2,J86,IF(Products!$Z$8=$C$3,K86,IF(Products!$Z$8=$C$4,L86,IF(Products!$Z$8=$C$5,O86,IF(Products!$Z$8=$C$6,M86,IF(Products!$Z$8=$C$7,N86))))))) -> BL1211200G-EN | I86: BL1211200G-EN | J86: BL1511200G-EN | K86: BL1611200G-EN | L86: BL3211200G-EN | M86: BL3511200G-EN | N86: BL3611200G-EN | O86: BL5211200G-EN | Q86: GravityZone Security for Virtualized Environments VDI | R86: GravityZone Security for Virtualized Environments VDI - EDU | S86: GravityZone Security for Virtualized Environments VDI - GOV | T86: GravityZone Security for Virtualized Environments VDI - R | U86: GravityZone Security for Virtualized Environments VDI - EDU R | V86: GravityZone Security for Virtualized Environments VDI - GOV R | W86: GravityZone Security for Virtualized Environments VDI - CUPG
A87: =IF(Products!$Z$8=$C$1,Q87,IF(Products!$Z$8=$C$2,R87,IF(Products!$Z$8=$C$3,S87,IF(Products!$Z$8=$C$4,T87,IF(Products!$Z$8=$C$5,W87,IF(Products!$Z$8=$C$6,U87,IF(Products!$Z$8=$C$7,V87))))))) -> GravityZone Security for Virtualized Environments VDI | B87: 2 years | C87: 500 - 999 | D87: GravityZone Security for Virtualized Environments VDI2 years500 - 999 | F87: 29.36 | G87: =IF(Products!$Z$8=$C$1,ROUND(F87*$B$3,2),IF(Products!$Z$8=$C$2,ROUND(F87*$B$3*(1+$D$2),2),IF(Products!$Z$8=$C$3,ROUND(F87*$B$3*(1+$D$3),2),IF(Products!$Z$8=$C$4,ROUND(F87*$B$3*(1+$D$4),2),IF(Products!$Z$8=$C$5,ROUND(F87*$B$3*(1+$D$5),2),IF(Products!$Z$8=$C$6,ROUND(F87*$B$3*(1+$D$6),2),IF(Products!$Z$8=$C$7,ROUND(F87*$B$3*(1+$D$7),2)))))))) -> 29.36 | H87: =IF(Products!$Z$8=$C$1,I87,IF(Products!$Z$8=$C$2,J87,IF(Products!$Z$8=$C$3,K87,IF(Products!$Z$8=$C$4,L87,IF(Products!$Z$8=$C$5,O87,IF(Products!$Z$8=$C$6,M87,IF(Products!$Z$8=$C$7,N87))))))) -> BL1211200H-EN | I87: BL1211200H-EN | J87: BL1511200H-EN | K87: BL1611200H-EN | L87: BL3211200H-EN | M87: BL3511200H-EN | N87: BL3611200H-EN | O87: BL5211200H-EN | Q87: GravityZone Security for Virtualized Environments VDI | R87: GravityZone Security for Virtualized Environments VDI - EDU | S87: GravityZone Security for Virtualized Environments VDI - GOV | T87: GravityZone Security for Virtualized Environments VDI - R | U87: GravityZone Security for Virtualized Environments VDI - EDU R | V87: GravityZone Security for Virtualized Environments VDI - GOV R | W87: GravityZone Security for Virtualized Environments VDI - CUPG
A88: =IF(Products!$Z$8=$C$1,Q88,IF(Products!$Z$8=$C$2,R88,IF(Products!$Z$8=$C$3,S88,IF(Products!$Z$8=$C$4,T88,IF(Products!$Z$8=$C$5,W88,IF(Products!$Z$8=$C$6,U88,IF(Products!$Z$8=$C$7,V88))))))) -> GravityZone Security for Virtualized Environments VDI | B88: 2 years | C88: 1000 - 2999 | D88: GravityZone Security for Virtualized Environments VDI2 years1000 - 2999 | F88: 26.4 | G88: =IF(Products!$Z$8=$C$1,ROUND(F88*$B$3,2),IF(Products!$Z$8=$C$2,ROUND(F88*$B$3*(1+$D$2),2),IF(Products!$Z$8=$C$3,ROUND(F88*$B$3*(1+$D$3),2),IF(Products!$Z$8=$C$4,ROUND(F88*$B$3*(1+$D$4),2),IF(Products!$Z$8=$C$5,ROUND(F88*$B$3*(1+$D$5),2),IF(Products!$Z$8=$C$6,ROUND(F88*$B$3*(1+$D$6),2),IF(Products!$Z$8=$C$7,ROUND(F88*$B$3*(1+$D$7),2)))))))) -> 26.4 | H88: =IF(Products!$Z$8=$C$1,I88,IF(Products!$Z$8=$C$2,J88,IF(Products!$Z$8=$C$3,K88,IF(Products!$Z$8=$C$4,L88,IF(Products!$Z$8=$C$5,O88,IF(Products!$Z$8=$C$6,M88,IF(Products!$Z$8=$C$7,N88))))))) -> BL1211200I-EN | I88: BL1211200I-EN | J88: BL1511200I-EN | K88: BL1611200I-EN | L88: BL3211200I-EN | M88: BL3511200I-EN | N88: BL3611200I-EN | O88: BL5211200I-EN | Q88: GravityZone Security for Virtualized Environments VDI | R88: GravityZone Security for Virtualized Environments VDI - EDU | S88: GravityZone Security for Virtualized Environments VDI - GOV | T88: GravityZone Security for Virtualized Environments VDI - R | U88: GravityZone Security for Virtualized Environments VDI - EDU R | V88: GravityZone Security for Virtualized Environments VDI - GOV R | W88: GravityZone Security for Virtualized Environments VDI - CUPG
A89: =IF(Products!$Z$8=$C$1,Q89,IF(Products!$Z$8=$C$2,R89,IF(Products!$Z$8=$C$3,S89,IF(Products!$Z$8=$C$4,T89,IF(Products!$Z$8=$C$5,W89,IF(Products!$Z$8=$C$6,U89,IF(Products!$Z$8=$C$7,V89))))))) -> GravityZone Security for Virtualized Environments VDI | B89: 2 years | C89: 3000+ | D89: GravityZone Security for Virtualized Environments VDI2 years3000+ | F89: 23.76 | G89: =IF(Products!$Z$8=$C$1,ROUND(F89*$B$3,2),IF(Products!$Z$8=$C$2,ROUND(F89*$B$3*(1+$D$2),2),IF(Products!$Z$8=$C$3,ROUND(F89*$B$3*(1+$D$3),2),IF(Products!$Z$8=$C$4,ROUND(F89*$B$3*(1+$D$4),2),IF(Products!$Z$8=$C$5,ROUND(F89*$B$3*(1+$D$5),2),IF(Products!$Z$8=$C$6,ROUND(F89*$B$3*(1+$D$6),2),IF(Products!$Z$8=$C$7,ROUND(F89*$B$3*(1+$D$7),2)))))))) -> 23.76 | H89: =IF(Products!$Z$8=$C$1,I89,IF(Products!$Z$8=$C$2,J89,IF(Products!$Z$8=$C$3,K89,IF(Products!$Z$8=$C$4,L89,IF(Products!$Z$8=$C$5,O89,IF(Products!$Z$8=$C$6,M89,IF(Products!$Z$8=$C$7,N89))))))) -> BL1211200J-EN | I89: BL1211200J-EN | J89: BL1511200J-EN | K89: BL1611200J-EN | L89: BL3211200J-EN | M89: BL3511200J-EN | N89: BL3611200J-EN | O89: BL5211200J-EN | Q89: GravityZone Security for Virtualized Environments VDI | R89: GravityZone Security for Virtualized Environments VDI - EDU | S89: GravityZone Security for Virtualized Environments VDI - GOV | T89: GravityZone Security for Virtualized Environments VDI - R | U89: GravityZone Security for Virtualized Environments VDI - EDU R | V89: GravityZone Security for Virtualized Environments VDI - GOV R | W89: GravityZone Security for Virtualized Environments VDI - CUPG
A90: =IF(Products!$Z$8=$C$1,Q90,IF(Products!$Z$8=$C$2,R90,IF(Products!$Z$8=$C$3,S90,IF(Products!$Z$8=$C$4,T90,IF(Products!$Z$8=$C$5,W90,IF(Products!$Z$8=$C$6,U90,IF(Products!$Z$8=$C$7,V90))))))) -> GravityZone Security for Virtualized Environments VDI | B90: 3 years | C90: 5 - 14 | D90: GravityZone Security for Virtualized Environments VDI3 years5 - 14 | F90: 63.55 | G90: =IF(Products!$Z$8=$C$1,ROUND(F90*$B$3,2),IF(Products!$Z$8=$C$2,ROUND(F90*$B$3*(1+$D$2),2),IF(Products!$Z$8=$C$3,ROUND(F90*$B$3*(1+$D$3),2),IF(Products!$Z$8=$C$4,ROUND(F90*$B$3*(1+$D$4),2),IF(Products!$Z$8=$C$5,ROUND(F90*$B$3*(1+$D$5),2),IF(Products!$Z$8=$C$6,ROUND(F90*$B$3*(1+$D$6),2),IF(Products!$Z$8=$C$7,ROUND(F90*$B$3*(1+$D$7),2)))))))) -> 63.55 | H90: =IF(Products!$Z$8=$C$1,I90,IF(Products!$Z$8=$C$2,J90,IF(Products!$Z$8=$C$3,K90,IF(Products!$Z$8=$C$4,L90,IF(Products!$Z$8=$C$5,O90,IF(Products!$Z$8=$C$6,M90,IF(Products!$Z$8=$C$7,N90))))))) -> BL1211300A-EN | I90: BL1211300A-EN | J90: BL1511300A-EN | K90: BL1611300A-EN | L90: BL3211300A-EN | M90: BL3511300A-EN | N90: BL3611300A-EN | O90: BL5211300A-EN | Q90: GravityZone Security for Virtualized Environments VDI | R90: GravityZone Security for Virtualized Environments VDI - EDU | S90: GravityZone Security for Virtualized Environments VDI - GOV | T90: GravityZone Security for Virtualized Environments VDI - R | U90: GravityZone Security for Virtualized Environments VDI - EDU R | V90: GravityZone Security for Virtualized Environments VDI - GOV R | W90: GravityZone Security for Virtualized Environments VDI - CUPG
A91: =IF(Products!$Z$8=$C$1,Q91,IF(Products!$Z$8=$C$2,R91,IF(Products!$Z$8=$C$3,S91,IF(Products!$Z$8=$C$4,T91,IF(Products!$Z$8=$C$5,W91,IF(Products!$Z$8=$C$6,U91,IF(Products!$Z$8=$C$7,V91))))))) -> GravityZone Security for Virtualized Environments VDI | B91: 3 years | C91: 15 - 24 | D91: GravityZone Security for Virtualized Environments VDI3 years15 - 24 | F91: 60.9875 | G91: =IF(Products!$Z$8=$C$1,ROUND(F91*$B$3,2),IF(Products!$Z$8=$C$2,ROUND(F91*$B$3*(1+$D$2),2),IF(Products!$Z$8=$C$3,ROUND(F91*$B$3*(1+$D$3),2),IF(Products!$Z$8=$C$4,ROUND(F91*$B$3*(1+$D$4),2),IF(Products!$Z$8=$C$5,ROUND(F91*$B$3*(1+$D$5),2),IF(Products!$Z$8=$C$6,ROUND(F91*$B$3*(1+$D$6),2),IF(Products!$Z$8=$C$7,ROUND(F91*$B$3*(1+$D$7),2)))))))) -> 60.99 | H91: =IF(Products!$Z$8=$C$1,I91,IF(Products!$Z$8=$C$2,J91,IF(Products!$Z$8=$C$3,K91,IF(Products!$Z$8=$C$4,L91,IF(Products!$Z$8=$C$5,O91,IF(Products!$Z$8=$C$6,M91,IF(Products!$Z$8=$C$7,N91))))))) -> BL1211300B-EN | I91: BL1211300B-EN | J91: BL1511300B-EN | K91: BL1611300B-EN | L91: BL3211300B-EN | M91: BL3511300B-EN | N91: BL3611300B-EN | O91: BL5211300B-EN | Q91: GravityZone Security for Virtualized Environments VDI | R91: GravityZone Security for Virtualized Environments VDI - EDU | S91: GravityZone Security for Virtualized Environments VDI - GOV | T91: GravityZone Security for Virtualized Environments VDI - R | U91: GravityZone Security for Virtualized Environments VDI - EDU R | V91: GravityZone Security for Virtualized Environments VDI - GOV R | W91: GravityZone Security for Virtualized Environments VDI - CUPG
A92: =IF(Products!$Z$8=$C$1,Q92,IF(Products!$Z$8=$C$2,R92,IF(Products!$Z$8=$C$3,S92,IF(Products!$Z$8=$C$4,T92,IF(Products!$Z$8=$C$5,W92,IF(Products!$Z$8=$C$6,U92,IF(Products!$Z$8=$C$7,V92))))))) -> GravityZone Security for Virtualized Environments VDI | B92: 3 years | C92: 25 - 49 | D92: GravityZone Security for Virtualized Environments VDI3 years25 - 49 | F92: 57.9125 | G92: =IF(Products!$Z$8=$C$1,ROUND(F92*$B$3,2),IF(Products!$Z$8=$C$2,ROUND(F92*$B$3*(1+$D$2),2),IF(Products!$Z$8=$C$3,ROUND(F92*$B$3*(1+$D$3),2),IF(Products!$Z$8=$C$4,ROUND(F92*$B$3*(1+$D$4),2),IF(Products!$Z$8=$C$5,ROUND(F92*$B$3*(1+$D$5),2),IF(Products!$Z$8=$C$6,ROUND(F92*$B$3*(1+$D$6),2),IF(Products!$Z$8=$C$7,ROUND(F92*$B$3*(1+$D$7),2)))))))) -> 57.91 | H92: =IF(Products!$Z$8=$C$1,I92,IF(Products!$Z$8=$C$2,J92,IF(Products!$Z$8=$C$3,K92,IF(Products!$Z$8=$C$4,L92,IF(Products!$Z$8=$C$5,O92,IF(Products!$Z$8=$C$6,M92,IF(Products!$Z$8=$C$7,N92))))))) -> BL1211300C-EN | I92: BL1211300C-EN | J92: BL1511300C-EN | K92: BL1611300C-EN | L92: BL3211300C-EN | M92: BL3511300C-EN | N92: BL3611300C-EN | O92: BL5211300C-EN | Q92: GravityZone Security for Virtualized Environments VDI | R92: GravityZone Security for Virtualized Environments VDI - EDU | S92: GravityZone Security for Virtualized Environments VDI - GOV | T92: GravityZone Security for Virtualized Environments VDI - R | U92: GravityZone Security for Virtualized Environments VDI - EDU R | V92: GravityZone Security for Virtualized Environments VDI - GOV R | W92: GravityZone Security for Virtualized Environments VDI - CUPG
A93: =IF(Products!$Z$8=$C$1,Q93,IF(Products!$Z$8=$C$2,R93,IF(Products!$Z$8=$C$3,S93,IF(Products!$Z$8=$C$4,T93,IF(Products!$Z$8=$C$5,W93,IF(Products!$Z$8=$C$6,U93,IF(Products!$Z$8=$C$7,V93))))))) -> GravityZone Security for Virtualized Environments VDI | B93: 3 years | C93: 50 - 99 | D93: GravityZone Security for Virtualized Environments VDI3 years50 - 99 | F93: 53.915 | G93: =IF(Products!$Z$8=$C$1,ROUND(F93*$B$3,2),IF(Products!$Z$8=$C$2,ROUND(F93*$B$3*(1+$D$2),2),IF(Products!$Z$8=$C$3,ROUND(F93*$B$3*(1+$D$3),2),IF(Products!$Z$8=$C$4,ROUND(F93*$B$3*(1+$D$4),2),IF(Products!$Z$8=$C$5,ROUND(F93*$B$3*(1+$D$5),2),IF(Products!$Z$8=$C$6,ROUND(F93*$B$3*(1+$D$6),2),IF(Products!$Z$8=$C$7,ROUND(F93*$B$3*(1+$D$7),2)))))))) -> 53.92 | H93: =IF(Products!$Z$8=$C$1,I93,IF(Products!$Z$8=$C$2,J93,IF(Products!$Z$8=$C$3,K93,IF(Products!$Z$8=$C$4,L93,IF(Products!$Z$8=$C$5,O93,IF(Products!$Z$8=$C$6,M93,IF(Products!$Z$8=$C$7,N93))))))) -> BL1211300D-EN | I93: BL1211300D-EN | J93: BL1511300D-EN | K93: BL1611300D-EN | L93: BL3211300D-EN | M93: BL3511300D-EN | N93: BL3611300D-EN | O93: BL5211300D-EN | Q93: GravityZone Security for Virtualized Environments VDI | R93: GravityZone Security for Virtualized Environments VDI - EDU | S93: GravityZone Security for Virtualized Environments VDI - GOV | T93: GravityZone Security for Virtualized Environments VDI - R | U93: GravityZone Security for Virtualized Environments VDI - EDU R | V93: GravityZone Security for Virtualized Environments VDI - GOV R | W93: GravityZone Security for Virtualized Environments VDI - CUPG
A94: =IF(Products!$Z$8=$C$1,Q94,IF(Products!$Z$8=$C$2,R94,IF(Products!$Z$8=$C$3,S94,IF(Products!$Z$8=$C$4,T94,IF(Products!$Z$8=$C$5,W94,IF(Products!$Z$8=$C$6,U94,IF(Products!$Z$8=$C$7,V94))))))) -> GravityZone Security for Virtualized Environments VDI | B94: 3 years | C94: 100 - 149 | D94: GravityZone Security for Virtualized Environments VDI3 years100 - 149 | F94: 48.995 | G94: =IF(Products!$Z$8=$C$1,ROUND(F94*$B$3,2),IF(Products!$Z$8=$C$2,ROUND(F94*$B$3*(1+$D$2),2),IF(Products!$Z$8=$C$3,ROUND(F94*$B$3*(1+$D$3),2),IF(Products!$Z$8=$C$4,ROUND(F94*$B$3*(1+$D$4),2),IF(Products!$Z$8=$C$5,ROUND(F94*$B$3*(1+$D$5),2),IF(Products!$Z$8=$C$6,ROUND(F94*$B$3*(1+$D$6),2),IF(Products!$Z$8=$C$7,ROUND(F94*$B$3*(1+$D$7),2)))))))) -> 49 | H94: =IF(Products!$Z$8=$C$1,I94,IF(Products!$Z$8=$C$2,J94,IF(Products!$Z$8=$C$3,K94,IF(Products!$Z$8=$C$4,L94,IF(Products!$Z$8=$C$5,O94,IF(Products!$Z$8=$C$6,M94,IF(Products!$Z$8=$C$7,N94))))))) -> BL1211300E-EN | I94: BL1211300E-EN | J94: BL1511300E-EN | K94: BL1611300E-EN | L94: BL3211300E-EN | M94: BL3511300E-EN | N94: BL3611300E-EN | O94: BL5211300E-EN | Q94: GravityZone Security for Virtualized Environments VDI | R94: GravityZone Security for Virtualized Environments VDI - EDU | S94: GravityZone Security for Virtualized Environments VDI - GOV | T94: GravityZone Security for Virtualized Environments VDI - R | U94: GravityZone Security for Virtualized Environments VDI - EDU R | V94: GravityZone Security for Virtualized Environments VDI - GOV R | W94: GravityZone Security for Virtualized Environments VDI - CUPG
A95: =IF(Products!$Z$8=$C$1,Q95,IF(Products!$Z$8=$C$2,R95,IF(Products!$Z$8=$C$3,S95,IF(Products!$Z$8=$C$4,T95,IF(Products!$Z$8=$C$5,W95,IF(Products!$Z$8=$C$6,U95,IF(Products!$Z$8=$C$7,V95))))))) -> GravityZone Security for Virtualized Environments VDI | B95: 3 years | C95: 150 - 249 | D95: GravityZone Security for Virtualized Environments VDI3 years150 - 249 | F95: 46.4325 | G95: =IF(Products!$Z$8=$C$1,ROUND(F95*$B$3,2),IF(Products!$Z$8=$C$2,ROUND(F95*$B$3*(1+$D$2),2),IF(Products!$Z$8=$C$3,ROUND(F95*$B$3*(1+$D$3),2),IF(Products!$Z$8=$C$4,ROUND(F95*$B$3*(1+$D$4),2),IF(Products!$Z$8=$C$5,ROUND(F95*$B$3*(1+$D$5),2),IF(Products!$Z$8=$C$6,ROUND(F95*$B$3*(1+$D$6),2),IF(Products!$Z$8=$C$7,ROUND(F95*$B$3*(1+$D$7),2)))))))) -> 46.43 | H95: =IF(Products!$Z$8=$C$1,I95,IF(Products!$Z$8=$C$2,J95,IF(Products!$Z$8=$C$3,K95,IF(Products!$Z$8=$C$4,L95,IF(Products!$Z$8=$C$5,O95,IF(Products!$Z$8=$C$6,M95,IF(Products!$Z$8=$C$7,N95))))))) -> BL1211300F-EN | I95: BL1211300F-EN | J95: BL1511300F-EN | K95: BL1611300F-EN | L95: BL3211300F-EN | M95: BL3511300F-EN | N95: BL3611300F-EN | O95: BL5211300F-EN | Q95: GravityZone Security for Virtualized Environments VDI | R95: GravityZone Security for Virtualized Environments VDI - EDU | S95: GravityZone Security for Virtualized Environments VDI - GOV | T95: GravityZone Security for Virtualized Environments VDI - R | U95: GravityZone Security for Virtualized Environments VDI - EDU R | V95: GravityZone Security for Virtualized Environments VDI - GOV R | W95: GravityZone Security for Virtualized Environments VDI - CUPG
A96: =IF(Products!$Z$8=$C$1,Q96,IF(Products!$Z$8=$C$2,R96,IF(Products!$Z$8=$C$3,S96,IF(Products!$Z$8=$C$4,T96,IF(Products!$Z$8=$C$5,W96,IF(Products!$Z$8=$C$6,U96,IF(Products!$Z$8=$C$7,V96))))))) -> GravityZone Security for Virtualized Environments VDI | B96: 3 years | C96: 250 - 499 | D96: GravityZone Security for Virtualized Environments VDI3 years250 - 499 | F96: 41.82 | G96: =IF(Products!$Z$8=$C$1,ROUND(F96*$B$3,2),IF(Products!$Z$8=$C$2,ROUND(F96*$B$3*(1+$D$2),2),IF(Products!$Z$8=$C$3,ROUND(F96*$B$3*(1+$D$3),2),IF(Products!$Z$8=$C$4,ROUND(F96*$B$3*(1+$D$4),2),IF(Products!$Z$8=$C$5,ROUND(F96*$B$3*(1+$D$5),2),IF(Products!$Z$8=$C$6,ROUND(F96*$B$3*(1+$D$6),2),IF(Products!$Z$8=$C$7,ROUND(F96*$B$3*(1+$D$7),2)))))))) -> 41.82 | H96: =IF(Products!$Z$8=$C$1,I96,IF(Products!$Z$8=$C$2,J96,IF(Products!$Z$8=$C$3,K96,IF(Products!$Z$8=$C$4,L96,IF(Products!$Z$8=$C$5,O96,IF(Products!$Z$8=$C$6,M96,IF(Products!$Z$8=$C$7,N96))))))) -> BL1211300G-EN | I96: BL1211300G-EN | J96: BL1511300G-EN | K96: BL1611300G-EN | L96: BL3211300G-EN | M96: BL3511300G-EN | N96: BL3611300G-EN | O96: BL5211300G-EN | Q96: GravityZone Security for Virtualized Environments VDI | R96: GravityZone Security for Virtualized Environments VDI - EDU | S96: GravityZone Security for Virtualized Environments VDI - GOV | T96: GravityZone Security for Virtualized Environments VDI - R | U96: GravityZone Security for Virtualized Environments VDI - EDU R | V96: GravityZone Security for Virtualized Environments VDI - GOV R | W96: GravityZone Security for Virtualized Environments VDI - CUPG
A97: =IF(Products!$Z$8=$C$1,Q97,IF(Products!$Z$8=$C$2,R97,IF(Products!$Z$8=$C$3,S97,IF(Products!$Z$8=$C$4,T97,IF(Products!$Z$8=$C$5,W97,IF(Products!$Z$8=$C$6,U97,IF(Products!$Z$8=$C$7,V97))))))) -> GravityZone Security for Virtualized Environments VDI | B97: 3 years | C97: 500 - 999 | D97: GravityZone Security for Virtualized Environments VDI3 years500 - 999 | F97: 37.6175 | G97: =IF(Products!$Z$8=$C$1,ROUND(F97*$B$3,2),IF(Products!$Z$8=$C$2,ROUND(F97*$B$3*(1+$D$2),2),IF(Products!$Z$8=$C$3,ROUND(F97*$B$3*(1+$D$3),2),IF(Products!$Z$8=$C$4,ROUND(F97*$B$3*(1+$D$4),2),IF(Products!$Z$8=$C$5,ROUND(F97*$B$3*(1+$D$5),2),IF(Products!$Z$8=$C$6,ROUND(F97*$B$3*(1+$D$6),2),IF(Products!$Z$8=$C$7,ROUND(F97*$B$3*(1+$D$7),2)))))))) -> 37.62 | H97: =IF(Products!$Z$8=$C$1,I97,IF(Products!$Z$8=$C$2,J97,IF(Products!$Z$8=$C$3,K97,IF(Products!$Z$8=$C$4,L97,IF(Products!$Z$8=$C$5,O97,IF(Products!$Z$8=$C$6,M97,IF(Products!$Z$8=$C$7,N97))))))) -> BL1211300H-EN | I97: BL1211300H-EN | J97: BL1511300H-EN | K97: BL1611300H-EN | L97: BL3211300H-EN | M97: BL3511300H-EN | N97: BL3611300H-EN | O97: BL5211300H-EN | Q97: GravityZone Security for Virtualized Environments VDI | R97: GravityZone Security for Virtualized Environments VDI - EDU | S97: GravityZone Security for Virtualized Environments VDI - GOV | T97: GravityZone Security for Virtualized Environments VDI - R | U97: GravityZone Security for Virtualized Environments VDI - EDU R | V97: GravityZone Security for Virtualized Environments VDI - GOV R | W97: GravityZone Security for Virtualized Environments VDI - CUPG
A98: =IF(Products!$Z$8=$C$1,Q98,IF(Products!$Z$8=$C$2,R98,IF(Products!$Z$8=$C$3,S98,IF(Products!$Z$8=$C$4,T98,IF(Products!$Z$8=$C$5,W98,IF(Products!$Z$8=$C$6,U98,IF(Products!$Z$8=$C$7,V98))))))) -> GravityZone Security for Virtualized Environments VDI | B98: 3 years | C98: 1000 - 2999 | D98: GravityZone Security for Virtualized Environments VDI3 years1000 - 2999 | F98: 33.825 | G98: =IF(Products!$Z$8=$C$1,ROUND(F98*$B$3,2),IF(Products!$Z$8=$C$2,ROUND(F98*$B$3*(1+$D$2),2),IF(Products!$Z$8=$C$3,ROUND(F98*$B$3*(1+$D$3),2),IF(Products!$Z$8=$C$4,ROUND(F98*$B$3*(1+$D$4),2),IF(Products!$Z$8=$C$5,ROUND(F98*$B$3*(1+$D$5),2),IF(Products!$Z$8=$C$6,ROUND(F98*$B$3*(1+$D$6),2),IF(Products!$Z$8=$C$7,ROUND(F98*$B$3*(1+$D$7),2)))))))) -> 33.83 | H98: =IF(Products!$Z$8=$C$1,I98,IF(Products!$Z$8=$C$2,J98,IF(Products!$Z$8=$C$3,K98,IF(Products!$Z$8=$C$4,L98,IF(Products!$Z$8=$C$5,O98,IF(Products!$Z$8=$C$6,M98,IF(Products!$Z$8=$C$7,N98))))))) -> BL1211300I-EN | I98: BL1211300I-EN | J98: BL1511300I-EN | K98: BL1611300I-EN | L98: BL3211300I-EN | M98: BL3511300I-EN | N98: BL3611300I-EN | O98: BL5211300I-EN | Q98: GravityZone Security for Virtualized Environments VDI | R98: GravityZone Security for Virtualized Environments VDI - EDU | S98: GravityZone Security for Virtualized Environments VDI - GOV | T98: GravityZone Security for Virtualized Environments VDI - R | U98: GravityZone Security for Virtualized Environments VDI - EDU R | V98: GravityZone Security for Virtualized Environments VDI - GOV R | W98: GravityZone Security for Virtualized Environments VDI - CUPG
A99: =IF(Products!$Z$8=$C$1,Q99,IF(Products!$Z$8=$C$2,R99,IF(Products!$Z$8=$C$3,S99,IF(Products!$Z$8=$C$4,T99,IF(Products!$Z$8=$C$5,W99,IF(Products!$Z$8=$C$6,U99,IF(Products!$Z$8=$C$7,V99))))))) -> GravityZone Security for Virtualized Environments VDI | B99: 3 years | C99: 3000+ | D99: GravityZone Security for Virtualized Environments VDI3 years3000+ | F99: 30.4425 | G99: =IF(Products!$Z$8=$C$1,ROUND(F99*$B$3,2),IF(Products!$Z$8=$C$2,ROUND(F99*$B$3*(1+$D$2),2),IF(Products!$Z$8=$C$3,ROUND(F99*$B$3*(1+$D$3),2),IF(Products!$Z$8=$C$4,ROUND(F99*$B$3*(1+$D$4),2),IF(Products!$Z$8=$C$5,ROUND(F99*$B$3*(1+$D$5),2),IF(Products!$Z$8=$C$6,ROUND(F99*$B$3*(1+$D$6),2),IF(Products!$Z$8=$C$7,ROUND(F99*$B$3*(1+$D$7),2)))))))) -> 30.44 | H99: =IF(Products!$Z$8=$C$1,I99,IF(Products!$Z$8=$C$2,J99,IF(Products!$Z$8=$C$3,K99,IF(Products!$Z$8=$C$4,L99,IF(Products!$Z$8=$C$5,O99,IF(Products!$Z$8=$C$6,M99,IF(Products!$Z$8=$C$7,N99))))))) -> BL1211300J-EN | I99: BL1211300J-EN | J99: BL1511300J-EN | K99: BL1611300J-EN | L99: BL3211300J-EN | M99: BL3511300J-EN | N99: BL3611300J-EN | O99: BL5211300J-EN | Q99: GravityZone Security for Virtualized Environments VDI | R99: GravityZone Security for Virtualized Environments VDI - EDU | S99: GravityZone Security for Virtualized Environments VDI - GOV | T99: GravityZone Security for Virtualized Environments VDI - R | U99: GravityZone Security for Virtualized Environments VDI - EDU R | V99: GravityZone Security for Virtualized Environments VDI - GOV R | W99: GravityZone Security for Virtualized Environments VDI - CUPG
A100: =IF(Products!$Z$8=$C$1,Q100,IF(Products!$Z$8=$C$2,R100,IF(Products!$Z$8=$C$3,S100,IF(Products!$Z$8=$C$4,T100,IF(Products!$Z$8=$C$5,W100,IF(Products!$Z$8=$C$6,U100,IF(Products!$Z$8=$C$7,V100))))))) -> GravityZone Security for Virtualized Environments VS | B100: 1 year | C100: 1 - 14 | D100: GravityZone Security for Virtualized Environments VS1 year1 - 14 | F100: 92 | G100: =IF(Products!$Z$8=$C$1,ROUND(F100*$B$3,2),IF(Products!$Z$8=$C$2,ROUND(F100*$B$3*(1+$D$2),2),IF(Products!$Z$8=$C$3,ROUND(F100*$B$3*(1+$D$3),2),IF(Products!$Z$8=$C$4,ROUND(F100*$B$3*(1+$D$4),2),IF(Products!$Z$8=$C$5,ROUND(F100*$B$3*(1+$D$5),2),IF(Products!$Z$8=$C$6,ROUND(F100*$B$3*(1+$D$6),2),IF(Products!$Z$8=$C$7,ROUND(F100*$B$3*(1+$D$7),2)))))))) -> 92 | H100: =IF(Products!$Z$8=$C$1,I100,IF(Products!$Z$8=$C$2,J100,IF(Products!$Z$8=$C$3,K100,IF(Products!$Z$8=$C$4,L100,IF(Products!$Z$8=$C$5,O100,IF(Products!$Z$8=$C$6,M100,IF(Products!$Z$8=$C$7,N100))))))) -> BL1225100A-EN | I100: BL1225100A-EN | J100: BL1525100A-EN | K100: BL1625100A-EN | L100: BL3225100A-EN | M100: BL3525100A-EN | N100: BL3625100A-EN | O100: BL5225100A-EN | Q100: GravityZone Security for Virtualized Environments VS | R100: GravityZone Security for Virtualized Environments VS - EDU | S100: GravityZone Security for Virtualized Environments VS - GOV | T100: GravityZone Security for Virtualized Environments VS - R | U100: GravityZone Security for Virtualized Environments VS - EDU R | V100: GravityZone Security for Virtualized Environments VS - GOV R | W100: GravityZone Security for Virtualized Environments VS - CUPG
A101: =IF(Products!$Z$8=$C$1,Q101,IF(Products!$Z$8=$C$2,R101,IF(Products!$Z$8=$C$3,S101,IF(Products!$Z$8=$C$4,T101,IF(Products!$Z$8=$C$5,W101,IF(Products!$Z$8=$C$6,U101,IF(Products!$Z$8=$C$7,V101))))))) -> GravityZone Security for Virtualized Environments VS | B101: 1 year | C101: 15 - 24 | D101: GravityZone Security for Virtualized Environments VS1 year15 - 24 | F101: 82.8 | G101: =IF(Products!$Z$8=$C$1,ROUND(F101*$B$3,2),IF(Products!$Z$8=$C$2,ROUND(F101*$B$3*(1+$D$2),2),IF(Products!$Z$8=$C$3,ROUND(F101*$B$3*(1+$D$3),2),IF(Products!$Z$8=$C$4,ROUND(F101*$B$3*(1+$D$4),2),IF(Products!$Z$8=$C$5,ROUND(F101*$B$3*(1+$D$5),2),IF(Products!$Z$8=$C$6,ROUND(F101*$B$3*(1+$D$6),2),IF(Products!$Z$8=$C$7,ROUND(F101*$B$3*(1+$D$7),2)))))))) -> 82.8 | H101: =IF(Products!$Z$8=$C$1,I101,IF(Products!$Z$8=$C$2,J101,IF(Products!$Z$8=$C$3,K101,IF(Products!$Z$8=$C$4,L101,IF(Products!$Z$8=$C$5,O101,IF(Products!$Z$8=$C$6,M101,IF(Products!$Z$8=$C$7,N101))))))) -> BL1225100B-EN | I101: BL1225100B-EN | J101: BL1525100B-EN | K101: BL1625100B-EN | L101: BL3225100B-EN | M101: BL3525100B-EN | N101: BL3625100B-EN | O101: BL5225100B-EN | Q101: GravityZone Security for Virtualized Environments VS | R101: GravityZone Security for Virtualized Environments VS - EDU | S101: GravityZone Security for Virtualized Environments VS - GOV | T101: GravityZone Security for Virtualized Environments VS - R | U101: GravityZone Security for Virtualized Environments VS - EDU R | V101: GravityZone Security for Virtualized Environments VS - GOV R | W101: GravityZone Security for Virtualized Environments VS - CUPG
A102: =IF(Products!$Z$8=$C$1,Q102,IF(Products!$Z$8=$C$2,R102,IF(Products!$Z$8=$C$3,S102,IF(Products!$Z$8=$C$4,T102,IF(Products!$Z$8=$C$5,W102,IF(Products!$Z$8=$C$6,U102,IF(Products!$Z$8=$C$7,V102))))))) -> GravityZone Security for Virtualized Environments VS | B102: 1 year | C102: 25 - 49 | D102: GravityZone Security for Virtualized Environments VS1 year25 - 49 | F102: 76.2 | G102: =IF(Products!$Z$8=$C$1,ROUND(F102*$B$3,2),IF(Products!$Z$8=$C$2,ROUND(F102*$B$3*(1+$D$2),2),IF(Products!$Z$8=$C$3,ROUND(F102*$B$3*(1+$D$3),2),IF(Products!$Z$8=$C$4,ROUND(F102*$B$3*(1+$D$4),2),IF(Products!$Z$8=$C$5,ROUND(F102*$B$3*(1+$D$5),2),IF(Products!$Z$8=$C$6,ROUND(F102*$B$3*(1+$D$6),2),IF(Products!$Z$8=$C$7,ROUND(F102*$B$3*(1+$D$7),2)))))))) -> 76.2 | H102: =IF(Products!$Z$8=$C$1,I102,IF(Products!$Z$8=$C$2,J102,IF(Products!$Z$8=$C$3,K102,IF(Products!$Z$8=$C$4,L102,IF(Products!$Z$8=$C$5,O102,IF(Products!$Z$8=$C$6,M102,IF(Products!$Z$8=$C$7,N102))))))) -> BL1225100C-EN | I102: BL1225100C-EN | J102: BL1525100C-EN | K102: BL1625100C-EN | L102: BL3225100C-EN | M102: BL3525100C-EN | N102: BL3625100C-EN | O102: BL5225100C-EN | Q102: GravityZone Security for Virtualized Environments VS | R102: GravityZone Security for Virtualized Environments VS - EDU | S102: GravityZone Security for Virtualized Environments VS - GOV | T102: GravityZone Security for Virtualized Environments VS - R | U102: GravityZone Security for Virtualized Environments VS - EDU R | V102: GravityZone Security for Virtualized Environments VS - GOV R | W102: GravityZone Security for Virtualized Environments VS - CUPG
A103: =IF(Products!$Z$8=$C$1,Q103,IF(Products!$Z$8=$C$2,R103,IF(Products!$Z$8=$C$3,S103,IF(Products!$Z$8=$C$4,T103,IF(Products!$Z$8=$C$5,W103,IF(Products!$Z$8=$C$6,U103,IF(Products!$Z$8=$C$7,V103))))))) -> GravityZone Security for Virtualized Environments VS | B103: 1 year | C103: 50 - 99 | D103: GravityZone Security for Virtualized Environments VS1 year50 - 99 | F103: 68.5 | G103: =IF(Products!$Z$8=$C$1,ROUND(F103*$B$3,2),IF(Products!$Z$8=$C$2,ROUND(F103*$B$3*(1+$D$2),2),IF(Products!$Z$8=$C$3,ROUND(F103*$B$3*(1+$D$3),2),IF(Products!$Z$8=$C$4,ROUND(F103*$B$3*(1+$D$4),2),IF(Products!$Z$8=$C$5,ROUND(F103*$B$3*(1+$D$5),2),IF(Products!$Z$8=$C$6,ROUND(F103*$B$3*(1+$D$6),2),IF(Products!$Z$8=$C$7,ROUND(F103*$B$3*(1+$D$7),2)))))))) -> 68.5 | H103: =IF(Products!$Z$8=$C$1,I103,IF(Products!$Z$8=$C$2,J103,IF(Products!$Z$8=$C$3,K103,IF(Products!$Z$8=$C$4,L103,IF(Products!$Z$8=$C$5,O103,IF(Products!$Z$8=$C$6,M103,IF(Products!$Z$8=$C$7,N103))))))) -> BL1225100D-EN | I103: BL1225100D-EN | J103: BL1525100D-EN | K103: BL1625100D-EN | L103: BL3225100D-EN | M103: BL3525100D-EN | N103: BL3625100D-EN | O103: BL5225100D-EN | Q103: GravityZone Security for Virtualized Environments VS | R103: GravityZone Security for Virtualized Environments VS - EDU | S103: GravityZone Security for Virtualized Environments VS - GOV | T103: GravityZone Security for Virtualized Environments VS - R | U103: GravityZone Security for Virtualized Environments VS - EDU R | V103: GravityZone Security for Virtualized Environments VS - GOV R | W103: GravityZone Security for Virtualized Environments VS - CUPG
A104: =IF(Products!$Z$8=$C$1,Q104,IF(Products!$Z$8=$C$2,R104,IF(Products!$Z$8=$C$3,S104,IF(Products!$Z$8=$C$4,T104,IF(Products!$Z$8=$C$5,W104,IF(Products!$Z$8=$C$6,U104,IF(Products!$Z$8=$C$7,V104))))))) -> GravityZone Security for Virtualized Environments VS | B104: 1 year | C104: 100 - 149 | D104: GravityZone Security for Virtualized Environments VS1 year100 - 149 | F104: 61.7 | G104: =IF(Products!$Z$8=$C$1,ROUND(F104*$B$3,2),IF(Products!$Z$8=$C$2,ROUND(F104*$B$3*(1+$D$2),2),IF(Products!$Z$8=$C$3,ROUND(F104*$B$3*(1+$D$3),2),IF(Products!$Z$8=$C$4,ROUND(F104*$B$3*(1+$D$4),2),IF(Products!$Z$8=$C$5,ROUND(F104*$B$3*(1+$D$5),2),IF(Products!$Z$8=$C$6,ROUND(F104*$B$3*(1+$D$6),2),IF(Products!$Z$8=$C$7,ROUND(F104*$B$3*(1+$D$7),2)))))))) -> 61.7 | H104: =IF(Products!$Z$8=$C$1,I104,IF(Products!$Z$8=$C$2,J104,IF(Products!$Z$8=$C$3,K104,IF(Products!$Z$8=$C$4,L104,IF(Products!$Z$8=$C$5,O104,IF(Products!$Z$8=$C$6,M104,IF(Products!$Z$8=$C$7,N104))))))) -> BL1225100E-EN | I104: BL1225100E-EN | J104: BL1525100E-EN | K104: BL1625100E-EN | L104: BL3225100E-EN | M104: BL3525100E-EN | N104: BL3625100E-EN | O104: BL5225100E-EN | Q104: GravityZone Security for Virtualized Environments VS | R104: GravityZone Security for Virtualized Environments VS - EDU | S104: GravityZone Security for Virtualized Environments VS - GOV | T104: GravityZone Security for Virtualized Environments VS - R | U104: GravityZone Security for Virtualized Environments VS - EDU R | V104: GravityZone Security for Virtualized Environments VS - GOV R | W104: GravityZone Security for Virtualized Environments VS - CUPG
A105: =IF(Products!$Z$8=$C$1,Q105,IF(Products!$Z$8=$C$2,R105,IF(Products!$Z$8=$C$3,S105,IF(Products!$Z$8=$C$4,T105,IF(Products!$Z$8=$C$5,W105,IF(Products!$Z$8=$C$6,U105,IF(Products!$Z$8=$C$7,V105))))))) -> GravityZone Security for Virtualized Environments VS | B105: 1 year | C105: 150 - 249 | D105: GravityZone Security for Virtualized Environments VS1 year150 - 249 | F105: 58.6 | G105: =IF(Products!$Z$8=$C$1,ROUND(F105*$B$3,2),IF(Products!$Z$8=$C$2,ROUND(F105*$B$3*(1+$D$2),2),IF(Products!$Z$8=$C$3,ROUND(F105*$B$3*(1+$D$3),2),IF(Products!$Z$8=$C$4,ROUND(F105*$B$3*(1+$D$4),2),IF(Products!$Z$8=$C$5,ROUND(F105*$B$3*(1+$D$5),2),IF(Products!$Z$8=$C$6,ROUND(F105*$B$3*(1+$D$6),2),IF(Products!$Z$8=$C$7,ROUND(F105*$B$3*(1+$D$7),2)))))))) -> 58.6 | H105: =IF(Products!$Z$8=$C$1,I105,IF(Products!$Z$8=$C$2,J105,IF(Products!$Z$8=$C$3,K105,IF(Products!$Z$8=$C$4,L105,IF(Products!$Z$8=$C$5,O105,IF(Products!$Z$8=$C$6,M105,IF(Products!$Z$8=$C$7,N105))))))) -> BL1225100F-EN | I105: BL1225100F-EN | J105: BL1525100F-EN | K105: BL1625100F-EN | L105: BL3225100F-EN | M105: BL3525100F-EN | N105: BL3625100F-EN | O105: BL5225100F-EN | Q105: GravityZone Security for Virtualized Environments VS | R105: GravityZone Security for Virtualized Environments VS - EDU | S105: GravityZone Security for Virtualized Environments VS - GOV | T105: GravityZone Security for Virtualized Environments VS - R | U105: GravityZone Security for Virtualized Environments VS - EDU R | V105: GravityZone Security for Virtualized Environments VS - GOV R | W105: GravityZone Security for Virtualized Environments VS - CUPG
A106: =IF(Products!$Z$8=$C$1,Q106,IF(Products!$Z$8=$C$2,R106,IF(Products!$Z$8=$C$3,S106,IF(Products!$Z$8=$C$4,T106,IF(Products!$Z$8=$C$5,W106,IF(Products!$Z$8=$C$6,U106,IF(Products!$Z$8=$C$7,V106))))))) -> GravityZone Security for Virtualized Environments VS | B106: 1 year | C106: 250 - 499 | D106: GravityZone Security for Virtualized Environments VS1 year250 - 499 | F106: 53.35 | G106: =IF(Products!$Z$8=$C$1,ROUND(F106*$B$3,2),IF(Products!$Z$8=$C$2,ROUND(F106*$B$3*(1+$D$2),2),IF(Products!$Z$8=$C$3,ROUND(F106*$B$3*(1+$D$3),2),IF(Products!$Z$8=$C$4,ROUND(F106*$B$3*(1+$D$4),2),IF(Products!$Z$8=$C$5,ROUND(F106*$B$3*(1+$D$5),2),IF(Products!$Z$8=$C$6,ROUND(F106*$B$3*(1+$D$6),2),IF(Products!$Z$8=$C$7,ROUND(F106*$B$3*(1+$D$7),2)))))))) -> 53.35 | H106: =IF(Products!$Z$8=$C$1,I106,IF(Products!$Z$8=$C$2,J106,IF(Products!$Z$8=$C$3,K106,IF(Products!$Z$8=$C$4,L106,IF(Products!$Z$8=$C$5,O106,IF(Products!$Z$8=$C$6,M106,IF(Products!$Z$8=$C$7,N106))))))) -> BL1225100G-EN | I106: BL1225100G-EN | J106: BL1525100G-EN | K106: BL1625100G-EN | L106: BL3225100G-EN | M106: BL3525100G-EN | N106: BL3625100G-EN | O106: BL5225100G-EN | Q106: GravityZone Security for Virtualized Environments VS | R106: GravityZone Security for Virtualized Environments VS - EDU | S106: GravityZone Security for Virtualized Environments VS - GOV | T106: GravityZone Security for Virtualized Environments VS - R | U106: GravityZone Security for Virtualized Environments VS - EDU R | V106: GravityZone Security for Virtualized Environments VS - GOV R | W106: GravityZone Security for Virtualized Environments VS - CUPG
A107: =IF(Products!$Z$8=$C$1,Q107,IF(Products!$Z$8=$C$2,R107,IF(Products!$Z$8=$C$3,S107,IF(Products!$Z$8=$C$4,T107,IF(Products!$Z$8=$C$5,W107,IF(Products!$Z$8=$C$6,U107,IF(Products!$Z$8=$C$7,V107))))))) -> GravityZone Security for Virtualized Environments VS | B107: 1 year | C107: 500 - 999 | D107: GravityZone Security for Virtualized Environments VS1 year500 - 999 | F107: 48 | G107: =IF(Products!$Z$8=$C$1,ROUND(F107*$B$3,2),IF(Products!$Z$8=$C$2,ROUND(F107*$B$3*(1+$D$2),2),IF(Products!$Z$8=$C$3,ROUND(F107*$B$3*(1+$D$3),2),IF(Products!$Z$8=$C$4,ROUND(F107*$B$3*(1+$D$4),2),IF(Products!$Z$8=$C$5,ROUND(F107*$B$3*(1+$D$5),2),IF(Products!$Z$8=$C$6,ROUND(F107*$B$3*(1+$D$6),2),IF(Products!$Z$8=$C$7,ROUND(F107*$B$3*(1+$D$7),2)))))))) -> 48 | H107: =IF(Products!$Z$8=$C$1,I107,IF(Products!$Z$8=$C$2,J107,IF(Products!$Z$8=$C$3,K107,IF(Products!$Z$8=$C$4,L107,IF(Products!$Z$8=$C$5,O107,IF(Products!$Z$8=$C$6,M107,IF(Products!$Z$8=$C$7,N107))))))) -> BL1225100H-EN | I107: BL1225100H-EN | J107: BL1525100H-EN | K107: BL1625100H-EN | L107: BL3225100H-EN | M107: BL3525100H-EN | N107: BL3625100H-EN | O107: BL5225100H-EN | Q107: GravityZone Security for Virtualized Environments VS | R107: GravityZone Security for Virtualized Environments VS - EDU | S107: GravityZone Security for Virtualized Environments VS - GOV | T107: GravityZone Security for Virtualized Environments VS - R | U107: GravityZone Security for Virtualized Environments VS - EDU R | V107: GravityZone Security for Virtualized Environments VS - GOV R | W107: GravityZone Security for Virtualized Environments VS - CUPG
A108: =IF(Products!$Z$8=$C$1,Q108,IF(Products!$Z$8=$C$2,R108,IF(Products!$Z$8=$C$3,S108,IF(Products!$Z$8=$C$4,T108,IF(Products!$Z$8=$C$5,W108,IF(Products!$Z$8=$C$6,U108,IF(Products!$Z$8=$C$7,V108))))))) -> GravityZone Security for Virtualized Environments VS | B108: 1 year | C108: 1000 - 2999 | D108: GravityZone Security for Virtualized Environments VS1 year1000 - 2999 | F108: 43.7 | G108: =IF(Products!$Z$8=$C$1,ROUND(F108*$B$3,2),IF(Products!$Z$8=$C$2,ROUND(F108*$B$3*(1+$D$2),2),IF(Products!$Z$8=$C$3,ROUND(F108*$B$3*(1+$D$3),2),IF(Products!$Z$8=$C$4,ROUND(F108*$B$3*(1+$D$4),2),IF(Products!$Z$8=$C$5,ROUND(F108*$B$3*(1+$D$5),2),IF(Products!$Z$8=$C$6,ROUND(F108*$B$3*(1+$D$6),2),IF(Products!$Z$8=$C$7,ROUND(F108*$B$3*(1+$D$7),2)))))))) -> 43.7 | H108: =IF(Products!$Z$8=$C$1,I108,IF(Products!$Z$8=$C$2,J108,IF(Products!$Z$8=$C$3,K108,IF(Products!$Z$8=$C$4,L108,IF(Products!$Z$8=$C$5,O108,IF(Products!$Z$8=$C$6,M108,IF(Products!$Z$8=$C$7,N108))))))) -> BL1225100I-EN | I108: BL1225100I-EN | J108: BL1525100I-EN | K108: BL1625100I-EN | L108: BL3225100I-EN | M108: BL3525100I-EN | N108: BL3625100I-EN | O108: BL5225100I-EN | Q108: GravityZone Security for Virtualized Environments VS | R108: GravityZone Security for Virtualized Environments VS - EDU | S108: GravityZone Security for Virtualized Environments VS - GOV | T108: GravityZone Security for Virtualized Environments VS - R | U108: GravityZone Security for Virtualized Environments VS - EDU R | V108: GravityZone Security for Virtualized Environments VS - GOV R | W108: GravityZone Security for Virtualized Environments VS - CUPG
A109: =IF(Products!$Z$8=$C$1,Q109,IF(Products!$Z$8=$C$2,R109,IF(Products!$Z$8=$C$3,S109,IF(Products!$Z$8=$C$4,T109,IF(Products!$Z$8=$C$5,W109,IF(Products!$Z$8=$C$6,U109,IF(Products!$Z$8=$C$7,V109))))))) -> GravityZone Security for Virtualized Environments VS | B109: 1 year | C109: 3000+ | D109: GravityZone Security for Virtualized Environments VS1 year3000+ | F109: 39.75 | G109: =IF(Products!$Z$8=$C$1,ROUND(F109*$B$3,2),IF(Products!$Z$8=$C$2,ROUND(F109*$B$3*(1+$D$2),2),IF(Products!$Z$8=$C$3,ROUND(F109*$B$3*(1+$D$3),2),IF(Products!$Z$8=$C$4,ROUND(F109*$B$3*(1+$D$4),2),IF(Products!$Z$8=$C$5,ROUND(F109*$B$3*(1+$D$5),2),IF(Products!$Z$8=$C$6,ROUND(F109*$B$3*(1+$D$6),2),IF(Products!$Z$8=$C$7,ROUND(F109*$B$3*(1+$D$7),2)))))))) -> 39.75 | H109: =IF(Products!$Z$8=$C$1,I109,IF(Products!$Z$8=$C$2,J109,IF(Products!$Z$8=$C$3,K109,IF(Products!$Z$8=$C$4,L109,IF(Products!$Z$8=$C$5,O109,IF(Products!$Z$8=$C$6,M109,IF(Products!$Z$8=$C$7,N109))))))) -> BL1225100J-EN | I109: BL1225100J-EN | J109: BL1525100J-EN | K109: BL1625100J-EN | L109: BL3225100J-EN | M109: BL3525100J-EN | N109: BL3625100J-EN | O109: BL5225100J-EN | Q109: GravityZone Security for Virtualized Environments VS | R109: GravityZone Security for Virtualized Environments VS - EDU | S109: GravityZone Security for Virtualized Environments VS - GOV | T109: GravityZone Security for Virtualized Environments VS - R | U109: GravityZone Security for Virtualized Environments VS - EDU R | V109: GravityZone Security for Virtualized Environments VS - GOV R | W109: GravityZone Security for Virtualized Environments VS - CUPG
A110: =IF(Products!$Z$8=$C$1,Q110,IF(Products!$Z$8=$C$2,R110,IF(Products!$Z$8=$C$3,S110,IF(Products!$Z$8=$C$4,T110,IF(Products!$Z$8=$C$5,W110,IF(Products!$Z$8=$C$6,U110,IF(Products!$Z$8=$C$7,V110))))))) -> GravityZone Security for Virtualized Environments VS | B110: 2 years | C110: 1 - 14 | D110: GravityZone Security for Virtualized Environments VS2 years1 - 14 | F110: 147.2 | G110: =IF(Products!$Z$8=$C$1,ROUND(F110*$B$3,2),IF(Products!$Z$8=$C$2,ROUND(F110*$B$3*(1+$D$2),2),IF(Products!$Z$8=$C$3,ROUND(F110*$B$3*(1+$D$3),2),IF(Products!$Z$8=$C$4,ROUND(F110*$B$3*(1+$D$4),2),IF(Products!$Z$8=$C$5,ROUND(F110*$B$3*(1+$D$5),2),IF(Products!$Z$8=$C$6,ROUND(F110*$B$3*(1+$D$6),2),IF(Products!$Z$8=$C$7,ROUND(F110*$B$3*(1+$D$7),2)))))))) -> 147.2 | H110: =IF(Products!$Z$8=$C$1,I110,IF(Products!$Z$8=$C$2,J110,IF(Products!$Z$8=$C$3,K110,IF(Products!$Z$8=$C$4,L110,IF(Products!$Z$8=$C$5,O110,IF(Products!$Z$8=$C$6,M110,IF(Products!$Z$8=$C$7,N110))))))) -> BL1225200A-EN | I110: BL1225200A-EN | J110: BL1525200A-EN | K110: BL1625200A-EN | L110: BL3225200A-EN | M110: BL3525200A-EN | N110: BL3625200A-EN | O110: BL5225200A-EN | Q110: GravityZone Security for Virtualized Environments VS | R110: GravityZone Security for Virtualized Environments VS - EDU | S110: GravityZone Security for Virtualized Environments VS - GOV | T110: GravityZone Security for Virtualized Environments VS - R | U110: GravityZone Security for Virtualized Environments VS - EDU R | V110: GravityZone Security for Virtualized Environments VS - GOV R | W110: GravityZone Security for Virtualized Environments VS - CUPG
A111: =IF(Products!$Z$8=$C$1,Q111,IF(Products!$Z$8=$C$2,R111,IF(Products!$Z$8=$C$3,S111,IF(Products!$Z$8=$C$4,T111,IF(Products!$Z$8=$C$5,W111,IF(Products!$Z$8=$C$6,U111,IF(Products!$Z$8=$C$7,V111))))))) -> GravityZone Security for Virtualized Environments VS | B111: 2 years | C111: 15 - 24 | D111: GravityZone Security for Virtualized Environments VS2 years15 - 24 | F111: 132.48 | G111: =IF(Products!$Z$8=$C$1,ROUND(F111*$B$3,2),IF(Products!$Z$8=$C$2,ROUND(F111*$B$3*(1+$D$2),2),IF(Products!$Z$8=$C$3,ROUND(F111*$B$3*(1+$D$3),2),IF(Products!$Z$8=$C$4,ROUND(F111*$B$3*(1+$D$4),2),IF(Products!$Z$8=$C$5,ROUND(F111*$B$3*(1+$D$5),2),IF(Products!$Z$8=$C$6,ROUND(F111*$B$3*(1+$D$6),2),IF(Products!$Z$8=$C$7,ROUND(F111*$B$3*(1+$D$7),2)))))))) -> 132.48 | H111: =IF(Products!$Z$8=$C$1,I111,IF(Products!$Z$8=$C$2,J111,IF(Products!$Z$8=$C$3,K111,IF(Products!$Z$8=$C$4,L111,IF(Products!$Z$8=$C$5,O111,IF(Products!$Z$8=$C$6,M111,IF(Products!$Z$8=$C$7,N111))))))) -> BL1225200B-EN | I111: BL1225200B-EN | J111: BL1525200B-EN | K111: BL1625200B-EN | L111: BL3225200B-EN | M111: BL3525200B-EN | N111: BL3625200B-EN | O111: BL5225200B-EN | Q111: GravityZone Security for Virtualized Environments VS | R111: GravityZone Security for Virtualized Environments VS - EDU | S111: GravityZone Security for Virtualized Environments VS - GOV | T111: GravityZone Security for Virtualized Environments VS - R | U111: GravityZone Security for Virtualized Environments VS - EDU R | V111: GravityZone Security for Virtualized Environments VS - GOV R | W111: GravityZone Security for Virtualized Environments VS - CUPG
A112: =IF(Products!$Z$8=$C$1,Q112,IF(Products!$Z$8=$C$2,R112,IF(Products!$Z$8=$C$3,S112,IF(Products!$Z$8=$C$4,T112,IF(Products!$Z$8=$C$5,W112,IF(Products!$Z$8=$C$6,U112,IF(Products!$Z$8=$C$7,V112))))))) -> GravityZone Security for Virtualized Environments VS | B112: 2 years | C112: 25 - 49 | D112: GravityZone Security for Virtualized Environments VS2 years25 - 49 | F112: 121.92 | G112: =IF(Products!$Z$8=$C$1,ROUND(F112*$B$3,2),IF(Products!$Z$8=$C$2,ROUND(F112*$B$3*(1+$D$2),2),IF(Products!$Z$8=$C$3,ROUND(F112*$B$3*(1+$D$3),2),IF(Products!$Z$8=$C$4,ROUND(F112*$B$3*(1+$D$4),2),IF(Products!$Z$8=$C$5,ROUND(F112*$B$3*(1+$D$5),2),IF(Products!$Z$8=$C$6,ROUND(F112*$B$3*(1+$D$6),2),IF(Products!$Z$8=$C$7,ROUND(F112*$B$3*(1+$D$7),2)))))))) -> 121.92 | H112: =IF(Products!$Z$8=$C$1,I112,IF(Products!$Z$8=$C$2,J112,IF(Products!$Z$8=$C$3,K112,IF(Products!$Z$8=$C$4,L112,IF(Products!$Z$8=$C$5,O112,IF(Products!$Z$8=$C$6,M112,IF(Products!$Z$8=$C$7,N112))))))) -> BL1225200C-EN | I112: BL1225200C-EN | J112: BL1525200C-EN | K112: BL1625200C-EN | L112: BL3225200C-EN | M112: BL3525200C-EN | N112: BL3625200C-EN | O112: BL5225200C-EN | Q112: GravityZone Security for Virtualized Environments VS | R112: GravityZone Security for Virtualized Environments VS - EDU | S112: GravityZone Security for Virtualized Environments VS - GOV | T112: GravityZone Security for Virtualized Environments VS - R | U112: GravityZone Security for Virtualized Environments VS - EDU R | V112: GravityZone Security for Virtualized Environments VS - GOV R | W112: GravityZone Security for Virtualized Environments VS - CUPG
A113: =IF(Products!$Z$8=$C$1,Q113,IF(Products!$Z$8=$C$2,R113,IF(Products!$Z$8=$C$3,S113,IF(Products!$Z$8=$C$4,T113,IF(Products!$Z$8=$C$5,W113,IF(Products!$Z$8=$C$6,U113,IF(Products!$Z$8=$C$7,V113))))))) -> GravityZone Security for Virtualized Environments VS | B113: 2 years | C113: 50 - 99 | D113: GravityZone Security for Virtualized Environments VS2 years50 - 99 | F113: 109.6 | G113: =IF(Products!$Z$8=$C$1,ROUND(F113*$B$3,2),IF(Products!$Z$8=$C$2,ROUND(F113*$B$3*(1+$D$2),2),IF(Products!$Z$8=$C$3,ROUND(F113*$B$3*(1+$D$3),2),IF(Products!$Z$8=$C$4,ROUND(F113*$B$3*(1+$D$4),2),IF(Products!$Z$8=$C$5,ROUND(F113*$B$3*(1+$D$5),2),IF(Products!$Z$8=$C$6,ROUND(F113*$B$3*(1+$D$6),2),IF(Products!$Z$8=$C$7,ROUND(F113*$B$3*(1+$D$7),2)))))))) -> 109.6 | H113: =IF(Products!$Z$8=$C$1,I113,IF(Products!$Z$8=$C$2,J113,IF(Products!$Z$8=$C$3,K113,IF(Products!$Z$8=$C$4,L113,IF(Products!$Z$8=$C$5,O113,IF(Products!$Z$8=$C$6,M113,IF(Products!$Z$8=$C$7,N113))))))) -> BL1225200D-EN | I113: BL1225200D-EN | J113: BL1525200D-EN | K113: BL1625200D-EN | L113: BL3225200D-EN | M113: BL3525200D-EN | N113: BL3625200D-EN | O113: BL5225200D-EN | Q113: GravityZone Security for Virtualized Environments VS | R113: GravityZone Security for Virtualized Environments VS - EDU | S113: GravityZone Security for Virtualized Environments VS - GOV | T113: GravityZone Security for Virtualized Environments VS - R | U113: GravityZone Security for Virtualized Environments VS - EDU R | V113: GravityZone Security for Virtualized Environments VS - GOV R | W113: GravityZone Security for Virtualized Environments VS - CUPG
A114: =IF(Products!$Z$8=$C$1,Q114,IF(Products!$Z$8=$C$2,R114,IF(Products!$Z$8=$C$3,S114,IF(Products!$Z$8=$C$4,T114,IF(Products!$Z$8=$C$5,W114,IF(Products!$Z$8=$C$6,U114,IF(Products!$Z$8=$C$7,V114))))))) -> GravityZone Security for Virtualized Environments VS | B114: 2 years | C114: 100 - 149 | D114: GravityZone Security for Virtualized Environments VS2 years100 - 149 | F114: 98.72 | G114: =IF(Products!$Z$8=$C$1,ROUND(F114*$B$3,2),IF(Products!$Z$8=$C$2,ROUND(F114*$B$3*(1+$D$2),2),IF(Products!$Z$8=$C$3,ROUND(F114*$B$3*(1+$D$3),2),IF(Products!$Z$8=$C$4,ROUND(F114*$B$3*(1+$D$4),2),IF(Products!$Z$8=$C$5,ROUND(F114*$B$3*(1+$D$5),2),IF(Products!$Z$8=$C$6,ROUND(F114*$B$3*(1+$D$6),2),IF(Products!$Z$8=$C$7,ROUND(F114*$B$3*(1+$D$7),2)))))))) -> 98.72 | H114: =IF(Products!$Z$8=$C$1,I114,IF(Products!$Z$8=$C$2,J114,IF(Products!$Z$8=$C$3,K114,IF(Products!$Z$8=$C$4,L114,IF(Products!$Z$8=$C$5,O114,IF(Products!$Z$8=$C$6,M114,IF(Products!$Z$8=$C$7,N114))))))) -> BL1225200E-EN | I114: BL1225200E-EN | J114: BL1525200E-EN | K114: BL1625200E-EN | L114: BL3225200E-EN | M114: BL3525200E-EN | N114: BL3625200E-EN | O114: BL5225200E-EN | Q114: GravityZone Security for Virtualized Environments VS | R114: GravityZone Security for Virtualized Environments VS - EDU | S114: GravityZone Security for Virtualized Environments VS - GOV | T114: GravityZone Security for Virtualized Environments VS - R | U114: GravityZone Security for Virtualized Environments VS - EDU R | V114: GravityZone Security for Virtualized Environments VS - GOV R | W114: GravityZone Security for Virtualized Environments VS - CUPG
A115: =IF(Products!$Z$8=$C$1,Q115,IF(Products!$Z$8=$C$2,R115,IF(Products!$Z$8=$C$3,S115,IF(Products!$Z$8=$C$4,T115,IF(Products!$Z$8=$C$5,W115,IF(Products!$Z$8=$C$6,U115,IF(Products!$Z$8=$C$7,V115))))))) -> GravityZone Security for Virtualized Environments VS | B115: 2 years | C115: 150 - 249 | D115: GravityZone Security for Virtualized Environments VS2 years150 - 249 | F115: 93.76 | G115: =IF(Products!$Z$8=$C$1,ROUND(F115*$B$3,2),IF(Products!$Z$8=$C$2,ROUND(F115*$B$3*(1+$D$2),2),IF(Products!$Z$8=$C$3,ROUND(F115*$B$3*(1+$D$3),2),IF(Products!$Z$8=$C$4,ROUND(F115*$B$3*(1+$D$4),2),IF(Products!$Z$8=$C$5,ROUND(F115*$B$3*(1+$D$5),2),IF(Products!$Z$8=$C$6,ROUND(F115*$B$3*(1+$D$6),2),IF(Products!$Z$8=$C$7,ROUND(F115*$B$3*(1+$D$7),2)))))))) -> 93.76 | H115: =IF(Products!$Z$8=$C$1,I115,IF(Products!$Z$8=$C$2,J115,IF(Products!$Z$8=$C$3,K115,IF(Products!$Z$8=$C$4,L115,IF(Products!$Z$8=$C$5,O115,IF(Products!$Z$8=$C$6,M115,IF(Products!$Z$8=$C$7,N115))))))) -> BL1225200F-EN | I115: BL1225200F-EN | J115: BL1525200F-EN | K115: BL1625200F-EN | L115: BL3225200F-EN | M115: BL3525200F-EN | N115: BL3625200F-EN | O115: BL5225200F-EN | Q115: GravityZone Security for Virtualized Environments VS | R115: GravityZone Security for Virtualized Environments VS - EDU | S115: GravityZone Security for Virtualized Environments VS - GOV | T115: GravityZone Security for Virtualized Environments VS - R | U115: GravityZone Security for Virtualized Environments VS - EDU R | V115: GravityZone Security for Virtualized Environments VS - GOV R | W115: GravityZone Security for Virtualized Environments VS - CUPG
A116: =IF(Products!$Z$8=$C$1,Q116,IF(Products!$Z$8=$C$2,R116,IF(Products!$Z$8=$C$3,S116,IF(Products!$Z$8=$C$4,T116,IF(Products!$Z$8=$C$5,W116,IF(Products!$Z$8=$C$6,U116,IF(Products!$Z$8=$C$7,V116))))))) -> GravityZone Security for Virtualized Environments VS | B116: 2 years | C116: 250 - 499 | D116: GravityZone Security for Virtualized Environments VS2 years250 - 499 | F116: 85.36 | G116: =IF(Products!$Z$8=$C$1,ROUND(F116*$B$3,2),IF(Products!$Z$8=$C$2,ROUND(F116*$B$3*(1+$D$2),2),IF(Products!$Z$8=$C$3,ROUND(F116*$B$3*(1+$D$3),2),IF(Products!$Z$8=$C$4,ROUND(F116*$B$3*(1+$D$4),2),IF(Products!$Z$8=$C$5,ROUND(F116*$B$3*(1+$D$5),2),IF(Products!$Z$8=$C$6,ROUND(F116*$B$3*(1+$D$6),2),IF(Products!$Z$8=$C$7,ROUND(F116*$B$3*(1+$D$7),2)))))))) -> 85.36 | H116: =IF(Products!$Z$8=$C$1,I116,IF(Products!$Z$8=$C$2,J116,IF(Products!$Z$8=$C$3,K116,IF(Products!$Z$8=$C$4,L116,IF(Products!$Z$8=$C$5,O116,IF(Products!$Z$8=$C$6,M116,IF(Products!$Z$8=$C$7,N116))))))) -> BL1225200G-EN | I116: BL1225200G-EN | J116: BL1525200G-EN | K116: BL1625200G-EN | L116: BL3225200G-EN | M116: BL3525200G-EN | N116: BL3625200G-EN | O116: BL5225200G-EN | Q116: GravityZone Security for Virtualized Environments VS | R116: GravityZone Security for Virtualized Environments VS - EDU | S116: GravityZone Security for Virtualized Environments VS - GOV | T116: GravityZone Security for Virtualized Environments VS - R | U116: GravityZone Security for Virtualized Environments VS - EDU R | V116: GravityZone Security for Virtualized Environments VS - GOV R | W116: GravityZone Security for Virtualized Environments VS - CUPG
A117: =IF(Products!$Z$8=$C$1,Q117,IF(Products!$Z$8=$C$2,R117,IF(Products!$Z$8=$C$3,S117,IF(Products!$Z$8=$C$4,T117,IF(Products!$Z$8=$C$5,W117,IF(Products!$Z$8=$C$6,U117,IF(Products!$Z$8=$C$7,V117))))))) -> GravityZone Security for Virtualized Environments VS | B117: 2 years | C117: 500 - 999 | D117: GravityZone Security for Virtualized Environments VS2 years500 - 999 | F117: 76.8 | G117: =IF(Products!$Z$8=$C$1,ROUND(F117*$B$3,2),IF(Products!$Z$8=$C$2,ROUND(F117*$B$3*(1+$D$2),2),IF(Products!$Z$8=$C$3,ROUND(F117*$B$3*(1+$D$3),2),IF(Products!$Z$8=$C$4,ROUND(F117*$B$3*(1+$D$4),2),IF(Products!$Z$8=$C$5,ROUND(F117*$B$3*(1+$D$5),2),IF(Products!$Z$8=$C$6,ROUND(F117*$B$3*(1+$D$6),2),IF(Products!$Z$8=$C$7,ROUND(F117*$B$3*(1+$D$7),2)))))))) -> 76.8 | H117: =IF(Products!$Z$8=$C$1,I117,IF(Products!$Z$8=$C$2,J117,IF(Products!$Z$8=$C$3,K117,IF(Products!$Z$8=$C$4,L117,IF(Products!$Z$8=$C$5,O117,IF(Products!$Z$8=$C$6,M117,IF(Products!$Z$8=$C$7,N117))))))) -> BL1225200H-EN | I117: BL1225200H-EN | J117: BL1525200H-EN | K117: BL1625200H-EN | L117: BL3225200H-EN | M117: BL3525200H-EN | N117: BL3625200H-EN | O117: BL5225200H-EN | Q117: GravityZone Security for Virtualized Environments VS | R117: GravityZone Security for Virtualized Environments VS - EDU | S117: GravityZone Security for Virtualized Environments VS - GOV | T117: GravityZone Security for Virtualized Environments VS - R | U117: GravityZone Security for Virtualized Environments VS - EDU R | V117: GravityZone Security for Virtualized Environments VS - GOV R | W117: GravityZone Security for Virtualized Environments VS - CUPG
A118: =IF(Products!$Z$8=$C$1,Q118,IF(Products!$Z$8=$C$2,R118,IF(Products!$Z$8=$C$3,S118,IF(Products!$Z$8=$C$4,T118,IF(Products!$Z$8=$C$5,W118,IF(Products!$Z$8=$C$6,U118,IF(Products!$Z$8=$C$7,V118))))))) -> GravityZone Security for Virtualized Environments VS | B118: 2 years | C118: 1000 - 2999 | D118: GravityZone Security for Virtualized Environments VS2 years1000 - 2999 | F118: 69.92 | G118: =IF(Products!$Z$8=$C$1,ROUND(F118*$B$3,2),IF(Products!$Z$8=$C$2,ROUND(F118*$B$3*(1+$D$2),2),IF(Products!$Z$8=$C$3,ROUND(F118*$B$3*(1+$D$3),2),IF(Products!$Z$8=$C$4,ROUND(F118*$B$3*(1+$D$4),2),IF(Products!$Z$8=$C$5,ROUND(F118*$B$3*(1+$D$5),2),IF(Products!$Z$8=$C$6,ROUND(F118*$B$3*(1+$D$6),2),IF(Products!$Z$8=$C$7,ROUND(F118*$B$3*(1+$D$7),2)))))))) -> 69.92 | H118: =IF(Products!$Z$8=$C$1,I118,IF(Products!$Z$8=$C$2,J118,IF(Products!$Z$8=$C$3,K118,IF(Products!$Z$8=$C$4,L118,IF(Products!$Z$8=$C$5,O118,IF(Products!$Z$8=$C$6,M118,IF(Products!$Z$8=$C$7,N118))))))) -> BL1225200I-EN | I118: BL1225200I-EN | J118: BL1525200I-EN | K118: BL1625200I-EN | L118: BL3225200I-EN | M118: BL3525200I-EN | N118: BL3625200I-EN | O118: BL5225200I-EN | Q118: GravityZone Security for Virtualized Environments VS | R118: GravityZone Security for Virtualized Environments VS - EDU | S118: GravityZone Security for Virtualized Environments VS - GOV | T118: GravityZone Security for Virtualized Environments VS - R | U118: GravityZone Security for Virtualized Environments VS - EDU R | V118: GravityZone Security for Virtualized Environments VS - GOV R | W118: GravityZone Security for Virtualized Environments VS - CUPG
A119: =IF(Products!$Z$8=$C$1,Q119,IF(Products!$Z$8=$C$2,R119,IF(Products!$Z$8=$C$3,S119,IF(Products!$Z$8=$C$4,T119,IF(Products!$Z$8=$C$5,W119,IF(Products!$Z$8=$C$6,U119,IF(Products!$Z$8=$C$7,V119))))))) -> GravityZone Security for Virtualized Environments VS | B119: 2 years | C119: 3000+ | D119: GravityZone Security for Virtualized Environments VS2 years3000+ | F119: 63.6 | G119: =IF(Products!$Z$8=$C$1,ROUND(F119*$B$3,2),IF(Products!$Z$8=$C$2,ROUND(F119*$B$3*(1+$D$2),2),IF(Products!$Z$8=$C$3,ROUND(F119*$B$3*(1+$D$3),2),IF(Products!$Z$8=$C$4,ROUND(F119*$B$3*(1+$D$4),2),IF(Products!$Z$8=$C$5,ROUND(F119*$B$3*(1+$D$5),2),IF(Products!$Z$8=$C$6,ROUND(F119*$B$3*(1+$D$6),2),IF(Products!$Z$8=$C$7,ROUND(F119*$B$3*(1+$D$7),2)))))))) -> 63.6 | H119: =IF(Products!$Z$8=$C$1,I119,IF(Products!$Z$8=$C$2,J119,IF(Products!$Z$8=$C$3,K119,IF(Products!$Z$8=$C$4,L119,IF(Products!$Z$8=$C$5,O119,IF(Products!$Z$8=$C$6,M119,IF(Products!$Z$8=$C$7,N119))))))) -> BL1225200J-EN | I119: BL1225200J-EN | J119: BL1525200J-EN | K119: BL1625200J-EN | L119: BL3225200J-EN | M119: BL3525200J-EN | N119: BL3625200J-EN | O119: BL5225200J-EN | Q119: GravityZone Security for Virtualized Environments VS | R119: GravityZone Security for Virtualized Environments VS - EDU | S119: GravityZone Security for Virtualized Environments VS - GOV | T119: GravityZone Security for Virtualized Environments VS - R | U119: GravityZone Security for Virtualized Environments VS - EDU R | V119: GravityZone Security for Virtualized Environments VS - GOV R | W119: GravityZone Security for Virtualized Environments VS - CUPG
A120: =IF(Products!$Z$8=$C$1,Q120,IF(Products!$Z$8=$C$2,R120,IF(Products!$Z$8=$C$3,S120,IF(Products!$Z$8=$C$4,T120,IF(Products!$Z$8=$C$5,W120,IF(Products!$Z$8=$C$6,U120,IF(Products!$Z$8=$C$7,V120))))))) -> GravityZone Security for Virtualized Environments VS | B120: 3 years | C120: 1 - 14 | D120: GravityZone Security for Virtualized Environments VS3 years1 - 14 | F120: 188.6 | G120: =IF(Products!$Z$8=$C$1,ROUND(F120*$B$3,2),IF(Products!$Z$8=$C$2,ROUND(F120*$B$3*(1+$D$2),2),IF(Products!$Z$8=$C$3,ROUND(F120*$B$3*(1+$D$3),2),IF(Products!$Z$8=$C$4,ROUND(F120*$B$3*(1+$D$4),2),IF(Products!$Z$8=$C$5,ROUND(F120*$B$3*(1+$D$5),2),IF(Products!$Z$8=$C$6,ROUND(F120*$B$3*(1+$D$6),2),IF(Products!$Z$8=$C$7,ROUND(F120*$B$3*(1+$D$7),2)))))))) -> 188.6 | H120: =IF(Products!$Z$8=$C$1,I120,IF(Products!$Z$8=$C$2,J120,IF(Products!$Z$8=$C$3,K120,IF(Products!$Z$8=$C$4,L120,IF(Products!$Z$8=$C$5,O120,IF(Products!$Z$8=$C$6,M120,IF(Products!$Z$8=$C$7,N120))))))) -> BL1225300A-EN | I120: BL1225300A-EN | J120: BL1525300A-EN | K120: BL1625300A-EN | L120: BL3225300A-EN | M120: BL3525300A-EN | N120: BL3625300A-EN | O120: BL5225300A-EN | Q120: GravityZone Security for Virtualized Environments VS | R120: GravityZone Security for Virtualized Environments VS - EDU | S120: GravityZone Security for Virtualized Environments VS - GOV | T120: GravityZone Security for Virtualized Environments VS - R | U120: GravityZone Security for Virtualized Environments VS - EDU R | V120: GravityZone Security for Virtualized Environments VS - GOV R | W120: GravityZone Security for Virtualized Environments VS - CUPG
A121: =IF(Products!$Z$8=$C$1,Q121,IF(Products!$Z$8=$C$2,R121,IF(Products!$Z$8=$C$3,S121,IF(Products!$Z$8=$C$4,T121,IF(Products!$Z$8=$C$5,W121,IF(Products!$Z$8=$C$6,U121,IF(Products!$Z$8=$C$7,V121))))))) -> GravityZone Security for Virtualized Environments VS | B121: 3 years | C121: 15 - 24 | D121: GravityZone Security for Virtualized Environments VS3 years15 - 24 | F121: 169.74 | G121: =IF(Products!$Z$8=$C$1,ROUND(F121*$B$3,2),IF(Products!$Z$8=$C$2,ROUND(F121*$B$3*(1+$D$2),2),IF(Products!$Z$8=$C$3,ROUND(F121*$B$3*(1+$D$3),2),IF(Products!$Z$8=$C$4,ROUND(F121*$B$3*(1+$D$4),2),IF(Products!$Z$8=$C$5,ROUND(F121*$B$3*(1+$D$5),2),IF(Products!$Z$8=$C$6,ROUND(F121*$B$3*(1+$D$6),2),IF(Products!$Z$8=$C$7,ROUND(F121*$B$3*(1+$D$7),2)))))))) -> 169.74 | H121: =IF(Products!$Z$8=$C$1,I121,IF(Products!$Z$8=$C$2,J121,IF(Products!$Z$8=$C$3,K121,IF(Products!$Z$8=$C$4,L121,IF(Products!$Z$8=$C$5,O121,IF(Products!$Z$8=$C$6,M121,IF(Products!$Z$8=$C$7,N121))))))) -> BL1225300B-EN | I121: BL1225300B-EN | J121: BL1525300B-EN | K121: BL1625300B-EN | L121: BL3225300B-EN | M121: BL3525300B-EN | N121: BL3625300B-EN | O121: BL5225300B-EN | Q121: GravityZone Security for Virtualized Environments VS | R121: GravityZone Security for Virtualized Environments VS - EDU | S121: GravityZone Security for Virtualized Environments VS - GOV | T121: GravityZone Security for Virtualized Environments VS - R | U121: GravityZone Security for Virtualized Environments VS - EDU R | V121: GravityZone Security for Virtualized Environments VS - GOV R | W121: GravityZone Security for Virtualized Environments VS - CUPG
A122: =IF(Products!$Z$8=$C$1,Q122,IF(Products!$Z$8=$C$2,R122,IF(Products!$Z$8=$C$3,S122,IF(Products!$Z$8=$C$4,T122,IF(Products!$Z$8=$C$5,W122,IF(Products!$Z$8=$C$6,U122,IF(Products!$Z$8=$C$7,V122))))))) -> GravityZone Security for Virtualized Environments VS | B122: 3 years | C122: 25 - 49 | D122: GravityZone Security for Virtualized Environments VS3 years25 - 49 | F122: 156.21 | G122: =IF(Products!$Z$8=$C$1,ROUND(F122*$B$3,2),IF(Products!$Z$8=$C$2,ROUND(F122*$B$3*(1+$D$2),2),IF(Products!$Z$8=$C$3,ROUND(F122*$B$3*(1+$D$3),2),IF(Products!$Z$8=$C$4,ROUND(F122*$B$3*(1+$D$4),2),IF(Products!$Z$8=$C$5,ROUND(F122*$B$3*(1+$D$5),2),IF(Products!$Z$8=$C$6,ROUND(F122*$B$3*(1+$D$6),2),IF(Products!$Z$8=$C$7,ROUND(F122*$B$3*(1+$D$7),2)))))))) -> 156.21 | H122: =IF(Products!$Z$8=$C$1,I122,IF(Products!$Z$8=$C$2,J122,IF(Products!$Z$8=$C$3,K122,IF(Products!$Z$8=$C$4,L122,IF(Products!$Z$8=$C$5,O122,IF(Products!$Z$8=$C$6,M122,IF(Products!$Z$8=$C$7,N122))))))) -> BL1225300C-EN | I122: BL1225300C-EN | J122: BL1525300C-EN | K122: BL1625300C-EN | L122: BL3225300C-EN | M122: BL3525300C-EN | N122: BL3625300C-EN | O122: BL5225300C-EN | Q122: GravityZone Security for Virtualized Environments VS | R122: GravityZone Security for Virtualized Environments VS - EDU | S122: GravityZone Security for Virtualized Environments VS - GOV | T122: GravityZone Security for Virtualized Environments VS - R | U122: GravityZone Security for Virtualized Environments VS - EDU R | V122: GravityZone Security for Virtualized Environments VS - GOV R | W122: GravityZone Security for Virtualized Environments VS - CUPG
A123: =IF(Products!$Z$8=$C$1,Q123,IF(Products!$Z$8=$C$2,R123,IF(Products!$Z$8=$C$3,S123,IF(Products!$Z$8=$C$4,T123,IF(Products!$Z$8=$C$5,W123,IF(Products!$Z$8=$C$6,U123,IF(Products!$Z$8=$C$7,V123))))))) -> GravityZone Security for Virtualized Environments VS | B123: 3 years | C123: 50 - 99 | D123: GravityZone Security for Virtualized Environments VS3 years50 - 99 | F123: 140.425 | G123: =IF(Products!$Z$8=$C$1,ROUND(F123*$B$3,2),IF(Products!$Z$8=$C$2,ROUND(F123*$B$3*(1+$D$2),2),IF(Products!$Z$8=$C$3,ROUND(F123*$B$3*(1+$D$3),2),IF(Products!$Z$8=$C$4,ROUND(F123*$B$3*(1+$D$4),2),IF(Products!$Z$8=$C$5,ROUND(F123*$B$3*(1+$D$5),2),IF(Products!$Z$8=$C$6,ROUND(F123*$B$3*(1+$D$6),2),IF(Products!$Z$8=$C$7,ROUND(F123*$B$3*(1+$D$7),2)))))))) -> 140.43 | H123: =IF(Products!$Z$8=$C$1,I123,IF(Products!$Z$8=$C$2,J123,IF(Products!$Z$8=$C$3,K123,IF(Products!$Z$8=$C$4,L123,IF(Products!$Z$8=$C$5,O123,IF(Products!$Z$8=$C$6,M123,IF(Products!$Z$8=$C$7,N123))))))) -> BL1225300D-EN | I123: BL1225300D-EN | J123: BL1525300D-EN | K123: BL1625300D-EN | L123: BL3225300D-EN | M123: BL3525300D-EN | N123: BL3625300D-EN | O123: BL5225300D-EN | Q123: GravityZone Security for Virtualized Environments VS | R123: GravityZone Security for Virtualized Environments VS - EDU | S123: GravityZone Security for Virtualized Environments VS - GOV | T123: GravityZone Security for Virtualized Environments VS - R | U123: GravityZone Security for Virtualized Environments VS - EDU R | V123: GravityZone Security for Virtualized Environments VS - GOV R | W123: GravityZone Security for Virtualized Environments VS - CUPG
A124: =IF(Products!$Z$8=$C$1,Q124,IF(Products!$Z$8=$C$2,R124,IF(Products!$Z$8=$C$3,S124,IF(Products!$Z$8=$C$4,T124,IF(Products!$Z$8=$C$5,W124,IF(Products!$Z$8=$C$6,U124,IF(Products!$Z$8=$C$7,V124))))))) -> GravityZone Security for Virtualized Environments VS | B124: 3 years | C124: 100 - 149 | D124: GravityZone Security for Virtualized Environments VS3 years100 - 149 | F124: 126.485 | G124: =IF(Products!$Z$8=$C$1,ROUND(F124*$B$3,2),IF(Products!$Z$8=$C$2,ROUND(F124*$B$3*(1+$D$2),2),IF(Products!$Z$8=$C$3,ROUND(F124*$B$3*(1+$D$3),2),IF(Products!$Z$8=$C$4,ROUND(F124*$B$3*(1+$D$4),2),IF(Products!$Z$8=$C$5,ROUND(F124*$B$3*(1+$D$5),2),IF(Products!$Z$8=$C$6,ROUND(F124*$B$3*(1+$D$6),2),IF(Products!$Z$8=$C$7,ROUND(F124*$B$3*(1+$D$7),2)))))))) -> 126.49 | H124: =IF(Products!$Z$8=$C$1,I124,IF(Products!$Z$8=$C$2,J124,IF(Products!$Z$8=$C$3,K124,IF(Products!$Z$8=$C$4,L124,IF(Products!$Z$8=$C$5,O124,IF(Products!$Z$8=$C$6,M124,IF(Products!$Z$8=$C$7,N124))))))) -> BL1225300E-EN | I124: BL1225300E-EN | J124: BL1525300E-EN | K124: BL1625300E-EN | L124: BL3225300E-EN | M124: BL3525300E-EN | N124: BL3625300E-EN | O124: BL5225300E-EN | Q124: GravityZone Security for Virtualized Environments VS | R124: GravityZone Security for Virtualized Environments VS - EDU | S124: GravityZone Security for Virtualized Environments VS - GOV | T124: GravityZone Security for Virtualized Environments VS - R | U124: GravityZone Security for Virtualized Environments VS - EDU R | V124: GravityZone Security for Virtualized Environments VS - GOV R | W124: GravityZone Security for Virtualized Environments VS - CUPG
A125: =IF(Products!$Z$8=$C$1,Q125,IF(Products!$Z$8=$C$2,R125,IF(Products!$Z$8=$C$3,S125,IF(Products!$Z$8=$C$4,T125,IF(Products!$Z$8=$C$5,W125,IF(Products!$Z$8=$C$6,U125,IF(Products!$Z$8=$C$7,V125))))))) -> GravityZone Security for Virtualized Environments VS | B125: 3 years | C125: 150 - 249 | D125: GravityZone Security for Virtualized Environments VS3 years150 - 249 | F125: 120.13 | G125: =IF(Products!$Z$8=$C$1,ROUND(F125*$B$3,2),IF(Products!$Z$8=$C$2,ROUND(F125*$B$3*(1+$D$2),2),IF(Products!$Z$8=$C$3,ROUND(F125*$B$3*(1+$D$3),2),IF(Products!$Z$8=$C$4,ROUND(F125*$B$3*(1+$D$4),2),IF(Products!$Z$8=$C$5,ROUND(F125*$B$3*(1+$D$5),2),IF(Products!$Z$8=$C$6,ROUND(F125*$B$3*(1+$D$6),2),IF(Products!$Z$8=$C$7,ROUND(F125*$B$3*(1+$D$7),2)))))))) -> 120.13 | H125: =IF(Products!$Z$8=$C$1,I125,IF(Products!$Z$8=$C$2,J125,IF(Products!$Z$8=$C$3,K125,IF(Products!$Z$8=$C$4,L125,IF(Products!$Z$8=$C$5,O125,IF(Products!$Z$8=$C$6,M125,IF(Products!$Z$8=$C$7,N125))))))) -> BL1225300F-EN | I125: BL1225300F-EN | J125: BL1525300F-EN | K125: BL1625300F-EN | L125: BL3225300F-EN | M125: BL3525300F-EN | N125: BL3625300F-EN | O125: BL5225300F-EN | Q125: GravityZone Security for Virtualized Environments VS | R125: GravityZone Security for Virtualized Environments VS - EDU | S125: GravityZone Security for Virtualized Environments VS - GOV | T125: GravityZone Security for Virtualized Environments VS - R | U125: GravityZone Security for Virtualized Environments VS - EDU R | V125: GravityZone Security for Virtualized Environments VS - GOV R | W125: GravityZone Security for Virtualized Environments VS - CUPG
A126: =IF(Products!$Z$8=$C$1,Q126,IF(Products!$Z$8=$C$2,R126,IF(Products!$Z$8=$C$3,S126,IF(Products!$Z$8=$C$4,T126,IF(Products!$Z$8=$C$5,W126,IF(Products!$Z$8=$C$6,U126,IF(Products!$Z$8=$C$7,V126))))))) -> GravityZone Security for Virtualized Environments VS | B126: 3 years | C126: 250 - 499 | D126: GravityZone Security for Virtualized Environments VS3 years250 - 499 | F126: 109.3675 | G126: =IF(Products!$Z$8=$C$1,ROUND(F126*$B$3,2),IF(Products!$Z$8=$C$2,ROUND(F126*$B$3*(1+$D$2),2),IF(Products!$Z$8=$C$3,ROUND(F126*$B$3*(1+$D$3),2),IF(Products!$Z$8=$C$4,ROUND(F126*$B$3*(1+$D$4),2),IF(Products!$Z$8=$C$5,ROUND(F126*$B$3*(1+$D$5),2),IF(Products!$Z$8=$C$6,ROUND(F126*$B$3*(1+$D$6),2),IF(Products!$Z$8=$C$7,ROUND(F126*$B$3*(1+$D$7),2)))))))) -> 109.37 | H126: =IF(Products!$Z$8=$C$1,I126,IF(Products!$Z$8=$C$2,J126,IF(Products!$Z$8=$C$3,K126,IF(Products!$Z$8=$C$4,L126,IF(Products!$Z$8=$C$5,O126,IF(Products!$Z$8=$C$6,M126,IF(Products!$Z$8=$C$7,N126))))))) -> BL1225300G-EN | I126: BL1225300G-EN | J126: BL1525300G-EN | K126: BL1625300G-EN | L126: BL3225300G-EN | M126: BL3525300G-EN | N126: BL3625300G-EN | O126: BL5225300G-EN | Q126: GravityZone Security for Virtualized Environments VS | R126: GravityZone Security for Virtualized Environments VS - EDU | S126: GravityZone Security for Virtualized Environments VS - GOV | T126: GravityZone Security for Virtualized Environments VS - R | U126: GravityZone Security for Virtualized Environments VS - EDU R | V126: GravityZone Security for Virtualized Environments VS - GOV R | W126: GravityZone Security for Virtualized Environments VS - CUPG
A127: =IF(Products!$Z$8=$C$1,Q127,IF(Products!$Z$8=$C$2,R127,IF(Products!$Z$8=$C$3,S127,IF(Products!$Z$8=$C$4,T127,IF(Products!$Z$8=$C$5,W127,IF(Products!$Z$8=$C$6,U127,IF(Products!$Z$8=$C$7,V127))))))) -> GravityZone Security for Virtualized Environments VS | B127: 3 years | C127: 500 - 999 | D127: GravityZone Security for Virtualized Environments VS3 years500 - 999 | F127: 98.4 | G127: =IF(Products!$Z$8=$C$1,ROUND(F127*$B$3,2),IF(Products!$Z$8=$C$2,ROUND(F127*$B$3*(1+$D$2),2),IF(Products!$Z$8=$C$3,ROUND(F127*$B$3*(1+$D$3),2),IF(Products!$Z$8=$C$4,ROUND(F127*$B$3*(1+$D$4),2),IF(Products!$Z$8=$C$5,ROUND(F127*$B$3*(1+$D$5),2),IF(Products!$Z$8=$C$6,ROUND(F127*$B$3*(1+$D$6),2),IF(Products!$Z$8=$C$7,ROUND(F127*$B$3*(1+$D$7),2)))))))) -> 98.4 | H127: =IF(Products!$Z$8=$C$1,I127,IF(Products!$Z$8=$C$2,J127,IF(Products!$Z$8=$C$3,K127,IF(Products!$Z$8=$C$4,L127,IF(Products!$Z$8=$C$5,O127,IF(Products!$Z$8=$C$6,M127,IF(Products!$Z$8=$C$7,N127))))))) -> BL1225300H-EN | I127: BL1225300H-EN | J127: BL1525300H-EN | K127: BL1625300H-EN | L127: BL3225300H-EN | M127: BL3525300H-EN | N127: BL3625300H-EN | O127: BL5225300H-EN | Q127: GravityZone Security for Virtualized Environments VS | R127: GravityZone Security for Virtualized Environments VS - EDU | S127: GravityZone Security for Virtualized Environments VS - GOV | T127: GravityZone Security for Virtualized Environments VS - R | U127: GravityZone Security for Virtualized Environments VS - EDU R | V127: GravityZone Security for Virtualized Environments VS - GOV R | W127: GravityZone Security for Virtualized Environments VS - CUPG
A128: =IF(Products!$Z$8=$C$1,Q128,IF(Products!$Z$8=$C$2,R128,IF(Products!$Z$8=$C$3,S128,IF(Products!$Z$8=$C$4,T128,IF(Products!$Z$8=$C$5,W128,IF(Products!$Z$8=$C$6,U128,IF(Products!$Z$8=$C$7,V128))))))) -> GravityZone Security for Virtualized Environments VS | B128: 3 years | C128: 1000 - 2999 | D128: GravityZone Security for Virtualized Environments VS3 years1000 - 2999 | F128: 89.585 | G128: =IF(Products!$Z$8=$C$1,ROUND(F128*$B$3,2),IF(Products!$Z$8=$C$2,ROUND(F128*$B$3*(1+$D$2),2),IF(Products!$Z$8=$C$3,ROUND(F128*$B$3*(1+$D$3),2),IF(Products!$Z$8=$C$4,ROUND(F128*$B$3*(1+$D$4),2),IF(Products!$Z$8=$C$5,ROUND(F128*$B$3*(1+$D$5),2),IF(Products!$Z$8=$C$6,ROUND(F128*$B$3*(1+$D$6),2),IF(Products!$Z$8=$C$7,ROUND(F128*$B$3*(1+$D$7),2)))))))) -> 89.59 | H128: =IF(Products!$Z$8=$C$1,I128,IF(Products!$Z$8=$C$2,J128,IF(Products!$Z$8=$C$3,K128,IF(Products!$Z$8=$C$4,L128,IF(Products!$Z$8=$C$5,O128,IF(Products!$Z$8=$C$6,M128,IF(Products!$Z$8=$C$7,N128))))))) -> BL1225300I-EN | I128: BL1225300I-EN | J128: BL1525300I-EN | K128: BL1625300I-EN | L128: BL3225300I-EN | M128: BL3525300I-EN | N128: BL3625300I-EN | O128: BL5225300I-EN | Q128: GravityZone Security for Virtualized Environments VS | R128: GravityZone Security for Virtualized Environments VS - EDU | S128: GravityZone Security for Virtualized Environments VS - GOV | T128: GravityZone Security for Virtualized Environments VS - R | U128: GravityZone Security for Virtualized Environments VS - EDU R | V128: GravityZone Security for Virtualized Environments VS - GOV R | W128: GravityZone Security for Virtualized Environments VS - CUPG
A129: =IF(Products!$Z$8=$C$1,Q129,IF(Products!$Z$8=$C$2,R129,IF(Products!$Z$8=$C$3,S129,IF(Products!$Z$8=$C$4,T129,IF(Products!$Z$8=$C$5,W129,IF(Products!$Z$8=$C$6,U129,IF(Products!$Z$8=$C$7,V129))))))) -> GravityZone Security for Virtualized Environments VS | B129: 3 years | C129: 3000+ | D129: GravityZone Security for Virtualized Environments VS3 years3000+ | F129: 81.4875 | G129: =IF(Products!$Z$8=$C$1,ROUND(F129*$B$3,2),IF(Products!$Z$8=$C$2,ROUND(F129*$B$3*(1+$D$2),2),IF(Products!$Z$8=$C$3,ROUND(F129*$B$3*(1+$D$3),2),IF(Products!$Z$8=$C$4,ROUND(F129*$B$3*(1+$D$4),2),IF(Products!$Z$8=$C$5,ROUND(F129*$B$3*(1+$D$5),2),IF(Products!$Z$8=$C$6,ROUND(F129*$B$3*(1+$D$6),2),IF(Products!$Z$8=$C$7,ROUND(F129*$B$3*(1+$D$7),2)))))))) -> 81.49 | H129: =IF(Products!$Z$8=$C$1,I129,IF(Products!$Z$8=$C$2,J129,IF(Products!$Z$8=$C$3,K129,IF(Products!$Z$8=$C$4,L129,IF(Products!$Z$8=$C$5,O129,IF(Products!$Z$8=$C$6,M129,IF(Products!$Z$8=$C$7,N129))))))) -> BL1225300J-EN | I129: BL1225300J-EN | J129: BL1525300J-EN | K129: BL1625300J-EN | L129: BL3225300J-EN | M129: BL3525300J-EN | N129: BL3625300J-EN | O129: BL5225300J-EN | Q129: GravityZone Security for Virtualized Environments VS | R129: GravityZone Security for Virtualized Environments VS - EDU | S129: GravityZone Security for Virtualized Environments VS - GOV | T129: GravityZone Security for Virtualized Environments VS - R | U129: GravityZone Security for Virtualized Environments VS - EDU R | V129: GravityZone Security for Virtualized Environments VS - GOV R | W129: GravityZone Security for Virtualized Environments VS - CUPG
A130: =IF(Products!$Z$8=$C$1,Q130,IF(Products!$Z$8=$C$2,R130,IF(Products!$Z$8=$C$3,S130,IF(Products!$Z$8=$C$4,T130,IF(Products!$Z$8=$C$5,W130,IF(Products!$Z$8=$C$6,U130,IF(Products!$Z$8=$C$7,V130))))))) -> GravityZone Security for Virtualized Environments CPU | B130: 1 year | C130: 1 - 14 | D130: GravityZone Security for Virtualized Environments CPU1 year1 - 14 | F130: 800 | G130: =IF(Products!$Z$8=$C$1,ROUND(F130*$B$3,2),IF(Products!$Z$8=$C$2,ROUND(F130*$B$3*(1+$D$2),2),IF(Products!$Z$8=$C$3,ROUND(F130*$B$3*(1+$D$3),2),IF(Products!$Z$8=$C$4,ROUND(F130*$B$3*(1+$D$4),2),IF(Products!$Z$8=$C$5,ROUND(F130*$B$3*(1+$D$5),2),IF(Products!$Z$8=$C$6,ROUND(F130*$B$3*(1+$D$6),2),IF(Products!$Z$8=$C$7,ROUND(F130*$B$3*(1+$D$7),2)))))))) -> 800 | H130: =IF(Products!$Z$8=$C$1,I130,IF(Products!$Z$8=$C$2,J130,IF(Products!$Z$8=$C$3,K130,IF(Products!$Z$8=$C$4,L130,IF(Products!$Z$8=$C$5,O130,IF(Products!$Z$8=$C$6,M130,IF(Products!$Z$8=$C$7,N130))))))) -> BL1226100A-EN | I130: BL1226100A-EN | J130: BL1526100A-EN | K130: BL1626100A-EN | L130: BL3226100A-EN | M130: BL3526100A-EN | N130: BL3626100A-EN | O130: BL5226100A-EN | Q130: GravityZone Security for Virtualized Environments CPU | R130: GravityZone Security for Virtualized Environments CPU - EDU | S130: GravityZone Security for Virtualized Environments CPU - GOV | T130: GravityZone Security for Virtualized Environments CPU - R | U130: GravityZone Security for Virtualized Environments CPU - EDU R | V130: GravityZone Security for Virtualized Environments CPU - GOV R | W130: GravityZone Security for Virtualized Environments CPU - CUPG
A131: =IF(Products!$Z$8=$C$1,Q131,IF(Products!$Z$8=$C$2,R131,IF(Products!$Z$8=$C$3,S131,IF(Products!$Z$8=$C$4,T131,IF(Products!$Z$8=$C$5,W131,IF(Products!$Z$8=$C$6,U131,IF(Products!$Z$8=$C$7,V131))))))) -> GravityZone Security for Virtualized Environments CPU | B131: 1 year | C131: 15 - 24 | D131: GravityZone Security for Virtualized Environments CPU1 year15 - 24 | F131: 760 | G131: =IF(Products!$Z$8=$C$1,ROUND(F131*$B$3,2),IF(Products!$Z$8=$C$2,ROUND(F131*$B$3*(1+$D$2),2),IF(Products!$Z$8=$C$3,ROUND(F131*$B$3*(1+$D$3),2),IF(Products!$Z$8=$C$4,ROUND(F131*$B$3*(1+$D$4),2),IF(Products!$Z$8=$C$5,ROUND(F131*$B$3*(1+$D$5),2),IF(Products!$Z$8=$C$6,ROUND(F131*$B$3*(1+$D$6),2),IF(Products!$Z$8=$C$7,ROUND(F131*$B$3*(1+$D$7),2)))))))) -> 760 | H131: =IF(Products!$Z$8=$C$1,I131,IF(Products!$Z$8=$C$2,J131,IF(Products!$Z$8=$C$3,K131,IF(Products!$Z$8=$C$4,L131,IF(Products!$Z$8=$C$5,O131,IF(Products!$Z$8=$C$6,M131,IF(Products!$Z$8=$C$7,N131))))))) -> BL1226100B-EN | I131: BL1226100B-EN | J131: BL1526100B-EN | K131: BL1626100B-EN | L131: BL3226100B-EN | M131: BL3526100B-EN | N131: BL3626100B-EN | O131: BL5226100B-EN | Q131: GravityZone Security for Virtualized Environments CPU | R131: GravityZone Security for Virtualized Environments CPU - EDU | S131: GravityZone Security for Virtualized Environments CPU - GOV | T131: GravityZone Security for Virtualized Environments CPU - R | U131: GravityZone Security for Virtualized Environments CPU - EDU R | V131: GravityZone Security for Virtualized Environments CPU - GOV R | W131: GravityZone Security for Virtualized Environments CPU - CUPG
A132: =IF(Products!$Z$8=$C$1,Q132,IF(Products!$Z$8=$C$2,R132,IF(Products!$Z$8=$C$3,S132,IF(Products!$Z$8=$C$4,T132,IF(Products!$Z$8=$C$5,W132,IF(Products!$Z$8=$C$6,U132,IF(Products!$Z$8=$C$7,V132))))))) -> GravityZone Security for Virtualized Environments CPU | B132: 1 year | C132: 25 - 49 | D132: GravityZone Security for Virtualized Environments CPU1 year25 - 49 | F132: 725 | G132: =IF(Products!$Z$8=$C$1,ROUND(F132*$B$3,2),IF(Products!$Z$8=$C$2,ROUND(F132*$B$3*(1+$D$2),2),IF(Products!$Z$8=$C$3,ROUND(F132*$B$3*(1+$D$3),2),IF(Products!$Z$8=$C$4,ROUND(F132*$B$3*(1+$D$4),2),IF(Products!$Z$8=$C$5,ROUND(F132*$B$3*(1+$D$5),2),IF(Products!$Z$8=$C$6,ROUND(F132*$B$3*(1+$D$6),2),IF(Products!$Z$8=$C$7,ROUND(F132*$B$3*(1+$D$7),2)))))))) -> 725 | H132: =IF(Products!$Z$8=$C$1,I132,IF(Products!$Z$8=$C$2,J132,IF(Products!$Z$8=$C$3,K132,IF(Products!$Z$8=$C$4,L132,IF(Products!$Z$8=$C$5,O132,IF(Products!$Z$8=$C$6,M132,IF(Products!$Z$8=$C$7,N132))))))) -> BL1226100C-EN | I132: BL1226100C-EN | J132: BL1526100C-EN | K132: BL1626100C-EN | L132: BL3226100C-EN | M132: BL3526100C-EN | N132: BL3626100C-EN | O132: BL5226100C-EN | Q132: GravityZone Security for Virtualized Environments CPU | R132: GravityZone Security for Virtualized Environments CPU - EDU | S132: GravityZone Security for Virtualized Environments CPU - GOV | T132: GravityZone Security for Virtualized Environments CPU - R | U132: GravityZone Security for Virtualized Environments CPU - EDU R | V132: GravityZone Security for Virtualized Environments CPU - GOV R | W132: GravityZone Security for Virtualized Environments CPU - CUPG
A133: =IF(Products!$Z$8=$C$1,Q133,IF(Products!$Z$8=$C$2,R133,IF(Products!$Z$8=$C$3,S133,IF(Products!$Z$8=$C$4,T133,IF(Products!$Z$8=$C$5,W133,IF(Products!$Z$8=$C$6,U133,IF(Products!$Z$8=$C$7,V133))))))) -> GravityZone Security for Virtualized Environments CPU | B133: 1 year | C133: 50 - 99 | D133: =CONCATENATE(A133,B133,C133) -> GravityZone Security for Virtualized Environments CPU1 year50 - 99 | F133: 690 | G133: =IF(Products!$Z$8=$C$1,ROUND(F133*$B$3,2),IF(Products!$Z$8=$C$2,ROUND(F133*$B$3*(1+$D$2),2),IF(Products!$Z$8=$C$3,ROUND(F133*$B$3*(1+$D$3),2),IF(Products!$Z$8=$C$4,ROUND(F133*$B$3*(1+$D$4),2),IF(Products!$Z$8=$C$5,ROUND(F133*$B$3*(1+$D$5),2),IF(Products!$Z$8=$C$6,ROUND(F133*$B$3*(1+$D$6),2),IF(Products!$Z$8=$C$7,ROUND(F133*$B$3*(1+$D$7),2)))))))) -> 690 | H133: =IF(Products!$Z$8=$C$1,I133,IF(Products!$Z$8=$C$2,J133,IF(Products!$Z$8=$C$3,K133,IF(Products!$Z$8=$C$4,L133,IF(Products!$Z$8=$C$5,O133,IF(Products!$Z$8=$C$6,M133,IF(Products!$Z$8=$C$7,N133))))))) -> BL1226100D-EN | I133: BL1226100D-EN | J133: BL1526100D-EN | K133: BL1626100D-EN | L133: BL3226100D-EN | M133: BL3526100D-EN | N133: BL3626100D-EN | O133: BL5226100D-EN | Q133: GravityZone Security for Virtualized Environments CPU | R133: GravityZone Security for Virtualized Environments CPU - EDU | S133: GravityZone Security for Virtualized Environments CPU - GOV | T133: GravityZone Security for Virtualized Environments CPU - R | U133: GravityZone Security for Virtualized Environments CPU - EDU R | V133: GravityZone Security for Virtualized Environments CPU - GOV R | W133: GravityZone Security for Virtualized Environments CPU - CUPG
A134: =IF(Products!$Z$8=$C$1,Q134,IF(Products!$Z$8=$C$2,R134,IF(Products!$Z$8=$C$3,S134,IF(Products!$Z$8=$C$4,T134,IF(Products!$Z$8=$C$5,W134,IF(Products!$Z$8=$C$6,U134,IF(Products!$Z$8=$C$7,V134))))))) -> GravityZone Security for Virtualized Environments CPU | B134: 1 year | C134: 100 - 149 | D134: GravityZone Security for Virtualized Environments CPU1 year100 - 149 | F134: 630 | G134: =IF(Products!$Z$8=$C$1,ROUND(F134*$B$3,2),IF(Products!$Z$8=$C$2,ROUND(F134*$B$3*(1+$D$2),2),IF(Products!$Z$8=$C$3,ROUND(F134*$B$3*(1+$D$3),2),IF(Products!$Z$8=$C$4,ROUND(F134*$B$3*(1+$D$4),2),IF(Products!$Z$8=$C$5,ROUND(F134*$B$3*(1+$D$5),2),IF(Products!$Z$8=$C$6,ROUND(F134*$B$3*(1+$D$6),2),IF(Products!$Z$8=$C$7,ROUND(F134*$B$3*(1+$D$7),2)))))))) -> 630 | H134: =IF(Products!$Z$8=$C$1,I134,IF(Products!$Z$8=$C$2,J134,IF(Products!$Z$8=$C$3,K134,IF(Products!$Z$8=$C$4,L134,IF(Products!$Z$8=$C$5,O134,IF(Products!$Z$8=$C$6,M134,IF(Products!$Z$8=$C$7,N134))))))) -> BL1226100E-EN | I134: BL1226100E-EN | J134: BL1526100E-EN | K134: BL1626100E-EN | L134: BL3226100E-EN | M134: BL3526100E-EN | N134: BL3626100E-EN | O134: BL5226100E-EN | Q134: GravityZone Security for Virtualized Environments CPU | R134: =CONCATENATE(Q134," - EDU") -> GravityZone Security for Virtualized Environments CPU - EDU | S134: =CONCATENATE(Q134," - GOV") -> GravityZone Security for Virtualized Environments CPU - GOV | T134: =CONCATENATE(Q134," - R") -> GravityZone Security for Virtualized Environments CPU - R | U134: =CONCATENATE(Q134," - EDU R") -> GravityZone Security for Virtualized Environments CPU - EDU R | V134: =CONCATENATE(Q134," - GOV R") -> GravityZone Security for Virtualized Environments CPU - GOV R | W134: =CONCATENATE(Q134," - CUPG") -> GravityZone Security for Virtualized Environments CPU - CUPG
A135: =IF(Products!$Z$8=$C$1,Q135,IF(Products!$Z$8=$C$2,R135,IF(Products!$Z$8=$C$3,S135,IF(Products!$Z$8=$C$4,T135,IF(Products!$Z$8=$C$5,W135,IF(Products!$Z$8=$C$6,U135,IF(Products!$Z$8=$C$7,V135))))))) -> GravityZone Security for Virtualized Environments CPU | B135: 1 year | C135: 150 - 249 | D135: GravityZone Security for Virtualized Environments CPU1 year150 - 249 | F135: 600 | G135: =IF(Products!$Z$8=$C$1,ROUND(F135*$B$3,2),IF(Products!$Z$8=$C$2,ROUND(F135*$B$3*(1+$D$2),2),IF(Products!$Z$8=$C$3,ROUND(F135*$B$3*(1+$D$3),2),IF(Products!$Z$8=$C$4,ROUND(F135*$B$3*(1+$D$4),2),IF(Products!$Z$8=$C$5,ROUND(F135*$B$3*(1+$D$5),2),IF(Products!$Z$8=$C$6,ROUND(F135*$B$3*(1+$D$6),2),IF(Products!$Z$8=$C$7,ROUND(F135*$B$3*(1+$D$7),2)))))))) -> 600 | H135: =IF(Products!$Z$8=$C$1,I135,IF(Products!$Z$8=$C$2,J135,IF(Products!$Z$8=$C$3,K135,IF(Products!$Z$8=$C$4,L135,IF(Products!$Z$8=$C$5,O135,IF(Products!$Z$8=$C$6,M135,IF(Products!$Z$8=$C$7,N135))))))) -> BL1226100F-EN | I135: BL1226100F-EN | J135: BL1526100F-EN | K135: BL1626100F-EN | L135: BL3226100F-EN | M135: BL3526100F-EN | N135: BL3626100F-EN | O135: BL5226100F-EN | Q135: GravityZone Security for Virtualized Environments CPU | R135: GravityZone Security for Virtualized Environments CPU - EDU | S135: GravityZone Security for Virtualized Environments CPU - GOV | T135: GravityZone Security for Virtualized Environments CPU - R | U135: GravityZone Security for Virtualized Environments CPU - EDU R | V135: GravityZone Security for Virtualized Environments CPU - GOV R | W135: GravityZone Security for Virtualized Environments CPU - CUPG
A136: =IF(Products!$Z$8=$C$1,Q136,IF(Products!$Z$8=$C$2,R136,IF(Products!$Z$8=$C$3,S136,IF(Products!$Z$8=$C$4,T136,IF(Products!$Z$8=$C$5,W136,IF(Products!$Z$8=$C$6,U136,IF(Products!$Z$8=$C$7,V136))))))) -> GravityZone Security for Virtualized Environments CPU | B136: 1 year | C136: 250 - 499 | D136: GravityZone Security for Virtualized Environments CPU1 year250 - 499 | F136: 570 | G136: =IF(Products!$Z$8=$C$1,ROUND(F136*$B$3,2),IF(Products!$Z$8=$C$2,ROUND(F136*$B$3*(1+$D$2),2),IF(Products!$Z$8=$C$3,ROUND(F136*$B$3*(1+$D$3),2),IF(Products!$Z$8=$C$4,ROUND(F136*$B$3*(1+$D$4),2),IF(Products!$Z$8=$C$5,ROUND(F136*$B$3*(1+$D$5),2),IF(Products!$Z$8=$C$6,ROUND(F136*$B$3*(1+$D$6),2),IF(Products!$Z$8=$C$7,ROUND(F136*$B$3*(1+$D$7),2)))))))) -> 570 | H136: =IF(Products!$Z$8=$C$1,I136,IF(Products!$Z$8=$C$2,J136,IF(Products!$Z$8=$C$3,K136,IF(Products!$Z$8=$C$4,L136,IF(Products!$Z$8=$C$5,O136,IF(Products!$Z$8=$C$6,M136,IF(Products!$Z$8=$C$7,N136))))))) -> BL1226100G-EN | I136: BL1226100G-EN | J136: BL1526100G-EN | K136: BL1626100G-EN | L136: BL3226100G-EN | M136: BL3526100G-EN | N136: BL3626100G-EN | O136: BL5226100G-EN | Q136: GravityZone Security for Virtualized Environments CPU | R136: GravityZone Security for Virtualized Environments CPU - EDU | S136: GravityZone Security for Virtualized Environments CPU - GOV | T136: GravityZone Security for Virtualized Environments CPU - R | U136: GravityZone Security for Virtualized Environments CPU - EDU R | V136: GravityZone Security for Virtualized Environments CPU - GOV R | W136: GravityZone Security for Virtualized Environments CPU - CUPG
A137: =IF(Products!$Z$8=$C$1,Q137,IF(Products!$Z$8=$C$2,R137,IF(Products!$Z$8=$C$3,S137,IF(Products!$Z$8=$C$4,T137,IF(Products!$Z$8=$C$5,W137,IF(Products!$Z$8=$C$6,U137,IF(Products!$Z$8=$C$7,V137))))))) -> GravityZone Security for Virtualized Environments CPU | B137: 1 year | C137: 500+ | D137: GravityZone Security for Virtualized Environments CPU1 year500+ | F137: 545 | G137: =IF(Products!$Z$8=$C$1,ROUND(F137*$B$3,2),IF(Products!$Z$8=$C$2,ROUND(F137*$B$3*(1+$D$2),2),IF(Products!$Z$8=$C$3,ROUND(F137*$B$3*(1+$D$3),2),IF(Products!$Z$8=$C$4,ROUND(F137*$B$3*(1+$D$4),2),IF(Products!$Z$8=$C$5,ROUND(F137*$B$3*(1+$D$5),2),IF(Products!$Z$8=$C$6,ROUND(F137*$B$3*(1+$D$6),2),IF(Products!$Z$8=$C$7,ROUND(F137*$B$3*(1+$D$7),2)))))))) -> 545 | H137: =IF(Products!$Z$8=$C$1,I137,IF(Products!$Z$8=$C$2,J137,IF(Products!$Z$8=$C$3,K137,IF(Products!$Z$8=$C$4,L137,IF(Products!$Z$8=$C$5,O137,IF(Products!$Z$8=$C$6,M137,IF(Products!$Z$8=$C$7,N137))))))) -> BL1226100H-EN | I137: BL1226100H-EN | J137: BL1526100H-EN | K137: BL1626100H-EN | L137: BL3226100H-EN | M137: BL3526100H-EN | N137: BL3626100H-EN | O137: BL5226100H-EN | Q137: GravityZone Security for Virtualized Environments CPU | R137: GravityZone Security for Virtualized Environments CPU - EDU | S137: GravityZone Security for Virtualized Environments CPU - GOV | T137: GravityZone Security for Virtualized Environments CPU - R | U137: GravityZone Security for Virtualized Environments CPU - EDU R | V137: GravityZone Security for Virtualized Environments CPU - GOV R | W137: GravityZone Security for Virtualized Environments CPU - CUPG
A138: =IF(Products!$Z$8=$C$1,Q138,IF(Products!$Z$8=$C$2,R138,IF(Products!$Z$8=$C$3,S138,IF(Products!$Z$8=$C$4,T138,IF(Products!$Z$8=$C$5,W138,IF(Products!$Z$8=$C$6,U138,IF(Products!$Z$8=$C$7,V138))))))) -> GravityZone Security for Virtualized Environments CPU | B138: 2 years | C138: 1 - 14 | D138: GravityZone Security for Virtualized Environments CPU2 years1 - 14 | F138: 1280 | G138: =IF(Products!$Z$8=$C$1,ROUND(F138*$B$3,2),IF(Products!$Z$8=$C$2,ROUND(F138*$B$3*(1+$D$2),2),IF(Products!$Z$8=$C$3,ROUND(F138*$B$3*(1+$D$3),2),IF(Products!$Z$8=$C$4,ROUND(F138*$B$3*(1+$D$4),2),IF(Products!$Z$8=$C$5,ROUND(F138*$B$3*(1+$D$5),2),IF(Products!$Z$8=$C$6,ROUND(F138*$B$3*(1+$D$6),2),IF(Products!$Z$8=$C$7,ROUND(F138*$B$3*(1+$D$7),2)))))))) -> 1280 | H138: =IF(Products!$Z$8=$C$1,I138,IF(Products!$Z$8=$C$2,J138,IF(Products!$Z$8=$C$3,K138,IF(Products!$Z$8=$C$4,L138,IF(Products!$Z$8=$C$5,O138,IF(Products!$Z$8=$C$6,M138,IF(Products!$Z$8=$C$7,N138))))))) -> BL1226200A-EN | I138: BL1226200A-EN | J138: BL1526200A-EN | K138: BL1626200A-EN | L138: BL3226200A-EN | M138: BL3526200A-EN | N138: BL3626200A-EN | O138: BL5226200A-EN | Q138: GravityZone Security for Virtualized Environments CPU | R138: GravityZone Security for Virtualized Environments CPU - EDU | S138: GravityZone Security for Virtualized Environments CPU - GOV | T138: GravityZone Security for Virtualized Environments CPU - R | U138: GravityZone Security for Virtualized Environments CPU - EDU R | V138: GravityZone Security for Virtualized Environments CPU - GOV R | W138: GravityZone Security for Virtualized Environments CPU - CUPG
A139: =IF(Products!$Z$8=$C$1,Q139,IF(Products!$Z$8=$C$2,R139,IF(Products!$Z$8=$C$3,S139,IF(Products!$Z$8=$C$4,T139,IF(Products!$Z$8=$C$5,W139,IF(Products!$Z$8=$C$6,U139,IF(Products!$Z$8=$C$7,V139))))))) -> GravityZone Security for Virtualized Environments CPU | B139: 2 years | C139: 15 - 24 | D139: GravityZone Security for Virtualized Environments CPU2 years15 - 24 | F139: 1216 | G139: =IF(Products!$Z$8=$C$1,ROUND(F139*$B$3,2),IF(Products!$Z$8=$C$2,ROUND(F139*$B$3*(1+$D$2),2),IF(Products!$Z$8=$C$3,ROUND(F139*$B$3*(1+$D$3),2),IF(Products!$Z$8=$C$4,ROUND(F139*$B$3*(1+$D$4),2),IF(Products!$Z$8=$C$5,ROUND(F139*$B$3*(1+$D$5),2),IF(Products!$Z$8=$C$6,ROUND(F139*$B$3*(1+$D$6),2),IF(Products!$Z$8=$C$7,ROUND(F139*$B$3*(1+$D$7),2)))))))) -> 1216 | H139: =IF(Products!$Z$8=$C$1,I139,IF(Products!$Z$8=$C$2,J139,IF(Products!$Z$8=$C$3,K139,IF(Products!$Z$8=$C$4,L139,IF(Products!$Z$8=$C$5,O139,IF(Products!$Z$8=$C$6,M139,IF(Products!$Z$8=$C$7,N139))))))) -> BL1226200B-EN | I139: BL1226200B-EN | J139: BL1526200B-EN | K139: BL1626200B-EN | L139: BL3226200B-EN | M139: BL3526200B-EN | N139: BL3626200B-EN | O139: BL5226200B-EN | Q139: GravityZone Security for Virtualized Environments CPU | R139: GravityZone Security for Virtualized Environments CPU - EDU | S139: GravityZone Security for Virtualized Environments CPU - GOV | T139: GravityZone Security for Virtualized Environments CPU - R | U139: GravityZone Security for Virtualized Environments CPU - EDU R | V139: GravityZone Security for Virtualized Environments CPU - GOV R | W139: GravityZone Security for Virtualized Environments CPU - CUPG
A140: =IF(Products!$Z$8=$C$1,Q140,IF(Products!$Z$8=$C$2,R140,IF(Products!$Z$8=$C$3,S140,IF(Products!$Z$8=$C$4,T140,IF(Products!$Z$8=$C$5,W140,IF(Products!$Z$8=$C$6,U140,IF(Products!$Z$8=$C$7,V140))))))) -> GravityZone Security for Virtualized Environments CPU | B140: 2 years | C140: 25 - 49 | D140: GravityZone Security for Virtualized Environments CPU2 years25 - 49 | F140: 1160 | G140: =IF(Products!$Z$8=$C$1,ROUND(F140*$B$3,2),IF(Products!$Z$8=$C$2,ROUND(F140*$B$3*(1+$D$2),2),IF(Products!$Z$8=$C$3,ROUND(F140*$B$3*(1+$D$3),2),IF(Products!$Z$8=$C$4,ROUND(F140*$B$3*(1+$D$4),2),IF(Products!$Z$8=$C$5,ROUND(F140*$B$3*(1+$D$5),2),IF(Products!$Z$8=$C$6,ROUND(F140*$B$3*(1+$D$6),2),IF(Products!$Z$8=$C$7,ROUND(F140*$B$3*(1+$D$7),2)))))))) -> 1160 | H140: =IF(Products!$Z$8=$C$1,I140,IF(Products!$Z$8=$C$2,J140,IF(Products!$Z$8=$C$3,K140,IF(Products!$Z$8=$C$4,L140,IF(Products!$Z$8=$C$5,O140,IF(Products!$Z$8=$C$6,M140,IF(Products!$Z$8=$C$7,N140))))))) -> BL1226200C-EN | I140: BL1226200C-EN | J140: BL1526200C-EN | K140: BL1626200C-EN | L140: BL3226200C-EN | M140: BL3526200C-EN | N140: BL3626200C-EN | O140: BL5226200C-EN | Q140: GravityZone Security for Virtualized Environments CPU | R140: GravityZone Security for Virtualized Environments CPU - EDU | S140: GravityZone Security for Virtualized Environments CPU - GOV | T140: GravityZone Security for Virtualized Environments CPU - R | U140: GravityZone Security for Virtualized Environments CPU - EDU R | V140: GravityZone Security for Virtualized Environments CPU - GOV R | W140: GravityZone Security for Virtualized Environments CPU - CUPG
A141: =IF(Products!$Z$8=$C$1,Q141,IF(Products!$Z$8=$C$2,R141,IF(Products!$Z$8=$C$3,S141,IF(Products!$Z$8=$C$4,T141,IF(Products!$Z$8=$C$5,W141,IF(Products!$Z$8=$C$6,U141,IF(Products!$Z$8=$C$7,V141))))))) -> GravityZone Security for Virtualized Environments CPU | B141: 2 years | C141: 50 - 99 | D141: GravityZone Security for Virtualized Environments CPU2 years50 - 99 | F141: 1104 | G141: =IF(Products!$Z$8=$C$1,ROUND(F141*$B$3,2),IF(Products!$Z$8=$C$2,ROUND(F141*$B$3*(1+$D$2),2),IF(Products!$Z$8=$C$3,ROUND(F141*$B$3*(1+$D$3),2),IF(Products!$Z$8=$C$4,ROUND(F141*$B$3*(1+$D$4),2),IF(Products!$Z$8=$C$5,ROUND(F141*$B$3*(1+$D$5),2),IF(Products!$Z$8=$C$6,ROUND(F141*$B$3*(1+$D$6),2),IF(Products!$Z$8=$C$7,ROUND(F141*$B$3*(1+$D$7),2)))))))) -> 1104 | H141: =IF(Products!$Z$8=$C$1,I141,IF(Products!$Z$8=$C$2,J141,IF(Products!$Z$8=$C$3,K141,IF(Products!$Z$8=$C$4,L141,IF(Products!$Z$8=$C$5,O141,IF(Products!$Z$8=$C$6,M141,IF(Products!$Z$8=$C$7,N141))))))) -> BL1226200D-EN | I141: BL1226200D-EN | J141: BL1526200D-EN | K141: BL1626200D-EN | L141: BL3226200D-EN | M141: BL3526200D-EN | N141: BL3626200D-EN | O141: BL5226200D-EN | Q141: GravityZone Security for Virtualized Environments CPU | R141: GravityZone Security for Virtualized Environments CPU - EDU | S141: GravityZone Security for Virtualized Environments CPU - GOV | T141: GravityZone Security for Virtualized Environments CPU - R | U141: GravityZone Security for Virtualized Environments CPU - EDU R | V141: GravityZone Security for Virtualized Environments CPU - GOV R | W141: GravityZone Security for Virtualized Environments CPU - CUPG
A142: =IF(Products!$Z$8=$C$1,Q142,IF(Products!$Z$8=$C$2,R142,IF(Products!$Z$8=$C$3,S142,IF(Products!$Z$8=$C$4,T142,IF(Products!$Z$8=$C$5,W142,IF(Products!$Z$8=$C$6,U142,IF(Products!$Z$8=$C$7,V142))))))) -> GravityZone Security for Virtualized Environments CPU | B142: 2 years | C142: 100 - 149 | D142: GravityZone Security for Virtualized Environments CPU2 years100 - 149 | F142: 1008 | G142: =IF(Products!$Z$8=$C$1,ROUND(F142*$B$3,2),IF(Products!$Z$8=$C$2,ROUND(F142*$B$3*(1+$D$2),2),IF(Products!$Z$8=$C$3,ROUND(F142*$B$3*(1+$D$3),2),IF(Products!$Z$8=$C$4,ROUND(F142*$B$3*(1+$D$4),2),IF(Products!$Z$8=$C$5,ROUND(F142*$B$3*(1+$D$5),2),IF(Products!$Z$8=$C$6,ROUND(F142*$B$3*(1+$D$6),2),IF(Products!$Z$8=$C$7,ROUND(F142*$B$3*(1+$D$7),2)))))))) -> 1008 | H142: =IF(Products!$Z$8=$C$1,I142,IF(Products!$Z$8=$C$2,J142,IF(Products!$Z$8=$C$3,K142,IF(Products!$Z$8=$C$4,L142,IF(Products!$Z$8=$C$5,O142,IF(Products!$Z$8=$C$6,M142,IF(Products!$Z$8=$C$7,N142))))))) -> BL1226200E-EN | I142: BL1226200E-EN | J142: BL1526200E-EN | K142: BL1626200E-EN | L142: BL3226200E-EN | M142: BL3526200E-EN | N142: BL3626200E-EN | O142: BL5226200E-EN | Q142: GravityZone Security for Virtualized Environments CPU | R142: GravityZone Security for Virtualized Environments CPU - EDU | S142: GravityZone Security for Virtualized Environments CPU - GOV | T142: GravityZone Security for Virtualized Environments CPU - R | U142: GravityZone Security for Virtualized Environments CPU - EDU R | V142: GravityZone Security for Virtualized Environments CPU - GOV R | W142: GravityZone Security for Virtualized Environments CPU - CUPG
A143: =IF(Products!$Z$8=$C$1,Q143,IF(Products!$Z$8=$C$2,R143,IF(Products!$Z$8=$C$3,S143,IF(Products!$Z$8=$C$4,T143,IF(Products!$Z$8=$C$5,W143,IF(Products!$Z$8=$C$6,U143,IF(Products!$Z$8=$C$7,V143))))))) -> GravityZone Security for Virtualized Environments CPU | B143: 2 years | C143: 150 - 249 | D143: GravityZone Security for Virtualized Environments CPU2 years150 - 249 | F143: 960 | G143: =IF(Products!$Z$8=$C$1,ROUND(F143*$B$3,2),IF(Products!$Z$8=$C$2,ROUND(F143*$B$3*(1+$D$2),2),IF(Products!$Z$8=$C$3,ROUND(F143*$B$3*(1+$D$3),2),IF(Products!$Z$8=$C$4,ROUND(F143*$B$3*(1+$D$4),2),IF(Products!$Z$8=$C$5,ROUND(F143*$B$3*(1+$D$5),2),IF(Products!$Z$8=$C$6,ROUND(F143*$B$3*(1+$D$6),2),IF(Products!$Z$8=$C$7,ROUND(F143*$B$3*(1+$D$7),2)))))))) -> 960 | H143: =IF(Products!$Z$8=$C$1,I143,IF(Products!$Z$8=$C$2,J143,IF(Products!$Z$8=$C$3,K143,IF(Products!$Z$8=$C$4,L143,IF(Products!$Z$8=$C$5,O143,IF(Products!$Z$8=$C$6,M143,IF(Products!$Z$8=$C$7,N143))))))) -> BL1226200F-EN | I143: BL1226200F-EN | J143: BL1526200F-EN | K143: BL1626200F-EN | L143: BL3226200F-EN | M143: BL3526200F-EN | N143: BL3626200F-EN | O143: BL5226200F-EN | Q143: GravityZone Security for Virtualized Environments CPU | R143: GravityZone Security for Virtualized Environments CPU - EDU | S143: GravityZone Security for Virtualized Environments CPU - GOV | T143: GravityZone Security for Virtualized Environments CPU - R | U143: GravityZone Security for Virtualized Environments CPU - EDU R | V143: GravityZone Security for Virtualized Environments CPU - GOV R | W143: GravityZone Security for Virtualized Environments CPU - CUPG
A144: =IF(Products!$Z$8=$C$1,Q144,IF(Products!$Z$8=$C$2,R144,IF(Products!$Z$8=$C$3,S144,IF(Products!$Z$8=$C$4,T144,IF(Products!$Z$8=$C$5,W144,IF(Products!$Z$8=$C$6,U144,IF(Products!$Z$8=$C$7,V144))))))) -> GravityZone Security for Virtualized Environments CPU | B144: 2 years | C144: 250 - 499 | D144: GravityZone Security for Virtualized Environments CPU2 years250 - 499 | F144: 912 | G144: =IF(Products!$Z$8=$C$1,ROUND(F144*$B$3,2),IF(Products!$Z$8=$C$2,ROUND(F144*$B$3*(1+$D$2),2),IF(Products!$Z$8=$C$3,ROUND(F144*$B$3*(1+$D$3),2),IF(Products!$Z$8=$C$4,ROUND(F144*$B$3*(1+$D$4),2),IF(Products!$Z$8=$C$5,ROUND(F144*$B$3*(1+$D$5),2),IF(Products!$Z$8=$C$6,ROUND(F144*$B$3*(1+$D$6),2),IF(Products!$Z$8=$C$7,ROUND(F144*$B$3*(1+$D$7),2)))))))) -> 912 | H144: =IF(Products!$Z$8=$C$1,I144,IF(Products!$Z$8=$C$2,J144,IF(Products!$Z$8=$C$3,K144,IF(Products!$Z$8=$C$4,L144,IF(Products!$Z$8=$C$5,O144,IF(Products!$Z$8=$C$6,M144,IF(Products!$Z$8=$C$7,N144))))))) -> BL1226200G-EN | I144: BL1226200G-EN | J144: BL1526200G-EN | K144: BL1626200G-EN | L144: BL3226200G-EN | M144: BL3526200G-EN | N144: BL3626200G-EN | O144: BL5226200G-EN | Q144: GravityZone Security for Virtualized Environments CPU | R144: GravityZone Security for Virtualized Environments CPU - EDU | S144: GravityZone Security for Virtualized Environments CPU - GOV | T144: GravityZone Security for Virtualized Environments CPU - R | U144: GravityZone Security for Virtualized Environments CPU - EDU R | V144: GravityZone Security for Virtualized Environments CPU - GOV R | W144: GravityZone Security for Virtualized Environments CPU - CUPG
A145: =IF(Products!$Z$8=$C$1,Q145,IF(Products!$Z$8=$C$2,R145,IF(Products!$Z$8=$C$3,S145,IF(Products!$Z$8=$C$4,T145,IF(Products!$Z$8=$C$5,W145,IF(Products!$Z$8=$C$6,U145,IF(Products!$Z$8=$C$7,V145))))))) -> GravityZone Security for Virtualized Environments CPU | B145: 2 years | C145: 500+ | D145: GravityZone Security for Virtualized Environments CPU2 years500+ | F145: 872 | G145: =IF(Products!$Z$8=$C$1,ROUND(F145*$B$3,2),IF(Products!$Z$8=$C$2,ROUND(F145*$B$3*(1+$D$2),2),IF(Products!$Z$8=$C$3,ROUND(F145*$B$3*(1+$D$3),2),IF(Products!$Z$8=$C$4,ROUND(F145*$B$3*(1+$D$4),2),IF(Products!$Z$8=$C$5,ROUND(F145*$B$3*(1+$D$5),2),IF(Products!$Z$8=$C$6,ROUND(F145*$B$3*(1+$D$6),2),IF(Products!$Z$8=$C$7,ROUND(F145*$B$3*(1+$D$7),2)))))))) -> 872 | H145: =IF(Products!$Z$8=$C$1,I145,IF(Products!$Z$8=$C$2,J145,IF(Products!$Z$8=$C$3,K145,IF(Products!$Z$8=$C$4,L145,IF(Products!$Z$8=$C$5,O145,IF(Products!$Z$8=$C$6,M145,IF(Products!$Z$8=$C$7,N145))))))) -> BL1226200H-EN | I145: BL1226200H-EN | J145: BL1526200H-EN | K145: BL1626200H-EN | L145: BL3226200H-EN | M145: BL3526200H-EN | N145: BL3626200H-EN | O145: BL5226200H-EN | Q145: GravityZone Security for Virtualized Environments CPU | R145: GravityZone Security for Virtualized Environments CPU - EDU | S145: GravityZone Security for Virtualized Environments CPU - GOV | T145: GravityZone Security for Virtualized Environments CPU - R | U145: GravityZone Security for Virtualized Environments CPU - EDU R | V145: GravityZone Security for Virtualized Environments CPU - GOV R | W145: GravityZone Security for Virtualized Environments CPU - CUPG
A146: =IF(Products!$Z$8=$C$1,Q146,IF(Products!$Z$8=$C$2,R146,IF(Products!$Z$8=$C$3,S146,IF(Products!$Z$8=$C$4,T146,IF(Products!$Z$8=$C$5,W146,IF(Products!$Z$8=$C$6,U146,IF(Products!$Z$8=$C$7,V146))))))) -> GravityZone Security for Virtualized Environments CPU | B146: 3 years | C146: 1 - 14 | D146: GravityZone Security for Virtualized Environments CPU3 years1 - 14 | F146: 1640 | G146: =IF(Products!$Z$8=$C$1,ROUND(F146*$B$3,2),IF(Products!$Z$8=$C$2,ROUND(F146*$B$3*(1+$D$2),2),IF(Products!$Z$8=$C$3,ROUND(F146*$B$3*(1+$D$3),2),IF(Products!$Z$8=$C$4,ROUND(F146*$B$3*(1+$D$4),2),IF(Products!$Z$8=$C$5,ROUND(F146*$B$3*(1+$D$5),2),IF(Products!$Z$8=$C$6,ROUND(F146*$B$3*(1+$D$6),2),IF(Products!$Z$8=$C$7,ROUND(F146*$B$3*(1+$D$7),2)))))))) -> 1640 | H146: =IF(Products!$Z$8=$C$1,I146,IF(Products!$Z$8=$C$2,J146,IF(Products!$Z$8=$C$3,K146,IF(Products!$Z$8=$C$4,L146,IF(Products!$Z$8=$C$5,O146,IF(Products!$Z$8=$C$6,M146,IF(Products!$Z$8=$C$7,N146))))))) -> BL1226300A-EN | I146: BL1226300A-EN | J146: BL1526300A-EN | K146: BL1626300A-EN | L146: BL3226300A-EN | M146: BL3526300A-EN | N146: BL3626300A-EN | O146: BL5226300A-EN | Q146: GravityZone Security for Virtualized Environments CPU | R146: GravityZone Security for Virtualized Environments CPU - EDU | S146: GravityZone Security for Virtualized Environments CPU - GOV | T146: GravityZone Security for Virtualized Environments CPU - R | U146: GravityZone Security for Virtualized Environments CPU - EDU R | V146: GravityZone Security for Virtualized Environments CPU - GOV R | W146: GravityZone Security for Virtualized Environments CPU - CUPG
A147: =IF(Products!$Z$8=$C$1,Q147,IF(Products!$Z$8=$C$2,R147,IF(Products!$Z$8=$C$3,S147,IF(Products!$Z$8=$C$4,T147,IF(Products!$Z$8=$C$5,W147,IF(Products!$Z$8=$C$6,U147,IF(Products!$Z$8=$C$7,V147))))))) -> GravityZone Security for Virtualized Environments CPU | B147: 3 years | C147: 15 - 24 | D147: GravityZone Security for Virtualized Environments CPU3 years15 - 24 | F147: 1558 | G147: =IF(Products!$Z$8=$C$1,ROUND(F147*$B$3,2),IF(Products!$Z$8=$C$2,ROUND(F147*$B$3*(1+$D$2),2),IF(Products!$Z$8=$C$3,ROUND(F147*$B$3*(1+$D$3),2),IF(Products!$Z$8=$C$4,ROUND(F147*$B$3*(1+$D$4),2),IF(Products!$Z$8=$C$5,ROUND(F147*$B$3*(1+$D$5),2),IF(Products!$Z$8=$C$6,ROUND(F147*$B$3*(1+$D$6),2),IF(Products!$Z$8=$C$7,ROUND(F147*$B$3*(1+$D$7),2)))))))) -> 1558 | H147: =IF(Products!$Z$8=$C$1,I147,IF(Products!$Z$8=$C$2,J147,IF(Products!$Z$8=$C$3,K147,IF(Products!$Z$8=$C$4,L147,IF(Products!$Z$8=$C$5,O147,IF(Products!$Z$8=$C$6,M147,IF(Products!$Z$8=$C$7,N147))))))) -> BL1226300B-EN | I147: BL1226300B-EN | J147: BL1526300B-EN | K147: BL1626300B-EN | L147: BL3226300B-EN | M147: BL3526300B-EN | N147: BL3626300B-EN | O147: BL5226300B-EN | Q147: GravityZone Security for Virtualized Environments CPU | R147: GravityZone Security for Virtualized Environments CPU - EDU | S147: GravityZone Security for Virtualized Environments CPU - GOV | T147: GravityZone Security for Virtualized Environments CPU - R | U147: GravityZone Security for Virtualized Environments CPU - EDU R | V147: GravityZone Security for Virtualized Environments CPU - GOV R | W147: GravityZone Security for Virtualized Environments CPU - CUPG
A148: =IF(Products!$Z$8=$C$1,Q148,IF(Products!$Z$8=$C$2,R148,IF(Products!$Z$8=$C$3,S148,IF(Products!$Z$8=$C$4,T148,IF(Products!$Z$8=$C$5,W148,IF(Products!$Z$8=$C$6,U148,IF(Products!$Z$8=$C$7,V148))))))) -> GravityZone Security for Virtualized Environments CPU | B148: 3 years | C148: 25 - 49 | D148: GravityZone Security for Virtualized Environments CPU3 years25 - 49 | F148: 1486.25 | G148: =IF(Products!$Z$8=$C$1,ROUND(F148*$B$3,2),IF(Products!$Z$8=$C$2,ROUND(F148*$B$3*(1+$D$2),2),IF(Products!$Z$8=$C$3,ROUND(F148*$B$3*(1+$D$3),2),IF(Products!$Z$8=$C$4,ROUND(F148*$B$3*(1+$D$4),2),IF(Products!$Z$8=$C$5,ROUND(F148*$B$3*(1+$D$5),2),IF(Products!$Z$8=$C$6,ROUND(F148*$B$3*(1+$D$6),2),IF(Products!$Z$8=$C$7,ROUND(F148*$B$3*(1+$D$7),2)))))))) -> 1486.25 | H148: =IF(Products!$Z$8=$C$1,I148,IF(Products!$Z$8=$C$2,J148,IF(Products!$Z$8=$C$3,K148,IF(Products!$Z$8=$C$4,L148,IF(Products!$Z$8=$C$5,O148,IF(Products!$Z$8=$C$6,M148,IF(Products!$Z$8=$C$7,N148))))))) -> BL1226300C-EN | I148: BL1226300C-EN | J148: BL1526300C-EN | K148: BL1626300C-EN | L148: BL3226300C-EN | M148: BL3526300C-EN | N148: BL3626300C-EN | O148: BL5226300C-EN | Q148: GravityZone Security for Virtualized Environments CPU | R148: GravityZone Security for Virtualized Environments CPU - EDU | S148: GravityZone Security for Virtualized Environments CPU - GOV | T148: GravityZone Security for Virtualized Environments CPU - R | U148: GravityZone Security for Virtualized Environments CPU - EDU R | V148: GravityZone Security for Virtualized Environments CPU - GOV R | W148: GravityZone Security for Virtualized Environments CPU - CUPG
A149: =IF(Products!$Z$8=$C$1,Q149,IF(Products!$Z$8=$C$2,R149,IF(Products!$Z$8=$C$3,S149,IF(Products!$Z$8=$C$4,T149,IF(Products!$Z$8=$C$5,W149,IF(Products!$Z$8=$C$6,U149,IF(Products!$Z$8=$C$7,V149))))))) -> GravityZone Security for Virtualized Environments CPU | B149: 3 years | C149: 50 - 99 | D149: GravityZone Security for Virtualized Environments CPU3 years50 - 99 | F149: 1414.5 | G149: =IF(Products!$Z$8=$C$1,ROUND(F149*$B$3,2),IF(Products!$Z$8=$C$2,ROUND(F149*$B$3*(1+$D$2),2),IF(Products!$Z$8=$C$3,ROUND(F149*$B$3*(1+$D$3),2),IF(Products!$Z$8=$C$4,ROUND(F149*$B$3*(1+$D$4),2),IF(Products!$Z$8=$C$5,ROUND(F149*$B$3*(1+$D$5),2),IF(Products!$Z$8=$C$6,ROUND(F149*$B$3*(1+$D$6),2),IF(Products!$Z$8=$C$7,ROUND(F149*$B$3*(1+$D$7),2)))))))) -> 1414.5 | H149: =IF(Products!$Z$8=$C$1,I149,IF(Products!$Z$8=$C$2,J149,IF(Products!$Z$8=$C$3,K149,IF(Products!$Z$8=$C$4,L149,IF(Products!$Z$8=$C$5,O149,IF(Products!$Z$8=$C$6,M149,IF(Products!$Z$8=$C$7,N149))))))) -> BL1226300D-EN | I149: BL1226300D-EN | J149: BL1526300D-EN | K149: BL1626300D-EN | L149: BL3226300D-EN | M149: BL3526300D-EN | N149: BL3626300D-EN | O149: BL5226300D-EN | Q149: GravityZone Security for Virtualized Environments CPU | R149: GravityZone Security for Virtualized Environments CPU - EDU | S149: GravityZone Security for Virtualized Environments CPU - GOV | T149: GravityZone Security for Virtualized Environments CPU - R | U149: GravityZone Security for Virtualized Environments CPU - EDU R | V149: GravityZone Security for Virtualized Environments CPU - GOV R | W149: GravityZone Security for Virtualized Environments CPU - CUPG
A150: =IF(Products!$Z$8=$C$1,Q150,IF(Products!$Z$8=$C$2,R150,IF(Products!$Z$8=$C$3,S150,IF(Products!$Z$8=$C$4,T150,IF(Products!$Z$8=$C$5,W150,IF(Products!$Z$8=$C$6,U150,IF(Products!$Z$8=$C$7,V150))))))) -> GravityZone Security for Virtualized Environments CPU | B150: 3 years | C150: 100 - 149 | D150: GravityZone Security for Virtualized Environments CPU3 years100 - 149 | F150: 1291.5 | G150: =IF(Products!$Z$8=$C$1,ROUND(F150*$B$3,2),IF(Products!$Z$8=$C$2,ROUND(F150*$B$3*(1+$D$2),2),IF(Products!$Z$8=$C$3,ROUND(F150*$B$3*(1+$D$3),2),IF(Products!$Z$8=$C$4,ROUND(F150*$B$3*(1+$D$4),2),IF(Products!$Z$8=$C$5,ROUND(F150*$B$3*(1+$D$5),2),IF(Products!$Z$8=$C$6,ROUND(F150*$B$3*(1+$D$6),2),IF(Products!$Z$8=$C$7,ROUND(F150*$B$3*(1+$D$7),2)))))))) -> 1291.5 | H150: =IF(Products!$Z$8=$C$1,I150,IF(Products!$Z$8=$C$2,J150,IF(Products!$Z$8=$C$3,K150,IF(Products!$Z$8=$C$4,L150,IF(Products!$Z$8=$C$5,O150,IF(Products!$Z$8=$C$6,M150,IF(Products!$Z$8=$C$7,N150))))))) -> BL1226300E-EN | I150: BL1226300E-EN | J150: BL1526300E-EN | K150: BL1626300E-EN | L150: BL3226300E-EN | M150: BL3526300E-EN | N150: BL3626300E-EN | O150: BL5226300E-EN | Q150: GravityZone Security for Virtualized Environments CPU | R150: GravityZone Security for Virtualized Environments CPU - EDU | S150: GravityZone Security for Virtualized Environments CPU - GOV | T150: GravityZone Security for Virtualized Environments CPU - R | U150: GravityZone Security for Virtualized Environments CPU - EDU R | V150: GravityZone Security for Virtualized Environments CPU - GOV R | W150: GravityZone Security for Virtualized Environments CPU - CUPG
A151: =IF(Products!$Z$8=$C$1,Q151,IF(Products!$Z$8=$C$2,R151,IF(Products!$Z$8=$C$3,S151,IF(Products!$Z$8=$C$4,T151,IF(Products!$Z$8=$C$5,W151,IF(Products!$Z$8=$C$6,U151,IF(Products!$Z$8=$C$7,V151))))))) -> GravityZone Security for Virtualized Environments CPU | B151: 3 years | C151: 150 - 249 | D151: GravityZone Security for Virtualized Environments CPU3 years150 - 249 | F151: 1230 | G151: =IF(Products!$Z$8=$C$1,ROUND(F151*$B$3,2),IF(Products!$Z$8=$C$2,ROUND(F151*$B$3*(1+$D$2),2),IF(Products!$Z$8=$C$3,ROUND(F151*$B$3*(1+$D$3),2),IF(Products!$Z$8=$C$4,ROUND(F151*$B$3*(1+$D$4),2),IF(Products!$Z$8=$C$5,ROUND(F151*$B$3*(1+$D$5),2),IF(Products!$Z$8=$C$6,ROUND(F151*$B$3*(1+$D$6),2),IF(Products!$Z$8=$C$7,ROUND(F151*$B$3*(1+$D$7),2)))))))) -> 1230 | H151: =IF(Products!$Z$8=$C$1,I151,IF(Products!$Z$8=$C$2,J151,IF(Products!$Z$8=$C$3,K151,IF(Products!$Z$8=$C$4,L151,IF(Products!$Z$8=$C$5,O151,IF(Products!$Z$8=$C$6,M151,IF(Products!$Z$8=$C$7,N151))))))) -> BL1226300F-EN | I151: BL1226300F-EN | J151: BL1526300F-EN | K151: BL1626300F-EN | L151: BL3226300F-EN | M151: BL3526300F-EN | N151: BL3626300F-EN | O151: BL5226300F-EN | Q151: GravityZone Security for Virtualized Environments CPU | R151: GravityZone Security for Virtualized Environments CPU - EDU | S151: GravityZone Security for Virtualized Environments CPU - GOV | T151: GravityZone Security for Virtualized Environments CPU - R | U151: GravityZone Security for Virtualized Environments CPU - EDU R | V151: GravityZone Security for Virtualized Environments CPU - GOV R | W151: GravityZone Security for Virtualized Environments CPU - CUPG
A152: =IF(Products!$Z$8=$C$1,Q152,IF(Products!$Z$8=$C$2,R152,IF(Products!$Z$8=$C$3,S152,IF(Products!$Z$8=$C$4,T152,IF(Products!$Z$8=$C$5,W152,IF(Products!$Z$8=$C$6,U152,IF(Products!$Z$8=$C$7,V152))))))) -> GravityZone Security for Virtualized Environments CPU | B152: 3 years | C152: 250 - 499 | D152: GravityZone Security for Virtualized Environments CPU3 years250 - 499 | F152: 1168.5 | G152: =IF(Products!$Z$8=$C$1,ROUND(F152*$B$3,2),IF(Products!$Z$8=$C$2,ROUND(F152*$B$3*(1+$D$2),2),IF(Products!$Z$8=$C$3,ROUND(F152*$B$3*(1+$D$3),2),IF(Products!$Z$8=$C$4,ROUND(F152*$B$3*(1+$D$4),2),IF(Products!$Z$8=$C$5,ROUND(F152*$B$3*(1+$D$5),2),IF(Products!$Z$8=$C$6,ROUND(F152*$B$3*(1+$D$6),2),IF(Products!$Z$8=$C$7,ROUND(F152*$B$3*(1+$D$7),2)))))))) -> 1168.5 | H152: =IF(Products!$Z$8=$C$1,I152,IF(Products!$Z$8=$C$2,J152,IF(Products!$Z$8=$C$3,K152,IF(Products!$Z$8=$C$4,L152,IF(Products!$Z$8=$C$5,O152,IF(Products!$Z$8=$C$6,M152,IF(Products!$Z$8=$C$7,N152))))))) -> BL1226300G-EN | I152: BL1226300G-EN | J152: BL1526300G-EN | K152: BL1626300G-EN | L152: BL3226300G-EN | M152: BL3526300G-EN | N152: BL3626300G-EN | O152: BL5226300G-EN | Q152: GravityZone Security for Virtualized Environments CPU | R152: GravityZone Security for Virtualized Environments CPU - EDU | S152: GravityZone Security for Virtualized Environments CPU - GOV | T152: GravityZone Security for Virtualized Environments CPU - R | U152: GravityZone Security for Virtualized Environments CPU - EDU R | V152: GravityZone Security for Virtualized Environments CPU - GOV R | W152: GravityZone Security for Virtualized Environments CPU - CUPG
A153: =IF(Products!$Z$8=$C$1,Q153,IF(Products!$Z$8=$C$2,R153,IF(Products!$Z$8=$C$3,S153,IF(Products!$Z$8=$C$4,T153,IF(Products!$Z$8=$C$5,W153,IF(Products!$Z$8=$C$6,U153,IF(Products!$Z$8=$C$7,V153))))))) -> GravityZone Security for Virtualized Environments CPU | B153: 3 years | C153: 500+ | D153: GravityZone Security for Virtualized Environments CPU3 years500+ | F153: 1117.25 | G153: =IF(Products!$Z$8=$C$1,ROUND(F153*$B$3,2),IF(Products!$Z$8=$C$2,ROUND(F153*$B$3*(1+$D$2),2),IF(Products!$Z$8=$C$3,ROUND(F153*$B$3*(1+$D$3),2),IF(Products!$Z$8=$C$4,ROUND(F153*$B$3*(1+$D$4),2),IF(Products!$Z$8=$C$5,ROUND(F153*$B$3*(1+$D$5),2),IF(Products!$Z$8=$C$6,ROUND(F153*$B$3*(1+$D$6),2),IF(Products!$Z$8=$C$7,ROUND(F153*$B$3*(1+$D$7),2)))))))) -> 1117.25 | H153: =IF(Products!$Z$8=$C$1,I153,IF(Products!$Z$8=$C$2,J153,IF(Products!$Z$8=$C$3,K153,IF(Products!$Z$8=$C$4,L153,IF(Products!$Z$8=$C$5,O153,IF(Products!$Z$8=$C$6,M153,IF(Products!$Z$8=$C$7,N153))))))) -> BL1226300H-EN | I153: BL1226300H-EN | J153: BL1526300H-EN | K153: BL1626300H-EN | L153: BL3226300H-EN | M153: BL3526300H-EN | N153: BL3626300H-EN | O153: BL5226300H-EN | Q153: GravityZone Security for Virtualized Environments CPU | R153: GravityZone Security for Virtualized Environments CPU - EDU | S153: GravityZone Security for Virtualized Environments CPU - GOV | T153: GravityZone Security for Virtualized Environments CPU - R | U153: GravityZone Security for Virtualized Environments CPU - EDU R | V153: GravityZone Security for Virtualized Environments CPU - GOV R | W153: GravityZone Security for Virtualized Environments CPU - CUPG
A154: =IF(Products!$Z$8=$C$1,Q154,IF(Products!$Z$8=$C$2,R154,IF(Products!$Z$8=$C$3,S154,IF(Products!$Z$8=$C$4,T154,IF(Products!$Z$8=$C$5,W154,IF(Products!$Z$8=$C$6,U154,IF(Products!$Z$8=$C$7,V154))))))) -> GravityZone Security for Endpoints Physical Workstations | B154: 1 year | C154: 5 - 14 | D154: GravityZone Security for Endpoints Physical Workstations1 year5 - 14 | F154: 31 | G154: =IF(Products!$Z$8=$C$1,ROUND(F154*$B$3,2),IF(Products!$Z$8=$C$2,ROUND(F154*$B$3*(1+$D$2),2),IF(Products!$Z$8=$C$3,ROUND(F154*$B$3*(1+$D$3),2),IF(Products!$Z$8=$C$4,ROUND(F154*$B$3*(1+$D$4),2),IF(Products!$Z$8=$C$5,ROUND(F154*$B$3*(1+$D$5),2),IF(Products!$Z$8=$C$6,ROUND(F154*$B$3*(1+$D$6),2),IF(Products!$Z$8=$C$7,ROUND(F154*$B$3*(1+$D$7),2)))))))) -> 31 | H154: =IF(Products!$Z$8=$C$1,I154,IF(Products!$Z$8=$C$2,J154,IF(Products!$Z$8=$C$3,K154,IF(Products!$Z$8=$C$4,L154,IF(Products!$Z$8=$C$5,O154,IF(Products!$Z$8=$C$6,M154,IF(Products!$Z$8=$C$7,N154))))))) -> AL1216100A-EN | I154: AL1216100A-EN | J154: AL1516100A-EN | K154: AL1616100A-EN | L154: AL3216100A-EN | M154: AL3516100A-EN | N154: AL3616100A-EN | O154: AL5216100A-EN | Q154: GravityZone Security for Endpoints Physical Workstations | R154: GravityZone Security for Endpoints Physical Workstations - EDU | S154: GravityZone Security for Endpoints Physical Workstations - GOV | T154: GravityZone Security for Endpoints Physical Workstations - R | U154: GravityZone Security for Endpoints Physical Workstations - EDU R | V154: GravityZone Security for Endpoints Physical Workstations - GOV R | W154: GravityZone Security for Endpoints Physical Workstations - CUPG
A155: =IF(Products!$Z$8=$C$1,Q155,IF(Products!$Z$8=$C$2,R155,IF(Products!$Z$8=$C$3,S155,IF(Products!$Z$8=$C$4,T155,IF(Products!$Z$8=$C$5,W155,IF(Products!$Z$8=$C$6,U155,IF(Products!$Z$8=$C$7,V155))))))) -> GravityZone Security for Endpoints Physical Workstations | B155: 1 year | C155: 15 - 24 | D155: GravityZone Security for Endpoints Physical Workstations1 year15 - 24 | F155: 27.2 | G155: =IF(Products!$Z$8=$C$1,ROUND(F155*$B$3,2),IF(Products!$Z$8=$C$2,ROUND(F155*$B$3*(1+$D$2),2),IF(Products!$Z$8=$C$3,ROUND(F155*$B$3*(1+$D$3),2),IF(Products!$Z$8=$C$4,ROUND(F155*$B$3*(1+$D$4),2),IF(Products!$Z$8=$C$5,ROUND(F155*$B$3*(1+$D$5),2),IF(Products!$Z$8=$C$6,ROUND(F155*$B$3*(1+$D$6),2),IF(Products!$Z$8=$C$7,ROUND(F155*$B$3*(1+$D$7),2)))))))) -> 27.2 | H155: =IF(Products!$Z$8=$C$1,I155,IF(Products!$Z$8=$C$2,J155,IF(Products!$Z$8=$C$3,K155,IF(Products!$Z$8=$C$4,L155,IF(Products!$Z$8=$C$5,O155,IF(Products!$Z$8=$C$6,M155,IF(Products!$Z$8=$C$7,N155))))))) -> AL1216100B-EN | I155: AL1216100B-EN | J155: AL1516100B-EN | K155: AL1616100B-EN | L155: AL3216100B-EN | M155: AL3516100B-EN | N155: AL3616100B-EN | O155: AL5216100B-EN | Q155: GravityZone Security for Endpoints Physical Workstations | R155: GravityZone Security for Endpoints Physical Workstations - EDU | S155: GravityZone Security for Endpoints Physical Workstations - GOV | T155: GravityZone Security for Endpoints Physical Workstations - R | U155: GravityZone Security for Endpoints Physical Workstations - EDU R | V155: GravityZone Security for Endpoints Physical Workstations - GOV R | W155: GravityZone Security for Endpoints Physical Workstations - CUPG
A156: =IF(Products!$Z$8=$C$1,Q156,IF(Products!$Z$8=$C$2,R156,IF(Products!$Z$8=$C$3,S156,IF(Products!$Z$8=$C$4,T156,IF(Products!$Z$8=$C$5,W156,IF(Products!$Z$8=$C$6,U156,IF(Products!$Z$8=$C$7,V156))))))) -> GravityZone Security for Endpoints Physical Workstations | B156: 1 year | C156: 25 - 49 | D156: GravityZone Security for Endpoints Physical Workstations1 year25 - 49 | F156: 25 | G156: =IF(Products!$Z$8=$C$1,ROUND(F156*$B$3,2),IF(Products!$Z$8=$C$2,ROUND(F156*$B$3*(1+$D$2),2),IF(Products!$Z$8=$C$3,ROUND(F156*$B$3*(1+$D$3),2),IF(Products!$Z$8=$C$4,ROUND(F156*$B$3*(1+$D$4),2),IF(Products!$Z$8=$C$5,ROUND(F156*$B$3*(1+$D$5),2),IF(Products!$Z$8=$C$6,ROUND(F156*$B$3*(1+$D$6),2),IF(Products!$Z$8=$C$7,ROUND(F156*$B$3*(1+$D$7),2)))))))) -> 25 | H156: =IF(Products!$Z$8=$C$1,I156,IF(Products!$Z$8=$C$2,J156,IF(Products!$Z$8=$C$3,K156,IF(Products!$Z$8=$C$4,L156,IF(Products!$Z$8=$C$5,O156,IF(Products!$Z$8=$C$6,M156,IF(Products!$Z$8=$C$7,N156))))))) -> AL1216100C-EN | I156: AL1216100C-EN | J156: AL1516100C-EN | K156: AL1616100C-EN | L156: AL3216100C-EN | M156: AL3516100C-EN | N156: AL3616100C-EN | O156: AL5216100C-EN | Q156: GravityZone Security for Endpoints Physical Workstations | R156: GravityZone Security for Endpoints Physical Workstations - EDU | S156: GravityZone Security for Endpoints Physical Workstations - GOV | T156: GravityZone Security for Endpoints Physical Workstations - R | U156: GravityZone Security for Endpoints Physical Workstations - EDU R | V156: GravityZone Security for Endpoints Physical Workstations - GOV R | W156: GravityZone Security for Endpoints Physical Workstations - CUPG
A157: =IF(Products!$Z$8=$C$1,Q157,IF(Products!$Z$8=$C$2,R157,IF(Products!$Z$8=$C$3,S157,IF(Products!$Z$8=$C$4,T157,IF(Products!$Z$8=$C$5,W157,IF(Products!$Z$8=$C$6,U157,IF(Products!$Z$8=$C$7,V157))))))) -> GravityZone Security for Endpoints Physical Workstations | B157: 1 year | C157: 50 - 99 | D157: GravityZone Security for Endpoints Physical Workstations1 year50 - 99 | F157: 22.5 | G157: =IF(Products!$Z$8=$C$1,ROUND(F157*$B$3,2),IF(Products!$Z$8=$C$2,ROUND(F157*$B$3*(1+$D$2),2),IF(Products!$Z$8=$C$3,ROUND(F157*$B$3*(1+$D$3),2),IF(Products!$Z$8=$C$4,ROUND(F157*$B$3*(1+$D$4),2),IF(Products!$Z$8=$C$5,ROUND(F157*$B$3*(1+$D$5),2),IF(Products!$Z$8=$C$6,ROUND(F157*$B$3*(1+$D$6),2),IF(Products!$Z$8=$C$7,ROUND(F157*$B$3*(1+$D$7),2)))))))) -> 22.5 | H157: =IF(Products!$Z$8=$C$1,I157,IF(Products!$Z$8=$C$2,J157,IF(Products!$Z$8=$C$3,K157,IF(Products!$Z$8=$C$4,L157,IF(Products!$Z$8=$C$5,O157,IF(Products!$Z$8=$C$6,M157,IF(Products!$Z$8=$C$7,N157))))))) -> AL1216100D-EN | I157: AL1216100D-EN | J157: AL1516100D-EN | K157: AL1616100D-EN | L157: AL3216100D-EN | M157: AL3516100D-EN | N157: AL3616100D-EN | O157: AL5216100D-EN | Q157: GravityZone Security for Endpoints Physical Workstations | R157: GravityZone Security for Endpoints Physical Workstations - EDU | S157: GravityZone Security for Endpoints Physical Workstations - GOV | T157: GravityZone Security for Endpoints Physical Workstations - R | U157: GravityZone Security for Endpoints Physical Workstations - EDU R | V157: GravityZone Security for Endpoints Physical Workstations - GOV R | W157: GravityZone Security for Endpoints Physical Workstations - CUPG
A158: =IF(Products!$Z$8=$C$1,Q158,IF(Products!$Z$8=$C$2,R158,IF(Products!$Z$8=$C$3,S158,IF(Products!$Z$8=$C$4,T158,IF(Products!$Z$8=$C$5,W158,IF(Products!$Z$8=$C$6,U158,IF(Products!$Z$8=$C$7,V158))))))) -> GravityZone Security for Endpoints Physical Workstations | B158: 1 year | C158: 100 - 149 | D158: GravityZone Security for Endpoints Physical Workstations1 year100 - 149 | F158: 20.25 | G158: =IF(Products!$Z$8=$C$1,ROUND(F158*$B$3,2),IF(Products!$Z$8=$C$2,ROUND(F158*$B$3*(1+$D$2),2),IF(Products!$Z$8=$C$3,ROUND(F158*$B$3*(1+$D$3),2),IF(Products!$Z$8=$C$4,ROUND(F158*$B$3*(1+$D$4),2),IF(Products!$Z$8=$C$5,ROUND(F158*$B$3*(1+$D$5),2),IF(Products!$Z$8=$C$6,ROUND(F158*$B$3*(1+$D$6),2),IF(Products!$Z$8=$C$7,ROUND(F158*$B$3*(1+$D$7),2)))))))) -> 20.25 | H158: =IF(Products!$Z$8=$C$1,I158,IF(Products!$Z$8=$C$2,J158,IF(Products!$Z$8=$C$3,K158,IF(Products!$Z$8=$C$4,L158,IF(Products!$Z$8=$C$5,O158,IF(Products!$Z$8=$C$6,M158,IF(Products!$Z$8=$C$7,N158))))))) -> AL1216100E-EN | I158: AL1216100E-EN | J158: AL1516100E-EN | K158: AL1616100E-EN | L158: AL3216100E-EN | M158: AL3516100E-EN | N158: AL3616100E-EN | O158: AL5216100E-EN | Q158: GravityZone Security for Endpoints Physical Workstations | R158: GravityZone Security for Endpoints Physical Workstations - EDU | S158: GravityZone Security for Endpoints Physical Workstations - GOV | T158: GravityZone Security for Endpoints Physical Workstations - R | U158: GravityZone Security for Endpoints Physical Workstations - EDU R | V158: GravityZone Security for Endpoints Physical Workstations - GOV R | W158: GravityZone Security for Endpoints Physical Workstations - CUPG
A159: =IF(Products!$Z$8=$C$1,Q159,IF(Products!$Z$8=$C$2,R159,IF(Products!$Z$8=$C$3,S159,IF(Products!$Z$8=$C$4,T159,IF(Products!$Z$8=$C$5,W159,IF(Products!$Z$8=$C$6,U159,IF(Products!$Z$8=$C$7,V159))))))) -> GravityZone Security for Endpoints Physical Workstations | B159: 1 year | C159: 150 - 249 | D159: GravityZone Security for Endpoints Physical Workstations1 year150 - 249 | F159: 18.25 | G159: =IF(Products!$Z$8=$C$1,ROUND(F159*$B$3,2),IF(Products!$Z$8=$C$2,ROUND(F159*$B$3*(1+$D$2),2),IF(Products!$Z$8=$C$3,ROUND(F159*$B$3*(1+$D$3),2),IF(Products!$Z$8=$C$4,ROUND(F159*$B$3*(1+$D$4),2),IF(Products!$Z$8=$C$5,ROUND(F159*$B$3*(1+$D$5),2),IF(Products!$Z$8=$C$6,ROUND(F159*$B$3*(1+$D$6),2),IF(Products!$Z$8=$C$7,ROUND(F159*$B$3*(1+$D$7),2)))))))) -> 18.25 | H159: =IF(Products!$Z$8=$C$1,I159,IF(Products!$Z$8=$C$2,J159,IF(Products!$Z$8=$C$3,K159,IF(Products!$Z$8=$C$4,L159,IF(Products!$Z$8=$C$5,O159,IF(Products!$Z$8=$C$6,M159,IF(Products!$Z$8=$C$7,N159))))))) -> AL1216100F-EN | I159: AL1216100F-EN | J159: AL1516100F-EN | K159: AL1616100F-EN | L159: AL3216100F-EN | M159: AL3516100F-EN | N159: AL3616100F-EN | O159: AL5216100F-EN | Q159: GravityZone Security for Endpoints Physical Workstations | R159: GravityZone Security for Endpoints Physical Workstations - EDU | S159: GravityZone Security for Endpoints Physical Workstations - GOV | T159: GravityZone Security for Endpoints Physical Workstations - R | U159: GravityZone Security for Endpoints Physical Workstations - EDU R | V159: GravityZone Security for Endpoints Physical Workstations - GOV R | W159: GravityZone Security for Endpoints Physical Workstations - CUPG
